{"text_format":"1","workbook":"xlsx","n_sheets":33,"sheets":["基本事項","要作成シート","誓約書","表紙(保)","表紙(保こ)","表紙(幼保)","職員一覧表(保)","職員名簿(幼保共)","職員配置状況(保こ)","職員配置状況(幼保)","学級担任の状況(幼保共)","前回指摘事項","運営(保共)","運営(幼保)","委託費(保)","収支計算分析表(保)","施設型給付費(保こ)","事業費(幼保)","給食","防災(保共)","防災(幼保)","保育士配置(保共)","在所率(保共)","在所率(幼保)","施設現況(保)","施設現況(幼保共)","面積等の総括表(幼保共)","各室別面積表(幼保共)","一時預かり(一般型)","一時預かり(幼稚園型)","一時預かり(余裕活用型)","病児・病後児①(基本)","病児・病後児②(点検表)"],"not_rendered":{"charts":0,"images":0,"macros":1,"external_links":1,"defined_names":38,"comments":1,"pivot_tables":0},"unopened":[],"bounds":{"document_bytes":16777216,"sheet_cells":100000,"rows_first":2000,"rows_last":500,"rows_between":2000,"halvings":0,"cell_chars":16384,"cell_head_chars":4096},"cells_cut":0,"cells_raw":0,"read":"whole","date_system":"1900"}

{"sheet":"基本事項","index":0,"n_rows":24,"n_cols":6,"rows_kept":24,"cut":false,"hidden":false,"merged":[[1,0,1,1],[7,1,7,5]]}
["基本事項"]
["　最初に下の黄色いセルに基本情報を入力してください。"]
[]
["【対象年度初日】"]
["2024-04-01","　← 対象年度初日を入力すると各調書の年(年度)に反映します。"]
[]
["【施設等の種類】　（プルダウン方式です。）"]
["　","　　　←（保育所、保育所型認定こども園、幼保連携型認定こども園から選択してください。）"]
[null,"　　　　  選択した施設種類の調書になります。"]
["【施設名等】"]
["保育所名・こども園名"]
["施設長名・園長名"]
["〒"]
["TEL"]
["e-mail"]
["所在地"]
["設置主体種別",null,"　　←（プルダウン方式です。）"]
["設置者名"]
[]
["【補助事業等】",null,null,null,null,"チェックリストの表紙に反映します。"]
["実施する事業名","本年度利用見込人数"]
["延長保育事業"]
["一時預かり事業",null,"※"]
["病児保育事業",null,"※"]

{"sheet":"要作成シート","index":1,"n_rows":36,"n_cols":4,"rows_kept":36,"cut":false,"hidden":false,"merged":[[31,1,33,3],[34,1,35,3],[3,1,3,3],[4,1,4,3],[5,1,5,3],[14,1,14,3],[21,1,21,3]]}
["要作成シート一覧（施設類型別）"]
[]
["シート名","保育所","保育所型\n認定こども園","幼保連携型\n認定こども園"]
["基本事項","○（※提出不要）"]
["要作成シート"]
["誓約書","○"]
["表紙（保）","○"]
["表紙（保こ）",null,"○"]
["表紙（幼保）",null,null,"○"]
["職員一覧表（保）","○"]
["職員名簿（幼保共）",null,"○","○"]
["職員配置状況（保こ）",null,"○"]
["職員配置状況（幼保）",null,null,"○"]
["学級担任の状況（幼保共）",null,"○","○"]
["前回指摘事項","○"]
["運営（保共）","○","○"]
["運営（幼保）",null,null,"○"]
["委託費（保）","○"]
["収支計算分析表（保）","○\n（※必要な場合に限る）"]
["施設型給付費（保こ）",null,"○"]
["事業費（幼保）",null,null,"○"]
["給食","○"]
["防災（保共）","○","○"]
["防災（幼保）",null,null,"○"]
["保育士配置（保共）","○","○"]
["在所率（保共）","○","○"]
["在所率（幼保）",null,null,"○"]
["施設状況（保）","○"]
["施設状況（幼保共）",null,"○","○"]
["面積等の総括表（幼保共）",null,"○","○"]
["各室別面積表（幼保共）",null,"○","○"]
["一時預かり（一般型）","該当がある（基本事項のシートの補助事業等の\n利用見込人数を記入した）場合に作成\n※実施している型のシートに記入"]
["一時預かり（幼稚園型）"]
["一時預かり（余裕活用型）"]
["病児・病後児①（基本）","該当がある（基本事項のシートの補助事業等の\n利用見込人数を記入した）場合に作成\n※事業を実施している場合に①②とも記入"]
["病児・病後児②（点検表）"]

{"sheet":"誓約書","index":2,"n_rows":27,"n_cols":11,"rows_kept":27,"cut":false,"hidden":false,"merged":[[9,4,9,5],[11,4,11,5],[13,4,13,5],[15,1,15,5],[0,0,0,6],[1,0,1,6],[6,3,6,4],[3,4,3,5],[7,4,7,5],[26,2,26,4],[20,2,20,4],[21,2,21,4],[22,2,22,4],[24,2,24,4],[25,2,25,4],[23,2,23,4]]}
[{"$f":"TEXT(基本事項!A5,\"ggge\")&\"年度チェックリストの記載内容に係る誓約書\"","v":"令和6年度チェックリストの記載内容に係る誓約書"}]
[{"$f":"IF(基本事項!A8=\"幼保連携型認定こども園\",\"【幼保連携型認定こども園】\",\"【保育所・保育所型認定こども園】\")","v":"【保育所・保育所型認定こども園】"}]
[]
[null,null,null,null,"令和　年　月　日"]
[]
["　兵庫県知事　様"]
[]
[null,null,null,"法　　人　　名："]
[]
[null,null,null,"代表者の職氏名："]
[]
[null,null,null,{"$f":"IF(基本事項!A8=\"幼保連携型認定こども園\",\"園　　　　　名：\",\"事　業　所　名：\")","v":"事　業　所　名："},{"$f":"基本事項!B11","v":0}]
[]
[null,null,null,"記入担当者の職氏名："]
[]
[null,{"$f":"TEXT(基本事項!A5,\"　　ggge\")&\"年度チェックリスト\"&IF(基本事項!A8=\"幼保連携型認定こども園\",\"【幼保連携型認定こども園】\",\"【保育所・保育所型認定こども園】\")&\"を提出するにあたり、当法人は、記載項目、記載事項に漏れがないことを確認するとともに、記載内容が正確であることを十分に調査・確認のうえ作成しており、すべての記載内容が真実かつ適正であることを誓約します。\"","v":"  令和6年度チェックリスト【保育所・保育所型認定こども園】を提出するにあたり、当法人は、記載項目、記載事項に漏れがないことを確認するとともに、記載内容が正確であることを十分に調査・確認のうえ作成しており、すべての記載内容が真実かつ適正であることを誓約します。"}]
[null,null,null,null,null,null,null,null,null,null,{"$f":"基本事項!A8","v":"　"}]
[]
[]
[null,"◇ 添付書類の確認（次の資料を提出してください。）"]
[null,"対象","添付書類",null,null,"提出(添付)チェック欄"]
[null,"全施設",{"$f":"TEXT(基本事項!A5,\"ggge\")&\"年4月の全職員のローテーション表（様式は任意）\"","v":"令和6年4月の全職員のローテーション表（様式は任意）"}]
[null,"全施設","入園（所）時の保護者への説明資料（重要事項説明書など）"]
[null,"該当施設","３歳児配置加算、４歳以上児配置加算に係る認定申請書（「教職員配置に係る加算等認定申請書」に含まれる場合は、「教職員配置に係る加算等認定申請書」）\n※３歳児配置加算、４歳以上児配置加算を受けている施設のみ"]
[null,"全施設（公立を除く）","市町に提出した処遇改善等加算Ⅰ及びⅡに係る「賃金改善計画書（別添の賃金改善明細（職員別表）及び内訳を含む。）」の写し\n※当該年度分の提出がまだの場合、直近の実績が分かるもの"]
[null,"こども園（公立を除く）","市町に提出した「教職員配置に係る加算等認定申請書（別表を含む。）」の写し\n※当該年度分の提出がまだの場合、直近の実績が分かるもの"]
[null,"病児・病後児保育事業","利用リーフレット、ホームページの写し等（対応可能な症例、開所時間等保護者への周知文書）"]

{"sheet":"表紙(保)","index":3,"n_rows":36,"n_cols":50,"rows_kept":36,"cut":false,"hidden":false,"merged":[[5,37,6,39],[27,11,27,12],[35,32,35,33],[25,10,25,13],[30,24,30,25],[27,24,27,25],[28,19,28,20],[28,24,28,25],[14,21,15,23],[9,37,10,39],[14,36,15,37],[35,22,35,23],[35,24,35,28],[18,24,18,25],[19,24,19,25],[18,26,18,27],[18,28,18,29],[16,21,17,23],[35,14,35,21],[29,16,29,17],[30,27,30,28],[30,16,30,17],[14,30,15,31],[22,14,22,16],[23,14,23,16],[5,31,6,33],[7,28,8,30],[7,31,8,33],[5,24,6,27],[31,5,33,31],[17,5,17,9],[7,24,8,27],[5,28,6,30],[9,20,10,23],[9,28,10,30],[9,31,10,33],[25,5,25,9],[27,5,27,7],[30,11,30,12],[26,8,26,15],[26,16,26,23],[29,5,29,7],[29,8,29,9],[23,10,23,13],[29,33,30,50],[5,43,6,45],[19,30,19,31],[29,11,29,12],[2,1,2,50],[4,46,4,48],[7,40,8,42],[7,43,8,45],[7,34,8,36],[4,20,4,27],[6,1,11,4],[7,7,7,17],[8,7,8,17],[4,5,4,17],[9,24,10,27],[4,1,4,4],[5,1,5,4],[6,7,6,17],[5,5,5,17],[4,43,4,45],[5,34,6,36],[9,34,10,36],[5,40,6,42],[4,40,4,42],[4,37,4,39],[9,40,10,42],[9,43,10,45],[5,46,6,48],[26,1,30,4],[9,7,11,17],[29,24,29,25],[29,27,29,28],[30,8,30,9],[28,8,28,9],[12,5,12,17],[13,5,13,17],[12,1,13,2],[12,3,12,4],[13,3,13,4],[14,24,15,25],[14,26,15,27],[14,28,15,29],[14,19,19,20],[18,22,18,23],[19,22,19,23],[24,10,24,13],[27,8,27,9],[15,5,15,7],[27,16,27,17],[28,16,28,17],[19,26,19,27],[19,28,19,29],[15,1,15,4],[16,28,17,29],[18,46,18,47],[16,44,17,45],[16,40,17,41],[18,48,18,49],[16,26,17,27],[14,48,15,49],[14,42,14,43],[15,42,15,43],[14,40,14,41],[18,30,18,31],[16,30,17,31],[24,5,24,9],[33,1,33,4],[28,11,28,12],[14,46,15,47],[18,21,19,21],[18,34,18,35],[16,48,17,49],[19,32,19,33],[19,34,19,35],[16,42,17,43],[18,36,18,37],[18,38,18,39],[19,38,19,39],[19,48,19,49],[18,41,19,41],[18,40,19,40],[18,42,18,43],[18,44,18,45],[19,42,19,43],[19,44,19,45],[19,46,19,47],[16,46,17,47],[16,36,17,39],[14,34,15,35],[4,34,4,36],[16,32,17,33],[5,20,6,23],[4,49,4,51],[4,28,4,30],[4,31,4,33],[7,46,8,48],[5,49,6,51],[35,1,35,4],[35,5,35,6],[35,12,35,13],[16,1,25,4],[16,5,16,9],[20,5,20,9],[21,5,21,9],[22,5,22,9],[18,5,18,9],[35,7,35,11],[18,10,18,13],[19,10,19,13],[20,10,20,13],[21,10,21,13],[22,10,22,13],[23,5,23,9],[35,29,35,31],[25,14,25,16],[27,19,27,20],[28,27,28,28],[7,37,8,39],[14,32,15,33],[14,38,15,39],[0,1,0,50],[1,1,1,50],[20,19,21,20],[20,24,21,25],[20,26,21,27],[20,28,21,29],[20,32,21,33],[19,5,19,9],[16,10,16,13],[17,10,17,13],[20,46,21,47],[20,40,21,40],[19,36,19,37],[18,32,18,33],[15,9,15,12],[15,13,15,15],[19,14,19,16],[9,46,10,48],[11,25,11,48],[14,44,15,45],[16,14,16,17],[17,14,17,16],[16,24,17,25],[18,14,18,16],[30,19,30,20],[29,19,29,20],[26,24,26,31],[27,27,27,28],[16,34,17,35],[20,48,21,49],[20,36,21,37],[20,34,21,35],[20,41,21,41],[20,42,21,43],[20,44,21,45],[20,38,21,39],[24,14,24,16],[20,30,21,31],[21,14,21,16],[20,14,20,16],[20,21,21,23]]}
[null,{"$f":"TEXT(基本事項!A5,\"ggge年度\")&\"　　保育所（保育所型認定こども園をのぞく）チェックリスト\"","v":"令和6年度　　保育所（保育所型認定こども園をのぞく）チェックリスト"}]
[null,{"$f":"\"※特に指定しているもの以外は、\"&TEXT(基本事項!A5,\"ggge年m月d日\")&\"現在の状況を記載してください。\"","v":"※特に指定しているもの以外は、令和6年4月1日現在の状況を記載してください。"}]
[null,"クリーム色に着色されたセルに入力してください。（白色のセルには計算式が入っている場合がありますので、ご注意願います。）"]
[]
[null,"保育所名",null,null,null,{"$f":"基本事項!B11","v":0},null,null,null,null,null,null,null,null,null,null,null,null,null,null,null,null,null,null,null,null,null,null,"０歳",null,null,"１歳",null,null,"２歳",null,null,"３歳",null,null,"４歳",null,null,"５歳以上",null,null,"計",null,null,"定員比"]
[null,"施設長名",null,null,null,{"$f":"基本事項!B12","v":0},null,null,null,null,null,null,null,null,null,null,null,null,null,null,"入所児童数",null,null,null,"施設型給付費基準\n（学齢）",null,null,null,null,null,null,null,null,null,null,null,null,null,null,null,null,null,null,null,null,null,{"$f":"SUM(AC6:AT7)","v":0},null,null,{"$f":"IF(F16=\"\",\"\",AU6/$F$16)","v":""}]
[null,"所 在 地",null,null,null,"〒",null,{"$f":"基本事項!B13","v":0}]
[null,null,null,null,null,"TEL",null,{"$f":"基本事項!B14","v":0},null,null,null,null,null,null,null,null,null,null,null,null,null,null,null,null,"満年齢",null,null,null,null,null,null,null,null,null,null,null,null,null,null,null,null,null,null,null,null,null,{"$f":"SUM(AC8:AT9)","v":0},null,null,{"$f":"IF(F16=\"\",\"\",AU8/$F$16)","v":""}]
[null,null,null,null,null,"Mail",null,{"$f":"基本事項!B15","v":0}]
[null,null,null,null,null,"住所",null,{"$f":"基本事項!B16","v":0},null,null,null,null,null,null,null,null,null,null,null,null,"私的契約\n児童数",null,null,null,"満年齢",null,null,null,null,null,null,null,null,null,null,null,null,null,null,null,null,null,null,null,null,null,{"$f":"SUM(AC10:AT11)","v":0}]
[]
[null,null,null,null,null,null,null,null,null,null,null,null,null,null,null,null,null,null,null,null,null,null,null,null,"※","満年齢別児童数は、チェックリストを作成した月の１日を基準に記入する。"]
[null,"設置\n者名",null,"種別",null,{"$f":"基本事項!B17","v":0}]
[null,null,null,"名称",null,{"$f":"基本事項!B18","v":0}]
[null,null,null,null,null,null,null,null,null,null,null,null,null,null,null,null,null,null,null,"職員数",null,"職種",null,null,"施設長",null,"主任\n保育士",null,"保育士\n(有資格)",null,"保健師\n看護師\n准看護師",null,"幼稚園教諭等（運営基準第９５条)",null,"調理員",null,"用務員",null,"事務員",null,"嘱託医",null,"保育補助\n(無資格)",null,"補助事業\n担当等\n(有資格)",null,"90人以下施設",null,"計"]
[null,"定　　員",null,null,null,null,null,null,"人","現　　員",null,null,null,null,null,null,"人",null,null,null,null,null,null,null,null,null,null,null,null,null,null,null,null,null,null,null,null,null,null,null,null,"歯"]
[null,{"$f":"\"実施している補助事業等(実施している事業の「実施状況」欄に○、「利用見込数」欄に\"&TEXT(基本事項!A5,\"ggge年度\")&\"の年間利用児童見込み数を記入してください｡)\"","v":"実施している補助事業等(実施している事業の「実施状況」欄に○、「利用見込数」欄に令和6年度の年間利用児童見込み数を記入してください｡)"},null,null,null,"補助事業等",null,null,null,null,"実施状況",null,null,null,"利用見込数",null,null,null,null,null,null,"必要数",null,null,1,null,null,null,{"$f":"IF(AU6=0,\"\",ROUND(ROUNDDOWN(AC6/3,1)+ROUNDDOWN((AF6+AI6)/6,1)+ROUNDDOWN(AL6/20,1)+ROUNDDOWN((AO6+AR6)/30,1),0))","v":""},null,null,null,null,null,{"$f":"IF(F16=\"\",\"\",IF(F16>150,3,IF(F16>40,2,1)))","v":""},null,null,null,null,null,2,null,null,null,null,null,{"$f":"IF(OR(F16=\"\",F16>90),\"\",1)","v":""},null,{"$f":"IF(AC17=0,\"\",SUM(Y17:AV18))","v":3}]
[null,null,null,null,null,{"$f":"基本事項!A22","v":"延長保育事業"},null,null,null,null,"　",null,null,null,{"$f":"基本事項!B22","v":0},null,null,"人"]
[null,null,null,null,null,{"$f":"基本事項!A23","v":"一時預かり事業"},null,null,null,null,null,null,null,null,{"$f":"基本事項!B23","v":0},null,null,"人",null,null,null,"実員","うち非常勤",null,null,null,null,null,null,null,null,null,null,null,null,null,null,null,null,null,null,null,null,null,null,null,null,null,{"$f":"SUM(Y19:AU19)","v":0}]
[null,null,null,null,null,{"$f":"基本事項!A24","v":"病児保育事業"},null,null,null,null,"　",null,null,null,{"$f":"基本事項!B24","v":0},null,null,"人",null,null,null,null,null,null,null,null,null,null,null,null,null,null,null,null,null,null,null,null,null,null,null,null,null,null,null,null,null,null,{"$f":"SUM(Y20:AU20)","v":0}]
[null,null,null,null,null,{"$f":"基本事項!A25","v":0},null,null,null,null,null,null,null,null,{"$f":"基本事項!B25","v":0},null,null,"人",null,"(人)",null,"常勤\n換算後",null,null,null,null,null,null,null,null,null,null,null,null,null,null,null,null,null,null,{"$f":"AO19","v":0},{"$f":"AP19","v":0},null,null,null,null,null,null,{"$f":"IF(AC21=0,\"\",SUM(Y21:AV22))","v":""}]
[null,null,null,null,null,{"$f":"基本事項!A26","v":0},null,null,null,null,null,null,null,null,{"$f":"基本事項!B26","v":0},null,null,"人"]
[null,null,null,null,null,{"$f":"基本事項!A27","v":0},null,null,null,null,null,null,null,null,{"$f":"基本事項!B27","v":0},null,null,"人",null,null,null,"※　「主任保育士」欄は主任保育士専任加算を加算している場合のみ記入。"]
[null,null,null,null,null,{"$f":"基本事項!A28","v":0},null,null,null,null,null,null,null,null,{"$f":"基本事項!B28","v":0},null,null,"人",null,null,null,"※　調理員のうち少なくとも1人は栄養士または調理師の資格が必要。"]
[null,null,null,null,null,{"$f":"基本事項!A29","v":0},null,null,null,null,null,null,null,null,{"$f":"基本事項!B29","v":0},null,null,"人",null,null,null,"※　「実員」欄は、上段に非常勤職員数(内数)を記入。"]
[null,null,null,null,null,{"$f":"基本事項!A30","v":0},null,null,null,null,null,null,null,null,{"$f":"基本事項!B30","v":0},null,null,"人",null,null,null,"※　補助事業担当等には、延長、一時預かりの専任職員の他、保育標準時間の児童が入所している場合は「１」を加算。"]
[null,"保育時間\n1-(27)",null,null,null,null,null,null,"前延長",null,null,null,null,null,null,null,"通　　常",null,null,null,null,null,null,null,"後延長"]
[null,null,null,null,null,"平日",null,null,null,null,"時",null,null,"分","から",null,null,null,"時",null,null,"分","から",null,null,null,"時",null,null,"分","から"]
[null,null,null,null,null,null,null,null,null,null,"時",null,null,"分","まで",null,null,null,"時",null,null,"分","まで",null,null,null,"時",null,null,"分","まで"]
[null,null,null,null,null,"土曜",null,null,null,null,"時",null,null,"分","から",null,null,null,"時",null,null,"分","から",null,null,null,"時",null,null,"分","から",null,null,"※資料中の「保育所確認欄」は自己チェックで、「適正」「該当」と判断した場合にチェックをしてください。"]
[null,null,null,null,null,null,null,null,null,null,"時",null,null,"分","まで",null,null,null,"時",null,null,"分","まで",null,null,null,"時",null,null,"分","まで"]
[null,"日祝祭日以"]
[null,"外の休園日"]
[null,{"$f":"\"(\"&TEXT(DATE(YEAR(基本事項!A5)-1,MONTH(基本事項!A5)+1,DAY(基本事項!A5)),\"ge\")&\"年度実績)\"","v":"(R5年度実績)"}]
[null,{"$f":"\"※　「日祝祭日以外の休園日」欄について\"&TEXT(基本事項!A5,\"ggge年m月\")&\"新設園は\"&TEXT(基本事項!A5,\"ggge\")&\"年度の予定で記載すること。\"","v":"※　「日祝祭日以外の休園日」欄について令和6年4月新設園は令和6年度の予定で記載すること。"}]
[null,"作成者",null,null,null,"職",null,null,null,null,null,null,"氏名",null,null,null,null,null,null,null,null,null,"TEL",null,null,null,null,null,null,"作成日",null,null,"令和",null,null,"年",null,"月",null,"日"]

{"sheet":"表紙(保こ)","index":4,"n_rows":40,"n_cols":50,"rows_kept":40,"cut":false,"hidden":false,"merged":[[0,1,0,50],[1,1,1,50],[2,1,2,50],[5,1,5,4],[5,5,5,17],[5,20,5,27],[5,28,5,30],[5,31,5,33],[5,34,5,36],[5,37,5,39],[5,40,5,42],[5,43,5,45],[5,46,5,48],[5,49,5,51],[6,5,6,17],[6,20,7,23],[6,24,7,27],[6,28,7,30],[9,7,9,17],[10,7,12,17],[10,20,11,23],[10,24,11,27],[10,28,11,30],[6,49,7,51],[7,1,12,4],[7,7,7,17],[8,7,8,17],[8,20,8,23],[8,24,9,27],[8,28,9,30],[8,31,9,33],[8,34,9,36],[8,37,9,39],[6,31,7,33],[6,34,7,36],[6,37,7,39],[6,40,7,42],[6,43,7,45],[6,46,7,48],[10,34,11,36],[10,37,11,39],[10,40,11,42],[10,43,11,45],[10,46,11,48],[10,49,11,51],[8,40,9,42],[6,1,6,4],[8,43,9,45],[8,46,9,48],[8,49,9,51],[12,43,13,45],[12,46,13,48],[13,1,14,2],[13,3,13,4],[13,5,13,17],[14,3,14,4],[14,5,14,17],[14,21,14,44],[12,20,13,27],[12,28,13,30],[12,31,13,33],[12,34,13,36],[12,37,13,39],[12,40,13,42],[10,31,11,33],[17,1,17,4],[17,5,17,6],[17,8,17,9],[17,11,17,12],[17,14,17,15],[17,24,17,26],[16,1,16,4],[16,5,16,7],[16,8,16,10],[16,11,16,13],[16,14,16,16],[16,20,20,23],[18,1,18,4],[18,5,18,6],[18,8,18,9],[18,11,18,12],[20,1,29,4],[20,5,20,9],[20,10,20,13],[20,14,20,17],[24,5,24,9],[24,10,24,13],[24,14,24,16],[24,24,24,26],[17,27,17,28],[17,30,17,31],[17,35,17,36],[17,38,17,39],[17,43,17,44],[17,46,17,47],[16,24,16,26],[16,27,16,34],[16,35,16,42],[16,43,16,50],[18,46,18,47],[19,1,19,4],[19,5,19,6],[19,8,19,9],[19,11,19,12],[19,14,19,15],[19,24,19,26],[19,27,19,28],[19,30,19,31],[19,35,19,36],[18,14,18,15],[18,27,18,28],[18,30,18,31],[18,35,18,36],[18,38,18,39],[18,43,18,44],[19,38,19,39],[19,43,19,44],[19,46,19,47],[20,27,20,28],[20,30,20,31],[20,35,20,36],[20,38,20,39],[20,43,20,44],[20,46,20,47],[21,5,21,9],[21,10,21,13],[21,14,21,16],[21,24,21,26],[21,27,21,34],[21,35,21,42],[21,43,21,50],[22,35,22,36],[22,38,22,39],[22,43,22,44],[22,46,22,47],[23,5,23,9],[23,10,23,13],[23,14,23,16],[23,27,23,28],[23,30,23,31],[23,35,23,36],[22,5,22,9],[22,10,22,13],[22,14,22,16],[22,24,22,26],[22,27,22,28],[22,30,22,31],[23,38,23,39],[23,43,23,44],[23,46,23,47],[24,27,24,28],[24,30,24,31],[24,35,24,36],[24,38,24,39],[24,43,24,44],[24,46,24,47],[25,5,25,9],[25,10,25,13],[25,14,25,16],[25,27,25,28],[25,30,25,31],[25,35,25,36],[25,38,25,39],[28,10,28,13],[28,14,28,16],[28,20,28,23],[29,5,29,9],[29,10,29,13],[29,14,29,16],[25,43,25,44],[25,46,25,47],[26,5,26,9],[26,10,26,13],[26,14,26,16],[26,24,28,50],[27,5,27,9],[27,10,27,13],[27,14,27,16],[28,5,28,9],[31,33,34,50],[35,38,37,50],[39,1,39,4],[39,5,39,6],[39,7,39,11],[39,12,39,13],[39,22,39,23],[39,24,39,28],[39,29,39,31],[39,32,39,33],[39,14,39,21]]}
[null,{"$f":"TEXT(基本事項!A5,\"ggge年度\")&\"　保育所型認定こども園チェックリスト\"","v":"令和6年度　保育所型認定こども園チェックリスト"}]
[null,{"$f":"\"※特に指定しているもの以外は、\"&TEXT(基本事項!A5,\"ggge年m月d日\")&\"現在の状況を記載してください。\"","v":"※特に指定しているもの以外は、令和6年4月1日現在の状況を記載してください。"}]
[null,"クリーム色に着色されたセルに入力してください。（白色のセルには計算式が入っている場合がありますので、ご注意願います。）"]
[]
[]
[null,"こども園名",null,null,null,{"$f":"基本事項!B11","v":0},null,null,null,null,null,null,null,null,null,null,null,null,null,null,null,null,null,null,null,null,null,null,"０歳",null,null,"１歳",null,null,"２歳",null,null,"３歳",null,null,"４歳",null,null,"５歳",null,null,"計",null,null,"定員比"]
[null,"園長名",null,null,null,{"$f":"基本事項!B12","v":0},null,null,null,null,null,null,null,null,null,null,null,null,null,null,"子どもの数",null,null,null,"保育認定\n（2号・３号）",null,null,null,null,null,null,null,null,null,null,null,null,null,null,null,null,null,null,null,null,null,{"$f":"SUM(AC7:AT8)","v":0}]
[null,"所 在 地",null,null,null,"〒",null,{"$f":"基本事項!B13","v":0}]
[null,null,null,null,null,"TEL",null,{"$f":"基本事項!B14","v":0},null,null,null,null,null,null,null,null,null,null,null,null,null,null,null,null,"教育標準時間認定（１号）",null,null,null,null,null,null,null,null,null,null,null,null,null,null,null,null,null,null,null,null,null,{"$f":"SUM(AC9:AT10)","v":0}]
[null,null,null,null,null,"Mail",null,{"$f":"基本事項!B15","v":0}]
[null,null,null,null,null,"住所",null,{"$f":"基本事項!B16","v":0},null,null,null,null,null,null,null,null,null,null,null,null,null,null,null,null,"合計",null,null,null,{"$f":"SUM(AC7:AE10)","v":0},null,null,{"$f":"SUM(AF7:AH10)","v":0},null,null,{"$f":"SUM(AI7:AK10)","v":0},null,null,{"$f":"SUM(AL7:AN10)","v":0},null,null,{"$f":"SUM(AO7:AQ10)","v":0},null,null,{"$f":"SUM(AR7:AT10)","v":0},null,null,{"$f":"SUM(AC11:AT12)","v":0},null,null,{"$f":"IF(O19=0,\"\",AU11/O19)","v":""}]
[null,null,null,null,null,null,null,{"$f":"基本事項!B17","v":0}]
[null,null,null,null,null,null,null,{"$f":"基本事項!B18","v":0},null,null,null,null,null,null,null,null,null,null,null,null,"学級数",null,null,null,null,null,null,null,null,null,null,null,null,null,null,null,null,null,null,null,null,null,null,null,null,null,{"$f":"SUM(AC13:AT14)","v":0}]
[null,"設置\n者名",null,"種別",null,{"$f":"基本事項!B17","v":0}]
[null,null,null,"名称",null,{"$f":"基本事項!B18","v":0}]
[]
[null,null,null,null,null,"１号",null,null,"２号",null,null,"３号",null,null,"合計",null,null,null,null,null,"開園時間\n",null,null,null,null,null,null,null,null,null,null,null,null,null,null,"教育標準時間",null,null,null,null,null,null,null,"一時預かり"]
[null,"認可定員",null,null,null,null,null,"人",null,null,"人",null,null,"人",{"$f":"SUM(F18,I18,L18)","v":0},null,"人",null,null,null,null,null,null,null,"平日",null,null,null,null,"時",null,null,"分","から",null,null,null,"時",null,null,"分","から",null,null,null,"時",null,null,"分","から"]
[null,"利用定員",null,null,null,null,null,"人",null,null,"人",null,null,"人",{"$f":"SUM(F19,I19,L19)","v":0},null,"人",null,null,null,null,null,null,null,null,null,null,null,null,"時",null,null,"分","まで",null,null,null,"時",null,null,"分","まで",null,null,null,"時",null,null,"分","まで"]
[null,"現員",null,null,null,{"$f":"SUM(AL9:AT10)","v":0},null,"人",{"$f":"SUM(AL7:AT8)","v":0},null,"人",{"$f":"SUM(AC7:AK8)","v":0},null,"人",{"$f":"SUM(F20,I20,L20)","v":0},null,"人",null,null,null,null,null,null,null,"土曜",null,null,null,null,"時",null,null,"分","から",null,null,null,"時",null,null,"分","から",null,null,null,"時",null,null,"分","から"]
[null,{"$f":"\"実施している補助事業等(実施している事業の「実施状況」欄に○、「利用見込数」欄に\"&TEXT(基本事項!A5,\"ggge年度\")&\"の年間利用児童見込み数を記入してください｡)\"","v":"実施している補助事業等(実施している事業の「実施状況」欄に○、「利用見込数」欄に令和6年度の年間利用児童見込み数を記入してください｡)"},null,null,null,"補助事業等",null,null,null,null,"実施状況",null,null,null,"利用見込数",null,null,null,null,null,null,null,null,null,null,null,null,null,null,"時",null,null,"分","まで",null,null,null,"時",null,null,"分","まで",null,null,null,"時",null,null,"分","まで"]
[null,null,null,null,null,{"$f":"基本事項!A22","v":"延長保育事業"},null,null,null,null,"　",null,null,null,{"$f":"基本事項!B22","v":0},null,null,"人",null,null,null,null,null,null,null,null,null,"前延長",null,null,null,null,null,null,null,"保育標準時間",null,null,null,null,null,null,null,"後延長"]
[null,null,null,null,null,{"$f":"基本事項!A23","v":"一時預かり事業"},null,null,null,null,null,null,null,null,{"$f":"基本事項!B23","v":0},null,null,"人",null,null,null,null,null,null,"平日",null,null,null,null,"時",null,null,"分","から",null,null,null,"時",null,null,"分","から",null,null,null,"時",null,null,"分","から"]
[null,null,null,null,null,{"$f":"基本事項!A24","v":"病児保育事業"},null,null,null,null,null,null,null,null,{"$f":"基本事項!B24","v":0},null,null,"人",null,null,null,null,null,null,null,null,null,null,null,"時",null,null,"分","まで",null,null,null,"時",null,null,"分","まで",null,null,null,"時",null,null,"分","まで"]
[null,null,null,null,null,{"$f":"基本事項!A25","v":0},null,null,null,null,"　",null,null,null,{"$f":"基本事項!B25","v":0},null,null,"人",null,null,null,null,null,null,"土曜",null,null,null,null,"時",null,null,"分","から",null,null,null,"時",null,null,"分","から",null,null,null,"時",null,null,"分","から"]
[null,null,null,null,null,{"$f":"基本事項!A26","v":0},null,null,null,null,null,null,null,null,{"$f":"基本事項!B26","v":0},null,null,"人",null,null,null,null,null,null,null,null,null,null,null,"時",null,null,"分","まで",null,null,null,"時",null,null,"分","まで",null,null,null,"時",null,null,"分","まで"]
[null,null,null,null,null,{"$f":"基本事項!A27","v":0},null,null,null,null,null,null,null,null,{"$f":"基本事項!B27","v":0},null,null,"人",null,null,"日祝祭日以"]
[null,null,null,null,null,{"$f":"基本事項!A28","v":0},null,null,null,null,null,null,null,null,{"$f":"基本事項!B28","v":0},null,null,"人",null,null,"外の休園日"]
[null,null,null,null,null,{"$f":"基本事項!A29","v":0},null,null,null,null,null,null,null,null,{"$f":"基本事項!B29","v":0},null,null,"人",null,null,{"$f":"\"(\"&TEXT(DATE(YEAR(基本事項!A5)-1,MONTH(基本事項!A5)+1,DAY(基本事項!A5)),\"ge\")&\"年度実績)\"","v":"(R5年度実績)"}]
[null,null,null,null,null,{"$f":"基本事項!A30","v":0},null,null,null,null,null,null,null,null,{"$f":"基本事項!B30","v":0},null,null,"人",null,null,{"$f":"\"※　「日祝祭日以外の休園日」欄について\"&TEXT(基本事項!A5,\"ggge年m月\")&\"新設園は\"&TEXT(基本事項!A5,\"ggge\")&\"年度の予定で記載すること。\"","v":"※　「日祝祭日以外の休園日」欄について令和6年4月新設園は令和6年度の予定で記載すること。"}]
[]
[null,null,null,null,null,null,null,null,null,null,null,null,null,null,null,null,null,null,null,null,null,null,null,null,null,null,null,null,null,null,null,null,null,"※資料中の施設確認欄等のチェック欄は自己チェックで、「適正」「該当」「実施（実施予定含む。）」と判断した場合にチェックをしてください。"]
[]
[]
[]
[]
[]
[]
[]
[null,"作成者",null,null,null,"職",null,null,null,null,null,null,"氏名",null,null,null,null,null,null,null,null,null,"TEL",null,null,null,null,null,null,"作成日",null,null,"令和",null,null,"年",null,"月",null,"日"]

{"sheet":"表紙(幼保)","index":5,"n_rows":40,"n_cols":54,"rows_kept":40,"cut":false,"hidden":false,"merged":[[16,1,16,4],[39,14,39,21],[14,3,14,4],[14,5,14,17],[7,1,12,4],[7,7,7,17],[18,1,18,4],[18,5,18,6],[18,8,18,9],[18,11,18,12],[18,14,18,15],[17,1,17,4],[19,1,19,4],[19,5,19,6],[19,8,19,9],[19,11,19,12],[22,14,22,16],[21,5,21,9],[21,10,21,13],[26,20,28,24],[23,14,23,16],[22,5,22,9],[8,7,8,17],[9,7,9,17],[6,41,7,43],[6,44,7,46],[6,47,7,49],[6,1,6,4],[6,5,6,17],[6,25,7,28],[12,20,13,28],[12,29,13,31],[12,32,13,34],[6,35,7,37],[6,38,7,40],[8,32,9,34],[8,35,9,37],[8,38,9,40],[8,25,9,28],[6,20,7,24],[13,1,14,2],[13,3,13,4],[13,5,13,17],[8,20,8,24],[0,1,0,51],[1,1,1,51],[2,1,2,51],[5,1,5,4],[5,5,5,17],[5,20,5,28],[5,29,5,31],[5,32,5,34],[5,35,5,37],[5,38,5,40],[5,41,5,43],[5,44,5,46],[5,47,5,49],[5,50,5,52],[6,50,7,52],[8,41,9,43],[8,44,9,46],[8,47,9,49],[8,50,9,52],[10,7,12,17],[10,20,11,24],[10,25,11,28],[10,29,11,31],[10,32,11,34],[10,35,11,37],[10,38,11,40],[10,41,11,43],[10,44,11,46],[10,47,11,49],[10,50,11,52],[12,35,13,37],[12,38,13,40],[6,32,7,34],[6,29,7,31],[12,41,13,43],[12,44,13,46],[12,47,13,49],[8,29,9,31],[16,5,16,7],[16,8,16,10],[16,11,16,13],[16,14,16,16],[16,20,25,23],[25,5,25,9],[25,10,25,13],[25,14,25,16],[24,5,24,9],[24,10,24,13],[24,14,24,16],[23,5,23,9],[23,10,23,13],[17,5,17,6],[17,8,17,9],[20,5,20,9],[20,14,20,17],[22,10,22,13],[16,44,16,51],[16,56,16,79],[17,11,17,12],[17,14,17,15],[17,25,17,27],[17,28,17,29],[17,31,17,32],[17,36,17,37],[17,39,17,40],[17,44,17,45],[17,47,17,48],[16,24,20,24],[16,25,16,27],[16,28,16,35],[16,36,16,43],[18,28,18,29],[20,10,20,13],[19,31,19,32],[18,36,18,37],[18,39,18,40],[18,44,18,45],[18,47,18,48],[19,25,19,27],[19,36,19,37],[20,36,20,37],[20,39,20,40],[20,44,20,45],[24,36,24,37],[24,39,24,40],[24,44,24,45],[20,28,20,29],[20,31,20,32],[23,36,23,37],[23,39,23,40],[19,39,19,40],[19,47,19,48],[18,31,18,32],[19,28,19,29],[19,44,19,45],[29,14,29,16],[27,10,27,13],[21,14,21,16],[20,47,20,48],[19,14,19,15],[21,24,25,24],[21,25,21,27],[21,28,21,35],[21,36,21,43],[21,44,21,51],[22,25,22,27],[22,28,22,29],[22,31,22,32],[22,36,22,37],[22,39,22,40],[22,44,22,45],[22,47,22,48],[23,28,23,29],[23,31,23,32],[39,22,39,23],[39,24,39,28],[26,25,29,51],[29,20,29,24],[23,44,23,45],[32,34,34,51],[35,39,37,51],[25,39,25,40],[25,44,25,45],[25,47,25,48],[23,47,23,48],[24,47,24,48],[25,28,25,29],[25,31,25,32],[25,36,25,37],[24,25,24,27],[24,28,24,29],[24,31,24,32],[39,29,39,31],[39,32,39,33],[39,1,39,4],[39,5,39,6],[39,7,39,11],[39,12,39,13],[28,10,28,13],[28,14,28,16],[29,5,29,9],[26,5,26,9],[26,10,26,13],[26,14,26,16],[27,14,27,16],[28,5,28,9],[27,5,27,9],[20,1,29,4],[29,10,29,13]]}
[null,{"$f":"TEXT(基本事項!A5,\"ggge\")&\"年度　幼保連携型認定こども園チェックリスト\"","v":"令和6年度　幼保連携型認定こども園チェックリスト"}]
[null,{"$f":"\"※特に指定しているもの以外は、\"&TEXT(基本事項!A5,\"ggge年m月d日\")&\"現在の状況を記載してください。\"","v":"※特に指定しているもの以外は、令和6年4月1日現在の状況を記載してください。"}]
[null,"クリーム色に着色されたセルに入力してください。（白色のセルには計算式が入っている場合がありますので、ご注意願います。）"]
[]
[]
[null,"こども園名",null,null,null,{"$f":"基本事項!B11","v":0},null,null,null,null,null,null,null,null,null,null,null,null,null,null,null,null,null,null,null,null,null,null,null,"０歳",null,null,"１歳",null,null,"２歳",null,null,"３歳",null,null,"４歳",null,null,"５歳",null,null,"計",null,null,"定員比"]
[null,"園長名",null,null,null,{"$f":"基本事項!B12","v":0},null,null,null,null,null,null,null,null,null,null,null,null,null,null,"子どもの数",null,null,null,null,"保育認定\n（2号・３号）",null,null,null,null,null,null,null,null,null,null,null,null,null,null,null,null,null,null,null,null,null,{"$f":"SUM(AD7:AU8)","v":0}]
[null,"所 在 地",null,null,null,"〒",null,{"$f":"基本事項!B13","v":0}]
[null,null,null,null,null,"TEL",null,{"$f":"基本事項!B14","v":0},null,null,null,null,null,null,null,null,null,null,null,null,null,null,null,null,null,"教育標準時間認定（１号）",null,null,null,null,null,null,null,null,null,null,null,null,null,null,null,null,null,null,null,null,null,{"$f":"SUM(AD9:AU10)","v":0}]
[null,null,null,null,null,"Mail",null,{"$f":"基本事項!B15","v":0}]
[null,null,null,null,null,"住所",null,{"$f":"基本事項!B16","v":0},null,null,null,null,null,null,null,null,null,null,null,null,null,null,null,null,null,"合計",null,null,null,{"$f":"SUM(AD7:AF10)","v":0},null,null,{"$f":"SUM(AG7:AI10)","v":0},null,null,{"$f":"SUM(AJ7:AL10)","v":0},null,null,{"$f":"SUM(AM7:AO10)","v":0},null,null,{"$f":"SUM(AP7:AR10)","v":0},null,null,{"$f":"SUM(AS7:AU10)","v":0},null,null,{"$f":"SUM(AD11:AU12)","v":0},null,null,{"$f":"IF(O19=0,\"\",AV11/O19)","v":""}]
[null,null,null,null,null,null,null,{"$f":"基本事項!B16","v":0}]
[null,null,null,null,null,null,null,{"$f":"基本事項!B17","v":0},null,null,null,null,null,null,null,null,null,null,null,null,"学級数",null,null,null,null,null,null,null,null,null,null,null,null,null,null,null,null,null,null,null,null,null,null,null,null,null,null,{"$f":"SUM(AD13:AU14)","v":0},null,null,"←セルが赤色"]
[null,"設置\n者名",null,"種別",null,{"$f":"基本事項!B17","v":0},null,null,null,null,null,null,null,null,null,null,null,null,null,null,null,null,null,null,null,null,null,null,null,null,null,null,null,null,null,null,null,null,null,null,null,null,null,null,null,null,null,null,null,null,null,"↓"]
[null,null,null,"名称",null,{"$f":"基本事項!B18","v":0},null,null,null,null,null,null,null,null,null,null,null,null,null,null,null,null,null,null,null,null,null,null,null,null,null,null,null,null,null,"※３歳児に限っては学級数が不足の場合、複数担任の配置が必要",null,null,null,null,null,null,null,null,null,null,null,null,null,null,null,null,null,"学級数が不足"]
[]
[null,null,null,null,null,"１号",null,null,"２号",null,null,"３号",null,null,"合計",null,null,null,null,null,"\n\n開園時間\n",null,null,null,"１号",null,null,null,null,null,null,null,null,null,null,null,"教育標準時間（4時間～）",null,null,null,null,null,null,null,"一時預かり（幼稚園型）"]
[null,"認可定員",null,null,null,null,null,"人",null,null,"人",null,null,"人",{"$f":"SUM(F18,I18,L18)","v":0},null,"人",null,null,null,null,null,null,null,null,"平日",null,null,null,null,"時",null,null,"分","から",null,null,null,"時",null,null,"分","から",null,null,null,"時",null,null,"分","から"]
[null,"利用定員",null,null,null,null,null,"人",null,null,"人",null,null,"人",{"$f":"SUM(F19,I19,L19)","v":0},null,"人",null,null,null,null,null,null,null,null,null,null,null,null,null,"時",null,null,"分","まで",null,null,null,"時",null,null,"分","まで",null,null,null,"時",null,null,"分","まで"]
[null,"現員",null,null,null,{"$f":"SUM(AM9:AU10)","v":0},null,"人",{"$f":"SUM(AM7:AU8)","v":0},null,"人",{"$f":"SUM(AD7:AL8)","v":0},null,"人",{"$f":"SUM(F20,I20,L20)","v":0},null,"人",null,null,null,null,null,null,null,null,"土曜",null,null,null,null,"時",null,null,"分","から",null,null,null,"時",null,null,"分","から",null,null,null,"時",null,null,"分","から"]
[null,{"$f":"\"実施している補助事業等(実施している事業の「実施状況」欄に○、「利用見込数」欄に\"&TEXT(基本事項!A5,\"ggge年度\")&\"の年間利用児童見込み数を記入してください｡)\"","v":"実施している補助事業等(実施している事業の「実施状況」欄に○、「利用見込数」欄に令和6年度の年間利用児童見込み数を記入してください｡)"},null,null,null,"補助事業等",null,null,null,null,"実施状況",null,null,null,"利用見込数",null,null,null,null,null,null,null,null,null,null,null,null,null,null,null,"時",null,null,"分","まで",null,null,null,"時",null,null,"分","まで",null,null,null,"時",null,null,"分","まで"]
[null,null,null,null,null,{"$f":"基本事項!A22","v":"延長保育事業"},null,null,null,null,null,null,null,null,{"$f":"基本事項!B22","v":0},null,null,"人",null,null,null,null,null,null,"２・３号",null,null,null,"前延長",null,null,null,null,null,null,null,"保育標準時間（11時間）",null,null,null,null,null,null,null,"後延長"]
[null,null,null,null,null,{"$f":"基本事項!A23","v":"一時預かり事業"},null,null,null,null,null,null,null,null,{"$f":"基本事項!B23","v":0},null,null,"人",null,null,null,null,null,null,null,"平日",null,null,null,null,"時",null,null,"分","から",null,null,null,"時",null,null,"分","から",null,null,null,"時",null,null,"分","から"]
[null,null,null,null,null,{"$f":"基本事項!A24","v":"病児保育事業"},null,null,null,null,null,null,null,null,{"$f":"基本事項!B24","v":0},null,null,"人",null,null,null,null,null,null,null,null,null,null,null,null,"時",null,null,"分","まで",null,null,null,"時",null,null,"分","まで",null,null,null,"時",null,null,"分","まで"]
[null,null,null,null,null,{"$f":"基本事項!A25","v":0},null,null,null,null,"　",null,null,null,{"$f":"基本事項!B25","v":0},null,null,"人",null,null,null,null,null,null,null,"土曜",null,null,null,null,"時",null,null,"分","から",null,null,null,"時",null,null,"分","から",null,null,null,"時",null,null,"分","から"]
[null,null,null,null,null,{"$f":"基本事項!A26","v":0},null,null,null,null,null,null,null,null,{"$f":"基本事項!B26","v":0},null,null,"人",null,null,null,null,null,null,null,null,null,null,null,null,"時",null,null,"分","まで",null,null,null,"時",null,null,"分","まで",null,null,null,"時",null,null,"分","まで"]
[null,null,null,null,null,{"$f":"基本事項!A27","v":0},null,null,null,null,null,null,null,null,{"$f":"基本事項!B27","v":0},null,null,"人",null,null,"日祝祭日・年末年始以外の休園日"]
[null,null,null,null,null,{"$f":"基本事項!A28","v":0},null,null,null,null,null,null,null,null,{"$f":"基本事項!B28","v":0},null,null,"人"]
[null,null,null,null,null,{"$f":"基本事項!A29","v":0},null,null,null,null,null,null,null,null,{"$f":"基本事項!B29","v":0},null,null,"人"]
[null,null,null,null,null,{"$f":"基本事項!A30","v":0},null,null,null,null,null,null,null,null,{"$f":"基本事項!B30","v":0},null,null,"人",null,null,{"$f":"\"(\"&TEXT(DATE(YEAR(基本事項!A5)-1,MONTH(基本事項!A5)+1,DAY(基本事項!A5)),\"ge\")&\"年度実績)\"","v":"(R5年度実績)"}]
[null,null,null,null,null,null,null,null,null,null,null,null,null,null,null,null,null,null,null,null,"※　「前延長」及び「後延長」欄は、保育標準時間（11時間）を超える前後の延長時間について記載すること。"]
[null,null,null,null,null,null,null,null,null,null,null,null,null,null,null,null,null,null,null,null,{"$f":"\"※　「日祝祭日・年末年始以外の休園日」欄について\"&TEXT(基本事項!A5,\"ggge年m月\")&\"新設園は\"&TEXT(基本事項!A5,\"ggge\")&\"年度の予定で記載すること。\"","v":"※　「日祝祭日・年末年始以外の休園日」欄について令和6年4月新設園は令和6年度の予定で記載すること。"}]
[null,null,null,null,null,null,null,null,null,null,null,null,null,null,null,null,null,null,null,null,null,null,null,null,null,null,null,null,null,null,null,null,null,null,"※資料中の施設確認欄等のチェック欄は自己チェックで、「適正」「該当」「実施（実施予定含む。）」と判断した場合にチェックをしてください。"]
[]
[]
[]
[]
[]
[]
[null,"作成者",null,null,null,"職",null,null,null,null,null,null,"氏名",null,null,null,null,null,null,null,null,null,"TEL",null,null,null,null,null,null,"作成日",null,null,"令和",null,null,"年",null,"月",null,"日"]

{"sheet":"職員一覧表(保)","index":6,"n_rows":28,"n_cols":7,"rows_kept":28,"cut":false,"hidden":false,"merged":[[0,0,0,6],[1,3,1,6],[2,3,2,6]]}
[{"$f":"\"職員一覧表（\"&TEXT(基本事項!A5,\"ggge年ｍ月ｄ日\")&\"現在）（保育所）\"","v":"職員一覧表（令和6年4月1日現在）（保育所）"}]
[]
[null,null,null,{"$f":"\"（施設名：\"&基本事項!B11&\"　　）\"","v":"（施設名：　　）"}]
[null,"役職名","氏名","生年月日","資格取得年月日","勤務形態","備考"]
[1,"施設長"]
[{"$f":"A5+1","v":2},"主任保育士"]
[{"$f":"A6+1","v":3},"保育士"]
[4,"保育士"]
[5,"保育士"]
[6,"保育士"]
[7,"保育士"]
[8,"保育士"]
[9,"保育士"]
[10,"保育士"]
[11,"保育士"]
[12,"保育士"]
[13,"保育士"]
[{"$f":"A17+1","v":14},"幼稚園教諭"]
[15,"幼稚園教諭"]
[16,"幼稚園教諭"]
[17,"調理員",null,null,null,null,"栄養士資格取得者"]
[18,"調理員",null,null,null,null,"調理師免許取得者"]
[19,"嘱託内科医"]
[20,"嘱託歯科医"]
[null,"（添付資料）",null,null,"※保育士については登録年月日を記載"]
[null,"役職欄は適宜修正すること。"]
[null,{"$f":"TEXT(基本事項!A5,\"ggge年m月\")&\"のローテーション表（様式は任意）を添付すること。\"","v":"令和6年4月のローテーション表（様式は任意）を添付すること。"}]
[null,"※勤務形態には常勤（フルタイム勤務者）、非常勤（短時間勤務者）の別を記載する。"]

{"sheet":"職員名簿(幼保共)","index":7,"n_rows":56,"n_cols":18,"rows_kept":56,"cut":false,"hidden":false,"merged":[[0,15,0,17],[3,0,3,17],[4,0,4,17],[49,13,49,16],[10,3,11,3],[51,1,51,17],[52,1,52,17],[53,1,53,17],[54,1,54,17],[46,17,47,17],[47,13,47,16],[48,0,49,0],[48,1,49,1],[48,2,49,2],[48,3,49,3],[48,4,49,4],[48,5,49,5],[48,6,49,6],[48,17,49,17],[45,13,45,16],[46,0,47,0],[46,1,47,1],[46,2,47,2],[46,3,47,3],[46,4,47,4],[46,5,47,5],[46,6,47,6],[42,17,43,17],[43,13,43,16],[44,0,45,0],[44,1,45,1],[44,2,45,2],[44,3,45,3],[44,4,45,4],[44,5,45,5],[44,6,45,6],[44,17,45,17],[41,13,41,16],[42,0,43,0],[42,1,43,1],[42,2,43,2],[42,3,43,3],[42,4,43,4],[42,5,43,5],[42,6,43,6],[38,17,39,17],[39,13,39,16],[40,0,41,0],[40,1,41,1],[40,2,41,2],[40,3,41,3],[40,4,41,4],[40,5,41,5],[40,6,41,6],[40,17,41,17],[37,13,37,16],[38,0,39,0],[38,1,39,1],[38,2,39,2],[38,3,39,3],[38,4,39,4],[38,5,39,5],[38,6,39,6],[34,17,35,17],[35,13,35,16],[36,0,37,0],[36,1,37,1],[36,2,37,2],[36,3,37,3],[36,4,37,4],[36,5,37,5],[36,6,37,6],[36,17,37,17],[33,13,33,16],[34,0,35,0],[34,1,35,1],[34,2,35,2],[34,3,35,3],[34,4,35,4],[34,5,35,5],[34,6,35,6],[30,17,31,17],[31,13,31,16],[32,0,33,0],[32,1,33,1],[32,2,33,2],[32,3,33,3],[32,4,33,4],[32,5,33,5],[32,6,33,6],[32,17,33,17],[29,13,29,16],[30,0,31,0],[30,1,31,1],[30,2,31,2],[30,3,31,3],[30,4,31,4],[30,5,31,5],[30,6,31,6],[26,17,27,17],[27,13,27,16],[28,0,29,0],[28,1,29,1],[28,2,29,2],[28,3,29,3],[28,4,29,4],[28,5,29,5],[28,6,29,6],[28,17,29,17],[25,13,25,16],[26,0,27,0],[26,1,27,1],[26,2,27,2],[26,3,27,3],[26,4,27,4],[26,5,27,5],[26,6,27,6],[22,17,23,17],[23,13,23,16],[24,0,25,0],[24,1,25,1],[24,2,25,2],[24,3,25,3],[24,4,25,4],[24,5,25,5],[24,6,25,6],[24,17,25,17],[21,13,21,16],[22,0,23,0],[22,1,23,1],[22,2,23,2],[22,3,23,3],[22,4,23,4],[22,5,23,5],[22,6,23,6],[18,17,19,17],[19,13,19,16],[20,0,21,0],[20,1,21,1],[20,2,21,2],[20,3,21,3],[20,4,21,4],[20,5,21,5],[20,6,21,6],[20,17,21,17],[17,13,17,16],[18,0,19,0],[18,1,19,1],[18,2,19,2],[18,3,19,3],[18,4,19,4],[18,5,19,5],[18,6,19,6],[14,17,15,17],[15,13,15,16],[16,0,17,0],[16,1,17,1],[16,2,17,2],[16,3,17,3],[16,4,17,4],[16,5,17,5],[16,6,17,6],[16,17,17,17],[13,13,13,16],[14,0,15,0],[14,1,15,1],[14,2,15,2],[14,3,15,3],[14,4,15,4],[14,5,15,5],[14,6,15,6],[10,17,11,17],[11,13,11,16],[12,0,13,0],[12,1,13,1],[12,2,13,2],[12,3,13,3],[12,4,13,4],[12,5,13,5],[12,6,13,6],[12,17,13,17],[10,0,11,0],[10,1,11,1],[10,2,11,2],[10,4,11,4],[10,5,11,5],[10,6,11,6],[6,0,9,0],[6,1,8,1],[6,2,9,2],[6,3,7,5],[6,6,8,6],[6,7,6,16],[6,17,9,17],[7,7,7,9],[7,10,9,10],[7,12,9,12],[7,13,9,16],[8,3,9,3],[8,4,9,4],[8,5,9,5],[8,7,8,8],[8,9,9,9],[7,11,9,11]]}
[]
[{"$f":"\"職員名簿（\"&TEXT(基本事項!A5,\"ggge年m月d日時点）\")","v":"職員名簿（令和6年4月1日時点)"}]
[]
[{"$f":"TEXT(基本事項!A5,\"ggge年m月d日\")&\"時点で\"&IF(基本事項!A8=\"幼保連携型認定こども園\",\"幼保連携型型認定こども園\",\"保育所型認定こども園\")&\"に従事する者を記載すること（下記内容が記載された既存資料の代替可）。\"","v":"令和6年4月1日時点で保育所型認定こども園に従事する者を記載すること（下記内容が記載された既存資料の代替可）。"}]
[{"$f":"\"職員名簿と併せて、\"&TEXT(基本事項!A5,\"ggge年m月\")&\"の職員ローテーション表を提出すること。\"","v":"職員名簿と併せて、令和6年4月の職員ローテーション表を提出すること。"}]
[]
["番号","職　名  ","氏　　名","従事内容\n②",null,null,"勤務\n形態\n","資　　　　格　　　④",null,null,null,null,null,null,null,null,null,"備考"]
[null,null,null,null,null,null,null,"幼稚園教諭免許・教諭免許",null,null,"保育士","栄養士\n免許","調理師\n免許","その他"]
[null,null,null,"学級\n担任","保育\n認定\n２号\n３号","教育標準\n時間認定\n(１号)",null,"幼稚園教諭免許",null,"教諭免許\n(幼稚園以外)\n【専修又は１種に限る】"]
[null,"①",null,null,null,null,"③","専修\n１種","２種"]
[1,null,null,"　","　","　",null,"　",null,null,null,null,null,"　","(",null,")"]
[]
[{"$f":"A11+1","v":2},null,null,"　","　","　",null,null,null,null,null,null,null,null,"(",null,")"]
[]
[{"$f":"A13+1","v":3},null,null,"　","　","　",null,null,null,null,null,null,null,null,"(",null,")"]
[]
[{"$f":"A15+1","v":4},null,null,"　","　","　",null,null,null,null,null,null,null,null,"(",null,")"]
[]
[{"$f":"A17+1","v":5},null,null,"　","　","　",null,null,null,null,null,null,null,null,"(",null,")"]
[]
[{"$f":"A19+1","v":6},null,null,"　","　","　",null,null,null,null,null,null,null,null,"(",null,")"]
[]
[{"$f":"A21+1","v":7},null,null,"　","　","　",null,null,null,null,null,null,null,null,"(",null,")"]
[]
[{"$f":"A23+1","v":8},null,null,"　","　","　",null,null,null,null,null,null,null,null,"(",null,")"]
[]
[{"$f":"A25+1","v":9},null,null,"　","　","　",null,null,null,null,null,null,null,null,"(",null,")"]
[]
[{"$f":"A27+1","v":10},null,null,"　","　","　",null,null,null,null,null,null,null,null,"(",null,")"]
[]
[{"$f":"A29+1","v":11},null,null,"　","　","　",null,null,null,null,null,null,null,null,"(",null,")"]
[]
[{"$f":"A31+1","v":12},null,null,"　","　","　",null,null,null,null,null,null,null,null,"(",null,")"]
[]
[{"$f":"A33+1","v":13},null,null,"　","　","　",null,null,null,null,null,null,null,null,"(",null,")"]
[]
[{"$f":"A35+1","v":14},null,null,"　","　","　",null,null,null,null,null,null,null,null,"(",null,")"]
[]
[{"$f":"A37+1","v":15},null,null,"　","　","　",null,null,null,null,null,null,null,null,"(",null,")"]
[]
[{"$f":"A39+1","v":16},null,null,"　","　","　",null,null,null,null,null,null,null,null,"(",null,")"]
[]
[{"$f":"A41+1","v":17},null,null,"　","　","　",null,null,null,null,null,null,null,null,"(",null,")"]
[]
[{"$f":"A43+1","v":18},null,null,"　","　","　",null,null,null,null,null,null,null,null,"(",null,")"]
[]
[{"$f":"A45+1","v":19},null,null,"　","　","　",null,null,null,null,null,null,null,null,"(",null,")"]
[]
[20,null,null,"　","　","　","　",null,null,null,null,null,null,null,"(",null,")"]
[]
[]
["　①","　「職名」欄には、園長、副園長又は教頭、主任保育士、主幹保育教諭、保育士、保育教諭、主幹養護教諭、養護教諭、調理員、事務職員、学校医、学校歯科医、学校薬剤師等の区分を記入すること。（学級担任は、担任する学級名及び学齢を「備考」欄に記入すること。）"]
["　②","　「従事内容」欄には、該当するすべての箇所に○印を記入すること。\n【例】\n・午前は学級担任として教育、午後は保育認定を受けた子ども（２号・３号認定子ども）の保育に従事する場合\n　→「学級担任」欄及び「教育標準時間認定（１号）」欄、「保育認定（２号・３号）」欄に○印を記入\n・フリーの職員として、保育認定を受けた子ども（２号・３号認定子ども）の保育にも、教育標準時間認定を受けた子ども（１号認定子ども）の保育にも従事する場合\n　→「保育認定（２号・３号）」欄及び「教育標準時間認定（１号）」欄に○印を記入　※「学級担任」欄には○をしない。\n・園長等専任化している職員の場合\n　→「従事内容」欄は空欄とする。"]
["　③","　「勤務形態」欄には、常勤・非常勤の別を記入すること。\n　なお、常勤・非常勤については、正規・非正規による判断ではなく、当該施設内でのフルタイム勤務か否かで判断すること。"]
["　④","　「資格」欄の上段には、所有するすべての資格・免許について○印を記入すること。\n　また、「その他」欄の（　　　）には、資格・免許名を記入すること。\n　なお、下段には資格取得年月日を記入すること。（幼稚園教諭免許の場合は取得年月日を、保育士資格の場合は登録年月日を記入すること。）"]
["　※　職員の数に応じて、適宜行を増やす、シートを増やすなどすること。"]

{"sheet":"職員配置状況(保こ)","index":8,"n_rows":32,"n_cols":22,"rows_kept":32,"cut":false,"hidden":false,"merged":[[1,12,1,21],[23,12,23,15],[24,2,24,15],[0,0,0,21],[4,0,9,0],[4,1,5,2],[4,3,5,3],[4,4,5,4],[4,5,5,5],[6,1,7,2],[6,3,7,3],[6,5,7,5],[8,1,9,1],[6,4,7,4],[4,7,5,7],[4,10,5,10],[4,20,5,20],[31,1,31,21],[6,6,7,6],[8,20,9,20],[6,7,7,7],[10,1,10,2],[12,1,12,21],[14,2,14,11],[14,12,14,15],[6,8,7,8],[6,9,7,9],[17,12,17,15],[18,2,18,11],[7,13,7,14],[23,2,23,11],[6,19,7,19],[4,17,5,17],[4,18,4,19],[4,12,5,12],[4,13,4,14],[13,1,13,16],[30,1,30,21],[25,1,25,21],[26,1,26,21],[27,1,27,21],[28,1,28,21],[29,1,29,21],[4,21,5,21],[6,15,6,17],[4,15,5,15],[4,16,5,16],[15,2,15,11],[6,10,7,10],[6,11,7,11],[4,6,5,6],[4,11,5,11],[4,8,5,8],[4,9,5,9],[6,20,7,20],[6,21,7,21],[8,18,9,18],[8,19,9,19],[6,18,7,18],[22,2,22,11],[22,12,22,15],[16,2,16,11],[17,2,17,11],[19,2,19,11],[19,12,19,15],[20,2,20,11],[20,12,20,15],[18,12,18,15],[16,12,16,15],[2,0,2,11],[3,0,3,9],[15,12,15,15],[21,2,21,11],[21,12,21,15],[6,12,7,12]]}
[{"$f":"TEXT(基本事項!A5,\"ggge年度\")&\"保育所型認定こども園チェックリスト\"","v":"令和6年度保育所型認定こども園チェックリスト"}]
[null,null,null,null,null,null,null,null,null,null,null,null,{"$f":"\"（保育所型認定こども園名：\"&基本事項!B11&\"　　）\"","v":"（保育所型認定こども園名：　　）"}]
[]
[{"$f":"\"職員配置状況（\"&TEXT(基本事項!A5,\"ggge年m月d日現在）\")","v":"職員配置状況（令和6年4月1日現在)"}]
["職員数","職種",null,"園長\n(施設長)","副園長\n・教頭","主幹保育教諭等","指導保育教諭等","保育教諭等","講師・\n助保育教諭等","教育補助者","保健師・看護師","養護教諭(主幹含む）","栄養教諭(主幹含む）","調理員",null,"用務員","事務員","その他","嘱託医",null,"嘱託薬剤師","計"]
[null,null,null,null,null,null,null,null,null,null,null,null,null,"有資格","無資格",null,null,null,null,"歯"]
[null,"必要数",null,1,null,null,null,{"$f":"Q25","v":0},null,null,null,null,null,1,null,1,null,null,1,1]
[]
[null,"実員","うち非常勤",null,null,null,null,null,null,null,null,null,null,null,null,null,null,null,null,null,null,{"$f":"SUM(D9:R9)","v":0}]
[null,null,null,null,null,null,null,null,null,null,null,null,null,null,null,null,null,null,null,null,null,{"$f":"SUM(D10:R10)+SUM(S9:U10)","v":0}]
[null,"常勤換算後",null,null,null,null,null,null,null,null,null,null,null,null,null,null,null,null,null,null,null,{"$f":"SUM(D11:R11)","v":0}]
[]
[null,"保育教諭等の配置に関する以下の項目について、○の項目に該当する場合は入力すること。"]
[null,"施設型給付費必要保育教諭等数"]
[null,"※","年齢区分による必要保育教諭等数\n（3歳児配置改善、満3歳児対応加配を実施しない場合）",null,null,null,null,null,null,null,null,null,"自動計算→",null,null,null,{"$f":"ROUND(ROUNDDOWN('表紙(保こ)'!AC11/3,1)+ROUNDDOWN(('表紙(保こ)'!AF11+'表紙(保こ)'!AI11)/6,1)+ROUNDDOWN('表紙(保こ)'!AL11/20,1)+ROUNDDOWN(('表紙(保こ)'!AO11+'表紙(保こ)'!AR11)/30,1),0)","v":0}]
[null,"○","保育標準時間認定を受けたこどもが利用している。",null,null,null,null,null,null,null,null,null,"１を入力→"]
[null,null,"2号、3号の利用定員が90人以下",null,null,null,null,null,null,null,null,null,"自動計算→",null,null,null,{"$f":"IF(AND('表紙(保こ)'!I19+'表紙(保こ)'!L18>0,'表紙(保こ)'!I19+'表紙(保こ)'!L19<=90),1,0)","v":0}]
[null,null,"1号、2号の利用定員が、36人以上300人以下",null,null,null,null,null,null,null,null,null,"自動計算→",null,null,null,{"$f":"IF(AND('表紙(保こ)'!F19+'表紙(保こ)'!I19>=36,'表紙(保こ)'!F19+'表紙(保こ)'!I19<=300),1,0)","v":0}]
[null,"○","施設長が他の施設と兼務している場合",null,null,null,null,null,null,null,null,null,"１を入力→"]
[null,"○","主幹保育教諭等を専任化している（1号認定）。",null,null,null,null,null,null,null,null,null,"１を入力→"]
[null,"○","主幹保育教諭等を専任化している（2号、3号認定）。",null,null,null,null,null,null,null,null,null,"１を入力→"]
[null,"○","チーム保育加配加算を受けている。",null,null,null,null,null,null,null,null,null,"認定された加配数を入力→"]
[null,"○","講師配置加算を受けている。",null,null,null,null,null,null,null,null,null,"認定された加配数を入力→"]
[null,"○","障害児保育等のため市町補助により加配を受けている。",null,null,null,null,null,null,null,null,null,"加配数を入力→"]
[null,null,null,null,null,null,null,null,null,null,null,null,null,null,null,null,{"$f":"SUM(Q15:Q24)","v":0}]
[null,"※3歳児配置改善加算、満3歳児対応加配加算、3，4歳以上児配置加算を算定している施設については、「年齢区分による必要保育教諭等数」欄に「教職員配置に係る加算等認定申請書別表」の必要教職員数を入力すること。"]
[null,"添付書類として市町に提出した「教職員配置に係る加算等認定申請書（別表含む。）」の写しを添付すること。"]
[null,"※　4月1日時点の職員数を記載する。"]
[null,"※　栄養教諭について、調理員として業務に従事している場合は、調理員の欄に計上すること。"]
[null,"※　「調理員」欄の「有資格者」欄は、調理師又は栄養士免許取得者数を記入すること。"]
[null,"※　「実員」欄は、上段に非常勤職員数(内数)を記入すること。（非常勤とは短時間勤務者（雇用契約において、就業規則等で定める常勤者の勤務時間（所定労働時間）を下回る勤務時間の者）"]
[null,"※　「常勤換算後」の欄は、各職種ごとに、月あたり常勤者の所定勤務時間で、短時間勤務者の勤務時間の合計を除した数（小数点第１位を四捨五入）と常勤者の実数を足したものを記載する。"]

{"sheet":"職員配置状況(幼保)","index":9,"n_rows":33,"n_cols":23,"rows_kept":33,"cut":false,"hidden":false,"merged":[[0,0,0,22],[1,15,1,22],[4,0,9,0],[4,1,5,3],[4,4,5,4],[4,5,5,5],[4,6,5,6],[4,7,5,7],[4,8,5,8],[4,9,5,9],[4,10,5,10],[4,20,5,20],[4,21,5,21],[4,22,5,22],[6,1,7,3],[6,4,7,4],[6,9,7,9],[6,10,7,10],[4,14,4,15],[4,16,5,16],[6,5,7,5],[6,6,7,6],[6,7,7,7],[4,11,5,11],[4,12,5,12],[6,11,7,11],[6,12,7,12],[6,13,7,13],[6,8,7,8],[4,18,5,18],[4,13,5,13],[4,19,5,19],[6,21,7,21],[6,22,7,22],[6,14,6,15],[6,16,7,16],[6,17,7,17],[6,18,7,18],[6,19,7,19],[6,20,7,20],[4,17,5,17],[8,1,9,1],[8,2,8,3],[8,19,9,19],[8,20,9,20],[8,21,9,21],[10,1,10,3],[12,1,12,22],[14,2,14,12],[14,13,14,16],[15,2,15,12],[15,13,15,16],[16,2,16,12],[16,13,16,16],[17,2,17,12],[17,13,17,16],[18,2,18,12],[18,13,18,16],[25,1,25,22],[19,2,19,12],[19,13,19,16],[20,2,20,12],[20,13,20,16],[21,2,21,12],[21,13,21,16],[22,2,22,12],[22,13,22,16],[23,2,23,12],[23,13,23,16],[24,2,24,16],[32,1,32,22],[26,1,26,22],[27,1,27,21],[28,1,28,22],[29,1,29,22],[30,1,30,22],[31,1,31,22]]}
[{"$f":"TEXT(基本事項!A5,\"ggge年度\")&\"幼保連携型型認定こども園チェックリスト\"","v":"令和6年度幼保連携型型認定こども園チェックリスト"}]
[null,null,null,null,null,null,null,null,null,null,null,null,null,null,null,{"$f":"\"（施設名：\"&基本事項!B11&\"　　）\"","v":"（施設名：　　）"}]
[{"$f":"\"職員配置状況（\"&TEXT(基本事項!A5,\"ggge年m月d日現在）\")","v":"職員配置状況（令和6年4月1日現在)"}]
[]
["職員数","職種",null,null,"園長","副園長\n・教頭","主幹保育教諭","指導保育教諭","保育教諭","講師・\n助保育教諭","教育補助者","保健師・看護師","養護教諭(主幹含む）","栄養教諭(主幹含む）","調理員・栄養士",null,"事務職員","用務員","その他","学校医","学校歯科医","学校薬剤師","計"]
[null,null,null,null,null,null,null,null,null,null,null,null,null,null,"有資格者","無資格者"]
[null,"必要数",null,null,1,null,null,null,{"$f":"R25","v":0},null,null,null,null,null,{"$f":"IF(SUM('表紙(幼保)'!I19,'表紙(幼保)'!L19)=0,\"\",IF(SUM('表紙(幼保)'!I19,'表紙(幼保)'!L19)<=40,1,IF(SUM('表紙(幼保)'!I19,'表紙(幼保)'!L19)<=150,2,3)))","v":""},null,null,null,null,1,1,1]
[null,null,null,null,null,null,null,null,null,null,null,null,null,null,"1以上"]
[null,"実員","うち非常勤",null,null,null,null,null,null,null,null,null,null,null,null,null,null,null,null,null,null,null,{"$f":"SUM(E9:S9)","v":0}]
[null,null,null,null,null,null,null,null,null,null,null,null,null,null,null,null,null,null,null,null,null,null,{"$f":"SUM(E10:S10)+SUM(T9:V10)","v":0}]
[null,"常勤換算後",null,null,null,null,null,null,null,null,null,null,null,null,null,null,null,null,null,null,null,null,{"$f":"SUM(E11:S11)","v":0}]
[]
[null,"保育教諭の配置に関する以下の項目について、○の項目に該当する場合は入力すること。"]
[null,"施設型給付費等における必要保育教諭数"]
[null,"※","年齢区分による必要保育教諭数\n（3歳児配置改善、満3歳児対応加配を実施しない場合）",null,null,null,null,null,null,null,null,null,null,"自動計算→（下記※参照）",null,null,null,{"$f":"ROUND(ROUNDDOWN('表紙(幼保)'!AD11/3,1)+ROUNDDOWN(('表紙(幼保)'!AG11+'表紙(幼保)'!AJ11)/6,1)+ROUNDDOWN('表紙(幼保)'!AM11/20,1)+ROUNDDOWN(('表紙(幼保)'!AP11+'表紙(幼保)'!AS11)/30,1),0)","v":0}]
[null,"○","保育標準時間認定を受けたこどもが利用している。",null,null,null,null,null,null,null,null,null,null,"１を入力→"]
[null,null,"2号、3号の利用定員が90人以下",null,null,null,null,null,null,null,null,null,null,"自動計算→",null,null,null,{"$f":"IF(AND('表紙(幼保)'!I19+'表紙(幼保)'!L19>0,'表紙(幼保)'!I19+'表紙(幼保)'!L19<=90),1,0)","v":0}]
[null,null,"1号、2号の利用定員が、36人以上300人以下",null,null,null,null,null,null,null,null,null,null,"自動計算→",null,null,null,{"$f":"IF(AND('表紙(幼保)'!F19+'表紙(幼保)'!I19>=36,'表紙(幼保)'!F19+'表紙(幼保)'!I19<=300),1,0)","v":0}]
[null,"○","園長が専任でない場合",null,null,null,null,null,null,null,null,null,null,"１を入力→"]
[null,"○","主幹保育教諭を専任化している（1号認定）。",null,null,null,null,null,null,null,null,null,null,"１を入力→"]
[null,"○","主幹保育教諭を専任化している（2号、3号認定）。",null,null,null,null,null,null,null,null,null,null,"１を入力→"]
[null,"○","チーム保育加配加算を受けている。",null,null,null,null,null,null,null,null,null,null,"認定された加配数を入力→"]
[null,"○","講師配置加算を受けている。",null,null,null,null,null,null,null,null,null,null,"認定された加配数を入力→"]
[null,"○","障害児保育等のため市町補助により加配を受けている。",null,null,null,null,null,null,null,null,null,null,"加配数を入力→"]
[null,null,null,null,null,null,null,null,null,null,null,null,null,null,null,null,null,{"$f":"SUM(R15:R24)","v":0}]
[null,"※3歳児配置改善加算、満3歳児対応加配加算、3，4歳以上児配置加算を算定している施設については、「年齢区分による必要保育教諭数」欄に「教職員配置に係る加算等認定申請書別表」の必要教職員数を入力すること。"]
[null,"添付書類として市町へ提出した「教職員配置に係る加算等認定申請書（別表含む。）」の写しを添付すること。"]
[null,"様式１「職員名簿」、様式２「学級担任の状況」を作成すること"]
[null,"※　4月1日時点の職員数を記載する。"]
[null,"※　栄養教諭について、調理員として業務に従事している場合は、調理員の欄に計上すること。"]
[null,"※　「調理員・栄養士」欄の「有資格者」欄は、調理師又は栄養士免許取得者数を記入すること。"]
[null,"※　「実員」欄は、上段に非常勤職員数(内数)を記入。非常勤とは、短時間勤務者（雇用契約において、就業規則等で定める常勤者の勤務時間（所定労働時間）を下回る勤務時間の者）を計上すること。"]
[null,"※　「常勤換算後」の欄は、各職種ごとに、月あたり常勤者の所定勤務時間で、短時間勤務者の勤務時間の合計を除した数（小数点第１位までの値・端数処理なし）と常勤者の実数を足したものを記載する。"]

{"sheet":"学級担任の状況(幼保共)","index":10,"n_rows":26,"n_cols":6,"rows_kept":26,"cut":false,"hidden":false,"merged":[[25,1,25,8],[19,7,19,8],[20,5,20,8],[21,0,21,1],[21,5,21,8],[23,1,23,8],[24,1,24,8],[15,0,20,0],[15,5,15,6],[15,7,15,8],[16,5,16,6],[16,7,16,8],[17,5,17,6],[17,7,17,8],[18,5,18,6],[18,7,18,8],[19,5,19,6],[11,7,11,8],[12,5,12,6],[12,7,12,8],[13,5,13,6],[13,7,13,8],[14,5,14,8],[9,0,14,0],[9,5,9,6],[9,7,9,8],[10,5,10,6],[10,7,10,8],[11,5,11,6],[0,0,0,8],[2,5,2,8],[3,0,8,0],[3,5,3,6],[3,7,3,8],[4,5,4,6],[4,7,4,8],[5,5,5,6],[5,7,5,8],[6,5,6,6],[6,7,6,8],[7,5,7,6],[7,7,7,8],[8,5,8,8]]}
["学級担任の状況"]
[]
["児童の\n年齢","学級","4/1現在\n在園児数","基準上\n必要な\n配置人数","配置\n職員数\n（常勤）","氏　名"]
["３歳児","(1)",{"$f":"IF('各室別面積表(幼保共)'!F22=0,\"\",'各室別面積表(幼保共)'!F22)","v":""},{"$f":"IF(C4=\"\",\"\",ROUNDUP(C4/25,0))","v":""}]
[null,"(2)",{"$f":"IF('各室別面積表(幼保共)'!F23=0,\"\",'各室別面積表(幼保共)'!F23)","v":""},{"$f":"IF(C5=\"\",\"\",ROUNDUP(C5/25,0))","v":""}]
[null,"(3)",{"$f":"IF('各室別面積表(幼保共)'!F24=0,\"\",'各室別面積表(幼保共)'!F24)","v":""},{"$f":"IF(C6=\"\",\"\",ROUNDUP(C6/25,0))","v":""}]
[null,"(4)",{"$f":"IF('各室別面積表(幼保共)'!F25=0,\"\",'各室別面積表(幼保共)'!F25)","v":""},{"$f":"IF(C7=\"\",\"\",ROUNDUP(C7/25,0))","v":""}]
[null,"(5)",{"$f":"IF('各室別面積表(幼保共)'!F26=0,\"\",'各室別面積表(幼保共)'!F26)","v":""},{"$f":"IF(C8=\"\",\"\",ROUNDUP(C8/25,0))","v":""}]
[null,"小計",{"$f":"SUM(C4:C8)","v":0},{"$f":"SUM(D4:D8)","v":0},{"$f":"SUM(E4:E8)","v":0},{"$f":"COUNTA(F4:I8)","v":0}]
["４歳児","(1)",{"$f":"IF('各室別面積表(幼保共)'!F28=0,\"\",'各室別面積表(幼保共)'!F28)","v":""},{"$f":"IF(C10=\"\",\"\",1)","v":""}]
[null,"(2)",{"$f":"IF('各室別面積表(幼保共)'!F29=0,\"\",'各室別面積表(幼保共)'!F29)","v":""},{"$f":"IF(C11=\"\",\"\",1)","v":""}]
[null,"(3)",{"$f":"IF('各室別面積表(幼保共)'!F30=0,\"\",'各室別面積表(幼保共)'!F30)","v":""},{"$f":"IF(C12=\"\",\"\",1)","v":""}]
[null,"(4)",{"$f":"IF('各室別面積表(幼保共)'!F31=0,\"\",'各室別面積表(幼保共)'!F31)","v":""},{"$f":"IF(C13=\"\",\"\",1)","v":""}]
[null,"(5)",{"$f":"IF('各室別面積表(幼保共)'!F32=0,\"\",'各室別面積表(幼保共)'!F32)","v":""},{"$f":"IF(C14=\"\",\"\",1)","v":""}]
[null,"小計",{"$f":"SUM(C10:C14)","v":0},{"$f":"SUM(D10:D14)","v":0},{"$f":"SUM(E10:E14)","v":0},{"$f":"COUNTA(F10:I14)","v":0}]
["５歳児","(1)",{"$f":"IF('各室別面積表(幼保共)'!F34=0,\"\",'各室別面積表(幼保共)'!F34)","v":""},{"$f":"IF(C16=\"\",\"\",1)","v":""}]
[null,"(2)",{"$f":"IF('各室別面積表(幼保共)'!F35=0,\"\",'各室別面積表(幼保共)'!F35)","v":""},{"$f":"IF(C17=\"\",\"\",1)","v":""}]
[null,"(3)",{"$f":"IF('各室別面積表(幼保共)'!F36=0,\"\",'各室別面積表(幼保共)'!F36)","v":""},{"$f":"IF(C18=\"\",\"\",1)","v":""}]
[null,"(4)",{"$f":"IF('各室別面積表(幼保共)'!F37=0,\"\",'各室別面積表(幼保共)'!F37)","v":""},{"$f":"IF(C19=\"\",\"\",1)","v":""}]
[null,"(5)",{"$f":"IF('各室別面積表(幼保共)'!F38=0,\"\",'各室別面積表(幼保共)'!F38)","v":""},{"$f":"IF(C20=\"\",\"\",1)","v":""}]
[null,"小計",{"$f":"SUM(C16:C20)","v":0},{"$f":"SUM(D16:D20)","v":0},{"$f":"SUM(E16:E20)","v":0},{"$f":"COUNTA(F16:I20)","v":0}]
["合計",null,{"$f":"SUM(C9,C15,C21)","v":0},{"$f":"SUM(D9,D15,D21)","v":0},{"$f":"SUM(E9,E15,E21)","v":0},{"$f":"SUM(F9,F15,F21)","v":0}]
[]
["※１","　黄色で着色したセルのみ入力してください。（白色のセルには計算式が入っている場合がありますので、ご注意願います。）　"]
["※２","　各年齢の学級の番号は、各室別面積表（幼保共）と一致する。"]
["※３","　ここでいう配置職員数（常勤）は、教育時間を通じて専任で配置する職員をいう。"]

{"sheet":"前回指摘事項","index":11,"n_rows":5,"n_cols":23,"rows_kept":5,"cut":false,"hidden":false,"merged":[[2,16,2,17],[2,19,2,20],[5,0,32,15],[5,16,32,33],[0,0,0,33],[2,2,2,8],[3,0,4,15],[3,16,3,33],[4,16,4,33],[2,11,2,12],[2,13,2,14],[2,22,2,33],[1,0,1,33]]}
["前回指導監査時の指摘事項についての改善状況"]
["幼稚園から移行した施設については「私立幼稚園等基礎資料調査等」での改善指示事項、保育所から移行した施設については実地指導監査で改善指示を受けた事項を基に作成してください。"]
[null,"＜","前回指導監査実施年月日",null,null,null,null,null,null,"＞",null,"令和",null,null,null,"年",null,null,"月",null,null,"日",{"$f":"\"（施設名：\"&基本事項!B11&\"　　）\"","v":"（施設名：　　）"}]
["前　回　指　摘　事　項 （口頭指導事項を含む。）",null,null,null,null,null,null,null,null,null,null,null,null,null,null,null,"現在までの改善状況"]
[null,null,null,null,null,null,null,null,null,null,null,null,null,null,null,null,"(未改善の場合はその理由及び今後の改善計画）"]

{"sheet":"運営(保共)","index":12,"n_rows":187,"n_cols":34,"rows_kept":187,"cut":false,"hidden":false,"merged":[[184,9,184,15],[182,16,182,21],[183,16,183,21],[184,16,184,21],[182,22,182,27],[183,22,183,27],[184,22,184,27],[181,32,185,32],[63,2,64,2],[181,9,181,15],[181,16,181,21],[181,22,181,27],[182,9,182,15],[183,9,183,15],[66,31,75,31],[67,18,67,25],[68,18,68,19],[74,18,74,19],[75,18,75,19],[66,30,68,30],[72,18,72,19],[73,18,73,19],[69,18,69,19],[70,18,70,19],[57,31,60,31],[65,3,65,28],[67,11,67,12],[68,11,68,12],[69,11,69,12],[70,11,70,12],[89,25,89,26],[138,4,138,27],[139,4,139,27],[135,4,135,27],[132,4,132,27],[133,4,133,27],[134,4,134,27],[129,4,129,27],[130,4,130,27],[131,4,131,27],[126,4,126,27],[127,4,127,27],[128,4,128,27],[136,4,136,27],[137,4,137,27],[119,4,119,27],[100,3,100,28],[113,3,113,28],[5,2,6,2],[5,3,6,7],[5,31,14,31],[8,8,8,20],[8,30,13,30],[9,10,9,15],[9,16,9,18],[9,19,9,27],[10,9,13,9],[10,16,10,17],[10,19,10,27],[11,16,11,17],[11,19,11,27],[13,16,13,17],[12,16,12,17],[7,9,7,28],[6,9,6,28],[5,9,5,28],[12,19,12,27],[18,2,19,2],[18,3,19,7],[18,31,22,31],[19,10,19,15],[13,19,13,27],[0,0,0,32],[3,0,4,0],[3,1,4,1],[3,2,4,2],[3,3,3,28],[3,29,4,29],[3,30,4,30],[3,31,4,31],[3,32,4,32],[4,3,4,7],[4,8,4,28],[1,30,1,32],[1,27,1,29],[15,3,15,7],[19,16,19,18],[19,19,19,27],[20,9,21,9],[20,16,20,17],[20,19,20,27],[21,16,21,17],[21,19,21,27],[15,31,17,31],[18,29,22,29],[15,9,15,28],[18,9,18,28],[17,9,17,28],[16,9,16,28],[23,31,26,31],[27,9,27,28],[23,2,24,2],[23,3,24,7],[23,9,23,27],[24,9,24,27],[25,11,25,12],[25,14,25,15],[25,17,25,20],[25,25,25,27],[26,9,26,27],[30,30,31,30],[30,31,31,31],[27,31,29,31],[28,9,28,28],[29,9,29,28],[34,2,36,2],[34,3,36,7],[34,30,36,30],[34,31,36,31],[36,21,36,26],[32,2,33,2],[32,3,33,7],[32,30,33,30],[32,31,33,31],[34,29,36,29],[35,9,35,28],[31,9,31,28],[30,9,30,28],[34,9,34,28],[33,9,33,28],[32,9,32,28],[27,2,28,2],[27,30,29,30],[27,3,29,7],[51,3,51,28],[50,3,50,28],[62,3,62,28],[63,3,63,28],[61,3,61,28],[64,3,64,28],[47,3,47,28],[30,2,31,2],[30,3,31,7],[37,3,37,26],[44,3,44,28],[43,3,43,28],[42,3,42,28],[41,3,41,28],[40,3,40,28],[39,3,39,28],[49,3,49,28],[48,3,48,28],[73,5,73,10],[72,5,72,10],[71,5,71,10],[70,5,70,10],[69,5,69,10],[68,5,68,10],[67,5,67,10],[37,31,38,31],[38,3,38,26],[39,31,42,31],[45,5,45,25],[45,26,45,27],[44,29,46,29],[40,30,41,30],[63,31,64,31],[63,30,64,30],[50,30,56,30],[50,31,56,31],[44,31,45,31],[56,3,56,28],[55,3,55,28],[54,3,54,28],[53,3,53,28],[52,3,52,28],[66,1,67,1],[66,2,68,2],[71,11,71,12],[72,11,72,12],[73,11,73,12],[74,11,74,12],[76,3,76,28],[77,3,77,28],[94,5,94,7],[94,10,94,13],[94,17,94,20],[92,3,92,28],[81,25,81,26],[82,25,82,26],[83,25,83,26],[84,25,84,26],[85,25,85,26],[86,25,86,26],[87,25,87,26],[88,25,88,26],[93,3,93,27],[71,18,71,19],[66,3,66,28],[74,5,74,10],[95,29,98,29],[95,3,95,28],[103,18,103,19],[103,20,103,24],[99,3,99,28],[78,1,79,1],[78,3,78,28],[78,29,89,29],[89,5,89,24],[88,5,88,24],[87,5,87,24],[86,5,86,24],[85,5,85,24],[84,5,84,24],[83,5,83,24],[82,5,82,24],[81,5,81,24],[80,5,80,24],[79,5,79,24],[79,25,79,26],[80,25,80,26],[91,3,91,28],[162,1,164,1],[163,3,163,26],[153,2,154,2],[140,3,140,28],[141,3,141,28],[118,3,118,28],[105,30,112,30],[107,16,107,28],[107,8,107,9],[105,3,105,28],[149,8,149,28],[118,2,122,2],[160,5,160,15],[160,16,160,17],[116,3,116,28],[158,5,158,15],[158,16,158,17],[159,5,159,15],[159,16,159,17],[153,30,154,30],[164,3,164,28],[147,8,147,28],[148,8,148,28],[146,8,146,28],[99,31,103,31],[101,4,101,7],[101,9,101,26],[103,3,103,16],[105,31,112,31],[100,29,102,29],[123,4,123,27],[124,4,124,27],[125,4,125,27],[120,4,120,27],[121,4,121,27],[114,3,114,28],[115,3,115,28],[117,3,117,28],[153,3,153,28],[154,3,154,28],[153,31,154,31],[150,31,152,31],[146,30,152,30],[152,8,152,28],[146,31,149,31],[166,2,168,2],[162,30,163,30],[162,31,163,31],[165,3,165,28],[162,3,162,28],[91,30,92,30],[97,5,97,26],[165,30,170,30],[165,31,170,31],[93,31,94,31],[171,3,171,28],[142,3,142,28],[143,3,143,28],[144,3,144,28],[155,3,155,28],[156,3,156,28],[145,3,145,28],[169,5,169,14],[169,15,169,16],[167,4,167,14],[170,8,170,26],[166,3,166,28],[167,15,167,16],[168,4,168,14],[168,15,168,16],[157,31,161,31],[150,3,152,7],[150,8,150,28],[146,3,149,7],[174,19,174,26],[174,9,174,14],[175,3,175,28],[151,8,151,28],[173,3,173,28],[115,31,117,31],[114,2,117,2],[57,3,60,5],[57,6,57,28],[58,6,58,28],[59,6,59,28],[60,6,60,28],[122,4,122,27],[105,2,112,2],[106,3,106,28],[112,3,112,28],[108,3,108,5],[108,7,108,8],[109,3,109,6],[78,30,86,30],[78,31,83,31],[95,2,96,2],[96,3,96,27],[91,2,92,2],[172,30,174,30],[172,3,172,28],[15,30,16,30],[91,31,92,31],[104,3,104,28],[178,1,186,1],[178,0,186,0],[178,31,186,31],[178,3,178,28],[178,2,186,2],[179,7,179,28],[180,7,180,28],[186,7,186,28],[179,3,180,6],[186,3,186,6],[176,3,176,28],[177,3,177,28],[175,30,177,30],[172,31,174,31],[172,1,174,1],[172,2,174,2],[174,4,174,6],[174,7,174,8],[174,16,174,18]]}
[{"$f":"TEXT(基本事項!A5,\"ggge年度\")&\"チェックリスト（保育所、保育所型認定こども園共通）\"","v":"令和6年度チェックリスト（保育所、保育所型認定こども園共通）"}]
[null,null,null,null,null,null,null,null,null,null,null,null,null,null,null,null,null,null,null,null,null,null,null,null,null,null,null,null,null,null,{"$f":"\"（施設名：\"&基本事項!B11&\"　　）\"","v":"（施設名：　　）"}]
[]
["区分","児童福祉行政指導監査報告番号","点検項目","点検事項",null,null,null,null,null,null,null,null,null,null,null,null,null,null,null,null,null,null,null,null,null,null,null,null,null,"保育所確認欄","点検帳票","関係法令・通知","確認結果・特記事項"]
[null,null,null,"着眼点",null,null,null,null,"チェック項目"]
["運営","1-（13）","定期の健康診断、衛生管理及び感染症等への対応状況","健康診断の実施、結果の記録及び保管が適切に行われているか。",null,null,null,null,"・","入所児童について、入所時及び少なくとも年２回以上の定期健康診断を実施している。",null,null,null,null,null,null,null,null,null,null,null,null,null,null,null,null,null,null,null,null,"健康診断結果票等","就学前の子どもに関する教育、保育等の総合的な提供の推進に関する法律第27条、運営基準第12条、学校保健安全法第13条、同法施行規則第６条"]
[null,null,null,null,null,null,null,null,"・","児童の健康診断は医師のもと行われている。",null,null,null,null,null,null,null,null,null,null,null,null,null,null,null,null,null,null,null,null,"健診委託契約書等"]
[null,null,null,null,null,null,null,null,"・","診察、計測、検査等の結果について、保健所や市町村が実施する保健活動と相互に連携する上で、母子健康手帳を有効に活用している。",null,null,null,null,null,null,null,null,null,null,null,null,null,null,null,null,null,null,null,null,"健康記録簿等"]
[null,null,null,null,null,null,null,null,"＜児童健康診断の実施状況＞",null,null,null,null,null,null,null,null,null,null,null,null,null,null,null,null,null,null,null,null,null,"健康診断結果票等"]
[null,"1-（46）",null,null,null,null,null,null,null,null,"実施年月日",null,null,null,null,null,"未受診者",null,null,"未受診理由及びその後の対応"]
[null,null,null,null,null,null,null,null,null,"児童",null,"年",null,"月",null,"日",null,null,"人"]
[null,null,null,null,null,null,null,null,null,null,null,"年",null,"月",null,"日",null,null,"人"]
[null,null,null,null,null,null,null,null,null,null,null,"年",null,"月",null,"日",null,null,"人"]
[null,null,null,null,null,null,null,null,null,null,null,"年",null,"月",null,"日",null,null,"人"]
[]
[null,"1-（13）",null,"衛生管理及び感染症等に対する対策は適切に行われているか。",null,null,null,null,"・","感染症やその他の疾病の発生予防に努め、その発生や疑いがある場合には、必要に応じて嘱託医、市町村、保健所等に連絡し、その指示に従うとともに、保護者や全職員に連絡し協力を求める体制を取っている。",null,null,null,null,null,null,null,null,null,null,null,null,null,null,null,null,null,null,null,null,"感染症対応マニュアル、研修記録、関係機関連絡網等","運営基準第10条、第10条第2項、保育所における感染症対策ガイドライン等"]
[null,null,null,null,null,null,null,null,"・","職員に対し、感染症及び食中毒の予防及びまん延防止のための研修並びに感染症の予防及びまん延防止のための訓練を実施している。",null,null,null,null,null,null,null,null,null,null,null,null,null,null,null,null,null,null,null,null,null,null,null,"運営基準第１０条第２項改正"]
[null,null,null,null,null,null,null,null,"・","感染症に関する保育所の対応方法等について、あらかじめ関係機関の協力を得ている。\n",null,null,null,null,null,null,null,null,null,null,null,null,null,null,null,null,null,null,null,null,"対応記録等"]
[null,"5-（4）","職員への健康診断等健康管理の実施状況","職員への健康診断等健康管理は、適正に実施されているか。",null,null,null,null,"・","職員について、雇用時及び少なくとも年１回の定期健康診断を実施している。",null,null,null,null,null,null,null,null,null,null,null,null,null,null,null,null,null,null,null,null,null,"運営基準第12条、労働安全衛生法第66条～、労働安全衛生規則第43,44条"]
[null,null,null,null,null,null,null,null,null,null,"実施年月日",null,null,null,null,null,"未受診者",null,null,"未受診理由及びその後の対応"]
[null,null,null,null,null,null,null,null,null,"職員",null,"年",null,"月",null,"日",null,null,"人"]
[null,null,null,null,null,null,null,null,null,null,null,"年",null,"月",null,"日",null,null,"人"]
[]
[null,"1-（33）","保護者との連絡調整、家庭との連携の状況","保護者との連絡を適切に行い、家庭との連携を図るように努めているか。",null,null,null,null,null,"登退所時に保護者との引き継ぎを行っている。",null,null,null,null,null,null,null,null,null,null,null,null,null,null,null,null,null,null,null,null,"出席簿、保育日誌等","運営基準第36条"]
[null,null,null,null,null,null,null,null,null,"保護者との連絡方法（該当するものに○）"]
[null,null,null,null,null,null,null,null,null,null,"　","連絡帳",null,"　","掲示",null,"　","保育所だより",null,null,null,"　","その他",null,"（",null,null,null,"）"]
[null,null,null,null,null,null,null,null,null,"保護者の緊急連絡先を把握している。"]
["運営","1-（16）","保護者からの相談に対する援助体制の確保の状況","家族との連携に積極的に努めているか。また、入所者や家族からの相談に応じる体制がとられているか。相談に対して適切な助言、援助が行われているか。",null,null,null,null,null,"保護者からの相談窓口（相談受付け担当者）を設置している。",null,null,null,null,null,null,null,null,null,null,null,null,null,null,null,null,null,null,null,null,"児童票、相談記録等","運営基準第14条の３・第36条、指針第1章１(５)ウ"]
[null,null,null,null,null,null,null,null,null,"保護者からの相談窓口（相談受付け担当者）について、掲示版、園だよりに掲載する等の方法で保護者に周知している。"]
[null,null,null,null,null,null,null,null,null,"保護者からの相談内容等を記録し、援助内容、経過等について適切に管理している。"]
[null,"1-（17）","苦情受付窓口の設置など苦情解決処理への対応状況","苦情を受け付けるための窓口を設置するなど苦情解決に適切に対応しているか。",null,null,null,null,null,"保護者に対して苦情解決の仕組みを周知している。",null,null,null,null,null,null,null,null,null,null,null,null,null,null,null,null,null,null,null,null,"対応記録等","運営基準第14条の３"]
[null,null,null,null,null,null,null,null,null,"第三者委員を設置して適切な対応を行うとともに、苦情内容及び解決結果の定期的公表を行うなど、保護者･児童の保護に努めている。"]
[null,"1-（29）","保育所保育指針を踏まえた各保育所の実情に応じた適切な保育の実施状況","保育所保育指針に規定される保育の内容に係る基本原則に関する事項を踏まえ、各保育所の実情に応じて適切な保育が行われているか。",null,null,null,null,null,"保育内容等を職員会議等で十分検討している。",null,null,null,null,null,null,null,null,null,null,null,null,null,null,null,null,null,null,null,null,"全体的な計画等","指針第１章総則"]
[null,null,null,null,null,null,null,null,null,"前年度の評価を反映した保育内容となっている。"]
[null,"1-（３０）","全体的な計画の編成、それに基づく指導計画の作成状況","全体的な計画を編成し、それに基づく指導計画が作成されているか。",null,null,null,null,null,"全体的な計画を作成している。",null,null,null,null,null,null,null,null,null,null,null,null,null,null,null,null,null,null,null,null,"全体的な計画\n児童票、指導計画等","指針第1章3"]
[null,null,null,null,null,null,null,null,null,"指導計画は作成しているか(該当するものすべてにチェック）。"]
[null,null,null,null,null,null,null,null,null,null,null,"年",null,"期",null,"月",null,"週",null,"日",null,"作成していない"]
[null,"1-（31）","保育所児童保育要録の作成状況","保育の記録や自己評価に基づいて、保育所児童保育要録を作成している。",null,null,null,null,null,null,null,null,null,null,null,null,null,null,null,null,null,null,null,null,null,null,null,null,null,null,"保育要録","指針第2章4(2)、雇児保発第00328001号"]
[null,"1-（32）","児童の就学に際しての保育所児童保育要録の小学校への送付状況","児童の就学に際し、小学校への送付を行っている。",null,null,null,null,null,null,null,null,null,null,null,null,null,null,null,null,null,null,null,null,null,null,null,null,null,null,"保育要録"]
[null,"1-（34）","研修＜県条例＞","研修の実施計画を職員の職務内容、経験等に応じて策定していとともに、必要に応じて研修の内容の見直しを行い、職員の計画的な育成に努めている。",null,null,null,null,null,null,null,null,null,null,null,null,null,null,null,null,null,null,null,null,null,null,null,null,null,null,"研修計画","県条例第7条第8項、運営基準第7条の2、指針第5章"]
[null,null,null,"職員及び保育所の課題を踏まえた施設内研修を実施している。"]
[null,null,null,"職員研修等資質向上策のため、職員を施設外研修に参加させている。"]
[null,null,null,"実施した研修の記録を保管している。",null,null,null,null,null,null,null,null,null,null,null,null,null,null,null,null,null,null,null,null,null,null,null,null,null,null,"研修記録"]
[null,"1-（35）","定員を超えた私的契約児の入所の状況","定員を超えて私的契約児を入所させていない。",null,null,null,null,null,null,null,null,null,null,null,null,null,null,null,null,null,null,null,null,null,null,null,null,null,null,"児童台帳、児童票等","平成10年2月13日児保発第3号"]
[null,"1-（47）","乳幼児突然死症候群の防止への対策状況","乳幼児突然死症候群の防止に努めるなど、事故防止対策を講じている。\n　＜具体的な　防止策を記載して下さい。",null,null,null,null,null,null,null,null,null,null,null,null,null,null,null,null,null,null,null,null,null,null,null,null,null,null,"睡眠時のチェック表等","指針解説弟3章１（３）"]
[]
[]
[null,"1-（40）","アレルギー対応体制","「保育所におけるアレルギー対応ガイドライン」(国通知）を職員に周知徹底させている。",null,null,null,null,null,null,null,null,null,null,null,null,null,null,null,null,null,null,null,null,null,null,null,null,null,null,null,"保育所におけるアレルギー対応ガイドライン"]
[null,null,null,"子供、保護者、職員、嘱託医、市町が一体となって情報を共有している。",null,null,null,null,null,null,null,null,null,null,null,null,null,null,null,null,null,null,null,null,null,null,null,null,null,null,"児童票等"]
[null,null,null,"園で対応マニュアルを策定している。",null,null,null,null,null,null,null,null,null,null,null,null,null,null,null,null,null,null,null,null,null,null,null,null,null,null,"対応マニュアル等"]
["運営","1-（36）","事故の発生又はその再発防止","事故、危機が発生した場合の対応、園長への報告の方法等が記載された事故の発生の防止のための指針を整備している。",null,null,null,null,null,null,null,null,null,null,null,null,null,null,null,null,null,null,null,null,null,null,null,null,null,null,"事故発生時対応マニュアル、緊急時連絡網、事故・ヒヤリハット記録等","県条例第7条第９項、教育・保育施設等における事故防止及び事故発生時の時の対応のためのｶﾞｲﾄﾞﾗｲﾝ、平成27年2月16日府政共生第96号・26初幼教第30号・雇児保発0216第1号\n",null,"幼保連携型のチェックリストに合わせた。（「次号に規定する」→「園長への」）"]
[null,null,null,"事故、危機が発生した場合又はその危険性がある事態が生じた場合に、当該事実が園長に報告されるとともに、原因の分析の結果に基づき策定した改善策を職員に周知徹底する体制を整備している。",null,null,null,null,null,null,null,null,null,null,null,null,null,null,null,null,null,null,null,null,null,null,null,null,null,null,null,null,null,"同上（施設長→園長）"]
[null,null,null,"事故発生防止のための会議及び職員に対する研修を定期的に行っている。"]
[null,null,null,"事故、危機が発生した場合は、速やかに関係行政機関、保護者に連絡を行うとともに、必要な措置を講じる体制を取っている。"]
[null,null,null,"食中毒発生など調理室が使用できない場合を想定し、営業施設等の事前協定や近隣施設との相互支援等、非常時でも食事が提供できる体制を整備している。"]
[null,null,null,"事故の状況及び事故に際して採った処置について記録している。"]
[null,null,null,"賠償すべき事故が発生した場合は、損害賠償を速やかに行い得る体制になっている。"]
[null,"1-（42）",null,"睡眠中、プール活動・水遊び中等の場面では重大事故が発生しやすいことを踏まえ、右記の対策を講じているか。",null,null,"事故発生時に適切な救命処置が可能となるよう、訓練を実施している。",null,null,null,null,null,null,null,null,null,null,null,null,null,null,null,null,null,null,null,null,null,null,null,null,"児童福祉行政指導監査実施要綱（別紙１）",null,"児童福祉行政指導監査実施要綱（別紙１）の改正"]
[null,"1-（37）",null,null,null,null,"睡眠中の窒息リスクの除去として、医学的な理由で医師からうつぶせ寝を勧められている場合以外は、仰向きに寝かせるなど寝かせ方に配慮すること、児童を一人にしないこと、安全な睡眠環境を整えている。",null,null,null,null,null,null,null,null,null,null,null,null,null,null,null,null,null,null,null,null,null,null,null,null,null,null,"同上　給食に関する部分は給食関係の調書で確認"]
[null,"1-（39）",null,null,null,null,"プール活動や水遊びを行う場合は、監視体制の空白が生じないよう、専ら監視を行う者とプール指導等を行う者を分けて配置し、その役割分担を明確にしている。",null,null,null,null,null,null,null,null,null,null,null,null,null,null,null,null,null,null,null,null,null,null,null,null,null,null,"同上"]
[null,"1-（41）",null,null,null,null,"窒息の可能性のある玩具、小物等が不用意に保育環境下に置かれていないかなどについての、保育士等による保育室内及び園庭内の点検を、定期的に実施している。",null,null,null,null,null,null,null,null,null,null,null,null,null,null,null,null,null,null,null,null,null,null,null,null,null,null,"同上"]
[null,"1-（53）","子どもの不適切な養育等の発見への努力、必要に応じた関係機関との連携状況","子どもの状態を観察し、不適切な養育等の発見に努めるとともに、必要に応じて関係機関との連携を図っている。",null,null,null,null,null,null,null,null,null,null,null,null,null,null,null,null,null,null,null,null,null,null,null,null,null,null,"関係機関対応記録等","児童虐待防止法第5条、第6条"]
[null,"2-（2）","障害に応じた配慮の確保の状況","＜障害児を保育している場合＞　障害に応じた配慮をしている。",null,null,null,null,null,null,null,null,null,null,null,null,null,null,null,null,null,null,null,null,null,null,null,null,null,null,"児童票等","指針第1章3(2)ｷ"]
[null,"2-（3）","居室等の設備及び運営基準への適合状況","居室等が設備及び運営基準にあつた構造になっており、届出がなされている。",null,null,null,null,null,null,null,null,null,null,null,null,null,null,null,null,null,null,null,null,null,null,null,null,null,null,"認可届出施設設備図面","運営基準第32条、 平成23年10月28日雇児保発1028第1号"]
[null,null,null,"届出のとおり居室等が使用されているとともに、運営基準に定める必要な面積が確保されている。"]
[null,"2-（4）","居室等の清掃、衛生管理、保温、換気、採光及び照明の状況","居室等の清掃、衛生管理、保温、換気、採光及び照明は適切になされている。",null,null,null,null,null,null,null,null,null,null,null,null,null,null,null,null,null,null,null,null,null,null,null,null,null,null,"環境測定結果等","指針第3章3(1)"]
[null,"4-（2）","運営規程、経理規程等の整備及び運用の状況","必要な諸規程は、整備されている。",null,null,null,null,null,null,null,null,null,null,null,null,null,null,null,null,null,null,null,null,null,null,null,null,null,null,"各規程等","運営基準第13条第2項"]
[null,null,null,null,null,"種　類",null,null,null,null,null,"有無"]
[null,null,null,null,1,"運営規程",null,null,null,null,null,"　"]
[null,null,null,null,2,"就業規則"]
[null,null,null,null,3,"給与規程"]
[null,null,null,null,4,"旅費規程"]
[null,null,null,null,5,"経理規程"]
[null,null,null,null,6,"公印規程"]
[null,null,null,null,7,"育児休業規程"]
[]
[null,null,null,"改正は必要な手続きを経て行われている。",null,null,null,null,null,null,null,null,null,null,null,null,null,null,null,null,null,null,null,null,null,null,null,null,null,null,"理事会等議事録"]
[null,null,null,"規程に基づいた適切な運用がなされている。",null,null,null,null,null,null,null,null,null,null,null,null,null,null,null,null,null,null,null,null,null,null,null,null,null,null,"各規程等"]
["運営","4-（2）","運営規程の内容","規定すべき事項が適切に規定されている。",null,null,null,null,null,null,null,null,null,null,null,null,null,null,null,null,null,null,null,null,null,null,null,null,null,null,"運営規程","運営基準第13条第2項"]
[null,null,null,null,null,"規　　　定　　　項　　　目",null,null,null,null,null,null,null,null,null,null,null,null,null,null,null,null,null,null,null,"有無"]
[null,null,null,null,1,"施設の目的及び運営の方針",null,null,null,null,null,null,null,null,null,null,null,null,null,null,null,null,null,null,null,"　"]
[null,null,null,null,2,"提供する保育の内容"]
[null,null,null,null,3,"職員の職種、員数及び職務の内容"]
[null,null,null,null,4,"保育の提供を行う日及び時間並びに提供を行わない日"]
[null,null,null,null,5,"保護者から受領する費用の種類、支払を求める理由及びその額"]
[null,null,null,null,6,"乳児、満三歳に満たない幼児及び満三歳以上の幼児の区分ごとの利用定員"]
[null,null,null,null,7,"保育所の利用開始、終了に関する事項及び利用に当たっての留意事項"]
[null,null,null,null,8,"緊急時の対応方法"]
[null,null,null,null,9,"非常災害対策"]
[null,null,null,null,10,"虐待防止のための措置"]
[]
[null,"4-（18）","利用者負担金の設定等","保護者から徴収する実費徴収額について、その内訳、積算内容を明示し同意を得ている。",null,null,null,null,null,null,null,null,null,null,null,null,null,null,null,null,null,null,null,null,null,null,null,null,null,null,"費用一覧表、費用徴収に関する同意書等","教育・保育施設運営基準第13条"]
[null,null,null,"保護者から徴収する質改善に要す経費について、その内訳、積算内容を明示し、書面による同意を得ている。"]
[null,"4-（3）","帳簿類の整備状況","施設運営に必要な帳簿を整備している。",null,null,null,null,null,null,null,null,null,null,null,null,null,null,null,null,null,null,null,null,null,null,null,null,null,null,null,"運営基準第14条"]
[null,null,null,null,null,"児童台帳",null,null,null,null,"保育日誌",null,null,null,null,null,null,"児童出席簿"]
[null,"4-（6）","施設長の資格要件等の充足状況","施設長は、運営全般の状況や問題点を十分把握している。",null,null,null,null,null,null,null,null,null,null,null,null,null,null,null,null,null,null,null,null,null,null,null,null,null,null,null,"指針第5章2"]
[null,null,null,"＜認識している問題点があれば記入してください。＞"]
[]
[]
[null,null,null,"施設長は専任者である。",null,null,null,null,null,null,null,null,null,null,null,null,null,null,null,null,null,null,null,null,null,null,null,null,null,null,null,"平成28年８月23日府子本第571号・28文科初第727号・雇児発0823第1号"]
[null,null,null,"施設長が他の役職を兼務している場合は、施設の運営管理に支障が生じないような体制がとられている。"]
[null,null,null,null,"兼務している職"]
[]
[null,null,null,"前年度の勤務日数（公務出張・有給休暇を含む。）",null,null,null,null,null,null,null,null,null,null,null,null,null,null,null,null,"日／年",null,null,null,null,null,null,null,null,null,"出退勤簿等"]
[null,null,"保育士等の資格確認等について","任命権者は、保育士による児童生徒性暴力等の根絶のため、保育士を任命し、又は雇用するときは国が整備したデータベースを活用して資格確認を行っている。",null,null,null,null,null,null,null,null,null,null,null,null,null,null,null,null,null,null,null,null,null,null,null,null,null,null,null,"児童福祉法第18条の20の４第３項",null,"児童福祉法（R4.６．１５改正）　施行日に注意"]
[null,"4-（22）","職員配置基準の緩和の特例の利用状況","朝夕等の時間帯や、長時間開所に伴って必要となる職員配置における要件緩和の特例の利用の有無　　　",null,null,null,null,null,null,null,null,null,null,null,null,null,null,null,null,null,null,null,null,null,null,null,null,null,null,null,"令和４年１月20日付けこ第1820号県こども政策課長通知"]
[null,null,null,"　 　利用している場合は、以下に記載してください。"]
[null,null,null,"  　・県への報告年月日",null,null,null,null,"令和",null,null,"年",null,"月",null,"日","　　※報告が複数回の場合は直近の報告"]
[null,null,null,"    ・利用人数",null,null," ",null,null,"人"]
[null,null,null,"    ･資格",null,null,null,null,"保育所等で常勤で1年以上保育業務に従事"]
[null,null,null,null,null,null,null,null,"家庭的保育者"]
[null,null,null,null,null,null,null,null,"子育て支援員研修（地域保育コース（地域型保育））修了者"]
[null,null,null,"※利用人数が複数の場合、資格は該当するすべてをチェックしてください。"]
[null,"4-（7）","育児休業、産休等代替職員の確保の状況","育児休業、産休等代替職員は確保されている。"]
["運営",null,"安全計画の策定等","安全計画を策定し、当該計画に従い必要な措置を講じている。",null,null,null,null,null,null,null,null,null,null,null,null,null,null,null,null,null,null,null,null,null,null,null,null,null,null,"安全計画","運営基準第６条の３\n\n",null,"R4.11.30運営基準の改正\n同基準第６条の３（新設）"]
[null,null,null,"職員に対し、安全計画について周知するとともに研修及び訓練を定期的に実施している。",null,null,null,null,null,null,null,null,null,null,null,null,null,null,null,null,null,null,null,null,null,null,null,null,null,null,null,"「保育所等における安全計画の策定に関する留意事項等について」（令和４年１２月１５日付けこども家庭局事務連絡）"]
[null,null,null,"保護者に対し、安全計画に基づく取組の内容等について周知している。"]
[null,null,null,"定期的に安全計画の見直しを行い、必要に応じて安全計画の変更を行っている。"]
["運営","4-（8）","建物、設備の維持管理状況","施設設備等生活環境は、適切に確保され、危険な損傷箇所はないか。",null,null,null,null,null,null,null,null,null,null,null,null,null,null,null,null,null,null,null,null,null,null,null,null,null,null,"安全点検表等"]
[null,null,null,null,"階段、ベランダ、屋上、窓等は転落防止措置がなされている。"]
[null,null,null,null,"床破損、段差等による歩行障害はない。"]
[null,null,null,null,"非常口の開閉、非常口への通行に障害はない。"]
[null,null,null,null,"非常階段、非常用滑り台の利用に障害はない。"]
[null,null,null,null,"ガラスの破損による事故防止に配慮がなされている。"]
[null,null,null,null,"ベッドからの転落防止策がなされている。"]
[null,null,null,null,"家具、備品などの転落防止策がなされている。"]
[null,null,null,null,"棚などから物が落ちるおそれはない。"]
[null,null,null,null,"暖房器具の安全対策がなされている。"]
[null,null,null,null,"調理器具・設備の安全対策がなされている。"]
[null,null,null,null,"手洗い場は清潔か、角等は危険な状態になっていない。"]
[null,null,null,null,"カーテン･じゅうたん等は防火性能を有している。"]
[null,null,null,null,"便所の設備に不備はないか。清掃がよくなされている。"]
[null,null,null,null,"屋外遊具に破損箇所や危険箇所はない。"]
[null,null,null,null,"砂場やプール及びその周辺に危険はない。"]
[null,null,null,null,"併設建物上部からの落下物への対策がなされている。"]
[null,null,null,null,"門扉、塀などに破損箇所はない。"]
[null,null,null,null,"タオル掛け等のフックは危険な状態にない。"]
[null,null,null,null,"保育室内及び遊具、寝具等は清潔に保たれている。"]
[null,null,null,null,"危険物が放置されていない。"]
[null,null,null,null,"その他、建物、設備の維持管理は適切に行われている。"]
[null,"5-（２）","労働時間の短縮等労働条件の改善への取組状況","労働時間の短縮等労働条件の改善に努めている。",null,null,null,null,null,null,null,null,null,null,null,null,null,null,null,null,null,null,null,null,null,null,null,null,null,null,"勤務表、時間外勤務記録、タイムカード等","過重労働による健康障害防止のための総合対策について"]
[null,"5-（3）","労働基準法等関係法規の遵守の状況","労働基準法等関係法規は、遵守されている。(ハラスメント防止のための相談体制等の整備を含む）",null,null,null,null,null,null,null,null,null,null,null,null,null,null,null,null,null,null,null,null,null,null,null,null,null,null,"雇用通知書、就業規則等","労働基準法第15条、第89条　　労働施策総合推進法"]
[null,"5-（5）","業務体制の確立と業務省力化推進の取組状況","業務体制の確立と業務省力化の推進のための努力がなされている。"]
[null,"5-（7）","職員の確保及び定着化への取組状況","職員の確保及び定着化について積極的に取り組んでいる。"]
[null,"5-（8）","各種手当の規定及び支出及び給与決定・昇給決定の状況","通勤・住宅手当等の各種手当が規定され、適正に支払われている。\nまた、給与決定、昇給等に関する手続き(幹部職員を含む）が適正になされている。",null,null,null,null,null,null,null,null,null,null,null,null,null,null,null,null,null,null,null,null,null,null,null,null,null,null,"賃金台帳、昇給台帳等","平成27年9月3日　府子本第254号・雇児発0903第6号"]
["運営","5-（11）","労働条件の改善等に配慮、定着促進等への取組","公定価格単価を引き上げていることから、増額となる人件費について、職員給与、賞与について、所要の給料表等の改正を実施している。",null,null,null,null,null,null,null,null,null,null,null,null,null,null,null,null,null,null,null,null,null,null,null,null,null,null,"就業規則、給料表、給料表改正に係る議事録等","平成29年3月2日内閣府告示第524号"]
[null,null,null,"処遇改善等加算（Ⅰ）について適正に適用、運用されているか",null,null,null,null,"賃金改善計画書を作成し、職員に対して当該計画書の内容を周知している。",null,null,null,null,null,null,null,null,null,null,null,null,null,null,null,null,null,null,null,null,null,"賃金改善計画書、\n研修計画、資格取得支援の制度に関する要綱等の規程、副主任保育士等及び職務分野別リーダー等の発令書、職員体制表","平成27年3月31日府政共生第349 号・26文科初第1463号・雇児発0331第10号"]
[null,null,null,null,null,null,null,null,"①職員の質向上のための計画に沿って研修機会の提供、技術的指導を実施し、施設・職員の能力評価を行っている。"]
[null,null,null,null,null,null,null,null,"②幼稚園教諭免許・保育士免許資格等を取得しようとする者がいる場合、資格取得のための支援（研修受講のための勤務シフト調整、休暇の付与、費用の援助等）を行っている。"]
[null,null,null,null,null,null,null,null,"上記①、②について、職員に周知している。"]
[null,null,null,"処遇改善等加算（Ⅱ）について適正に適用、運用されているか",null,null,null,null,"賃金改善を実施する計画を策定している。"]
[null,null,null,null,null,null,null,null,"副主任保育士等及び職務分野別リーダー等に対して、発令や職務命令が行われている。"]
[null,null,null,null,null,null,null,null,"賃金改善計画書（処遇改善等加算Ⅱ）を作成し、職員に対して当該計画書の内容を周知している。"]
[null,"5-（9）","労使協定の締結及び労働基準監督署への届出状況","労働基準法第24条（賃金の支払い）・第36条（時間外及び休日の労働）の労使の協定が締結され、労働基準監督署へ提出されている。",null,null,null,null,null,null,null,null,null,null,null,null,null,null,null,null,null,null,null,null,null,null,null,null,null,null,"届出書、協定書等","労働基準法第24条、36条、89条等"]
[null,null,null,"就業規則の届出を行っている。"]
[null,"5-（10）","職員の計画的な採用の実施状況","職員の計画的な採用に努めている。"]
[null,"4-（14）","地域への情報提供、関係団体との連携","地域の子育て支援の拠点として、地域の乳児又は幼児及びその保護者に対して、その施設の開放、子育てに関する助言、情報の提供その他の援助等を積極的に行うとともに、地域で子育てに関わるボランティア、関係団体等との連携に努めている。",null,null,null,null,null,null,null,null,null,null,null,null,null,null,null,null,null,null,null,null,null,null,null,null,null,null,null,"指針第4章3"]
[null,null,null,"　実施している子育て支援事業",null,null,null,null,null,null,null,null,null,null,null,null,null,null,null,null,null,null,null,null,null,null,null,null,null,null,null,"県条例第7条第15項"]
[null,null,null,null,1,"地域子育て支援拠点事業（市町補助事業）"]
[null,null,null,null,2,"乳幼児子育て応援事業"]
[null,null,null,null,3,"その他、育児相談等の独自事業"]
[]
[null,"4-（22）","自己評価","運営の内容について、自ら評価を行い、常に改善を図っている。",null,null,null,null,null,null,null,null,null,null,null,null,null,null,null,null,null,null,null,null,null,null,null,null,null,null,"自己評価結果表等","指針第5章1(1)、県条例第7条第4項"]
[null,null,null,"自己評価結果を公表している。"]
[null,null,"自然及び生命の大切さを学ぶ","自然及び生命の大切さ等について学ぶ機会を提供するよう努めている。",null,null,null,null,null,null,null,null,null,null,null,null,null,null,null,null,null,null,null,null,null,null,null,null,null,null,null,"県条例第7条第14項"]
[null,null,"外部評価の受審について","過去5年間又は本年度に第三者評価を受審済み又は受審する。",null,null,null,null,null,null,null,null,null,null,null,null,null,null,null,null,null,null,null,null,null,null,null,null,null,null,"第三者評価受審結果等","運営基準第36条の2\n平成28年3月1日雇児発０３０１第３号"]
[null,null,null,"　第三者評価を受審した園について、受審結果の公表状況  "]
[null,null,null,null,"公表していない。"]
[null,null,null,null,"公表している。"]
[null,null,null,null,null,"園又は法人のホームページで公開"]
[null,null,null,null,null,"その他","（",null,null,null,null,null,null,null,null,null,null,null,null,null,null,null,null,null,null,null,null,"）"]
["運営","4-（22）","禁煙状況","敷地内を禁煙としている。",null,null,null,null,null,null,null,null,null,null,null,null,null,null,null,null,null,null,null,null,null,null,null,null,null,"　",null,"受動喫煙の防止等に関する条例第9条"]
[null,"4-（22）","業務管理体制について","業務管理体制に関する届出を行っている。",null,null,null,null,null,null,null,null,null,null,null,null,null,null,null,null,null,null,null,null,null,null,null,null,null,"　","業務管理体制の届出書類","子ども･子育て支援法第55条\n「特定教育･保育施設の設置者及び特定地域型保育事業者の業務管理体制の整備について」（平成27年8月10日付内閣府）"]
[null,null,null,"法令を遵守するための体制の確保に係る責任者を選任している。",null,null,null,null,null,null,null,null,null,null,null,null,null,null,null,null,null,null,null,null,null,null,null,null,null,"　"]
[null,null,null,null,"法令遵守責任者",null,null,"職名（",null,null,null,null,null,null,null,"）","氏名（",null,null,null,null,null,null,null,null,null,null,"）",null,null,null,null,null,"法令順守責任者を記載するように変更した"]
[null,null,"業務継続計画の策定等","感染症や非常災害発生時のための業務継続計画を策定し、当該計画に従い必要な措置を講じている。",null,null,null,null,null,null,null,null,null,null,null,null,null,null,null,null,null,null,null,null,null,null,null,null,null,null,"業務継続計画","運営基準第９条の4",null,"R4.11.30運営基準の改正同基準第9条の4（新設）"]
[null,null,null,"職員に対し、業務継続計画について周知するとともに必要な研修及び訓練を定期的に実施している。"]
[null,null,null,"定期的に業務継続計画の見直しを行い、必要に応じて業務継続計画の変更を行っている。"]
[null,null,"自動車を運行する場合の所在の確認","園児等の通園や園外活動等のためにバス（自動車）を運行している。",null,null,null,null,null,null,null,null,null,null,null,null,null,null,null,null,null,null,null,null,null,null,null,null,null,null,"運行マニュアル、運転日誌","運営基準第６条の4、「保育所、幼稚園、認定こども園及び特別支援学校幼稚部における安全管理の徹底について」（令和３年８月25日厚労省、文科省、内閣府）、「保育所等における安全管理の徹底について」（令和３年８月16日県こども政策課）、「保育施設における通園バスに係る安全管理の留意事項について」（令和４年３月22日県こども政策課）、こどものバス送迎・安全徹底マニュアル（令和4年10月12日内閣府、文科省、厚労省）"]
[null,null,null,"園児の通園にバス（自動車）を日常的に運行している場合",null,null,null,"園児等の乗車及び降車の際に、点呼等所在を確実に把握することができる方法により園児の所在を確認している。",null,null,null,null,null,null,null,null,null,null,null,null,null,null,null,null,null,null,null,null,null,null,null,null,null,"R4.12.28運営基準の改正　同基準第６条の4（新設）"]
[null,null,null,null,null,null,null,"通園用のバス（自動車）にブザーその他の車内の園児等の見落としを防止する装置を装備し、降車時の所在確認を行っている。\n※ブザー等の設置については経過措置あり。\n"]
[null,null,null,null,null,null,null,null,null,"製造メーカー名",null,null,null,null,null,null,"装置名",null,null,null,null,null,"装置の方式"]
[null,null,null,null,null,null,null,null,1]
[null,null,null,null,null,null,null,null,2]
[null,null,null,null,null,null,null,null,3]
[]
[null,null,null,"園外活動等にバス（自動車）を運行している場合",null,null,null,"園児等の乗車及び降車の際に、点呼等所在を確実に把握することができる方法により園児の所在を確認している。"]

{"sheet":"運営(幼保)","index":13,"n_rows":244,"n_cols":34,"rows_kept":244,"cut":false,"hidden":false,"merged":[[26,2,28,2],[123,2,138,2],[22,3,25,7],[226,9,226,15],[226,16,226,21],[226,22,226,27],[227,9,227,15],[227,16,227,21],[227,22,227,27],[216,3,216,28],[202,16,202,17],[202,18,202,19],[203,5,203,15],[203,16,203,17],[203,18,203,19],[204,5,204,15],[204,16,204,17],[204,18,204,19],[192,2,193,2],[192,3,192,28],[170,4,170,27],[171,4,171,27],[172,4,172,27],[173,4,173,27],[228,9,228,15],[228,16,228,21],[228,22,228,27],[229,9,229,15],[229,16,229,21],[229,22,229,27],[225,32,230,32],[243,1,243,48],[220,3,220,28],[220,30,222,30],[221,3,221,28],[222,3,222,28],[232,1,232,32],[240,1,240,48],[241,1,241,48],[242,1,242,48],[217,1,218,1],[217,2,218,2],[217,5,217,15],[217,31,218,31],[218,5,218,28],[219,4,219,6],[219,7,219,8],[219,9,219,14],[219,16,219,18],[219,19,219,26],[206,30,208,30],[206,31,208,31],[207,3,207,26],[208,3,208,26],[209,3,209,28],[210,2,215,2],[210,30,215,30],[210,31,215,31],[211,3,211,28],[212,4,212,14],[212,15,212,16],[213,4,213,14],[213,15,213,16],[214,5,214,14],[214,15,214,16],[215,8,215,26],[210,3,210,28],[206,3,206,28],[192,30,193,30],[192,31,193,31],[193,3,193,28],[194,3,194,28],[195,3,195,28],[195,31,205,31],[197,5,197,15],[197,16,197,17],[197,18,197,19],[198,5,198,15],[198,16,198,17],[198,18,198,19],[199,5,199,15],[199,16,199,17],[199,18,199,19],[200,5,200,15],[200,16,200,17],[200,18,200,19],[201,5,201,15],[201,16,201,17],[201,18,201,19],[202,5,202,15],[174,4,174,27],[164,4,164,27],[165,4,165,27],[166,4,166,27],[167,4,167,27],[168,4,168,27],[169,4,169,27],[153,2,156,2],[153,3,153,28],[154,3,154,28],[158,4,158,27],[159,4,159,27],[160,4,160,27],[161,4,161,27],[162,4,162,27],[163,4,163,27],[144,2,151,2],[144,3,144,28],[154,31,156,31],[155,3,155,28],[156,3,156,28],[157,3,157,28],[144,30,151,30],[144,31,151,31],[145,3,145,28],[146,8,146,9],[146,16,146,28],[147,3,147,5],[147,7,147,8],[148,3,148,6],[151,3,151,28],[152,3,152,28],[133,32,135,32],[134,4,134,7],[134,9,134,26],[136,29,137,29],[136,30,137,30],[136,31,137,31],[136,32,137,32],[137,3,137,6],[137,8,137,16],[136,3,136,28],[115,32,132,32],[116,4,116,28],[118,4,118,26],[118,27,118,28],[119,5,119,26],[119,27,119,28],[120,5,120,26],[120,27,120,28],[121,5,121,26],[121,27,121,28],[122,4,122,26],[122,27,122,28],[123,3,123,28],[123,31,132,31],[124,5,124,12],[124,13,124,20],[124,21,124,22],[125,5,125,11],[125,12,125,20],[125,21,125,22],[126,5,126,14],[128,5,128,8],[128,12,128,13],[128,16,128,27],[111,2,114,2],[111,3,111,28],[111,29,114,29],[111,30,114,30],[111,31,114,31],[112,3,112,27],[113,5,113,26],[115,1,138,1],[115,3,115,28],[115,30,132,30],[115,31,122,31],[129,12,129,17],[129,20,129,21],[130,5,130,7],[131,5,131,7],[131,16,131,25],[127,3,127,28],[132,3,132,28],[133,3,133,28],[133,29,135,29],[133,30,135,30],[133,31,135,31],[95,2,96,2],[95,3,95,28],[95,30,96,30],[95,31,96,31],[96,3,96,28],[97,2,108,2],[97,3,97,28],[97,29,108,29],[97,30,108,30],[97,31,108,31],[103,5,103,24],[103,25,103,26],[104,5,104,24],[104,25,104,26],[105,5,105,24],[105,25,105,26],[106,5,106,24],[106,25,106,26],[107,5,107,24],[107,25,107,26],[101,5,101,24],[101,25,101,26],[102,5,102,24],[102,25,102,26],[80,29,93,29],[80,30,93,30],[80,31,93,31],[88,5,88,24],[88,25,88,26],[89,5,89,24],[89,25,89,26],[90,5,90,24],[90,25,90,26],[91,5,91,24],[91,25,91,26],[92,5,92,24],[92,25,92,26],[81,5,81,24],[81,25,81,26],[77,18,77,19],[69,5,69,10],[69,11,69,12],[69,18,69,19],[70,5,70,10],[70,11,70,12],[70,18,70,19],[80,2,93,2],[80,3,80,28],[73,11,73,12],[73,18,73,19],[74,5,74,10],[74,11,74,12],[74,18,74,19],[75,5,75,10],[75,11,75,12],[75,18,75,19],[76,5,76,10],[76,11,76,12],[76,18,76,19],[67,2,70,2],[67,3,67,28],[82,5,82,24],[82,25,82,26],[55,1,58,1],[55,3,58,5],[55,6,55,28],[56,6,56,28],[57,6,57,28],[58,6,58,28],[63,2,66,2],[63,3,63,28],[63,30,65,30],[64,3,64,28],[65,3,65,28],[66,3,66,28],[62,3,62,28],[60,3,60,28],[61,3,61,28],[59,3,59,28],[37,31,39,31],[40,31,41,31],[42,3,42,28],[42,29,44,29],[42,31,43,31],[43,5,43,25],[43,26,43,27],[37,3,37,28],[39,3,39,28],[40,3,40,28],[38,3,38,28],[41,3,41,28],[22,2,23,2],[22,31,25,31],[23,9,23,27],[24,11,24,12],[24,14,24,15],[24,17,24,20],[24,25,24,27],[25,9,25,27],[22,30,25,30],[17,2,18,2],[17,3,18,7],[17,9,17,28],[17,29,21,29],[17,30,21,30],[17,31,21,31],[18,10,18,15],[18,16,18,18],[19,9,20,9],[20,16,20,17],[20,19,20,27],[4,2,5,2],[4,3,5,7],[4,9,4,28],[4,31,13,31],[5,9,5,28],[6,9,6,28],[7,8,7,20],[16,9,16,28],[12,16,12,17],[12,19,12,27],[14,3,14,7],[14,9,14,28],[15,9,15,28],[7,30,12,30],[8,10,8,15],[8,16,8,18],[8,19,8,27],[9,9,12,9],[9,16,9,17],[9,19,9,27],[10,16,10,17],[10,19,10,27],[11,16,11,17],[11,19,11,27],[0,0,0,32],[1,27,1,29],[1,30,1,32],[2,0,3,0],[2,1,3,1],[2,2,3,2],[2,3,2,28],[2,29,3,29],[2,30,3,30],[2,31,3,31],[2,32,3,32],[3,3,3,7],[3,8,3,28],[14,31,16,31],[22,9,22,27],[18,19,18,27],[19,16,19,17],[19,19,19,27],[28,9,28,28],[26,9,26,28],[27,9,27,28],[14,30,15,30],[26,3,28,7],[26,30,28,30],[26,31,28,31],[29,2,30,2],[29,3,30,7],[29,30,30,30],[29,31,30,31],[33,9,33,28],[34,9,34,28],[30,9,30,28],[32,9,32,28],[31,9,31,28],[31,2,33,2],[31,3,33,7],[31,30,33,30],[31,31,33,31],[34,2,36,2],[34,3,36,7],[34,29,36,29],[34,30,36,30],[34,31,36,31],[35,9,35,28],[36,21,36,26],[29,9,29,28],[45,3,45,28],[46,3,46,28],[47,3,47,28],[48,3,48,28],[49,3,49,28],[50,3,50,28],[45,31,47,31],[48,30,54,30],[48,31,54,31],[51,3,51,28],[52,3,52,28],[53,3,53,28],[54,3,54,28],[100,25,100,26],[83,5,83,24],[83,25,83,26],[86,5,86,24],[86,25,86,26],[87,5,87,24],[87,25,87,26],[84,5,84,24],[84,25,84,26],[85,5,85,24],[85,25,85,26],[139,3,139,28],[138,3,138,16],[138,18,138,19],[138,20,138,24],[139,31,142,31],[140,3,140,28],[141,3,141,28],[142,3,142,28],[110,3,110,28],[109,31,110,31],[63,31,65,31],[117,27,117,28],[68,11,68,12],[71,5,71,10],[71,11,71,12],[71,18,71,19],[72,18,72,19],[117,4,117,26],[94,3,94,28],[109,3,109,28],[67,30,77,30],[67,31,77,31],[68,18,68,25],[72,5,72,10],[72,11,72,12],[73,5,73,10],[78,3,78,28],[79,3,79,28],[68,5,68,10],[98,5,98,24],[98,25,98,26],[99,5,99,24],[99,25,99,26],[100,5,100,24],[190,8,190,28],[191,8,191,28],[175,4,175,27],[176,4,176,27],[177,4,177,27],[178,4,178,27],[179,3,179,28],[180,3,180,28],[181,3,181,28],[182,3,182,28],[183,3,183,28],[143,3,143,28],[157,2,162,2],[139,2,142,2],[223,0,231,0],[223,1,231,1],[223,2,231,2],[223,3,223,28],[223,31,231,31],[224,3,225,6],[224,7,224,28],[225,7,225,28],[231,3,231,6],[231,7,231,28],[184,3,184,28],[185,3,188,7],[185,8,185,28],[185,30,191,30],[185,31,188,31],[186,8,186,28],[187,8,187,28],[188,8,188,28],[189,3,191,7],[189,8,189,28],[189,31,191,31]]}
[{"$f":"TEXT(基本事項!A5,\"ggge年度\")&\"幼保連携型認定こども園チェックリスト\"","v":"令和6年度幼保連携型認定こども園チェックリスト"}]
[null,null,null,null,null,null,null,null,null,null,null,null,null,null,null,null,null,null,null,null,null,null,null,null,null,null,null,null,null,null,{"$f":"\"（施設名：\"&[1]基本事項!B11&\"　　）\"","v":"（施設名：　　）"}]
["区分","番号","点検項目","点検事項",null,null,null,null,null,null,null,null,null,null,null,null,null,null,null,null,null,null,null,null,null,null,null,null,null,"施設確認欄","点検帳票","関係法令・通知","確認結果・特記事項"]
[null,null,null,"着眼点",null,null,null,null,"チェック項目"]
["運営","(1)","定期の健康診断、衛生管理及び感染症等への対応状況","健康診断の実施、結果の記録及び保管が適切に行われているか。",null,null,null,null,"・","園児について、入園時及び少なくとも毎年２回以上（うち１回は6月30日まで）の定期健康診断を実施している。",null,null,null,null,null,null,null,null,null,null,null,null,null,null,null,null,null,null,null,null,"保健計画、健康診断結果票等","就学前の子どもに関する教育、保育等の総合的な提供の推進に関する法律第27条、法施行令第6条（以下、法、施行令、規則で準用する規定はその準用規定のみを記載）、学校保健安全法第5条"]
[null,null,null,null,null,null,null,null,"・","園児の健康診断は医師のもと行われている。",null,null,null,null,null,null,null,null,null,null,null,null,null,null,null,null,null,null,null,null,"健診委託契約書等"]
[null,null,null,null,null,null,null,null,"・","診察、計測、検査等の結果について、保健所や市町村が実施する保健活動と相互に連携する上で、母子健康手帳を有効に活用している。",null,null,null,null,null,null,null,null,null,null,null,null,null,null,null,null,null,null,null,null,"健康記録簿等"]
[null,null,null,null,null,null,null,null,"＜児童健康診断の実施状況＞",null,null,null,null,null,null,null,null,null,null,null,null,null,null,null,null,null,null,null,null,null,"健康診断結果票等"]
[null,null,null,null,null,null,null,null,null,null,"実施年月日",null,null,null,null,null,"未受診者",null,null,"未受診理由及びその後の対応"]
[null,null,null,null,null,null,null,null,null,"園児",null,"年",null,"月",null,"日",null,null,"人"]
[null,null,null,null,null,null,null,null,null,null,null,"年",null,"月",null,"日",null,null,"人"]
[null,null,null,null,null,null,null,null,null,null,null,"年",null,"月",null,"日",null,null,"人"]
[null,null,null,null,null,null,null,null,null,null,null,"年",null,"月",null,"日",null,null,"人"]
[]
[null,null,null,"衛生管理及び感染症等に対する対策は適切に行われているか。",null,null,null,null,"・","感染症やその他の疾病の発生予防に努め、その発生や疑いがある場合には、必要に応じて嘱託医、市町村、保健所等に連絡し、その指示に従うとともに、保護者や全職員に連絡し協力を求める体制を取っている。",null,null,null,null,null,null,null,null,null,null,null,null,null,null,null,null,null,null,null,null,"感染症対応マニュアル、研修記録、関係機関連絡網等","学校保健安全法第21条、第26条\n保育所における感染症対策ガイドライン等"]
[null,null,null,null,null,null,null,null,"・","職員に対し、感染症及び食中毒の予防及びまん延防止のための研修並びに感染症の予防及びまん延防止のための訓練を実施している。",null,null,null,null,null,null,null,null,null,null,null,null,null,null,null,null,null,null,null,null,null,null,null,"保育所の運営基準に準じた。根拠は学校保健安全法第26条に規定の必要な措置。"]
[null,null,null,null,null,null,null,null,"・","感染症に関する保育所の対応方法等について、あらかじめ関係機関の協力を得ている。\n",null,null,null,null,null,null,null,null,null,null,null,null,null,null,null,null,null,null,null,null,"対応記録等"]
[null,"(2)","職員への健康診断等健康管理の実施状況","職員への健康診断等健康管理は、適正に実施されているか。",null,null,null,null,"・","職員について、雇用時及び少なくとも年１回の定期健康診断を実施している。",null,null,null,null,null,null,null,null,null,null,null,null,null,null,null,null,null,null,null,null,"健康診断結果票等","学校保健安全法第15条、労働安全衛生法第66条～、労働安全衛生規則第43,44条"]
[null,null,null,null,null,null,null,null,null,null,"実施年月日",null,null,null,null,null,"未受診者",null,null,"未受診理由及びその後の対応"]
[null,null,null,null,null,null,null,null,null,"職員",null,"年",null,"月",null,"日",null,null,"人"]
[null,null,null,null,null,null,null,null,null,null,null,"年",null,"月",null,"日",null,null,"人"]
[]
[null,"(3)","保護者との連絡調整、家庭との連携の状況","保護者との連絡を適切に行い、家庭との連携を図るように努めているか。",null,null,null,null,null,"登退園時に保護者との引き継ぎを行っている。",null,null,null,null,null,null,null,null,null,null,null,null,null,null,null,null,null,null,null,null,"出席簿、保育日誌等","教育・保育要領、解説"]
[null,null,null,null,null,null,null,null,null,"保護者との連絡方法（該当するものに○）"]
[null,null,null,null,null,null,null,null,null,null,"　","連絡帳",null,"　","掲示",null,"　","保育所だより",null,null,null,"　","その他",null,"（",null,null,null,"）"]
[null,null,null,null,null,null,null,null,null,"保護者の緊急連絡先を把握している。"]
[null,"(4)","保護者からの相談に対する援助体制の確保の状況","家族との連携に積極的に努めているか。また、入所者や家族からの相談に応じる体制がとられているか。相談に対して適切な助言、援助が行われているか。",null,null,null,null,null,"保護者からの相談窓口（相談受付け担当者）を設置している。",null,null,null,null,null,null,null,null,null,null,null,null,null,null,null,null,null,null,null,null,"相談記録等"]
[null,null,null,null,null,null,null,null,null,"保護者からの相談窓口（相談受付け担当者）について、掲示版、園だよりに掲載する等の方法で保護者に周知している。"]
[null,null,null,null,null,null,null,null,null,"保護者からの相談内容等を記録し、援助内容、経過等について適切に管理している。"]
["運営","(5)","苦情受付窓口の設置など苦情解決処理への対応状況","苦情を受け付けるための窓口を設置するなど苦情解決に適切に対応しているか。",null,null,null,null,null,"保護者に対して苦情解決の仕組みを周知している。",null,null,null,null,null,null,null,null,null,null,null,null,null,null,null,null,null,null,null,null,"対応記録等","運営基準第13条（最低基準第14条の3）"]
[null,null,null,null,null,null,null,null,null,"第三者委員を設置して適切な対応を行うとともに、苦情内容及び解決結果の定期的公表を行うなど、保護者･園児の保護に努めている。"]
[null,"(6)","教育・保育要領を踏まえた園の実情に応じた適切な幼児教育・保育の実施状況","教育・保育要領に規定される幼児教育・保育の内容に係る基本原則に関する事項を踏まえ、各園の実情に応じて適切な幼児教育・保育が行われているか。",null,null,null,null,null,"幼児教育・保育内容等を職員会議等で十分検討している。",null,null,null,null,null,null,null,null,null,null,null,null,null,null,null,null,null,null,null,null,"教育及び保育の内容に関する全体的な計画（以下「教育・保育課程」という。）、指導計画等","教育・保育要領"]
[null,null,null,null,null,null,null,null,null,"前年度の評価を反映した幼児教育・保育内容となっている。"]
[null,null,null,null,null,null,null,null,null,"各園の実情に応じて適切な幼児教育・保育が行われている。"]
[null,"(7)","教育・保育課程の編成、それに基づく指導計画の作成状況","教育・保育課程を編成し、それに基づく指導計画が作成されているか。",null,null,null,null,null,"教育・保育要領を踏まえた上で教育・保育課程を作成している。",null,null,null,null,null,null,null,null,null,null,null,null,null,null,null,null,null,null,null,null,"教育・保育課程、指導計画等","教育・保育要領、解説"]
[null,null,null,null,null,null,null,null,null,"指導計画は作成しているか(該当するものすべてにチェック）。"]
[null,null,null,null,null,null,null,null,null,null,null,"年",null,"期",null,"月",null,"週",null,"日",null,"作成していない"]
[null,"(8)","研修＜県条例＞","研修の実施計画を職員の職務内容、経験等に応じて策定している。",null,null,null,null,null,null,null,null,null,null,null,null,null,null,null,null,null,null,null,null,null,null,null,null,null,null,"研修計画","条例第3条"]
[null,null,null,"実施した研修の記録を保管している。",null,null,null,null,null,null,null,null,null,null,null,null,null,null,null,null,null,null,null,null,null,null,null,null,null,null,"研修記録"]
[null,null,null,"必要に応じて研修の内容の見直しを行うことにより、職員の計画的な育成に努めている。",null,null,null,null,null,null,null,null,null,null,null,null,null,null,null,null,null,null,null,null,null,null,null,null,null,null,"研修計画"]
[null,null,null,"施設内研修を実施している。",null,null,null,null,null,null,null,null,null,null,null,null,null,null,null,null,null,null,null,null,null,null,null,null,null,null,"研修計画","運営基準第13条（最低基準第7条の2）"]
[null,null,null,"職員を施設外研修に参加させている。",null,null,null,null,null,null,null,null,null,null,null,null,null,null,null,null,null,null,null,null,null,null,null,null,null,null,"研修記録"]
[null,"(9)","乳幼児突然死症候群の防止への対策状況","乳幼児突然死症候群の防止に努めるなど、事故防止対策を講じている。\n　＜具体的な　防止策を記載して下さい。",null,null,null,null,null,null,null,null,null,null,null,null,null,null,null,null,null,null,null,null,null,null,null,null,null,null,"睡眠時のチェック表等","教育・保育要領、解説"]
[]
[]
[null,"(10)","アレルギー対応体制","「保育所におけるアレルギー対応ガイドライン」(国通知）を職員に周知徹底させている。",null,null,null,null,null,null,null,null,null,null,null,null,null,null,null,null,null,null,null,null,null,null,null,null,null,null,null,"教育・保育要領、解説、保育所におけるアレルギー対応ガイドライン"]
[null,null,null,"子供、保護者、職員、嘱託医、市町が一体となって情報を共有している。",null,null,null,null,null,null,null,null,null,null,null,null,null,null,null,null,null,null,null,null,null,null,null,null,null,null,"児童票等"]
[null,null,null,"園で対応マニュアルを策定している。",null,null,null,null,null,null,null,null,null,null,null,null,null,null,null,null,null,null,null,null,null,null,null,null,null,null,"対応マニュアル等"]
[null,"(11)","事故の発生又はその再発防止","事故、危機が発生した場合の対応、園長への報告の方法等が記載された事故の発生の防止のための指針（マニュアル）を整備している。",null,null,null,null,null,null,null,null,null,null,null,null,null,null,null,null,null,null,null,null,null,null,null,null,null,null,"事故発生時対応マニュアル、緊急時連絡網、事故・ヒヤリハット記録等","学校保健安全法第26・27・28・29条、県条例第3条\n平27年2月16日3府省通知\n\n教育・保育施設等における事故防止及び事故発生時の対応のためのガイドライン"]
[null,null,null,"事故、危機が発生した場合又はその危険性がある事態が生じた場合に、当該事実が園長に報告されるとともに、原因の分析の結果に基づき策定した改善策を職員に周知徹底する体制を整備している。"]
[null,null,null,"事故発生防止のための会議及び職員に対する研修を定期的に行っている。"]
[null,null,null,"事故、危機が発生した場合は、速やかに関係行政機関、保護者に連絡を行うとともに、必要な措置を講じる体制を取っている。"]
[null,null,null,"食中毒発生など調理室が使用できない場合を想定し、営業施設等の事前協定や近隣施設との相互支援等、非常時でも食事が提供できる体制を整備している。"]
[null,null,null,"事故の状況及び事故に際して採った処置について記録している。"]
[null,null,null,"賠償すべき事故が発生した場合は、損害賠償を速やかに行い得る体制になっている。"]
[null,null,null,"睡眠中、プール活動・水遊び中等の場面では重大事故が発生しやすいことを踏まえ、右記の対策を講じているか。",null,null,"事故発生時に適切な救命処置が可能となるよう、訓練を実施している。",null,null,null,null,null,null,null,null,null,null,null,null,null,null,null,null,null,null,null,null,null,null,null,null,null,null,"児童福祉行政指導監査実施要綱（別紙１）の改正に準じて追加した。"]
[null,null,null,null,null,null,"睡眠中の窒息リスクの除去として、医学的な理由で医師からうつぶせ寝を勧められている場合以外は、仰向きに寝かせるなど寝かせ方に配慮すること、児童を一人にしないこと、安全な睡眠環境を整えている。",null,null,null,null,null,null,null,null,null,null,null,null,null,null,null,null,null,null,null,null,null,null,null,null,null,null,"同上　給食に関する部分は給食関係の調書で確認"]
[null,null,null,null,null,null,"プール活動や水遊びを行う場合は、監視体制の空白が生じないよう、専ら監視を行う者とプール指導等を行う者を分けて配置し、その役割分担を明確にしている。",null,null,null,null,null,null,null,null,null,null,null,null,null,null,null,null,null,null,null,null,null,null,null,null,null,null,"同上"]
[null,null,null,null,null,null,"窒息の可能性のある玩具、小物等が不用意に保育環境下に置かれていないかなどについての、保育士等による保育室内及び園庭内の点検を、定期的に実施している。",null,null,null,null,null,null,null,null,null,null,null,null,null,null,null,null,null,null,null,null,null,null,null,null,null,null,"同上"]
["運営","(12)","子どもの不適切な養育等の発見への努力、必要に応じた関係機関との連携状況","子どもの状態を観察し、不適切な養育等の発見に努めるとともに、必要に応じて関係機関との連携を図っている。",null,null,null,null,null,null,null,null,null,null,null,null,null,null,null,null,null,null,null,null,null,null,null,null,null,null,"関係機関対応記録等","児童虐待防止法第5条、第6条"]
[null,"(13)","障害に応じた配慮の確保の状況","＜障害児を保育している場合＞　障害に応じた配慮をしている。",null,null,null,null,null,null,null,null,null,null,null,null,null,null,null,null,null,null,null,null,null,null,null,null,null,null,"児童票等","教育・保育要領・解説"]
[null,"(14)","居室等の県条例、基準条例への適合状況","居室等が県条例、基準省令にあった構造になっている。",null,null,null,null,null,null,null,null,null,null,null,null,null,null,null,null,null,null,null,null,null,null,null,null,null,null,null,"県条例第3条、運営基準第3条から"]
[null,"(15)","居室等の清掃、衛生管理、保温、換気、採光及び照明の状況","居室等の清掃、衛生管理、保温、換気、採光及び照明は適切になされている。",null,null,null,null,null,null,null,null,null,null,null,null,null,null,null,null,null,null,null,null,null,null,null,null,null,null,"環境測定結果等","学校保健安全法第6条、学校環境衛生基準（平成30年3月30日文科省告示第60号）"]
[null,"(16)","学級の状況\n（満３歳以上児の教育時間帯）","満３歳以上の園児については、学級が編制されている。\n（学級担任やクラス名簿が整備されている。）",null,null,null,null,null,null,null,null,null,null,null,null,null,null,null,null,null,null,null,null,null,null,null,null,null,null,"クラス名簿等","運営基準第４条"]
[null,null,null,"１学級の園児数は３５人以下または必要面積が居室面積を超えない人数となっている。"]
[null,null,null,"学級は、学年の初めの日の前日において同じ年齢にある園児で編制されている。"]
[null,null,null,"各学級ごとに少なくとも１人の職員（学級担任）に担当させており、その学級担任が教育時間内に配置されている。",null,null,null,null,null,null,null,null,null,null,null,null,null,null,null,null,null,null,null,null,null,null,null,null,null,null,"クラス名簿、出勤簿等","運営基準第5条、平成26年内閣府・文部科学省・厚生労働省告示2号"]
[null,"(17)","園則、運営規程、就業規則等の整備及び運用の状況","必要な諸規程は、整備されている。",null,null,null,null,null,null,null,null,null,null,null,null,null,null,null,null,null,null,null,null,null,null,null,null,null,null,"園則・運営規程等","学校教育法施行規則第28条"]
[null,null,null,null,null,"種　類",null,null,null,null,null,"有無"]
[null,null,null,null,null,"園則"]
[null,null,null,null,null,"運営規程"]
[null,null,null,null,null,"就業規則"]
[null,null,null,null,null,"給与規程"]
[null,null,null,null,null,"旅費規程"]
[null,null,null,null,null,"経理規程"]
[null,null,null,null,null,"公印規程"]
[null,null,null,null,null,"育児休業規程"]
[]
[null,null,null,"改正は必要な手続きを経て行われている。",null,null,null,null,null,null,null,null,null,null,null,null,null,null,null,null,null,null,null,null,null,null,null,null,null,null,"理事会等議事録"]
[null,null,null,"規程に基づいた適切な運用がなされている。",null,null,null,null,null,null,null,null,null,null,null,null,null,null,null,null,null,null,null,null,null,null,null,null,null,null,"各規程等"]
[null,"(18)","園則・運営規程の内容","規定すべき事項が適切に規定されている。",null,null,null,null,null,null,null,null,null,null,null,null,null,null,null,null,null,null,null,null,null,null,null,null,null,null,"園則・運営規程","法施行規則第16条、学校教育法施行規則第4条、第28条、確認基準第20条"]
[null,null,null,null,null,"規　　　定　　　項　　　目",null,null,null,null,null,null,null,null,null,null,null,null,null,null,null,null,null,null,null,"有無"]
[null,null,null,null,1,"施設の目的及び運営の方針"]
[null,null,null,null,2,"提供する保育の内容"]
[null,null,null,null,3,"職員の職種、員数及び職務の内容"]
[null,null,null,null,4,"教育・保育の提供を行う日及び時間並びに提供を行わない日"]
[null,null,null,null,5,"保護者から受領する費用の種類、支払を求める理由及びその額"]
[null,null,null,null,6,"子どもの区分ごとの利用定員"]
[null,null,null,null,7,"園の利用開始、終了に関する事項及び利用に当たっての留意事項"]
[null,null,null,null,8,"保護者に対する子育て支援の内容に関する事項"]
[null,null,null,null,9,"緊急時の対応方法"]
[null,null,null,null,10,"非常災害対策"]
[null,null,null,null,11,"虐待防止のための措置"]
[]
["運営","(19)","利用申込に対する説明等","保護者から利用申込があった場合に、必要な項目について、文書を交付する等適切な方法で説明を行い、同意を得ているか。",null,null,null,null,null,null,null,null,null,null,null,null,null,null,null,null,null,null,null,null,null,null,null,null,null,null,"重要事項説明書等","確認基準第5条"]
[null,"(20)","利用者負担金の設定等","保護者から徴収する実費徴収額について、その内訳、積算内容を明示し同意を得ている。",null,null,null,null,null,null,null,null,null,null,null,null,null,null,null,null,null,null,null,null,null,null,null,null,null,null,"費用一覧表、費用徴収に関する同意書等","確認基準第13条第3項、第4項"]
[null,null,null,"保護者から徴収する質改善に要する経費(上乗せ徴収）について、その内訳、積算内容を明示し、書面による同意を得ている。"]
[null,"(21)","表簿類の整備状況","園の運営に必要な表簿を整備している。(保存期間：5年間）",null,null,null,null,null,null,null,null,null,null,null,null,null,null,null,null,null,null,null,null,null,null,null,null,null,null,null,"学校教育法施行規則第28条"]
[null,null,null,null,null,"表　　簿　　等",null,null,null,null,null,null,null,null,null,null,null,null,null,null,null,null,null,null,null,"有無"]
[null,null,null,null,1,"幼保連携型認定こども園関係法令等",null,null,null,null,null,null,null,null,null,null,null,null,null,null,null,null,null,null,null,"　"]
[null,null,null,null,2,"日課表"]
[null,null,null,null,3,"学校医、学校歯科医、学校薬剤師執務記録"]
[null,null,null,null,4,"幼稚園日誌、保育日誌等"]
[null,null,null,null,5,"職員名簿、履歴書、出勤簿、クラス担任表等"]
[null,null,null,null,6,"1号認定こどもに関する選考に関する資料"]
[null,null,null,null,7,"資産原簿、出納簿及び経費の予算決算についての帳簿"]
[null,null,null,null,8,"図書、機械器具、幼児教育・保育の教具等の目録"]
[null,null,null,null,9,"往復文書処理簿"]
[]
[null,"(22)","園児指導要録の作成状況","幼児教育・保育の記録や自己評価に基づいて、園児指導要録を作成している。",null,null,null,null,null,null,null,null,null,null,null,null,null,null,null,null,null,null,null,null,null,null,null,null,null,null,"園児指導要録","幼保連携型認定こども園教育・保育要領\n平29年3月31日3府省告示第1号"]
[null,"(23)","園児の就学に際しての園児指導要録の小学校への送付状況","園児の就学に際し、小学校への送付を行っている。（保存期間：20年間）",null,null,null,null,null,null,null,null,null,null,null,null,null,null,null,null,null,null,null,null,null,null,null,null,null,null,"園児指導要録"]
[null,"(24)","園長の資格要件等の充足状況","園長は、運営全般の状況や問題点を十分把握している。"]
[null,null,null,"＜認識している問題点があれば記入してください。＞"]
[]
[]
[null,null,null,"園長は有資格者で専任者である。",null,null,null,null,null,null,null,null,null,null,null,null,null,null,null,null,null,null,null,null,null,null,null,null,null,"　",null,"法施行規則第１２条\n幼保連携型認定こども園の設置認可等に関する審査基準"]
[null,null,null,null,"該当する項目に○を入れてください。 "]
[null,null,null,null,"①専修免許状又は一種免許状を有し、かつ保育士登録を受けており、法施行規則第12条に定める施設で5年以上の勤務経験を有する。",null,null,null,null,null,null,null,null,null,null,null,null,null,null,null,null,null,null,null,null,null,null,"　"]
[null,null,null,null,"②専修免許状又は一種免許状、幼稚園教諭二種免許状及び保育士登録を受けており、設置者の推薦がある者で、下記の要件を満たす者である。"]
[null,null,null,null,null,"母体となった幼稚園、保育所、認定こども園の長（以下「施設長」という。）として5年以上、施設を適切に運営してきた者"]
[null,null,null,null,null,"幼稚園、保育所又は認定こども園の教諭及び保育士（施設長含む）として、10年以上、教育、保育又は子育て支援に従事してきた者"]
[null,null,null,null,null,"別に定める地方公共団体や関係団体等による園長研修を受講し、園長となるための識見を身につけた者"]
[null,null,null,null,"①、②以外で設置者の推薦を受けた経過措置の対象となる者"]
["運営",null,"園長の資格要件等の充足状況\n（続き）","＜園長が教員免許状を所有する場合は、更新状況について該当する項目にチェックしてください。＞",null,null,null,null,null,null,null,null,null,null,null,null,null,null,null,null,null,null,null,null,null,null,null,null,null,null,null,"平成30年12月19日付けこ第1741号県こども政策課長通知"]
[null,null,null,null,null,"免許更新済　　　　　　　　　　　　→",null,null,null,null,null,null,null,"○免許更新期限：",null,null,null,null,null,null,null,"令和",null,null,"年",null,"月",null,"日"]
[null,null,null,null,null,"免許更新手続中　　　　　　　　　→",null,null,null,null,null,null,"○更新後の免許更新期限（予定）：",null,null,null,null,null,null,null,null,"令和",null,null,"年",null,"月",null,"日"]
[null,null,null,null,null,"免許状が生涯有効、更新講習免除申請済等"]
[null,null,null,"＜特定園長研修（※）の受講状況について該当する項目にチェックしてください。＞"]
[null,null,null,null,null,"修了証交付済",null,null,null,null,null,null,"研修名"]
[null,null,null,null,null,null,null,null,null,null,null,null,"修了証交付年月日",null,null,null,null,null,null,null,"令和",null,null,"年",null,"月",null,"日"]
[null,null,null,null,null,"受講中"]
[null,null,null,null,null,"未受講"]
[null,null,null,"※特定園長研修：全国認定こども園協会ステップアップ研修会または兵庫県認定こども園園長等研修"]
[null,null,null,"園長が他の役職を兼務している場合は、施設の運営管理に支障が生じないような体制がとられている。",null,null,null,null,null,null,null,null,null,null,null,null,null,null,null,null,null,null,null,null,null,null,null,null,null,"　"]
[null,null,null,null,"兼務している職"]
[]
[null,null,null,"園長が兼務の場合、基準省令に定める職員を１名配置している。",null,null,null,null,null,null,null,null,null,null,null,null,null,null,null,null,null,null,null,null,null,null,null,null,null,"　","職員名簿等","運営基準第５条"]
[null,null,null,"　　配置職員の職氏名　",null,null,null,"(",null,null,null,null,null,null,null,null,null,"）"]
[null,null,null,"前年度の勤務日数（公務出張・有給休暇を含む。）",null,null,null,null,null,null,null,null,null,null,null,null,null,null,null,null,"日／年",null,null,null,null,null,null,null,null,"　","出退勤簿等"]
[null,"(25)","保育教諭等の資格確認等について","保育教諭、助保育教諭及び講師（助保育教諭に準じる職務に従事する者に限る。）（以下「保育教諭等」という。）の採用時に、必ず保育士登録証、教員免許状を確認している。",null,null,null,null,null,null,null,null,null,null,null,null,null,null,null,null,null,null,null,null,null,null,null,null,null,null,null,"法第39条"]
[null,null,null,"資格について経過措置(令和７年3月31日まで）の適用を受けている保育教諭について、必要な資格・免許の取得状況を把握している。"]
[null,null,null,"雇用している保育教諭等について教員免許の修了確認期限を把握している。"]
[null,null,null,"教員免許の更新について、職員に周知している。"]
[null,null,null,"任命権者は、教育職員等による児童生徒性暴力等の防止等に関する法律の基本理念にのっとり、教育職員等を任命し、又は雇用するときは国が整備したデータベースを活用して資格確認を行っている。",null,null,null,null,null,null,null,null,null,null,null,null,null,null,null,null,null,null,null,null,null,null,null,null,null,null,null,"教育職員等による児童生徒性暴力等の防止等に関する法律第７条",null,"教育職員等による児童生徒性暴力等の防止等に関する法律（R5.4.1施行）で義務付け"]
[null,"(26)","職員配置基準の緩和の特例の利用状況","朝夕等の時間帯や、長時間開所に伴って必要となる職員配置における要件緩和の特例の利用の有無　　　",null,null,null,null,null,null,null,null,null,null,null,null,null,null,null,null,null,null,null,null,null,null,null,null,null,"　",null,"令和４年１月20日付けこ第1820号県こども政策課長通知"]
[null,null,null,"　 　利用している場合は、以下に記載してください。"]
[null,null,null,"  　・県への報告年月日",null,null,null,null,"平成",null,null,"年",null,"月",null,"日","　　※報告が複数回の場合は直近の報告"]
[null,null,null,"    ・利用人数",null,null," ",null,null,"人"]
[null,null,null,"    ･資格",null,null,null,null,"保育所等で常勤で1年以上保育業務に従事"]
[null,null,null,null,null,null,null,null,"家庭的保育者"]
[null,null,null,null,null,null,null,null,"子育て支援員研修（地域保育コース（地域型保育））修了者"]
[null,null,null,"※利用人数が複数の場合、資格は該当するすべてをチェックしてください。"]
[null,"(27)","育児休業、産休等代替職員の確保の状況","育児休業、産休等代替職員は確保されている。",null,null,null,null,null,null,null,null,null,null,null,null,null,null,null,null,null,null,null,null,null,null,null,null,null,"　"]
[null,"(28)","学校安全計画の策定等","学校安全計画を策定し、当該計画に従い必要な措置を講じている。",null,null,null,null,null,null,null,null,null,null,null,null,null,null,null,null,null,null,null,null,null,null,null,null,null,null,"学校安全計画","法施行規則第27条（学校保健安全法第27条）",null,"保育所についてR4.11.30付けで運営基準の改正が行われたことに伴い幼保も追加した。\n同基準第６条の３（新設）"]
[null,null,null,"職員に対し、学校安全計画について周知するとともに研修及び訓練を定期的に実施している。"]
[null,null,null,"保護者に対し、学校安全計画に基づく取組の内容等について周知している。"]
[null,null,null,"定期的に学校安全計画の見直しを行い、必要に応じて計画の変更を行っている。"]
["運営","(29)","建物、設備の維持管理状況","施設設備等生活環境は、適切に確保され、危険な損傷箇所はないか。",null,null,null,null,null,null,null,null,null,null,null,null,null,null,null,null,null,null,null,null,null,null,null,null,null,null,"安全点検表等"]
[null,null,null,null,"階段、ベランダ、屋上、窓等は転落防止措置がなされている。"]
[null,null,null,null,"床破損、段差等による歩行障害はない。"]
[null,null,null,null,"非常口の開閉、非常口への通行に障害はない。"]
[null,null,null,null,"非常階段、非常用滑り台の利用に障害はない。"]
[null,null,null,null,"ガラスの破損による事故防止に配慮がなされている。"]
[null,null,null,null,"ベッドからの転落防止策がなされている。"]
[null,null,null,null,"家具、備品などの転落防止策がなされている。"]
[null,null,null,null,"棚などから物が落ちるおそれはない。"]
[null,null,null,null,"暖房器具の安全対策がなされている。"]
[null,null,null,null,"調理器具・設備の安全対策がなされている。"]
[null,null,null,null,"手洗い場は清潔か、角等は危険な状態になっていない。"]
[null,null,null,null,"カーテン･じゅうたん等は防火性能を有している。"]
[null,null,null,null,"便所の設備に不備はないか。清掃がよくなされている。"]
[null,null,null,null,"屋外遊具に破損箇所や危険箇所はない。"]
[null,null,null,null,"砂場やプール及びその周辺に危険はない。"]
[null,null,null,null,"併設建物上部からの落下物への対策がなされている。"]
[null,null,null,null,"門扉、塀などに破損箇所はない。"]
[null,null,null,null,"タオル掛け等のフックは危険な状態にない。"]
[null,null,null,null,"保育室内及び遊具、寝具等は清潔に保たれている。"]
[null,null,null,null,"危険物が放置されていない。"]
[null,null,null,null,"その他、建物、設備の維持管理は適切に行われている。"]
[null,"(30)","労働時間の短縮等労働条件の改善への取組状況","労働時間の短縮等労働条件の改善に努めている。",null,null,null,null,null,null,null,null,null,null,null,null,null,null,null,null,null,null,null,null,null,null,null,null,null,null,"勤務表、時間外勤務記録、タイムカード等","過重労働による健康障害防止のための総合対策について"]
[null,"(31)","労働基準法等関係法規の遵守の状況","労働基準法等関係法規は、遵守されている。(ハラスメント防止のための相談体制等の整備を含む）",null,null,null,null,null,null,null,null,null,null,null,null,null,null,null,null,null,null,null,null,null,null,null,null,null,null,"雇用通知書、就業規則等","労働基準法第15条、第89条　　労働施策総合推進法"]
[null,"(32)","業務体制の確立と業務省力化推進の取組状況","業務体制の確立と業務省力化の推進のための努力がなされている。"]
[null,"(33)","職員の確保及び定着化への取組状況","職員の確保及び定着化について積極的に取り組んでいる。"]
[null,"(34)","各種手当の規定及び支出及び給与決定・昇給決定の状況","通勤・住宅手当等の各種手当が規定され、適正に支払われている。\nまた、給与決定、昇給等に関する手続き(幹部職員を含む）が適正になされている。",null,null,null,null,null,null,null,null,null,null,null,null,null,null,null,null,null,null,null,null,null,null,null,null,null,null,"賃金台帳、昇給台帳等"]
["運営","(35)","労働条件の改善等に配慮、定着促進等への取組","公定価格単価を引き上げていることから、増額となる人件費について、職員給与、賞与について、所要の給料表等の改正を実施している。",null,null,null,null,null,null,null,null,null,null,null,null,null,null,null,null,null,null,null,null,null,null,null,null,null,null,"就業規則、給料表、給料表改正に係る議事録等","平成29年3月2日内閣府告示第524号"]
[null,null,null,"処遇改善等加算（Ⅰ）について適正に適用、運用されているか",null,null,null,null,"賃金改善計画書を作成し、職員に対して当該計画書の内容を周知している。",null,null,null,null,null,null,null,null,null,null,null,null,null,null,null,null,null,null,null,null,null,"賃金改善計画書、\n研修計画、資格取得支援の制度に関する要綱等の規程、副主任保育士等及び職務分野別リーダー等の発令書、職員体制表","平成27年3月31日府政共生第349 号・26文科初第1463号・雇児発0331第10号"]
[null,null,null,null,null,null,null,null,"①職員の質向上のための計画に沿って研修機会の提供、技術的指導を実施し、施設・職員の能力評価を行っている。"]
[null,null,null,null,null,null,null,null,"②幼稚園教諭免許・保育士免許資格等を取得しようとする者がいる場合、資格取得のための支援（研修受講のための勤務シフト調整、休暇の付与、費用の援助等）を行っている。"]
[null,null,null,null,null,null,null,null,"上記①、②について、職員に周知している。"]
[null,null,null,"処遇改善等加算（Ⅱ）について適正に適用、運用されているか",null,null,null,null,"賃金改善を実施する計画を策定している。",null,null,null,null,null,null,null,null,null,null,null,null,null,null,null,null,null,null,null,null,"　"]
[null,null,null,null,null,null,null,null,"副主任保育士等及び職務分野別リーダー等に対して、発令や職務命令が行われている。",null,null,null,null,null,null,null,null,null,null,null,null,null,null,null,null,null,null,null,null,"　"]
[null,null,null,null,null,null,null,null,"賃金改善計画書（処遇改善等加算Ⅱ）を作成し、職員に対して当該計画書の内容を周知している。",null,null,null,null,null,null,null,null,null,null,null,null,null,null,null,null,null,null,null,null,"　"]
[null,"(36)","労使協定の締結及び労働基準監督署への届出状況","労働基準法第24条（賃金の支払い）・第36条（時間外及び休日の労働）の労使の協定が締結され、労働基準監督署へ提出されている。",null,null,null,null,null,null,null,null,null,null,null,null,null,null,null,null,null,null,null,null,null,null,null,null,null,"　","届出書、協定書等","労働基準法第24条、36条、89条等"]
[null,null,null,"就業規則の届出を行っている。",null,null,null,null,null,null,null,null,null,null,null,null,null,null,null,null,null,null,null,null,null,null,null,null,null,"　"]
[null,"(37)","職員の計画的な採用の実施状況","職員の計画的な採用に努めている。",null,null,null,null,null,null,null,null,null,null,null,null,null,null,null,null,null,null,null,null,null,null,null,null,null,"　"]
[null,"(38)","地域への情報提供、関係団体との連携","地域の子育て支援の拠点として、地域の乳児又は幼児及びその保護者に対して、その施設の開放、子育てに関する助言、情報の提供その他の援助等を積極的に行うとともに、地域で子育てに関わるボランティア、関係団体等との連携に努めている。",null,null,null,null,null,null,null,null,null,null,null,null,null,null,null,null,null,null,null,null,null,null,null,null,null,"　",null,"法施行規則第2条、教育・保育要領"]
[null,null,null,"　実施している子育て支援事業"]
[null,null,null,null,null,"子育て支援事業の例",null,null,null,null,null,null,null,null,null,null,{"$f":"TEXT(DATE(YEAR(基本事項!A5)-2,MONTH(基本事項!A5)+1,DAY(基本事項!A5)),\"ge\")","v":"R4"},null,{"$f":"TEXT(DATE(YEAR(基本事項!A5)-1,MONTH(基本事項!A5)+1,DAY(基本事項!A5)),\"ge\")","v":"R5"}]
[null,null,null,null,1,"地域子育て支援拠点事業（市町補助事業）"]
[null,null,null,null,2,"1歳児子育て応援事業"]
[null,null,null,null,3,"2歳児子育て応援事業"]
[null,null,null,null,4,"わくわく幼稚園開設事業"]
[null,null,null,null,5,"乳幼児子育て応援事業"]
[null,null,null,null,6,"わくわく保育所開設事業"]
[null,null,null,null,7,"その他、育児相談等の独自事業"]
[]
[null,"(39)","自己点検・自己評価","運営等の内容について、「認定こども園自己点検・自己評価リスト」及び「認定こども園自己点検・自己評価の手引」を活用するなどして、自己点検を実施している。",null,null,null,null,null,null,null,null,null,null,null,null,null,null,null,null,null,null,null,null,null,null,null,null,null,null,"自己点検・自己評価リスト","法施行規則第23・24条"]
[null,null,null,"自己点検の結果を踏まえ、自己評価を定期的に行い、常に改善を図っている。"]
[null,null,null,"自己評価結果を公表している。"]
["運営","(40)","自然及び生命の大切さを学ぶ","自然及び生命の大切さ等について学ぶ機会を提供するよう努めている。",null,null,null,null,null,null,null,null,null,null,null,null,null,null,null,null,null,null,null,null,null,null,null,null,null,null,null,"条例第3条"]
[null,"(41)","外部評価の受審について","過去5年間又は本年度に第三者評価を受審済み又は受審する。",null,null,null,null,null,null,null,null,null,null,null,null,null,null,null,null,null,null,null,null,null,null,null,null,null,null,"第三者評価受審結果等","法施行規則第25条"]
[null,null,null,"　第三者評価を受審した園について、受審結果の公表状況  "]
[null,null,null,null,"公表していない。"]
[null,null,null,null,"公表している。"]
[null,null,null,null,null,"園又は法人のホームページで公開"]
[null,null,null,null,null,"その他","（",null,null,null,null,null,null,null,null,null,null,null,null,null,null,null,null,null,null,null,null,"）"]
[null,"(42)","禁煙状況","敷地内を禁煙としている。",null,null,null,null,null,null,null,null,null,null,null,null,null,null,null,null,null,null,null,null,null,null,null,null,null,null,null,"受動喫煙の防止等に関する条例第9条"]
[null,"(43)","業務管理体制について",null,null,"業務管理体制に関する届出を行っている。",null,null,null,null,null,null,null,null,null,null,null,null,null,null,null,null,null,null,null,null,null,null,null,"　",null,"子ども･子育て支援法第55条\n「特定教育･保育施設の設置者及び特定地域型保育事業者の業務管理体制の整備について」（平成27年8月10日付内閣府）"]
[null,null,null,null,null,"法令を遵守するための体制の確保に係る責任者を選任している。"]
[null,null,null,null,"法令遵守責任者",null,null,"職名（",null,null,null,null,null,null,null,"）","氏名（",null,null,null,null,null,null,null,null,null,null,"）",null,null,null,null,null,"法令順守責任者を記載するように変更した"]
[null,"（44）","業務継続計画の策定等","感染症や非常災害発生時のための業務継続計画を策定し、当該計画に従い必要な措置を講じている。",null,null,null,null,null,null,null,null,null,null,null,null,null,null,null,null,null,null,null,null,null,null,null,null,null,null,"業務継続計画","運営基準第13条第1項（最低基準第9条の4）",null,"R5.2.9付け運営基準の一部改正。最低基準第9条の４準用"]
[null,null,null,"職員に対し、業務継続計画について周知するとともに必要な研修及び訓練を定期的に実施している。"]
[null,null,null,"定期的に業務継続計画の見直しを行い、必要に応じて業務継続計画の変更を行っている。"]
[null,"(45)","自動車を運行する場合の所在の確認","園児等の通園や園外活動等のためにバス（自動車）を運行している。",null,null,null,null,null,null,null,null,null,null,null,null,null,null,null,null,null,null,null,null,null,null,null,null,null,null,"運行マニュアル、運転日誌","法施行規則第27条（学校保健安全法施行細則第29条の2）、「保育所、幼稚園、認定こども園及び特別支援学校幼稚部における安全管理の徹底について」（令和３年８月25日厚労省、文科省、内閣府）、「保育所等における安全管理の徹底について」（令和３年８月16日県こども政策課）、「保育施設における通園バスに係る安全管理の留意事項について」（令和４年３月22日県こども政策課）、こどものバス送迎・安全徹底マニュアル（令和4年10月12日内閣府、文科省、厚労省）"]
[null,null,null,"園児の通園にバス（自動車）を運行している場合",null,null,null,"園児等の乗車及び降車の際に、点呼等所在を確実に把握することができる方法により園児の所在を確認している。",null,null,null,null,null,null,null,null,null,null,null,null,null,null,null,null,null,null,null,null,null,null,null,null,null,"R4.12.28付け認定こども園法施行規則の一部改正（R4.12.28付け）\n同基準第６条の４（新設）"]
[null,null,null,null,null,null,null,"通園用のバス（自動車）にブザーその他の車内の園児等の見落としを防止装置を装備し、降車時の所在確認を行っている。\n※ブザー等の設置については経過措置あり。"]
[null,null,null,null,null,null,null,null,null,"製造メーカー名",null,null,null,null,null,null,"装置名",null,null,null,null,null,"装置の方式"]
[null,null,null,null,null,null,null,null,1]
[null,null,null,null,null,null,null,null,2]
[null,null,null,null,null,null,null,null,3]
[]
[null,null,null,"園外活動等にバス（自動車）を運行している場合",null,null,null,"園児等の乗車及び降車の際に、点呼等所在を確実に把握することができる方法により園児の所在を確認している。"]
["※","関係法令、通知欄等で略称で表記しているもの"]
[null,"法＝就学前の子どもに関する教育、保育等の総合的な提供の推進に関する法律"]
[null,"教育・保育要領＝幼保連携型認定こども園教育・保育要領"]
[null,"運営基準＝幼保連携型認定こども園の学級の編成、職員、設備及び運営に関する基準"]
[null,"最低基準＝児童福祉施設の設備及び運営に関する基準"]
[null,"条例＝認定こども園の認可等に関する条例"]
[null,"確認基準＝特定教育・保育施設及び特定地域型保育事業の運営に関する基準"]
[null,"解説＝幼保連携型認定こども園教育・保育要領解説（平成26年6月内閣府・文部科学省・厚生労働省）"]
[null,"平27年2月16日3府省通知＝特定教育・保育施設等における事故の報告等について（内閣府政策統括官（共生社会政策担当）付参事官・文部科学省初等中等教育局幼児課長、厚生労働省雇用均等・児童家庭局保育課長連名通知）\n　　　　　　　　　　　　　　　　　　　"]
[null,"平27年1月27日3府省通知＝幼保連携型認定こども園園児指導要録について（内閣府政策統括官（共生社会政策担当）付参事官・文部科学省初等中等教育局幼児課長、厚生労働省雇用均等・児童家庭局保育課長連名通知）\n　　　　　　　　　　　　　　　　　　"]
[null,"平27年3月31日3府省通知＝施設型給付費等に係る処遇改善等加算について（内閣府子育て本部統括官・文部科学省初等中等教育局長、厚生労働省雇用均等・児童家庭局長連名通知）"]
[null,"平29年内閣府告示第524号＝特定教育・保育、特別利用保育、特別利用教育、特定地域型保育、特別利用地域型保育、特定利用地域型保育及び特例保育に要する費用の額の算定に関する基準等の一部を改正する告示"]

{"sheet":"委託費(保)","index":14,"n_rows":106,"n_cols":33,"rows_kept":106,"cut":false,"hidden":false,"merged":[[103,2,104,2],[103,29,104,29],[103,30,104,30],[103,1,104,1],[104,4,104,6],[104,7,104,13],[104,15,104,20],[104,21,104,27],[93,31,97,31],[102,31,105,31],[105,3,105,26],[100,4,100,6],[100,7,100,10],[100,13,100,15],[101,4,101,27],[103,3,103,28],[102,3,102,28],[93,30,94,30],[95,7,95,10],[95,13,95,15],[36,0,38,0],[75,2,79,2],[75,0,76,0],[43,5,43,11],[43,12,43,15],[38,5,38,8],[39,5,39,8],[38,10,38,11],[39,10,39,11],[40,5,40,8],[40,10,40,11],[41,5,41,8],[41,10,41,11],[42,5,42,8],[42,10,42,11],[40,12,40,15],[41,12,41,15],[42,12,42,15],[67,7,67,14],[47,0,49,0],[47,2,54,2],[25,5,25,26],[26,5,26,27],[37,5,37,15],[37,16,37,22],[38,12,38,15],[36,5,36,13],[80,3,80,28],[88,3,88,28],[89,3,89,28],[67,16,67,19],[68,5,68,14],[68,16,68,19],[44,4,46,28],[58,5,62,6],[38,16,43,18],[38,19,43,22],[56,7,56,14],[56,16,56,19],[57,16,57,19],[102,0,103,0],[6,2,35,2],[36,2,41,2],[27,4,34,28],[58,16,58,19],[59,7,59,14],[59,16,59,19],[60,7,60,14],[65,16,65,19],[66,7,66,14],[66,16,66,19],[60,16,60,19],[61,7,61,14],[61,16,61,19],[62,7,62,14],[62,16,62,19],[63,5,67,6],[63,16,63,19],[64,16,64,19],[65,7,65,14],[39,12,39,15],[22,12,22,15],[22,17,22,18],[22,19,22,22],[80,0,81,0],[98,4,98,6],[98,13,98,15],[99,4,99,6],[99,13,99,15],[91,3,91,28],[90,3,90,28],[93,3,93,28],[80,2,87,2],[93,2,97,2],[96,4,96,6],[96,7,96,10],[96,13,96,15],[97,4,97,6],[97,7,97,10],[97,13,97,15],[98,7,98,10],[99,7,99,10],[86,3,86,27],[87,5,87,8],[87,11,87,14],[94,4,94,6],[94,7,94,15],[95,4,95,6],[92,3,92,26],[77,5,78,17],[77,19,77,22],[78,19,78,21],[78,24,78,27],[93,29,101,29],[80,31,87,31],[69,5,69,14],[69,16,69,19],[70,5,70,14],[70,16,70,19],[72,5,73,17],[72,19,72,22],[73,19,73,21],[73,24,73,27],[81,3,81,26],[82,5,82,26],[83,5,83,26],[84,5,84,7],[84,8,84,26],[75,5,75,14],[75,16,75,19],[75,20,75,22],[76,30,79,30],[36,31,79,31],[36,30,46,30],[80,29,85,29],[86,29,87,29],[64,7,64,14],[57,7,57,14],[47,30,50,30],[48,5,52,6],[48,16,48,19],[49,7,49,14],[49,16,49,19],[50,7,50,14],[50,16,50,19],[51,7,51,14],[51,16,51,19],[52,7,52,14],[52,16,52,19],[47,3,47,21],[53,5,57,6],[53,16,53,19],[54,7,54,14],[54,16,54,19],[55,7,55,14],[55,16,55,19],[20,12,20,15],[20,17,20,18],[20,19,20,22],[21,12,21,15],[21,17,21,18],[21,19,21,22],[24,5,24,11],[24,12,24,15],[24,16,24,18],[24,19,24,22],[23,5,23,11],[23,12,23,15],[23,16,23,18],[23,19,23,22],[14,19,14,22],[15,12,15,15],[15,16,15,18],[15,19,15,22],[18,7,18,11],[18,12,18,15],[18,17,18,18],[18,19,18,22],[19,7,19,11],[19,12,19,15],[19,17,19,18],[19,19,19,22],[18,5,19,6],[0,0,0,32],[2,0,3,0],[2,1,3,1],[2,2,3,2],[2,3,2,28],[2,29,3,29],[2,30,3,30],[2,31,3,31],[2,32,3,32],[1,30,1,32],[1,27,1,29],[3,3,3,7],[3,8,3,28],[4,0,5,0],[4,3,4,27],[16,5,16,11],[16,12,16,15],[16,16,16,18],[16,19,16,22],[17,5,17,15],[17,16,17,22],[14,12,14,15],[14,16,14,18],[103,32,104,32],[4,31,15,31],[5,3,5,27],[6,3,6,27],[6,30,19,30],[12,12,12,15],[12,16,12,18],[12,19,12,22],[8,4,8,22],[10,5,10,15],[10,16,10,22],[11,5,13,5],[11,6,11,11],[11,12,11,15],[11,16,11,18],[11,19,11,22],[12,6,12,11],[9,5,9,13],[13,6,13,11],[13,12,13,15],[13,16,13,18],[13,19,13,22],[7,3,7,28],[6,29,35,29]]}
[{"$f":"TEXT(基本事項!A5,\"ggge年度\")&\"保育所チェックリスト\"","v":"令和6年度保育所チェックリスト"}]
[{"$f":"\"※以下の項目は特に注意事項がない限り\"&TEXT(DATE(YEAR(基本事項!A5)-1,MONTH(基本事項!A5)+1,DAY(基本事項!A5)),\"ggge年度\")&\"決算資料を基に作成すること。\"","v":"※以下の項目は特に注意事項がない限り令和5年度決算資料を基に作成すること。"},null,null,null,null,null,null,null,null,null,null,null,null,null,null,null,null,null,null,null,null,null,null,null,null,null,null,null,null,null,{"$f":"\"（施設名：\"&基本事項!B11&\"　　）\"","v":"（施設名：　　）"}]
["区分","児童福祉行政指導監査報告番号","点検項目","点検事項",null,null,null,null,null,null,null,null,null,null,null,null,null,null,null,null,null,null,null,null,null,null,null,null,null,"保育所確認欄","点検帳票","関係法令・通知","確認結果・特記事項"]
[null,null,null,"着眼点",null,null,null,null,"チェック項目"]
["保育所委託費","4-(9)","委託費の適正運用及び弾力運用の状況","委託費は適正に運用され、弾力運用も適正に行われている。",null,null,null,null,null,null,null,null,null,null,null,null,null,null,null,null,null,null,null,null,null,null,null,null,null,null,"財務諸表等","平成27年9月3日府子本第254号・雇児発0903第6号"]
[null,"4-(10)","運用収入の本部会計への繰入の状況","運用収入の本部会計への繰入額は妥当であるか。また、その積算根拠は明確にされている。",null,null,null,null,null,null,null,null,null,null,null,null,null,null,null,null,null,null,null,null,null,null,null,null,null,"　","財務諸表等"]
[null,"4-(11)","当期末支払資金残高の充当の状況","当期末支払資金残高は、優先的に各種積立金に充てられている。",null,null,null,null,null,null,null,null,null,null,null,null,null,null,null,null,null,null,null,null,null,null,null,null,null,"　","財務諸表、決算関係書類、\n拠点区分資金収支計算書\n※社福以外＝資金収支計算分析表、財務諸表、決算関係書類"]
[null,null,null,{"$f":"\"＜公費負担額及び利用者負担の合計収支（単位：円）＞　※\"&TEXT(DATE(YEAR(基本事項!A5)-1,MONTH(基本事項!A5)+1,DAY(基本事項!A5)),\"ggge年度\")&\"決算を基に分析の上、記入すること。\"","v":"＜公費負担額及び利用者負担の合計収支（単位：円）＞　※令和5年度決算を基に分析の上、記入すること。"}]
[null,null,null,null,"※ 私立保育所型認定こども園は施設型給付（次のシートに記載）"]
[null,null,null,null,null,"●基本分単価"]
[null,null,null,null,null,"収　　　入　　(円)",null,null,null,null,null,null,null,null,null,null,"支　　出　　(円)"]
[null,null,null,null,null,"委託費","(1)人件費(改善基礎分を除く)",null,null,null,null,null,null,null,null,null,"(1)人件費"]
[null,null,null,null,null,null,"(2)事業費",null,null,null,null,null,null,null,null,null,"(2)事業費"]
[null,null,null,null,null,null,"(3)管理費(改善基礎分を除く)",null,null,null,null,null,null,null,null,null,"(3)事務費"]
[null,null,null,null,null,null,null,null,null,null,null,null,null,null,null,null,"(4)積立"]
[null,null,null,null,null,null,null,null,null,null,null,null,null,null,null,null,"(5)その他"]
[null,null,null,null,null,"小計",null,null,null,null,null,null,{"$f":"SUM(M12:P16)","v":0},null,null,null,"小計",null,null,{"$f":"SUM(T12:W16)","v":0}]
[null,null,null,null,null,"収　　　入　　(円)",null,null,null,null,null,null,null,null,null,null,"支　　出　　(円)"]
[null,null,null,null,null,"改善基礎分",null,"人件費",null,null,null,null,null,null,null,null,"(1)"]
[null,null,null,null,null,null,null,"管理費",null,null,null,null,null,null,null,null,"(2)"]
[null,null,null,null,null,null,null,null,null,null,null,null,null,null,null,null,"(3)"]
[null,null,null,null,null,null,null,null,null,null,null,null,null,null,null,null,"(4)"]
[null,null,null,null,null,null,null,null,null,null,null,null,null,null,null,null,"(5)"]
[null,null,null,null,null,"小計",null,null,null,null,null,null,{"$f":"SUM(M19:P23)","v":0},null,null,null,"小計",null,null,{"$f":"SUM(T19:W23)","v":0}]
[null,null,null,null,null,"計 (A)",null,null,null,null,null,null,{"$f":"SUM(M24,M17)","v":0},null,null,null,"計",null,null,{"$f":"SUM(T24,T17)","v":0}]
[null,null,null,null,null,"※　収支（「小計」「計（Ａ）欄」）は一致する"]
[null,null,null,null,null,"改善基礎分加算額の支出欄は、充当した支出科目を適時記入してください。"]
[null,null,null,null,"上記の表は、委託費と改善基礎分のみを抽出し、各保育所における委託費の使途状況を分析し、把握していただくために作成するものです。\n保育所の収入には、この他、各種加算、県市町補助金等があることから、必ず決算の委託費収入額と一致する必要はありません。（それに対応する支出も同様です。）\n○委託費収入の分析方法について　\n・この「委託費」は各種加算を除く、基本分単価を指す。\n　(2)事業費＝R４保育所運営ハンドブック（以下「ハンドブック」）P1２２１の一般生活費、(3)管理費＝ハンドブックP1２２１の別紙（P１２２３）を参照し、入所児童数で積算すること。\n　(1)人件費は、基本分単価-（2)事業費-(3)管理費で計算する。\n・改善基礎分の人件費、管理費は、ハンドブックP1２２２～１２２３の処遇改善等加算Ⅰ（基礎分）の内訳を参考に案分して積算する。\n・支出は、左記の収入に対応すると想定される支出額を計上すること。"]
[]
[]
[]
[]
[]
[]
[]
[]
["保育所委託費",null,"当期末支払資金残高の充当の状況\n（つづき）",null,null,"●基本分単価以外の委託費",null,null,null,null,null,null,null,null,null,null,null,null,null,null,null,null,null,null,null,null,null,null,null,null,"財務諸表、決算関係書類、\n拠点区分資金収支計算書","平成27年9月3日府子本第254号・雇児発0903第6号 "]
[null,null,null,null,null,"収　　　入　　(円)",null,null,null,null,null,null,null,null,null,null,"支　　出　　(円)"]
[null,null,null,null,null,null,null,null,null,null,"加算",null,null,null,null,null,"計"]
[null,null,null,null,null,null,null,null,null,null,"加算"]
[null,null,null,null,null,null,null,null,null,null,"加算"]
[null,null,null,null,null,null,null,null,null,null,"加算"]
[null,null,null,null,null,null,null,null,null,null,"加算"]
[null,null,null,null,null,"計 (B)",null,null,null,null,null,null,{"$f":"SUM(M39:P43,M37)","v":0}]
[null,null,null,null,"　　　　※　収支（「計（B）」「計」）は一致する\n・算定された加算について記載し、欄が不足する場合は適宜行を挿入すること。\n・支出については、相当額を計欄に記載すること（内訳不要）。"]
[]
[]
[null,null,null,{"$f":"\"＜積立資産 等＞※\"&TEXT(DATE(YEAR(基本事項!A5)-1,MONTH(基本事項!A5)+1,DAY(基本事項!A5)),\"ggge年度\")&\"決算を基に記入すること。\"","v":"＜積立資産 等＞※令和5年度決算を基に記入すること。"},null,null,null,null,null,null,null,null,null,null,null,null,null,null,null,null,null,null,null,null,null,null,null,null,null,null,"積立資産明細書、期末残高証明書等"]
[null,null,null,null,null,"前期末積立資産残高",null,null,null,null,null,null,null,null,null,"a",{"$f":"SUM(Q50:T53)","v":0}]
[null,null,null,null,null,null,null,"人件費積立資産",null,null,null,null,null,null,null,"b"]
[null,null,null,null,null,null,null,"修繕積立資産",null,null,null,null,null,null,null,"c"]
[null,null,null,null,null,null,null,"備品等購入積立資産",null,null,null,null,null,null,null,"d"]
[null,null,null,null,null,null,null,"保育所施設・設備整備積立預金",null,null,null,null,null,null,null,"e"]
[null,null,null,null,null,"積立資産取崩収入",null,null,null,null,null,null,null,null,null,"f",{"$f":"SUM(Q55:T58)","v":0}]
[null,null,null,null,null,null,null,"人件費積立資産",null,null,null,null,null,null,null,"g"]
[null,null,null,null,null,null,null,"修繕積立資産",null,null,null,null,null,null,null,"h"]
[null,null,null,null,null,null,null,"備品等購入積立資産",null,null,null,null,null,null,null,"i"]
[null,null,null,null,null,null,null,"保育所施設・設備整備積立預金",null,null,null,null,null,null,null,"j"]
[null,null,null,null,null,"積立資産積立支出",null,null,null,null,null,null,null,null,null,"k",{"$f":"SUM(Q60:T63)","v":0}]
[null,null,null,null,null,null,null,"人件費積立資産",null,null,null,null,null,null,null,"m"]
[null,null,null,null,null,null,null,"修繕積立資産",null,null,null,null,null,null,null,"n"]
[null,null,null,null,null,null,null,"備品等購入積立資産",null,null,null,null,null,null,null,"o"]
[null,null,null,null,null,null,null,"保育所施設・設備整備積立預金",null,null,null,null,null,null,null,"p"]
[null,null,null,null,null,"当期末積立資産残高",null,null,null,null,null,null,null,null,null,"q",{"$f":"SUM(Q65:T68)","v":0},null,null,null,"a-f+k"]
[null,null,null,null,null,null,null,"人件費積立資産",null,null,null,null,null,null,null,"r",{"$f":"Q50-Q55+Q60","v":0},null,null,null,"b-g+m"]
[null,null,null,null,null,null,null,"修繕積立資産",null,null,null,null,null,null,null,"s",{"$f":"Q51-Q56+Q61","v":0},null,null,null,"c-h+n"]
[null,null,null,null,null,null,null,"備品等購入積立資産",null,null,null,null,null,null,null,"t",{"$f":"Q52-Q57+Q62","v":0},null,null,null,"d-i+o"]
[null,null,null,null,null,null,null,"保育所施設・設備整備積立預金",null,null,null,null,null,null,null,"u",{"$f":"Q53-Q58+Q63","v":0},null,null,null,"e-j+p"]
[null,null,null,null,null,"当期資金収支差額",null,null,null,null,null,null,null,null,null,"①"]
[null,null,null,null,null,"前期末支払資金残高",null,null,null,null,null,null,null,null,null,"②"]
[null,null,null,null,null,"当期末支払資金残高",null,null,null,null,null,null,null,null,null,"(C)",{"$f":"Q69+Q70","v":0},null,null,null,"①+②"]
[]
[null,null,null,null,null,"※３０％を超える場合は、加算停止等の措置が執られる場合があるので、留意すること。",null,null,null,null,null,null,null,null,null,null,null,null,null,"C/（A＋B）"]
[null,null,null,null,null,null,null,null,null,null,null,null,null,null,null,null,null,null,null,{"$f":"IF(Q71=0,\"\",Q71/(M25+M44)*100)","v":""},null,null,"%",null,"≦　３０％"]
[]
[null,null,null,null,null,"当該施設に係る拠点区分の事業活動収入計(決算額)",null,null,null,null,null,null,null,null,null,"(D)"]
[]
[null,null,null,null,null,"※５%を超える場合は、収支計算分析表（次シート）の提出が必要。\n　未提出の場合は速やかに所管健康福祉事務所に提出すること。",null,null,null,null,null,null,null,null,null,null,null,null,null,"(k+①)/D"]
[null,null,null,null,null,null,null,null,null,null,null,null,null,null,null,null,null,null,null,{"$f":"IF(Q76=\"\",\"\",SUM(Q59,Q69)/Q76*100)","v":""},null,null,"%",null,"≦　５％"]
[]
["保育所委託費","4-(12)","当期末支払資金残高及び引当金の管理運用及び取り崩し等に係る手続きの状況","当期末支払資金残高及び積立金は、「安全確実で換金性の高い方法」で管理運用されている。",null,null,null,null,null,null,null,null,null,null,null,null,null,null,null,null,null,null,null,null,null,null,null,null,null,null,null,"平成27年9月3日府子本第254号・雇児発0903第6号\n"]
[null,null,null,"＜管理運用方法＞該当するものにチェックしてください。"]
[null,null,null,null,null,"現金、銀行・郵便局・農業協同組合等への預貯金"]
[null,null,null,null,null,"国債、地方債、信託銀行等への金銭信託等元本保証のあるもの"]
[null,null,null,null,null,"その他(具体的に:",null,null,null,null,null,null,null,null,null,null,null,null,null,null,null,null,null,null,null,null,null,"）"]
[]
[null,null,null,"取り崩し等についての手続きは適正に行われているか。",null,null,null,null,null,null,null,null,null,null,null,null,null,null,null,null,null,null,null,null,null,null,null,null,null,"　"]
[null,null,null,null,null,"理事会承認",null,null,null,null,null,"県知事承認"]
[null,"4-(13)","高額当期末支払資金残高等を有している場合の入所者処遇等の改善への取組状況","高額(上記C/（A＋B）=25%以上)の当期末支払資金残高を有している場合、入所者処遇等に必要な改善を要するところはない。",null,null,null,null,null,null,null,null,null,null,null,null,null,null,null,null,null,null,null,null,null,null,null,null,null,null,null,"平成12年4月25日児発第471号（別紙１）"]
[null,"4-(15)","予算及び補正予算の編成の時期及び積算の状況","予算及び補正予算の編成の時期と積算は適切に行われている。",null,null,null,null,null,null,null,null,null,null,null,null,null,null,null,null,null,null,null,null,null,null,null,null,null,null,"理事会等議事録等"]
[null,"4-(16)","委託費等の請求の状況","保育所委託費等の会計経理が適切に行われている。"]
[null,null,null,"新型コロナウイルス感染症への対応のため臨時休園（一部休園）や保育の提供の縮小等を行った場合、適正に給与等を支給している。",null,null,null,null,null,null,null,null,null,null,null,null,null,null,null,null,null,null,null,null,null,null,null,null,null,null,"賃金台帳等","令和2年6月27日府子本第646号・2初幼教第11号・子保発0617第1号"]
[null,"4-(17)","事業費と事務費の流用の状況","事業費と事務費の流用を行っていない。\n※　弾力運用不可の施設のみ。",null,null,null,null,null,null,null,null,null,null,null,null,null,null,null,null,null,null,null,null,null,null,null,null,null,null,null,"平成27年9月3日府子本第254号・雇児発0903第6号"]
[null,"4-(18)",{"$f":"\"利用者負担金（職員給食費、延長保育利用料等）の設定状況\"&CHAR(10)&\"（\"&TEXT(基本事項!A5,\"ggge年m月d日\")&\"の状況を記載してください）\"","v":"利用者負担金（職員給食費、延長保育利用料等）の設定状況\n（令和6年4月1日の状況を記載してください）"},"利用者負担金(延長保育、一時預り利用料、私的契約利用料、実費徴収、質向上のための上乗せ徴収金、職員給食費)が適正な額となっている。",null,null,null,null,null,null,null,null,null,null,null,null,null,null,null,null,null,null,null,null,null,null,null,null,null,null,"管理規程等","平成12年4月25日児発第471号別紙１ 2（2）第2 1"]
[null,null,null,null,null,null,null,"金額／単位"]
[null,null,null,null,"延長保育",null,null,null,null,null,null,"円","／"]
[null,null,null,null,"一時預かり",null,null,null,null,null,null,"円","／"]
[null,null,null,null,"私的契約",null,null,null,null,null,null,"円","／"]
[null,null,null,null,"実費徴収額",null,null,null,null,null,null,"円","／"]
[null,null,null,null,"質向上のための\n上乗せ徴収額",null,null,null,null,null,null,"円","／"]
[null,null,null,null,"職員給食費",null,null,null,null,null,null,"円","／"]
[null,null,null,null,"※利用者負担金について、上欄で記載できない場合は、既存の一覧表等を添付してください。　"]
[null,"4-(19)","他会計間の貸借処理の状況","他の会計間の貸借が適正に行われている。"]
[null,"4-(20)","現金、預金等の保管状況","通帳と銀行印の管理者は別々に保管している。",null,null,null,null,null,null,null,null,null,null,null,null,null,null,null,null,null,null,null,null,null,null,null,null,null,"　"]
[null,null,null,null,"通帳の管理者（",null,null,null,null,null,null,null,null,null,"）","銀行印の管理者（",null,null,null,null,null,null,null,null,null,null,null,null,"）"]
[null,"4-(21)","内部牽制体制の確立及び機能の状況","内部牽制体制が確立され、適正に機能している。"]

{"sheet":"収支計算分析表(保)","index":15,"n_rows":58,"n_cols":7,"rows_kept":58,"cut":false,"hidden":false,"merged":[[1,4,1,6],[0,1,0,5],[57,0,57,6],[46,0,46,1],[46,3,46,4],[54,0,54,1],[54,3,54,4],[56,0,56,6]]}
[null,{"$f":"TEXT(DATE(YEAR(基本事項!A5)-1,MONTH(基本事項!A5)+1,DAY(基本事項!A5)),\"ggge年度\")&\"収支計算分析表\"","v":"令和5年度収支計算分析表"}]
[null,null,null,null,{"$f":"\"（施設名：\"&基本事項!B11&\"　　）\"","v":"（施設名：　　）"}]
[null,"    収   入",null,null,"    支   出",null,"差引過△不"]
[null,"科   目","金額(円)①",null,"科   目","金額(円)②","足額①－②"]
["１."," 委託費収入(改善基礎分を除く)",{"$f":"SUM(C6:C8)","v":0},"１３."," 人件費支出",{"$f":"SUM(F6:F11)","v":0}]
["(1)","人件費（改善基礎分を除く。）",null,"(1)","職員給料支出"]
["(2)","事業費",null,"(2)","職員賞与支出"]
["(3)","管理費（改善基礎分を除く。）",null,"(3)","非常勤職員給与支出"]
["２."," 私的契約利用料収入",null,"(4)","派遣職員費支出"]
["３.","その他の事業収入",null,"(5)","退職給付支出"]
["４."," 人件費積立資産取崩収入",null,"(6)","法定福利費支出"]
["５."," 修繕積立資産取崩収入",null,"１４."," 事業費支出",{"$f":"SUM(F13:F22)","v":0}]
["６."," 備品等購入積立資産取崩収入",null,"(1)","給食費支出"]
["７."," 保育所施設・設備整備積立資産取崩収入",null,"(2)","保健衛生費支出"]
[null,null,null,"(3)","保育材料費支出"]
[null,null,null,"(4)","水道光熱費支出"]
[null,null,null,"(5)","燃料費支出"]
[null,null,null,"(6)","消耗器具備品費支出"]
[null,null,null,"(7)","保険料支出"]
[null,null,null,"(8)","賃借料支出"]
[null,null,null,"(9)","車両費支出"]
[null,null,null,"(10)","雑支出"]
[null,null,null,"１５."," 事務費支出",{"$f":"SUM(F24:F41)","v":0}]
[null,null,null,"(1)","福利厚生費支出"]
[null,null,null,"(2)","職員被服費支出"]
[null,null,null,"(3)","旅費交通費"]
[null,null,null,"(4)","研修研究費支出"]
[null,null,null,"(5)","事務消耗品費支出"]
[null,null,null,"(6)","印刷製本費支出"]
[null,null,null,"(7)","水道光熱費支出"]
[null,null,null,"(8)","燃料費支出"]
[null,null,null,"(9)","修繕費支出"]
[null,null,null,"(10)","通信運搬費支出"]
[null,null,null,"(11)","会議費支出"]
[null,null,null,"(12)","広報費支出"]
[null,null,null,"(13)","業務委託費支出"]
[null,null,null,"(14)","手数料支出"]
[null,null,null,"(15)","保険料支出"]
[null,null,null,"(16)","賃借料支出"]
[null,null,null,"(17)","保守料支出"]
[null,null,null,"(18)","雑支出"]
[null,null,null,"１６."," 人件費積立資産支出"]
[null,null,null,"１７."," 修繕積立資産支出"]
[null,null,null,"１８."," 備品等購入積立資産支出"]
[null,null,null,"１９."," 保育所施設・設備整備積立資産支出"]
["８."," 当期資金収支差額合計（欠損金）",null,"２０."," 当期資金収支差額合計",null,{"$f":"C46-F46","v":0}]
["１から８までの小計",null,{"$f":"SUM(C6:C46)","v":0},"１３から２０までの小計",null,{"$f":"SUM(F5,F12,F23,F42,F43,F44,F45,F46)","v":0},{"$f":"C47-F47","v":0}]
["９.","委託費収入のうち改善基礎分",null,"２１."," 固定資産取得支出のうち施設の整備等に係る支出"]
["１０."," 国庫補助事業に係る施設整備補助金収入",null,"２２."," 土地・建物賃借料支出"]
["１１."," 国庫補助事業に係る設備整備補助金収入",null,"２３."," 21及び22の経費に係る借入金利息支出"]
["１２."," 21及び22の経費に係る積立資産取崩収入",null,"２４."," 21及び22の経費に係る借入金償還支出"]
[null,null,null,"２５."," 21及び22の経費に係る積立資産支出"]
[null,null,null,"２６.","租税公課"]
[]
["９から１２までの小計",null,{"$f":"SUM(C48:C54)","v":0},"２１から２６までの小計",null,{"$f":"SUM(F48:F54)","v":0},{"$f":"C55-F55","v":0}]
[null,"合    計",{"$f":"C47+C55","v":0},null,"合    計",{"$f":"F47+F55","v":0},{"$f":"C56-F56","v":0}]
["※委託費に係る当該会計年度の各種積立資産への積立支出及び当期資金収支差額合計が、当該施設に係る拠点区分の事業活動収入計（決算額）の\n　５％相当額を上回る場合に提出が必要。"]
["※１３から２６の経費等に係る借入金収入がある場合には、その受入額についても収入の欄に計上すること。"]

{"sheet":"施設型給付費(保こ)","index":16,"n_rows":54,"n_cols":33,"rows_kept":54,"cut":false,"hidden":false,"merged":[[51,1,52,1],[51,2,52,2],[51,29,52,29],[51,30,52,30],[51,31,52,31],[51,32,52,32],[52,4,52,6],[52,7,52,13],[52,15,52,20],[52,21,52,27],[1,28,1,29],[1,30,1,32],[4,31,14,31],[41,29,49,29],[13,12,14,15],[7,3,7,28],[0,0,0,32],[9,5,9,15],[9,16,9,22],[11,12,11,15],[11,16,11,18],[12,12,12,15],[11,6,11,11],[23,19,23,22],[13,19,13,22],[8,4,8,22],[10,12,10,15],[10,19,10,22],[11,19,11,22],[22,19,22,22],[6,30,18,30],[10,6,10,11],[41,2,45,2],[46,7,46,10],[2,31,3,31],[2,30,3,30],[17,17,17,18],[19,17,19,18],[20,17,20,18],[17,7,17,11],[13,16,13,18],[15,16,15,18],[21,17,21,18],[16,16,16,22],[18,19,18,22],[14,16,14,18],[15,5,15,11],[15,12,15,15],[10,5,11,5],[12,5,13,11],[53,3,53,26],[50,3,50,26],[48,4,48,6],[48,7,48,10],[48,13,48,15],[47,4,47,6],[44,7,44,10],[39,3,39,27],[43,7,43,10],[42,7,42,15],[41,3,41,27],[46,4,46,6],[46,13,46,15],[47,13,47,15],[49,4,49,27],[45,4,45,6],[44,4,44,6],[43,4,43,6],[42,4,42,6],[45,13,45,15],[47,7,47,10],[45,7,45,10],[51,3,51,28],[43,13,43,15],[30,0,32,0],[2,2,3,2],[2,3,2,28],[3,8,3,28],[12,16,12,18],[20,19,20,22],[21,12,21,15],[17,12,17,15],[17,5,18,6],[16,5,16,15],[22,12,22,15],[19,19,19,22],[23,5,23,11],[4,3,4,27],[30,2,37,2],[6,2,29,2],[30,3,30,27],[10,16,10,18],[21,19,21,22],[15,19,15,22],[14,19,14,22],[22,16,22,18],[34,8,34,26],[37,5,37,8],[34,5,34,7],[18,17,18,18],[2,29,3,29],[3,3,3,7],[14,5,14,7],[14,8,14,10],[40,3,40,28],[44,13,44,15],[38,3,38,26],[37,11,37,14],[26,4,27,28],[28,4,28,28],[30,29,35,29],[36,29,37,29],[30,31,37,31],[31,3,31,26],[2,0,3,0],[2,1,3,1],[4,0,6,0],[32,5,32,26],[41,30,42,30],[2,32,3,32],[36,3,36,27],[17,19,17,22],[19,12,19,15],[20,12,20,15],[23,12,23,15],[18,12,18,15],[22,5,22,11],[5,3,5,27],[6,3,6,27],[12,19,12,22],[23,16,23,18],[18,7,18,11],[25,5,25,27],[24,5,24,26],[6,29,29,29],[33,5,33,26]]}
[{"$f":"TEXT(基本事項!A5,\"ggge年度\")&\"保育所型認定こども園チェックリスト\"","v":"令和6年度保育所型認定こども園チェックリスト"}]
[{"$f":"\"※以下の項目は特に注意事項がない限り\"&TEXT(DATE(YEAR(基本事項!A5)-1,MONTH(基本事項!A5)+1,DAY(基本事項!A5)),\"ggge年度\")&\"決算資料を基に作成すること。\"","v":"※以下の項目は特に注意事項がない限り令和5年度決算資料を基に作成すること。"},null,null,null,null,null,null,null,null,null,null,null,null,null,null,null,null,null,null,null,null,null,null,null,null,null,null,null,null,null,{"$f":"\"（施設名：\"&基本事項!B11&\"　　）\"","v":"（施設名：　　）"}]
["区分","児童福祉行政指導監査報告番号","点検項目","点検事項",null,null,null,null,null,null,null,null,null,null,null,null,null,null,null,null,null,null,null,null,null,null,null,null,null,"保育所確認欄","点検帳票","関係法令・通知","確認結果・特記事項"]
[null,null,null,"着眼点",null,null,null,null,"チェック項目"]
["認定こども園施設型給付費",null,"施設型給付費の適正運用","施設型給付費は適正に運用されている。",null,null,null,null,null,null,null,null,null,null,null,null,null,null,null,null,null,null,null,null,null,null,null,null,null,null,"財務諸表等"]
[null,null,"運用収入の本部会計への繰入の状況","運用収入の本部会計への繰入額は妥当であるか。また、その積算根拠は明確にされている。",null,null,null,null,null,null,null,null,null,null,null,null,null,null,null,null,null,null,null,null,null,null,null,null,null,null,"財務諸表等"]
[null,null,"利用者負担の徴収状況等",null,null,null,null,null,null,null,null,null,null,null,null,null,null,null,null,null,null,null,null,null,null,null,null,null,null,null,"財務諸表、決算関係書類、\n拠点区分資金収支計算書\n※社福以外＝資金収支計算分析表、財務諸表、決算関係書類"]
[null,null,null,{"$f":"\"＜公費負担額及び利用者負担の合計収支（単位：円）＞　※\"&TEXT(DATE(YEAR(基本事項!A5)-1,MONTH(基本事項!A5)+1,DAY(基本事項!A5)),\"ggge年度\")&\"決算を基に分析の上、記入すること。\"","v":"＜公費負担額及び利用者負担の合計収支（単位：円）＞　※令和5年度決算を基に分析の上、記入すること。"}]
[]
[null,null,null,null,null,"収　　　入　　(円)",null,null,null,null,null,null,null,null,null,null,"支　　出　　(円)"]
[null,null,null,null,null,"施設型\n給付費","(1)公費負担額",null,null,null,null,null,null,null,null,null,"(1)人件費"]
[null,null,null,null,null,null,"(2)利用者負担",null,null,null,null,null,null,null,null,null,"(2)事業費"]
[null,null,null,null,null,"利用者負担（保育料）の徴収について、滞納がある場合は、徴収対策等について記載（注）",null,null,null,null,null,null,"(徴収対策)",null,null,null,"(3)事務費"]
[null,null,null,null,null,null,null,null,null,null,null,null,null,null,null,null,"(4)積立"]
[null,null,null,null,null,"滞納額　",null,null,null,null,null,"円",null,null,null,null,"(5)その他"]
[null,null,null,null,null,"小計",null,null,null,null,null,null,{"$f":"SUM(M11:P12)","v":0},null,null,null,"小計"]
[null,null,null,null,null,"収　　　入　　(円)",null,null,null,null,null,null,null,null,null,null,"支　　出　　(円)"]
[null,null,null,null,null,"改善基礎分",null,"人件費",null,null,null,null,null,null,null,null,"(1)"]
[null,null,null,null,null,null,null,"管理費",null,null,null,null,null,null,null,null,"(2)"]
[null,null,null,null,null,null,null,null,null,null,null,null,null,null,null,null,"(3)"]
[null,null,null,null,null,null,null,null,null,null,null,null,null,null,null,null,"(4)"]
[null,null,null,null,null,null,null,null,null,null,null,null,null,null,null,null,"(5)"]
[null,null,null,null,null,"小計",null,null,null,null,null,null,{"$f":"SUM(M18:P22)","v":0},null,null,null,"小計",null,null,{"$f":"SUM(T18:W22)","v":0}]
[null,null,null,null,null,"計 (A)",null,null,null,null,null,null,{"$f":"SUM(M23,M16)","v":0},null,null,null,"計",null,null,{"$f":"SUM(T23,T16)","v":0}]
[null,null,null,null,null,"※　収支（「小計」「計（Ａ）欄」）は一致する"]
[null,null,null,null,null,"保育所の収入には、この他、各種加算、県市町補助金等があることから、必ず決算の施設型給付と一致する必要はありません。（それに対応する支出も同様です。）"]
[null,null,null,null,"新制度における施設型給付は個人給付（法定代理受領）であるため、使途制限はないが、学校法人や社会福祉法人等のそれぞれの法人の種別に応じて課せられる要件等については、施設型給付費等の資金の運用に当たっても同様に課せられるものとなる。\nなお、施設型給付における処遇改善等加算は質の高い教育・保育を安定的に供給し、長く働くことができる職場の構築を図るという加算の趣旨を踏まえ、確実に職員の賃金改善に充てるものとする。"]
[]
[null,null,null,null,"（注）認定こども園は、市町が定める利用者負担額を保護者から徴収するとともに、施設型給付費として、公定価格から利用者負担額を控除した額が支給される。（法定代理受領）この場合の利用者負担額は、実際に徴収できた額ではなく、徴収すべき額となるため、徴収できなかったことに伴う減収分を公費で補填する仕組みではない。\n　したがって、利用者負担の未納が生じた場合は、施設と保護者間の契約に基づき、まずは施設において適切に保護者に対して支払請求等をすることが必要である。",null,null,null,null,null,null,null,null,null,null,null,null,null,null,null,null,null,null,null,null,null,null,null,null,null,null,"事業者向けFAQ（第７版）\nQ11　P.6"]
[]
["認定こども園施設型給付費",null,"当期末支払資金残高及び引当金の管理運用及び取り崩し等に係る手続きの状況","当期末支払資金残高及び積立金は、「安全確実で換金性の高い方法」で管理運用されている。",null,null,null,null,null,null,null,null,null,null,null,null,null,null,null,null,null,null,null,null,null,null,null,null,null,null,null,"平成27年9月3日府子本第254号・雇児発0903第6号 "]
[null,null,null,"＜管理運用方法＞該当するものにチェックしてください。"]
[null,null,null,null,null,"現金、銀行・郵便局・農業協同組合等への預貯金"]
[null,null,null,null,null,"国債、地方債、信託銀行等への金銭信託等元本保証のあるもの"]
[null,null,null,null,null,"その他(具体的に:",null,null,null,null,null,null,null,null,null,null,null,null,null,null,null,null,null,null,null,null,null,"）"]
[]
[null,null,null,"取り崩し等についての手続きは適正に行われているか。"]
[null,null,null,null,null,"理事会承認"]
[null,null,"予算及び補正予算の編成の時期及び積算の状況","予算及び補正予算の編成の時期と積算は適切に行われている。",null,null,null,null,null,null,null,null,null,null,null,null,null,null,null,null,null,null,null,null,null,null,null,null,null,null,"理事会等議事録等"]
[null,null,"施設型給付費等の請求の状況","施設型給付費等の会計経理が適切に行われている。"]
[null,null,null,"新型コロナウイルス感染症への対応のため臨時休園（一部休園）や保育の提供の縮小等を行った場合、適正に給与等を支給している。",null,null,null,null,null,null,null,null,null,null,null,null,null,null,null,null,null,null,null,null,null,null,null,null,null,null,"賃金台帳等","令和2年6月27日府子本第646号・2初幼教第11号・子保発0617第1号"]
[null,"4-(18)",{"$f":"\"利用者負担金（職員給食費、延長保育利用料等）の設定状況\"&CHAR(10)&\"（\"&TEXT(DATE(YEAR(基本事項!A5),MONTH(基本事項!A5),DAY(基本事項!A5)),\"ggge年m月d日の状況を記載してください）\")","v":"利用者負担金（職員給食費、延長保育利用料等）の設定状況\n（令和6年4月1日の状況を記載してください)"},"利用者負担金(延長保育、一時預り利用料、私的契約利用料、実費徴収、質向上のための上乗せ徴収金、職員給食費)が適正な額となっている。",null,null,null,null,null,null,null,null,null,null,null,null,null,null,null,null,null,null,null,null,null,null,null,null,null,null,"管理規程等"]
[null,null,null,null,null,null,null,"金額／単位"]
[null,null,null,null,"延長保育",null,null,null,null,null,null,"円","／"]
[null,null,null,null,"一時預かり",null,null,null,null,null,null,"円","／"]
[null,null,null,null,"私的契約",null,null,null,null,null,null,"円","／"]
[null,null,null,null,"実費徴収額",null,null,null,null,null,null,"円","／"]
[null,null,null,null,"質向上のための\n上乗せ徴収額",null,null,null,null,null,null,"円","／"]
[null,null,null,null,"職員給食費",null,null,null,null,null,null,"円","／"]
[null,null,null,null,"※利用者負担金について、上欄で記載できない場合は、既存の一覧表等を添付してください。　"]
[null,"4-(19)","他会計間の貸借処理の状況","他の会計間の貸借が適正に行われている。"]
[null,"4-(20)","現金、預金等の保管状況","通帳と銀行印の管理者は別々に保管している。",null,null,null,null,null,null,null,null,null,null,null,null,null,null,null,null,null,null,null,null,null,null,null,null,null,"　"]
[null,null,null,null,"通帳の管理者（",null,null,null,null,null,null,null,null,null,"）","銀行印の管理者（",null,null,null,null,null,null,null,null,null,null,null,null,"）"]
[null,"4-(21)","内部牽制体制の確立及び機能の状況","内部牽制体制が確立され、適正に機能している。"]

{"sheet":"事業費(幼保)","index":17,"n_rows":18,"n_cols":33,"rows_kept":18,"cut":false,"hidden":false,"merged":[[2,32,3,32],[3,3,3,7],[3,8,3,28],[0,0,0,32],[1,27,1,29],[1,30,1,32],[2,0,3,0],[2,1,3,1],[2,2,3,2],[2,3,2,28],[2,29,3,29],[2,30,3,30],[2,31,3,31],[7,2,14,2],[7,3,7,28],[8,10,8,18],[9,10,9,13],[6,3,6,28],[9,16,9,18],[10,10,10,13],[10,16,10,18],[11,16,11,18],[12,16,12,18],[13,10,13,13],[13,16,13,18],[12,4,12,9],[13,4,13,9],[11,4,11,9],[10,4,10,9],[7,32,14,32],[15,3,15,28],[16,4,16,6],[5,3,5,28],[4,3,4,28],[15,30,16,30],[15,31,16,31],[9,4,9,9],[8,4,8,9],[14,4,14,28],[7,31,14,31],[7,30,14,30],[7,29,14,29],[11,10,11,13],[12,10,12,13],[15,2,16,2],[16,7,16,13],[15,29,16,29],[17,3,17,28],[16,21,16,27],[16,15,16,20]]}
[{"$f":"TEXT(基本事項!A5,\"ggge年度\")&\"幼保連携型認定こども園チェックリスト\"","v":"令和6年度幼保連携型認定こども園チェックリスト"}]
[{"$f":"\"※以下の項目は特に注意事項がない限り\"&TEXT(DATE(YEAR(基本事項!A5)-1,MONTH(基本事項!A5)+1,DAY(基本事項!A5)),\"ggge\")&\"年度決算資料を元に作成すること。\"","v":"※以下の項目は特に注意事項がない限り令和5年度決算資料を元に作成すること。"},null,null,null,null,null,null,null,null,null,null,null,null,null,null,null,null,null,null,null,null,null,null,null,null,null,null,null,null,null,{"$f":"\"（施設名：\"&基本事項!B11&\"　　）\"","v":"（施設名：　　）"}]
["区分","番号","点検項目","点検事項",null,null,null,null,null,null,null,null,null,null,null,null,null,null,null,null,null,null,null,null,null,null,null,null,null,"施設\n確認欄","点検帳票","関係法令・通知","確認結果・特記事項"]
[null,null,null,"着眼点",null,null,null,null,"チェック項目"]
["事業費等","(1)","予算及び補正予算の編成の時期及び積算の状況","予算及び補正予算の編成の時期と積算は適切に行われている。",null,null,null,null,null,null,null,null,null,null,null,null,null,null,null,null,null,null,null,null,null,null,null,null,null,null,"理事会等議事録等"]
[null,"(2)","施設型給付費等の請求の状況","施設型給付費等の会計経理が適切に行われている。"]
[null,null,null,"新型コロナウイルス感染症への対応のため臨時休園（一部休園）や保育の提供の縮小等を行った場合、適正に給与等を支給している。",null,null,null,null,null,null,null,null,null,null,null,null,null,null,null,null,null,null,null,null,null,null,null,null,null,null,"賃金台帳等","令和2年6月27日府子本第646号・2初幼教第11号・子保発0617第1号"]
[null,"(3)",{"$f":"\"利用者負担金（職員給食費、延長保育利用料等）の設定状況\"&CHAR(10)&TEXT(基本事項!A5,\"（ggge年m月d日の状況を記載してください）\")","v":"利用者負担金（職員給食費、延長保育利用料等）の設定状況\n(令和6年4月1日の状況を記載してください)"},"利用者負担金等(延長保育、一時預かり利用料、実費徴収、質向上のための上乗せ徴収金、職員給食費)が適正な額となっている。",null,null,null,null,null,null,null,null,null,null,null,null,null,null,null,null,null,null,null,null,null,null,null,null,null,null,"管理規程等"]
[null,null,null,null,null,null,null,null,null,null,"金額／単位"]
[null,null,null,null,"延長保育",null,null,null,null,null,null,null,null,null,"円","／"]
[null,null,null,null,"一時預かり",null,null,null,null,null,null,null,null,null,"円","／"]
[null,null,null,null,"実費徴収額",null,null,null,null,null,null,null,null,null,"円","／"]
[null,null,null,null,"質向上のための上乗せ徴収額",null,null,null,null,null,null,null,null,null,"円","／"]
[null,null,null,null,"職員給食費",null,null,null,null,null,null,null,null,null,"円","／"]
[null,null,null,null,"※利用者負担金について、上欄で記載できない場合は、既存の一覧表等を添付してください。　"]
[null,"(4)","現金、預金等の保管状況","通帳と銀行印の管理者は別々に保管している。",null,null,null,null,null,null,null,null,null,null,null,null,null,null,null,null,null,null,null,null,null,null,null,null,null,"　"]
[null,null,null,null,"通帳の管理者（",null,null,null,null,null,null,null,null,null,"）","銀行印の管理者（",null,null,null,null,null,null,null,null,null,null,null,null,"）"]
[null,"(5)","内部牽制体制の確立及び機能の状況","内部牽制体制が確立され、適正に機能している。"]

{"sheet":"給食","index":18,"n_rows":89,"n_cols":30,"rows_kept":89,"cut":false,"hidden":false,"merged":[[66,1,66,7],[66,8,66,9],[66,16,66,24],[64,1,64,7],[64,8,64,9],[64,16,64,24],[65,1,65,7],[65,8,65,9],[65,16,65,24],[60,15,60,16],[60,17,60,18],[60,19,60,20],[60,21,60,22],[60,23,60,24],[62,1,63,5],[62,6,62,7],[63,18,63,24],[58,15,58,16],[58,17,58,18],[58,19,58,20],[58,21,58,22],[58,23,58,24],[59,15,59,16],[59,17,59,18],[59,19,59,20],[59,21,59,22],[59,23,59,24],[58,1,58,3],[58,4,58,5],[58,6,58,7],[58,8,58,9],[58,10,58,11],[58,12,58,13],[57,12,57,13],[57,15,57,16],[57,17,57,18],[57,19,57,20],[57,21,57,22],[57,23,57,24],[56,15,56,16],[56,17,56,18],[56,19,56,20],[56,21,56,22],[56,23,56,24],[56,12,56,13],[57,1,57,3],[57,4,57,5],[57,6,57,7],[57,8,57,9],[57,10,57,11],[56,1,56,3],[56,4,56,5],[56,6,56,7],[56,8,56,9],[56,10,56,11],[55,12,55,13],[55,15,55,16],[55,17,55,18],[55,19,55,20],[55,21,55,22],[55,23,55,24],[54,15,54,16],[54,17,54,18],[54,19,54,20],[54,21,54,22],[54,23,54,24],[54,12,54,13],[55,1,55,3],[55,4,55,5],[55,6,55,7],[55,8,55,9],[55,10,55,11],[54,1,54,3],[54,4,54,5],[54,6,54,7],[54,8,54,9],[54,10,54,11],[53,12,53,13],[53,15,53,16],[53,17,53,18],[53,19,53,20],[53,21,53,22],[53,23,53,24],[52,15,52,16],[52,17,52,18],[52,19,52,20],[52,21,52,22],[52,23,52,24],[52,12,52,13],[53,1,53,3],[53,4,53,5],[53,6,53,7],[53,8,53,9],[53,10,53,11],[52,1,52,3],[52,4,52,5],[52,6,52,7],[52,8,52,9],[52,10,52,11],[51,12,51,13],[51,15,51,16],[51,17,51,18],[51,19,51,20],[51,21,51,22],[51,23,51,24],[50,15,50,16],[50,17,50,18],[50,19,50,20],[50,21,50,22],[50,23,50,24],[50,12,50,13],[51,1,51,3],[51,4,51,5],[51,6,51,7],[51,8,51,9],[51,10,51,11],[50,1,50,3],[50,4,50,5],[50,6,50,7],[50,8,50,9],[50,10,50,11],[46,21,46,22],[46,23,46,24],[49,1,49,3],[49,4,49,5],[49,6,49,7],[49,8,49,9],[49,10,49,11],[48,1,48,3],[48,4,48,5],[48,6,48,7],[48,8,48,9],[48,10,48,11],[49,12,49,13],[49,15,49,16],[49,17,49,18],[49,19,49,20],[49,21,49,22],[49,23,49,24],[48,15,48,16],[48,17,48,18],[48,19,48,20],[48,21,48,22],[48,23,48,24],[48,12,48,13],[47,1,47,3],[47,4,47,5],[47,6,47,7],[47,8,47,9],[47,10,47,11],[41,28,41,29],[45,1,46,5],[45,6,45,9],[45,10,45,13],[45,15,46,16],[45,17,45,20],[45,21,45,24],[46,6,46,7],[46,8,46,9],[46,10,46,11],[47,12,47,13],[47,15,47,16],[47,17,47,18],[47,19,47,20],[47,21,47,22],[47,23,47,24],[46,12,46,13],[46,17,46,18],[46,19,46,20],[38,20,38,22],[40,4,40,6],[40,8,40,12],[40,13,40,21],[40,22,40,24],[41,4,41,5],[41,7,41,8],[41,13,41,21],[41,22,41,24],[38,23,38,24],[39,4,39,7],[39,10,39,12],[39,17,39,19],[39,20,39,22],[39,23,39,24],[35,4,35,5],[35,7,35,8],[35,10,35,11],[35,13,35,16],[35,17,35,24],[34,1,41,2],[34,4,34,5],[34,7,34,8],[34,10,34,11],[34,17,34,19],[34,20,34,22],[36,4,36,6],[36,8,36,9],[36,11,36,12],[36,13,36,21],[36,22,36,24],[37,4,37,5],[37,13,37,21],[37,22,37,24],[38,4,38,6],[38,8,38,9],[38,11,38,12],[38,13,39,16],[38,17,38,19],[31,1,33,1],[31,2,31,3],[31,7,31,9],[31,10,31,12],[31,13,31,21],[31,22,31,24],[32,2,32,3],[32,7,32,9],[32,10,32,12],[32,13,34,16],[34,23,34,24],[30,23,30,24],[32,17,32,19],[32,20,32,22],[32,23,32,24],[33,2,33,6],[33,7,33,12],[33,17,33,19],[33,20,33,22],[33,23,33,24],[24,22,24,24],[25,14,27,16],[28,7,28,12],[28,14,28,16],[28,17,28,18],[28,19,28,21],[28,22,28,24],[29,2,29,4],[29,5,29,6],[29,7,29,9],[29,13,29,19],[29,23,29,24],[22,1,30,1],[22,2,22,4],[22,6,22,10],[23,2,23,4],[23,5,23,6],[15,1,21,1],[24,5,24,6],[24,7,24,9],[24,14,24,21],[30,2,30,8],[30,9,30,12],[30,13,30,19],[19,6,19,7],[19,9,19,10],[19,14,19,21],[19,22,19,24],[20,6,20,7],[20,19,20,20],[20,22,20,24],[21,9,21,10],[21,11,21,12],[21,14,23,17],[15,15,15,19],[15,20,15,23],[16,2,16,4],[16,15,17,15],[16,16,16,18],[16,19,16,21],[16,22,16,24],[17,2,17,4],[17,16,17,17],[17,19,17,20],[15,2,15,4],[15,5,15,8],[15,9,15,12],[15,13,28,13],[15,14,18,14],[20,9,20,10],[20,14,20,17],[23,7,23,9],[24,2,24,4],[17,22,17,23],[18,2,18,4],[18,15,18,21],[18,22,18,23],[19,2,21,4],[13,6,13,12],[13,13,13,14],[13,15,13,21],[13,22,13,24],[14,1,14,5],[14,6,14,21],[14,22,14,24],[11,1,11,5],[11,6,11,12],[11,13,11,14],[11,15,11,21],[11,22,11,24],[12,1,12,5],[12,6,12,12],[12,13,12,14],[12,15,12,21],[12,22,12,24],[7,1,9,5],[7,6,7,7],[7,17,7,20],[9,18,9,24],[10,1,10,5],[10,6,10,9],[10,10,10,16],[10,17,10,24],[4,17,4,24],[5,2,6,5],[5,7,5,8],[5,10,5,11],[5,13,5,14],[5,16,5,17],[5,19,5,20],[6,7,6,10],[6,12,6,13],[6,15,6,24],[1,11,1,24],[2,11,2,24],[3,1,6,1],[3,2,3,7],[3,8,3,9],[3,10,3,15],[3,16,3,24],[4,2,4,7],[4,9,4,11],[4,13,4,16]]}
["給食実施状況",null,null,null,null,null,"水色ｾﾙはﾌﾟﾙﾀﾞｳﾝ(▼)で選択",null,null,null,null,null,null,null,null,"ﾋﾟﾝｸ色ｾﾙは必要事項を記載"]
[]
["（１）食事の提供状況　　"]
[null,"給食運営","給食運営の目標設定",null,null,null,null,null,null,null,"→有の場合の具体的な目標"]
[null,null,"給食会議の開催回数",null,null,null,null,null,"年",null,null,null,"回","会議録の保存"]
[null,null,"構成職種（該当するものに☑）",null,null,null,null,"施設長",null,null,"保育士",null,null,"幼稚園教諭",null,null,"栄養士",null,null,"調理員"]
[null,null,null,null,null,null,null,"受託業者ｽﾀｯﾌ",null,null,null,null,"その他",null,"→"]
[null,"給食業務従事者研修",null,null,null,null,null,null,"→有の場合の前年度延べ参加回数",null,null,null,null,null,null,null,null,null,null,null,null,"回"]
[null,null,null,null,null,null,"主な研修テーマ（該当するものに☑）",null,null,null,null,null,null,null,null,null,"栄養管理",null,null,null,"衛生管理"]
[null,null,null,null,null,null,null,"食育",null,null,"食物ｱﾚﾙｷﾞｰ",null,null,null,null,"その他",null,"→"]
[null,"食事提供業務の形態",null,null,null,null,null,null,null,null,"→委託・一部委託の場合の委託先",null,null,null,null,null,null,null,null,null,null,null,null,null,null,null,null,null,null,"　　"]
[null,"⇒業務委託の場合",null,null,null,null,"　施設への受託業務責任者の配置の有無",null,null,null,null,null,null,null,null,"委託契約内容の適宜見直しの有無"]
[null,null,null,null,null,null,"代行保証の定めの有無",null,null,null,null,null,null,null,null,"標準作業計画書の有無"]
[null,null,null,null,null,null,"栄養士の指導を受けられる体制",null,null,null,null,null,null,null,null,"調理従事者の大量調理の経験の有無"]
[null,null,null,null,null,null,"３歳未満の児童への食事の外部搬入（構造改革特別区域の認定を受けていない場合）"]
[null,"昼食・検食時間",null,null,null,"食事時間",null,null,null,"検食時間",null,null,null,"献立","食数（直近の３月15日の状況）","食事を提供した人数",null,null,null,null,null,null,null,null,"人"]
[null,null,"３歳未満児",null,null,null,"時",null,"分",null,"時",null,"分",null,null,"内訳","３歳未満児",null,null,"３歳以上児",null,null,"職員食"]
[null,null,"３歳以上児",null,null,null,"時",null,"分",null,"時",null,"分",null,null,null,null,null,"人",null,null,"人",null,null,"人"]
[null,null,"土曜日昼食",null,null,null,"時",null,"分",null,"時",null,"分",null,null,"個別対応（アレルギー食品除去食等）",null,null,null,null,null,null,null,null,"人"]
[null,null,"検食実施者\n（該当するものに☑）",null,null,null,"施設長",null,null,"保育士",null,null,null,null,"アレルギー対応時の組織的対応体制構築、嘱託医・かかりつけ医の指示協力"]
[null,null,null,null,null,null,"幼稚園教諭",null,null,"栄養士",null,null,null,null,"献立作成者",null,null,null,"職種",null,null,"氏名"]
[null,null,null,null,null,null,"調理員",null,null,"その他→",null,null,null,null,"献立表への記載\n項目（該当するものに☑）",null,null,null,null,"献立名",null,null,"食品名"]
[null,"衛生管理","保存食の実施",null,null,null,"→有の場合の保存期間",null,null,null,null,null,"日間",null,null,null,null,null,null,"分量",null,null,"調味料分量"]
[null,null,"調理従事者の検便",null,null,null,null,"→実施の場合の回数",null,null,"年",null,"回",null,null,null,null,null,null,"栄養価",null,null,"その他"]
[null,null,"調乳従事者の検便",null,null,null,null,"→実施の場合の回数",null,null,"年",null,"回",null,"保護者への事前の献立表の配付"]
[null,null,"＜検査項目＞該当するものに☑",null,null,null,null,null,null,null,null,null,null,null,"献立の展示",null,null,null,"→有の場合該当するものに☑"]
[null,null,null,"赤痢菌",null,null,"腸ﾁﾌｽ菌",null,null,null,"ﾊﾟﾗﾁﾌｽ菌",null,null,null,null,null,null,null,"実物",null,null,"写真"]
[null,null,null,"0-157",null,null,"ｻﾙﾓﾈﾗ菌",null,null,null,"ノロウイルス",null,null,null,null,null,null,null,"献立表のみ"]
[null,null,null,"その他→右欄に記載",null,null,null,null,null,null,null,null,null,null,"土曜日の給食",null,null,null,null,"→簡易給食の内容"]
[null,null,"防虫・防そ等の駆除作業",null,null,null,null,"→実施の場合の回数",null,null,"年",null,"回","給与栄養目標量",null,null,null,null,null,null,null,"年",null,"月\n作成"]
[null,null,"衛生自主管理点検の実施と記録\n（衛生管理記録）",null,null,null,null,null,null,null,null,null,null,"献立作成基準（食品構成基準）",null,null,null,null,null,null,null,"年",null,"月\n作成"]
[null,"調査","嗜好調査",null,"年",null,"回","→実施方法",null,null,null,null,null,"授乳・離乳期の子個々の時間・調理方法・量の決定"]
[null,null,"喫食量調査",null,null,null,"回","→その他",null,null,null,null,null,"1人1日あたり\n食材料費（直近１ヶ月の平均）",null,null,null,"３歳未満児",null,null,null,null,null,"円／日"]
[null,null,"栄養食事相談の実施",null,null,null,null,null,null,null,null,null,null,null,null,null,null,"３歳以上児",null,null,null,null,null,"円／日"]
[null,"記録帳票\n（整備しているものに☑）",null,null,"従事者名簿",null,null,"勤務表",null,null,"業務分担",null,null,null,null,null,null,"職員",null,null,null,null,null,"円／日"]
[null,null,null,null,"委託契約書",null,null,"給食人員表",null,null,"検収記録",null,null,"食堂の有無"]
[null,null,null,null,"生活管理指導表(該当有りの場合)",null,null,null,"検食簿",null,null,"予定献立表",null,"食事環境配慮（採光、テーブル、椅子、食器、食具等）"]
[null,null,null,null,"実施献立表",null,null,"請求書",null,"発注書",null,"納品書",null,"喫食状況観察（誤嚥、窒息等事故防止）"]
[null,null,null,null,"食材料日計表",null,null,null,"嗜好調査結果",null,null,"残食調査結果",null,"食費の徴収額",null,null,null,"入所者",null,null,null,null,null,"円／月"]
[null,null,null,null,"給食内容検討表（月報）",null,null,null,null,null,"栄養指導記録",null,null,null,null,null,null,"職員",null,null,null,null,null,"円／月"]
[null,null,null,null,"実施給与栄養量表",null,null,null,"調理作業基準表（作業予定表）",null,null,null,null,"食材料購入価格にかかる市場価格調査、入札・見積もり合わせの実施等の工夫"]
[null,null,null,null,"検便記録",null,null,"研修\n記録",null,null,null,null,null,"発育・発達に応じた対応"]
[]
["（２）１人１日あたりの目標栄養量及び給与栄養量（２－１）又は（２－２）のどちらかに記載してください。"]
[null,"（２－１）１人１日あたりの栄養給与状況",null,null,null,null,null,null,null,null,null,null,null,null,null,"（２－２）１人１日あたりの食品使用状況"]
[null,"前年度平均値",null,null,null,null,"３歳未満児",null,null,null,"３歳以上児",null,null,null,null,"前年度\n平均値",null,"３歳未満児",null,null,null,"３歳以上児"]
[null,null,null,null,null,null,"目標量",null,"給与量",null,"目標量",null,"給与量",null,null,null,null,"目標量",null,"使用量",null,"目標量",null,"使用量"]
[null,"エネルギー　　　",null,null,"(kcal)",null,null,null,null,null,null,null,null,null,null,"魚介類"]
[null,"たんぱく質　　",null,null,"(g)",null,null,null,null,null,null,null,null,null,null,"肉類"]
[null,"脂　質",null,null,"(g)",null,null,null,null,null,null,null,null,null,null,"卵類"]
[null,"炭水化物",null,null,"(g)",null,null,null,null,null,null,null,null,null,null,"豆類"]
[null,"食物繊維",null,null,"(g)",null,null,null,null,null,null,null,null,null,null,"乳類"]
[null,"ビタミンＡ",null,null,"(㎍RAE)",null,null,null,null,null,null,null,null,null,null,"藻類"]
[null,"ビタミンＢ1",null,null,"(mg)",null,null,null,null,null,null,null,null,null,null,"野菜類"]
[null,"ビタミンＢ2",null,null,"(mg)",null,null,null,null,null,null,null,null,null,null,"果物類"]
[null,"ビタミンＣ",null,null,"(mg)",null,null,null,null,null,null,null,null,null,null,"菓子類"]
[null,"カルシウム",null,null,"(mg)",null,null,null,null,null,null,null,null,null,null,"いも類"]
[null,"鉄　",null,null,"(mg)",null,null,null,null,null,null,null,null,null,null,"穀類"]
[null,"食塩相当量",null,null,"(ｇ)",null,null,null,null,null,null,null,null,null,null,"砂糖類"]
[null,"※目標栄養量作成：",null,null,null,null,null,null,"年",null,"月",null,null,null,null,"油脂類"]
[null,null,null,null,null,null,null,null,null,null,null,null,null,null,null,"種実類"]
["（３）食育の計画の実施状況（前年度）",null,null,null,null,null,null,null,null,null,null,null,null,null,null,"※食品構成基準作成：",null,null,null,null,null,null,"年",null,"月"]
["　","食育計画の作成",null,null,null,null,null,null,"→有の場合、該当するものに☑"]
[null,null,null,null,null,null,null,"全体計画",null,null,null,"年齢別計画",null,null,null,"その他→"]
[null,"食育計画と連動した食育実践",null,null,null,null,null,null,null,null,"→有の場合の具体例"]
[null,"家庭や地域と連携した食育実践",null,null,null,null,null,null,null,null,"→有の場合の具体例"]
[null,"園児と給食関係者等との関わり",null,null,null,null,null,null,null,null,"→有の場合の具体例"]
[]
["【以下項目は削除・修正不可】"]
["給食運営の目標設定、会議録の保存、給食業務従事者研修、施設への受託業務責任者の配置、委託契約内容の適宜見直し、保存食の実施、衛生自主管理点検、保護者への事前の献立表の配付、献立の展示、食堂、発育発達状態、食育計画、食育、栄養食事相談"]
[null,"有"]
[null,"無"]
["食事提供業務の形態"]
[null,"直営"]
[null,"委託"]
[null,"一部委託"]
["調理従事者の検便、調乳従事者の検便、防虫・防そ等の駆除作業"]
[null,"実施"]
[null,"未実施"]
["土曜日の給食"]
[null,"平日と同様"]
[null,"簡易給食"]
["嗜好調査内容"]
["　","聞き取り"]
[null,"アンケート"]
[null,"その他"]
["喫食量調査"]
[null,"毎食"]
[null,"毎月"]

{"sheet":"防災(保共)","index":19,"n_rows":53,"n_cols":30,"rows_kept":53,"cut":false,"hidden":false,"merged":[[6,2,7,2],[6,3,7,3],[7,7,7,22],[0,0,0,28],[2,25,3,25],[2,26,3,26],[2,0,3,0],[2,1,3,1],[2,2,3,2],[2,3,2,24],[3,4,3,24],[1,24,1,25],[1,26,1,28],[2,28,3,28],[2,27,3,27],[4,26,5,26],[4,28,5,28],[4,25,5,25],[5,5,5,6],[5,7,5,12],[5,14,5,15],[5,16,5,21],[4,27,5,27],[4,3,4,24],[9,5,9,23],[10,5,10,22],[23,14,23,22],[21,26,23,26],[14,27,15,27],[21,25,28,25],[6,4,6,23],[9,25,13,25],[16,25,17,25],[18,25,19,25],[6,27,10,27],[6,26,7,26],[33,2,34,2],[11,7,12,22],[21,3,21,23],[17,8,17,23],[17,6,17,7],[29,3,29,23],[19,8,19,23],[27,5,27,7],[16,5,16,23],[18,5,18,23],[20,5,20,23],[19,6,19,7],[26,4,26,17],[14,5,14,24],[34,16,35,23],[15,5,15,23],[16,3,17,3],[21,2,23,2],[24,5,24,7],[49,2,50,2],[43,16,43,23],[46,5,46,6],[47,5,47,6],[45,5,45,6],[45,16,45,23],[44,5,44,6],[50,6,50,22],[48,7,48,23],[44,13,44,14],[43,13,43,14],[43,5,43,6],[46,16,46,23],[49,27,51,27],[49,26,50,26],[33,26,36,26],[24,14,24,16],[45,13,45,14],[46,13,46,14],[47,16,47,23],[49,4,49,23],[41,16,41,23],[36,13,36,14],[37,13,37,14],[34,11,34,15],[35,11,35,12],[35,13,35,15],[42,5,42,6],[49,25,51,25],[30,27,32,27],[33,27,48,27],[39,13,39,14],[44,16,44,23],[47,13,47,14],[42,16,42,23],[38,13,38,14],[40,16,40,23],[52,3,52,24],[41,13,41,14],[42,13,42,14],[40,13,40,14],[30,3,30,24],[31,3,31,24],[32,3,32,24],[33,25,48,25],[34,5,35,10],[40,5,40,6],[41,5,41,6],[36,5,36,6],[39,5,39,6],[38,5,38,6],[37,5,37,6],[36,16,36,23],[37,16,37,23],[38,16,38,23],[39,16,39,23],[49,3,50,3]]}
[{"$f":"TEXT(基本事項!A5,\"ggge年度\")&\"チェックリスト（保育所、保育所型認定こども園共通）\"","v":"令和6年度チェックリスト（保育所、保育所型認定こども園共通）"}]
[null,null,null,null,null,null,null,null,null,null,null,null,null,null,null,null,null,null,null,null,null,null,null,null,null,null,{"$f":"\"（施設名：\"&基本事項!B11&\"　　）\"","v":"（施設名：　　）"}]
["区分","児童福祉行政指導監査報告番号","点検項目","点検事項",null,null,null,null,null,null,null,null,null,null,null,null,null,null,null,null,null,null,null,null,null,"保育所確認欄","点検帳票","関係法令・通知","確認結果・特記事項"]
[null,null,null,"着眼点","チェック項目"]
["防災","6-（１）","消防計画の策定状況","消防計画を作成し消防署に届け出ている。\n",null,null,null,null,null,null,null,null,null,null,null,null,null,null,null,null,null,null,null,null,null,null,"消防計画、防火管理者選任届等","消防法第8条、同法施行第3条、同法規則第3条・4条",null,"消防計画と避難計画を混同しているケースがあるため消防法の消防計画の項目を作成した。"]
[null,null,null,"防火管理者の職氏名",null,"職名（",null,null,null,null,null,null,null,"）","氏名（",null,null,null,null,null,null,null,null,"）"]
[null,"6-（４）","非常災害計画の地域の実情に応じた策定状況","非常時の避難計画等について","　策定している計画の名称",null,null,null,null,null,null,null,null,null,null,null,null,null,null,null,null,null,null,null,null,null,"消防・防災計画等","昭和48年4月13日社施第59号、55年1月16日社施第5号",null,"6-（4）、6-（5）は、実施状況報告に合わせました。"]
[]
[]
[null,null,"＜非常災害対応＝条例＞",null,null,"想定される災害（火災、水害・土砂災害、地震等）に対して適切な計画になっている。"]
[null,null,null,null,null,"＜想定している災害を記入してください。＞"]
[]
[]
[]
[null,null,null,null,null,"※浸水想定区域や土砂災害警戒区域に所在する施設のみ記載\n①要配慮者利用施設 避難確保計画を作成して市町へ提出し、\n②避難訓練を実施している。　",null,null,null,null,null,null,null,null,null,null,null,null,null,null,null,null,null,null,null,null,null,"水防法、土砂災害防止法\n避難確保計画作成の手引き"]
[null,null,null,null,null,"ハザードマップの確認をしている。"]
[null,"6-（5）","（計画の項目及び実効性）",null,null,"計画は具体的かつ有効なものになっている。"]
[null,null,null,null,null,null,"＜例＞",null,"(火災の場合)防火対象物の火災危険度に応じ、そのいかなる部分にも対応し得る弾力性がある。"]
[null,null,null,null,null,"計画は明瞭であり、全員に徹底できている。"]
[null,null,null,null,null,null,"＜例＞",null,"(津波の場合)具体的な避難場所等が定められている。"]
[null,null,null,null,null,"非常災害時の関係機関への通報及び連絡体制を整備している。"]
[null,"6-（2）","消防法令に基づくスプリンクラー、屋内消火栓等の整備状況及び定期点検の実施状況　","消防法令に基づくスプリンクラー、屋内消火栓、非常通報装置、防災カーテン、非常時に対する避難設備(階段、避難器具)が整備され、また、これらの設備について専門業者により定期的に点検が行われている。",null,null,null,null,null,null,null,null,null,null,null,null,null,null,null,null,null,null,null,null,null,"　","スプリンクラー設備点検票、屋内消火栓設備点検票等","消防法第１７条の３の３"]
[null,null,null,null,{"$f":"\"＜\"&TEXT(DATE(YEAR(基本事項!A5)-1,MONTH(基本事項!A5)+1,DAY(基本事項!A5)),\"ggge年度\")&\"点検実施日＞\"","v":"＜令和5年度点検実施日＞"}]
[null,null,null,null,null,"機器点検（６ヶ月に１回）",null,null,null,null,null,null,null,null,"総合点検（年に１回）"]
[null,null,null,null,null,"実施日",null,null,null,"年",null,"月",null,"日","実施日",null,null,null,"年",null,"月",null,"日"]
[null,null,null,null,null,null,null,null,null,"年",null,"月",null,"日"]
[null,null,null,null,"＜消防署への点検結果報告書＞"]
[null,null,null,null,null,"報告日",null,null,null,"年",null,"月",null,"日"]
[]
[null,"6-（3）","非常時の連絡・避難体制及び地域の協力体制の確保状況","非常時の際の連絡・避難体制及び地域の協力体制は、確保されている。",null,null,null,null,null,null,null,null,null,null,null,null,null,null,null,null,null,null,null,null,null,null,"消防・防災計画等","昭和55年1月16日社施第5号（平成11年3月31日社援施第17号改正）"]
["防災",null,"災害時情報共有システム","災害時情報共有システムの操作動画等を確認し、操作方法を把握している。",null,null,null,null,null,null,null,null,null,null,null,null,null,null,null,null,null,null,null,null,null,null,null,"「災害発生時における社会福祉施設等の被災状況の把握等について」（令和３年４月15日子発0415第４号・社援発0415第５号・障発0415第１号・老発0415第５号）"]
[null,null,null,"災害時情報共有システムからの連絡を受信する事務所メールアドレスを把握している。"]
[null,null,null,"被災状況報告の入力担当者を決めている。"]
[null,"6-（7）","消火訓練及び避難訓練の実施状況",null,{"$f":"\"＜\"&TEXT(DATE(YEAR(基本事項!A5)-1,MONTH(基本事項!A5)+1,DAY(基本事項!A5)),\"ggge年度\")&\"実施状況＞\"","v":"＜令和5年度実施状況＞"},null,null,null,null,null,null,null,null,null,null,null,null,null,null,null,null,null,null,null,null,null,"訓練計画等","運営基準第6条、平成11年3月30日社援第59号、昭和58年12月17日社施第121号"]
[null,null,null,null,null,"実施日時",null,null,null,null,null,"参加人数",null,null,null,null,"内容"]
[null,null,null,null,null,null,null,null,null,null,null,"職員",null,"児童"]
[null,null,null,null,null,"4月",null,null,"日",null,"時",null,"人",null,null,"人"]
[null,null,null,null,null,"5月",null,null,"日",null,"時",null,"人",null,null,"人"]
[null,null,null,null,null,"6月",null,null,"日",null,"時",null,"人",null,null,"人"]
[null,null,null,null,null,"7月",null,null,"日",null,"時",null,"人",null,null,"人"]
[null,null,null,null,null,"8月",null,null,"日",null,"時",null,"人",null,null,"人"]
[null,null,null,null,null,"9月",null,null,"日",null,"時",null,"人",null,null,"人"]
[null,null,null,null,null,"10月",null,null,"日",null,"時",null,"人",null,null,"人"]
[null,null,null,null,null,"11月",null,null,"日",null,"時",null,"人",null,null,"人"]
[null,null,null,null,null,"12月",null,null,"日",null,"時",null,"人",null,null,"人"]
[null,null,null,null,null,"1月",null,null,"日",null,"時",null,"人",null,null,"人"]
[null,null,null,null,null,"2月",null,null,"日",null,"時",null,"人",null,null,"人"]
[null,null,null,null,null,"3月",null,null,"日",null,"時",null,"人",null,null,"人"]
[null,null,null,null,null,null,"※","非常災害についての訓練を少なくとも月１回以上行うこと。\n（不審者対策は含まない。下記「防犯についての配慮状況」に記載）"]
[null,"6-（9）","防犯についての配慮状況","防犯について配慮し、その対策の充実強化に努めているか。","防犯について配慮し、その対策の充実強化に努めている。\n＜充実強化を図った内容＞",null,null,null,null,null,null,null,null,null,null,null,null,null,null,null,null,null,null,null,null,null,"防犯対策マニュアル等","平成13年6月15日雇児総発第402号"]
[]
[]
[null,null,"食料及び飲料水等の備蓄について","災害の発生により、物資の供給に支障が生じた場合に備え、園児及び職員の最低でも３日間の生活に必要な食料及び飲料水、生活必需品並びに燃料等の備蓄がある。",null,null,null,null,null,null,null,null,null,null,null,null,null,null,null,null,null,null,null,null,null,null,null,"「災害発生時における社会福祉施設等の被災状況の把握等について」（令和３年４月15日子発0415第４号・社援発0415第５号・障発0415第１号・老発0415第５号）\n児童福祉施設における業務継続ガイドライン（令和４年３月31日）"]

{"sheet":"防災(幼保)","index":20,"n_rows":58,"n_cols":30,"rows_kept":58,"cut":false,"hidden":false,"merged":[[49,27,51,27],[50,6,50,22],[49,2,50,2],[49,3,50,3],[49,4,49,23],[49,25,51,25],[49,26,51,26],[46,16,46,23],[47,5,47,6],[47,13,47,14],[47,16,47,23],[48,7,48,23],[46,13,46,14],[30,27,32,27],[31,3,31,24],[32,3,32,24],[33,2,34,2],[33,25,48,25],[33,26,36,26],[33,27,48,27],[34,5,35,10],[34,11,34,15],[34,16,35,23],[35,11,35,12],[35,13,35,15],[44,5,44,6],[44,13,44,14],[44,16,44,23],[45,5,45,6],[37,16,37,23],[38,5,38,6],[38,13,38,14],[38,16,38,23],[39,5,39,6],[39,13,39,14],[37,13,37,14],[46,5,46,6],[21,2,23,2],[21,3,21,23],[21,25,28,25],[21,26,23,26],[23,14,23,22],[24,5,24,7],[24,14,24,16],[26,4,26,17],[27,5,27,7],[18,5,18,23],[18,25,19,25],[19,6,19,7],[19,8,19,23],[20,5,20,23],[14,5,14,24],[14,27,15,27],[15,5,15,23],[16,25,17,25],[17,6,17,7],[17,8,17,23],[16,5,16,23],[6,2,7,2],[6,3,7,3],[6,4,6,23],[6,26,12,26],[6,27,12,27],[7,7,7,22],[9,5,9,23],[9,25,12,25],[10,5,10,22],[11,7,12,22],[4,3,4,24],[4,25,5,25],[4,26,5,26],[4,27,5,27],[4,28,5,28],[5,5,5,6],[5,7,5,12],[5,14,5,15],[5,16,5,21],[0,0,0,28],[1,24,1,25],[1,26,1,28],[2,0,3,0],[2,1,3,1],[2,2,3,2],[2,3,2,24],[2,25,3,25],[2,26,3,26],[2,27,3,27],[2,28,3,28],[3,4,3,24],[52,3,52,24],[29,3,29,23],[30,3,30,24],[42,5,42,6],[42,13,42,14],[42,16,42,23],[43,5,43,6],[43,13,43,14],[43,16,43,23],[45,13,45,14],[45,16,45,23],[41,5,41,6],[41,13,41,14],[41,16,41,23],[40,5,40,6],[40,13,40,14],[40,16,40,23],[39,16,39,23],[36,5,36,6],[36,13,36,14],[36,16,36,23],[37,5,37,6]]}
[{"$f":"TEXT(基本事項!A5,\"ggge年度\")&\"幼保連携型認定こども園チェックリスト\"","v":"令和6年度幼保連携型認定こども園チェックリスト"}]
[null,null,null,null,null,null,null,null,null,null,null,null,null,null,null,null,null,null,null,null,null,null,null,null,null,null,{"$f":"\"（施設名：\"&[1]基本事項!B11&\"　　）\"","v":"（施設名：　　）"}]
["区分","番号","点検項目","点検事項",null,null,null,null,null,null,null,null,null,null,null,null,null,null,null,null,null,null,null,null,null,"保育所確認欄","点検帳票","関係法令・通知","確認結果・特記事項"]
[null,null,null,"着眼点","チェック項目"]
["防災","（1）","消防計画の策定状況","消防計画を作成し消防署に届け出ている。\n",null,null,null,null,null,null,null,null,null,null,null,null,null,null,null,null,null,null,null,null,null,null,"消防計画、防火管理者選任届等","消防法第8条、同法施行第3条、同法規則第3条・4条",null,"消防計画と避難計画を混同しているケースがあるため消防法の消防計画の項目を作成した。"]
[null,null,null,"防火管理者の職氏名",null,"職名（",null,null,null,null,null,null,null,"）","氏名（",null,null,null,null,null,null,null,null,"）"]
[null,"（2）","非常災害計画の地域の実情に応じた策定状況","非常時の避難計画等について","　策定している計画の名称",null,null,null,null,null,null,null,null,null,null,null,null,null,null,null,null,null,null,null,null,null,"消防・防災計画、危険等発生時対処要領等","学校保健安全法第26条、第29条\n教育・保育要領\n昭48年4月13日社施第59号\n昭55年1月16日社施第5号\n昭58年12月17日社施第121号"]
[]
[]
[null,null,"＜非常災害対応＝条例＞",null,null,"想定される災害（火災、水害・土砂災害、地震等）に対して適切な計画になっている。"]
[null,null,null,null,null,"＜想定している災害を記入してください。＞"]
[]
[]
[]
[null,null,null,null,null,"※浸水想定区域や土砂災害警戒区域に所在する施設のみ記載\n①要配慮者利用施設 避難確保計画を作成して市町へ提出し、\n②避難訓練を実施している。　",null,null,null,null,null,null,null,null,null,null,null,null,null,null,null,null,null,null,null,null,null,"水防法、土砂災害防止法\n避難確保計画作成の手引き"]
[null,null,null,null,null,"ハザードマップの確認をしている。"]
[null,null,null,null,null,"計画は具体的かつ有効なものになっている。"]
[null,null,null,null,null,null,"＜例＞",null,"(火災の場合)防火対象物の火災危険度に応じ、そのいかなる部分にも対応し得る弾力性がある。"]
[null,null,null,null,null,"計画は明瞭であり、全員に徹底できている。"]
[null,null,null,null,null,null,"＜例＞",null,"(津波の場合)具体的な避難場所等が定められている。"]
[null,null,null,null,null,"非常災害時の関係機関への通報及び連絡体制を整備している。"]
[null,"（3）","消防法令に基づくスプリンクラー、屋内消火栓等の整備状況及び定期点検の実施状況　","消防法令に基づくスプリンクラー、屋内消火栓、非常通報装置、防災カーテン、非常時に対する避難設備(階段、避難器具)が整備され、また、これらの設備について専門業者により定期的に点検が行われている。",null,null,null,null,null,null,null,null,null,null,null,null,null,null,null,null,null,null,null,null,null,null,"スプリンクラー設備点検票、屋内消火栓設備点検票等","消防法第１７条の３の３"]
[null,null,null,null,{"$f":"\"＜\"&TEXT(DATE(YEAR(基本事項!A5)-1,MONTH(基本事項!A5)+1,DAY(基本事項!A5)),\"ggge年度\")&\"点検実施日＞\"","v":"＜令和5年度点検実施日＞"}]
[null,null,null,null,null,"機器点検（６ヶ月に１回）",null,null,null,null,null,null,null,null,"総合点検（年に１回）"]
[null,null,null,null,null,"実施日",null,null,null,"年",null,"月",null,"日","実施日",null,null,null,"年",null,"月",null,"日"]
[null,null,null,null,null,null,null,null,null,"年",null,"月",null,"日"]
[null,null,null,null,"＜消防署への点検結果報告書＞"]
[null,null,null,null,null,"報告日",null,null,null,"年",null,"月",null,"日"]
[]
[null,"(4)","非常時の連絡・避難体制及び地域の協力体制の確保状況","非常時の際の連絡・避難体制及び地域の協力体制は、確保されている。",null,null,null,null,null,null,null,null,null,null,null,null,null,null,null,null,null,null,null,null,null,null,"消防・防災計画等","昭和55年1月16日社施第5号（平成11年3月31日社援施第17号改正）"]
["防災","(5)","災害時情報共有システム","災害時情報共有システムの操作動画等を確認し、操作方法を把握している。",null,null,null,null,null,null,null,null,null,null,null,null,null,null,null,null,null,null,null,null,null,null,null,"「災害発生時における社会福祉施設等の被災状況の把握等について」（令和３年４月15日子発0415第４号・社援発0415第５号・障発0415第１号・老発0415第５号）"]
[null,null,null,"災害時情報共有システムからの連絡を受信する事務所メールアドレスを把握している。"]
[null,null,null,"被災状況報告の入力担当者を決めている。"]
[null,"(6)","消火訓練及び避難訓練の実施状況",null,{"$f":"\"＜\"&TEXT(DATE(YEAR(基本事項!A5)-1,MONTH(基本事項!A5)+1,DAY(基本事項!A5)),\"ggge年度\")&\"実施状況＞\"","v":"＜令和5年度実施状況＞"},null,null,null,null,null,null,null,null,null,null,null,null,null,null,null,null,null,null,null,null,null,"訓練計画等","運営基準第6条、平成11年3月30日社援第59号、昭和58年12月17日社施第121号"]
[null,null,null,null,null,"実施日時",null,null,null,null,null,"参加人数",null,null,null,null,"内容"]
[null,null,null,null,null,null,null,null,null,null,null,"職員",null,"児童"]
[null,null,null,null,null,"4月",null,null,"日",null,"時",null,"人",null,null,"人"]
[null,null,null,null,null,"5月",null,null,"日",null,"時",null,"人",null,null,"人"]
[null,null,null,null,null,"6月",null,null,"日",null,"時",null,"人",null,null,"人"]
[null,null,null,null,null,"7月",null,null,"日",null,"時",null,"人",null,null,"人"]
[null,null,null,null,null,"8月",null,null,"日",null,"時",null,"人",null,null,"人"]
[null,null,null,null,null,"9月",null,null,"日",null,"時",null,"人",null,null,"人"]
[null,null,null,null,null,"10月",null,null,"日",null,"時",null,"人",null,null,"人"]
[null,null,null,null,null,"11月",null,null,"日",null,"時",null,"人",null,null,"人"]
[null,null,null,null,null,"12月",null,null,"日",null,"時",null,"人",null,null,"人"]
[null,null,null,null,null,"1月",null,null,"日",null,"時",null,"人",null,null,"人"]
[null,null,null,null,null,"2月",null,null,"日",null,"時",null,"人",null,null,"人"]
[null,null,null,null,null,"3月",null,null,"日",null,"時",null,"人",null,null,"人"]
[null,null,null,null,null,null,"※","非常災害についての訓練を少なくとも月１回以上行うこと。\n（不審者対策は含まない。下記「防犯についての配慮状況」に記載）"]
[null,"（７）","防犯についての配慮状況","防犯について配慮し、その対策の充実強化に努めているか。","防犯について配慮し、その対策の充実強化に努めている。\n＜充実強化を図った内容＞",null,null,null,null,null,null,null,null,null,null,null,null,null,null,null,null,null,null,null,null,null,"危険等発生時対応要領","学校保健安全法第26条、第29条\n教育・保育要領\n平13年6月15日雇児総発第402号"]
[]
[]
[null,null,"食料及び飲料水等の備蓄について","災害の発生により、物資の供給に支障が生じた場合に備え、園児及び職員の最低でも３日間の生活に必要な食料及び飲料水、生活必需品並びに燃料等の備蓄がある。",null,null,null,null,null,null,null,null,null,null,null,null,null,null,null,null,null,null,null,null,null,null,null,"「災害発生時における社会福祉施設等の被災状況の把握等について」（令和３年４月15日子発0415第４号・社援発0415第５号・障発0415第１号・老発0415第５号）\n児童福祉施設における業務継続ガイドライン（令和４年３月31日）"]
[]
[null,"昭48年4月13日社施第59号＝社会福祉施設における火災防止対策の強化について（厚生省社会・児童家庭局長連名通知）"]
[null,"昭55年1月16日社施第5号＝社会福祉施設における地震防災応急計画の作成について（厚生省社会局援護課長、児童家庭局企画課長連名通知）"]
[null,"昭58年12月17日社施第121号=社会福祉施設における防災対策の強化について（厚生省社会局施設・児童家庭局企画課長連名通知）"]
[null,"平13年6月15日雇児総発第402号＝児童福祉施設等における児童の安全の確保について（厚生労働省雇用均等・児童家庭局総務・社会・援護局障害保健福祉部障害福祉課長連名通知）"]

{"sheet":"保育士配置(保共)","index":21,"n_rows":38,"n_cols":29,"rows_kept":38,"cut":false,"hidden":false,"merged":[[12,9,13,9],[12,11,13,11],[12,13,13,13],[12,15,13,15],[12,17,13,17],[12,19,13,19],[12,21,13,21],[12,23,13,23],[12,25,13,25],[8,19,9,19],[10,19,11,19],[8,21,9,21],[10,21,11,21],[8,23,9,23],[10,23,11,23],[8,25,9,25],[10,25,11,25],[8,27,9,27],[10,27,11,27],[8,9,9,9],[10,9,11,9],[8,11,9,11],[10,11,11,11],[8,13,9,13],[10,13,11,13],[8,15,9,15],[10,15,11,15],[8,17,9,17],[10,17,11,17],[9,3,9,4],[11,3,11,4],[8,1,9,2],[10,1,11,2],[6,0,13,0],[12,1,13,4],[8,5,9,5],[10,5,11,5],[8,7,9,7],[10,7,11,7],[12,5,13,5],[12,7,13,7],[10,3,10,4],[8,3,8,4],[30,13,30,14],[30,15,30,16],[14,21,14,22],[23,27,23,28],[16,27,16,28],[14,25,14,26],[32,1,32,4],[32,25,32,26],[32,5,32,6],[32,7,32,8],[32,9,32,10],[32,11,32,12],[32,13,32,14],[32,15,32,16],[32,17,32,18],[32,19,32,20],[32,21,32,22],[29,5,29,6],[25,7,25,8],[25,17,25,18],[25,19,25,20],[29,15,29,16],[29,17,29,18],[30,7,30,8],[30,9,30,10],[30,11,30,12],[1,19,1,20],[16,13,16,14],[16,15,16,16],[16,17,16,18],[16,19,16,20],[15,13,15,14],[2,19,2,28],[17,21,17,22],[17,23,17,24],[17,25,17,26],[4,15,4,16],[15,21,15,22],[15,23,15,24],[15,17,15,18],[15,19,15,20],[14,13,14,14],[15,15,15,16],[17,13,17,14],[17,15,17,16],[17,27,17,28],[3,27,3,28],[4,25,4,26],[14,0,14,4],[14,7,14,8],[14,9,14,10],[14,5,14,6],[14,11,14,12],[14,15,14,16],[14,19,14,20],[14,17,14,18],[14,23,14,24],[15,0,17,1],[15,5,15,6],[15,7,15,8],[15,9,15,10],[15,11,15,12],[16,5,16,6],[16,7,16,8],[16,9,16,10],[16,11,16,12],[17,5,17,6],[17,7,17,8],[17,9,17,10],[17,11,17,12],[18,5,18,6],[18,7,18,8],[20,0,24,0],[23,1,23,3],[20,4,21,4],[20,1,21,3],[19,5,19,6],[19,7,19,8],[19,9,19,10],[19,0,19,4],[23,5,23,6],[25,27,25,28],[24,27,24,28],[23,25,23,26],[26,27,26,28],[22,11,22,12],[22,13,22,14],[22,15,22,16],[22,17,22,18],[22,19,22,20],[23,11,23,12],[24,19,24,20],[17,17,17,18],[19,21,19,22],[23,19,23,20],[22,21,22,22],[23,21,23,22],[26,17,26,18],[26,21,26,22],[25,21,25,22],[24,17,24,18],[19,17,19,18],[19,19,19,20],[18,19,18,20],[17,19,17,20],[28,21,28,22],[29,13,29,14],[23,9,23,10],[23,13,23,14],[23,15,23,16],[15,27,15,28],[18,23,18,24],[28,27,28,28],[18,9,18,10],[19,11,19,12],[19,13,19,14],[19,15,19,16],[18,11,18,12],[18,13,18,14],[18,15,18,16],[18,17,18,18],[18,21,18,22],[16,21,16,22],[16,23,16,24],[16,25,16,26],[22,9,22,10],[27,23,27,24],[24,21,24,22],[24,23,24,24],[0,0,0,28],[3,0,5,2],[4,5,4,6],[4,7,4,8],[4,9,4,10],[4,27,4,28],[4,3,5,4],[3,3,3,4],[7,3,7,4],[6,1,6,2],[7,1,7,2],[6,3,6,4],[1,1,1,18],[4,19,4,20],[4,21,4,22],[4,11,4,12],[4,13,4,14],[4,17,4,18],[4,23,4,24],[1,21,1,28],[29,2,29,4],[27,19,27,20],[24,5,24,6],[24,7,24,8],[24,9,24,10],[24,11,24,12],[24,13,24,14],[24,15,24,16],[26,9,26,10],[25,9,25,10],[25,11,25,12],[25,13,25,14],[25,15,25,16],[25,5,25,6],[26,11,26,12],[26,13,26,14],[26,15,26,16],[26,5,26,6],[28,11,28,12],[28,13,28,14],[28,15,28,16],[31,13,31,14],[31,21,31,22],[31,23,31,24],[33,19,33,20],[31,17,31,18],[25,0,25,4],[22,1,22,3],[22,5,22,6],[22,7,22,8],[24,1,24,3],[29,21,29,22],[28,17,28,18],[23,17,23,18],[26,7,26,8],[23,7,23,8],[27,21,27,22],[27,7,27,8],[27,9,27,10],[29,7,29,8],[29,9,29,10],[29,11,29,12],[29,19,29,20],[28,19,28,20],[33,17,33,18],[31,25,31,26],[33,27,33,28],[31,27,31,28],[31,19,31,20],[32,27,32,28],[26,0,26,4],[35,19,35,20],[34,19,34,20],[26,23,26,24],[35,17,35,18],[31,7,31,8],[31,9,31,10],[33,7,33,8],[33,9,33,10],[33,11,33,12],[33,13,33,14],[32,23,32,24],[27,11,27,12],[27,13,27,14],[27,15,27,16],[27,17,27,18],[26,19,26,20],[28,23,28,24],[31,15,31,16],[25,23,25,24],[15,25,15,26],[18,25,18,26],[12,27,13,27],[30,27,30,28],[30,23,30,24],[29,23,29,24],[29,25,29,26],[29,27,29,28],[23,23,23,24],[19,27,19,28],[18,27,18,28],[19,23,19,24],[19,25,19,26],[22,23,22,24],[22,25,22,26],[22,27,22,28],[14,27,14,28],[27,27,27,28],[28,25,28,26],[27,25,27,26],[26,25,26,26],[24,25,24,26],[25,25,25,26],[30,17,30,18],[30,19,30,20],[30,21,30,22],[30,25,30,26],[35,0,35,4],[35,25,35,26],[35,27,35,28],[36,11,36,12],[36,13,36,14],[36,15,36,16],[36,17,36,18],[35,11,35,12],[35,13,35,14],[35,15,35,16],[36,5,36,6],[36,7,36,8],[36,9,36,10],[36,27,36,28],[36,19,36,20],[36,21,36,22],[36,23,36,24],[36,25,36,26],[35,21,35,22],[35,23,35,24],[34,5,34,6],[34,7,34,8],[31,11,31,12],[37,0,37,4],[37,5,37,6],[37,7,37,8],[37,9,37,10],[36,0,36,4],[28,1,28,4],[33,1,33,4],[34,0,34,4],[30,2,30,4],[31,2,31,4],[29,1,31,1],[34,9,34,10],[35,5,35,6],[35,7,35,8],[35,9,35,10],[31,5,31,6],[27,0,33,0],[27,5,27,6],[28,5,28,6],[28,7,28,8],[28,9,28,10],[33,5,33,6],[27,1,27,4],[30,5,30,6],[37,27,37,28],[37,19,37,20],[37,21,37,22],[37,23,37,24],[37,25,37,26],[37,11,37,12],[37,13,37,14],[37,15,37,16],[37,17,37,18],[34,27,34,28],[34,25,34,26],[34,11,34,12],[34,13,34,14],[34,15,34,16],[34,17,34,18],[33,21,33,22],[33,23,33,24],[33,25,33,26],[34,21,34,22],[34,23,34,24],[33,15,33,16]]}
[{"$f":"\"保育士配置状況チェックシート（\"&TEXT(DATE(YEAR(基本事項!A5),MONTH(基本事項!A5)+1,DAY(基本事項!A5)),\"ggge年度)\")&\"　（保育所、保育所型認定こども園共通）\"","v":"保育士配置状況チェックシート（令和6年度)　（保育所、保育所型認定こども園共通）"}]
[null,"※分園を設置している場合は、本園、分園、それぞれで作成すること。",null,null,null,null,null,null,null,null,null,null,null,null,null,null,null,null,null,null,null,{"$f":"\"（施設名：\"&基本事項!B11&\"　　）\"","v":"（施設名：　　）"}]
[null,"児童福祉行政指導監査報告番号 4-(4)"]
[{"$f":"DATE(YEAR(基本事項!A5)-1,MONTH(基本事項!A5)+1,DAY(基本事項!A5))","v":45047},null,null,"　定　員",null,"乳児",null,"１･\n２歳児",null,"３歳児",null,"4歳児\n以上",null,"合計",{"$f":"+G4+I4+K4+M4","v":0},null,null,null,null,null,null,null,null,null,null,null,null,"　（単位：人）"]
[null,null,null,"保育士１人当たりの保育数",null,{"$f":"DATE(YEAR(基本事項!A5)-1,4,1)","v":"2023-04-01"},null,{"$f":"DATE(YEAR(基本事項!A5)-1,5,1)","v":"2023-05-01"},null,{"$f":"DATE(YEAR(基本事項!A5)-1,6,1)","v":"2023-06-01"},null,{"$f":"DATE(YEAR(基本事項!A5)-1,7,1)","v":"2023-07-01"},null,{"$f":"DATE(YEAR(基本事項!A5)-1,8,1)","v":"2023-08-01"},null,{"$f":"DATE(YEAR(基本事項!A5)-1,9,1)","v":"2023-09-01"},null,{"$f":"DATE(YEAR(基本事項!A5)-1,10,1)","v":"2023-10-01"},null,{"$f":"DATE(YEAR(基本事項!A5)-1,11,1)","v":"2023-11-01"},null,{"$f":"DATE(YEAR(基本事項!A5)-1,12,1)","v":"2023-12-01"},null,{"$f":"DATE(YEAR(基本事項!A5),1,1)","v":"2024-01-01"},null,{"$f":"DATE(YEAR(基本事項!A5),2,1)","v":"2024-02-01"},null,{"$f":"DATE(YEAR(基本事項!A5),3,1)","v":"2024-03-01"}]
[null,null,null,null,null,"児童数","最低基準保育士数","児童数","最低基準保育士数","児童数","最低基準保育士数","児童数","最低基準保育士数","児童数","最低基準保育士数","児童数","最低基準保育士数","児童数","最低基準保育士数","児童数","最低基準保育士数","児童数","最低基準保育士数","児童数","最低基準保育士数","児童数","最低基準保育士数","児童数","最低基準保育士数"]
["入所児童数","乳児",null,"３：１",null,null,{"$f":"IF(F7=\"\",\"\",ROUNDDOWN(F7/3,1))","v":""},null,{"$f":"IF(H7=\"\",\"\",ROUNDDOWN(H7/3,1))","v":""},null,{"$f":"IF(J7=\"\",\"\",ROUNDDOWN(J7/3,1))","v":""},null,{"$f":"IF(L7=\"\",\"\",ROUNDDOWN(L7/3,1))","v":""},null,{"$f":"IF(N7=\"\",\"\",ROUNDDOWN(N7/3,1))","v":""},null,{"$f":"IF(P7=\"\",\"\",ROUNDDOWN(P7/3,1))","v":""},null,{"$f":"IF(R7=\"\",\"\",ROUNDDOWN(R7/3,1))","v":""},null,{"$f":"IF(T7=\"\",\"\",ROUNDDOWN(T7/3,1))","v":""},null,{"$f":"IF(V7=\"\",\"\",ROUNDDOWN(V7/3,1))","v":""},null,{"$f":"IF(X7=\"\",\"\",ROUNDDOWN(X7/3,1))","v":""},null,{"$f":"IF(Z7=\"\",\"\",ROUNDDOWN(Z7/3,1))","v":""},null,{"$f":"IF(AB7=\"\",\"\",ROUNDDOWN(AB7/3,1))","v":""}]
[null,"１・２歳児",null,"６：１",null,null,{"$f":"IF(F8=\"\",\"\",ROUNDDOWN(F8/6,1))","v":""},null,{"$f":"IF(H8=\"\",\"\",ROUNDDOWN(H8/6,1))","v":""},null,{"$f":"IF(J8=\"\",\"\",ROUNDDOWN(J8/6,1))","v":""},null,{"$f":"IF(L8=\"\",\"\",ROUNDDOWN(L8/6,1))","v":""},null,{"$f":"IF(N8=\"\",\"\",ROUNDDOWN(N8/6,1))","v":""},null,{"$f":"IF(P8=\"\",\"\",ROUNDDOWN(P8/6,1))","v":""},null,{"$f":"IF(R8=\"\",\"\",ROUNDDOWN(R8/6,1))","v":""},null,{"$f":"IF(T8=\"\",\"\",ROUNDDOWN(T8/6,1))","v":""},null,{"$f":"IF(V8=\"\",\"\",ROUNDDOWN(V8/6,1))","v":""},null,{"$f":"IF(X8=\"\",\"\",ROUNDDOWN(X8/6,1))","v":""},null,{"$f":"IF(Z8=\"\",\"\",ROUNDDOWN(Z8/6,1))","v":""},null,{"$f":"IF(AB8=\"\",\"\",ROUNDDOWN(AB8/6,1))","v":""}]
[null,"３歳児",null,"15：１",null,null,{"$f":"IF(F9=\"\",\"\",ROUNDDOWN(F9/15,1))","v":""},null,{"$f":"IF(H9=\"\",\"\",ROUNDDOWN(H9/15,1))","v":""},null,{"$f":"IF(J9=\"\",\"\",ROUNDDOWN(J9/15,1))","v":""},null,{"$f":"IF(L9=\"\",\"\",ROUNDDOWN(L9/15,1))","v":""},null,{"$f":"IF(N9=\"\",\"\",ROUNDDOWN(N9/15,1))","v":""},null,{"$f":"IF(P9=\"\",\"\",ROUNDDOWN(P9/15,1))","v":""},null,{"$f":"IF(R9=\"\",\"\",ROUNDDOWN(R9/15,1))","v":""},null,{"$f":"IF(T9=\"\",\"\",ROUNDDOWN(T9/15,1))","v":""},null,{"$f":"IF(V9=\"\",\"\",ROUNDDOWN(V9/15,1))","v":""},null,{"$f":"IF(X9=\"\",\"\",ROUNDDOWN(X9/15,1))","v":""},null,{"$f":"IF(Z9=\"\",\"\",ROUNDDOWN(Z9/15,1))","v":""},null,{"$f":"IF(AB9=\"\",\"\",ROUNDDOWN(AB9/15,1))","v":""}]
[null,null,null,"( 20 : １ )",null,null,{"$f":"IF(F9=\"\",\"\",ROUNDDOWN(F9/20,1))","v":""},null,{"$f":"IF(H9=\"\",\"\",ROUNDDOWN(H9/20,1))","v":""},null,{"$f":"IF(J9=\"\",\"\",ROUNDDOWN(J9/20,1))","v":""},null,{"$f":"IF(L9=\"\",\"\",ROUNDDOWN(L9/20,1))","v":""},null,{"$f":"IF(N9=\"\",\"\",ROUNDDOWN(N9/20,1))","v":""},null,{"$f":"IF(P9=\"\",\"\",ROUNDDOWN(P9/20,1))","v":""},null,{"$f":"IF(R9=\"\",\"\",ROUNDDOWN(R9/20,1))","v":""},null,{"$f":"IF(T9=\"\",\"\",ROUNDDOWN(T9/20,1))","v":""},null,{"$f":"IF(V9=\"\",\"\",ROUNDDOWN(V9/20,1))","v":""},null,{"$f":"IF(X9=\"\",\"\",ROUNDDOWN(X9/20,1))","v":""},null,{"$f":"IF(Z9=\"\",\"\",ROUNDDOWN(Z9/20,1))","v":""},null,{"$f":"IF(AB9=\"\",\"\",ROUNDDOWN(AB9/20,1))","v":""}]
[null,"４歳児以上",null,"25：１",null,null,{"$f":"IF(F11=\"\",\"\",ROUNDDOWN(F11/25,1))","v":""},null,{"$f":"IF(H11=\"\",\"\",ROUNDDOWN(H11/25,1))","v":""},null,{"$f":"IF(J11=\"\",\"\",ROUNDDOWN(J11/25,1))","v":""},null,{"$f":"IF(L11=\"\",\"\",ROUNDDOWN(L11/25,1))","v":""},null,{"$f":"IF(N11=\"\",\"\",ROUNDDOWN(N11/25,1))","v":""},null,{"$f":"IF(P11=\"\",\"\",ROUNDDOWN(P11/25,1))","v":""},null,{"$f":"IF(R11=\"\",\"\",ROUNDDOWN(R11/25,1))","v":""},null,{"$f":"IF(T11=\"\",\"\",ROUNDDOWN(T11/25,1))","v":""},null,{"$f":"IF(V11=\"\",\"\",ROUNDDOWN(V11/25,1))","v":""},null,{"$f":"IF(X11=\"\",\"\",ROUNDDOWN(X11/25,1))","v":""},null,{"$f":"IF(Z11=\"\",\"\",ROUNDDOWN(Z11/25,1))","v":""},null,{"$f":"IF(AB11=\"\",\"\",ROUNDDOWN(AB11/25,1))","v":""}]
[null,null,null,"( 30 : １ )",null,null,{"$f":"IF(F11=\"\",\"\",ROUNDDOWN(F11/30,1))","v":""},null,{"$f":"IF(H11=\"\",\"\",ROUNDDOWN(H11/30,1))","v":""},null,{"$f":"IF(J11=\"\",\"\",ROUNDDOWN(J11/30,1))","v":""},null,{"$f":"IF(L11=\"\",\"\",ROUNDDOWN(L11/30,1))","v":""},null,{"$f":"IF(N11=\"\",\"\",ROUNDDOWN(N11/30,1))","v":""},null,{"$f":"IF(P11=\"\",\"\",ROUNDDOWN(P11/30,1))","v":""},null,{"$f":"IF(R11=\"\",\"\",ROUNDDOWN(R11/30,1))","v":""},null,{"$f":"IF(T11=\"\",\"\",ROUNDDOWN(T11/30,1))","v":""},null,{"$f":"IF(V11=\"\",\"\",ROUNDDOWN(V11/30,1))","v":""},null,{"$f":"IF(X11=\"\",\"\",ROUNDDOWN(X11/30,1))","v":""},null,{"$f":"IF(Z11=\"\",\"\",ROUNDDOWN(Z11/30,1))","v":""},null,{"$f":"IF(AB11=\"\",\"\",ROUNDDOWN(AB11/30,1))","v":""}]
[null,"計\n(※保育の提供に支障を及ぼす恐れがある場合()内の基準を適用）",null,null,null,{"$f":"SUM(F7:F12)","v":0},{"$f":"IF(SUM(G7:G9,G11)=0,\"\",SUM(G7:G9,G11))","v":""},{"$f":"SUM(H7:H12)","v":0},{"$f":"IF(SUM(I7:I9,I11)=0,\"\",SUM(I7:I9,I11))","v":""},{"$f":"SUM(J7:J12)","v":0},{"$f":"IF(SUM(K7:K9,K11)=0,\"\",SUM(K7:K9,K11))","v":""},{"$f":"SUM(L7:L12)","v":0},{"$f":"IF(SUM(M7:M9,M11)=0,\"\",SUM(M7:M9,M11))","v":""},{"$f":"SUM(N7:N12)","v":0},{"$f":"IF(SUM(O7:O9,O11)=0,\"\",SUM(O7:O9,O11))","v":""},{"$f":"SUM(P7:P12)","v":0},{"$f":"IF(SUM(Q7:Q9,Q11)=0,\"\",SUM(Q7:Q9,Q11))","v":""},{"$f":"SUM(R7:R12)","v":0},{"$f":"IF(SUM(S7:S9,S11)=0,\"\",SUM(S7:S9,S11))","v":""},{"$f":"SUM(T7:T12)","v":0},{"$f":"IF(SUM(U7:U9,U11)=0,\"\",SUM(U7:U9,U11))","v":""},{"$f":"SUM(V7:V12)","v":0},{"$f":"IF(SUM(W7:W9,W11)=0,\"\",SUM(W7:W9,W11))","v":""},{"$f":"SUM(X7:X12)","v":0},{"$f":"IF(SUM(Y7:Y9,Y11)=0,\"\",SUM(Y7:Y9,Y11))","v":""},{"$f":"SUM(Z7:Z12)","v":0},{"$f":"IF(SUM(AA7:AA9,AA11)=0,\"\",SUM(AA7:AA9,AA11))","v":""},{"$f":"SUM(AB7:AB12)","v":0},{"$f":"IF(SUM(AC7:AC9,AC11)=0,\"\",SUM(AC7:AC9,AC11))","v":""}]
[null,null,null,null,null,null,{"$f":"IF(SUM(G7:G8,G10,G12)=0,\"\",SUM(G7:G8,G10,G12))","v":""},null,{"$f":"IF(SUM(I7:I8,I10,I12)=0,\"\",SUM(I7:I8,I10,I12))","v":""},null,{"$f":"IF(SUM(K7:K8,K10,K12)=0,\"\",SUM(K7:K8,K10,K12))","v":""},null,{"$f":"IF(SUM(M7:M8,M10,M12)=0,\"\",SUM(M7:M8,M10,M12))","v":""},null,{"$f":"IF(SUM(O7:O8,O10,O12)=0,\"\",SUM(O7:O8,O10,O12))","v":""},null,{"$f":"IF(SUM(Q7:Q8,Q10,Q12)=0,\"\",SUM(Q7:Q8,Q10,Q12))","v":""},null,{"$f":"IF(SUM(S7:S8,S10,S12)=0,\"\",SUM(S7:S8,S10,S12))","v":""},null,{"$f":"IF(SUM(U7:U8,U10,U12)=0,\"\",SUM(U7:U8,U10,U12))","v":""},null,{"$f":"IF(SUM(W7:W8,W10,W12)=0,\"\",SUM(W7:W8,W10,W12))","v":""},null,{"$f":"IF(SUM(Y7:Y8,Y10,Y12)=0,\"\",SUM(Y7:Y8,Y10,Y12))","v":""},null,{"$f":"IF(SUM(AA7:AA8,AA10,AA12)=0,\"\",SUM(AA7:AA8,AA10,AA12))","v":""},null,{"$f":"IF(SUM(AC7:AC8,AC10,AC12)=0,\"\",SUM(AC7:AC8,AC10,AC12))","v":""}]
["入所者数に対する最低基準保育士数…①",null,null,null,null,{"$f":"IF(G13=\"\",\"\",ROUND(G13,0))","v":""},null,{"$f":"IF(I13=\"\",\"\",ROUND(I13,0))","v":""},null,{"$f":"IF(K13=\"\",\"\",ROUND(K13,0))","v":""},null,{"$f":"IF(M13=\"\",\"\",ROUND(M13,0))","v":""},null,{"$f":"IF(O13=\"\",\"\",ROUND(O13,0))","v":""},null,{"$f":"IF(Q13=\"\",\"\",ROUND(Q13,0))","v":""},null,{"$f":"IF(S13=\"\",\"\",ROUND(S13,0))","v":""},null,{"$f":"IF(U13=\"\",\"\",ROUND(U13,0))","v":""},null,{"$f":"IF(W13=\"\",\"\",ROUND(W13,0))","v":""},null,{"$f":"IF(Y13=\"\",\"\",ROUND(Y13,0))","v":""},null,{"$f":"IF(AA13=\"\",\"\",ROUND(AA13,0))","v":""},null,{"$f":"IF(AC13=\"\",\"\",ROUND(AC13,0))","v":""}]
["基本分単価",null,"定員90人以下加配…②",null,"1.有 2.無",{"$f":"IF(+$E$16=\"1.有\",1,0)","v":0},null,{"$f":"IF(+$E$16=\"1.有\",1,0)","v":0},null,{"$f":"IF(+$E$16=\"1.有\",1,0)","v":0},null,{"$f":"IF(+$E$16=\"1.有\",1,0)","v":0},null,{"$f":"IF(+$E$16=\"1.有\",1,0)","v":0},null,{"$f":"IF(+$E$16=\"1.有\",1,0)","v":0},null,{"$f":"IF(+$E$16=\"1.有\",1,0)","v":0},null,{"$f":"IF(+$E$16=\"1.有\",1,0)","v":0},null,{"$f":"IF(+$E$16=\"1.有\",1,0)","v":0},null,{"$f":"IF(+$E$16=\"1.有\",1,0)","v":0},null,{"$f":"IF(+$E$16=\"1.有\",1,0)","v":0},null,{"$f":"IF(+$E$16=\"1.有\",1,0)","v":0}]
[null,null,"保育標準時間加配…③",null,"1.有 2.無",{"$f":"IF(+$E$17=\"1.有\",1,0)","v":0},null,{"$f":"IF(+$E$17=\"1.有\",1,0)","v":0},null,{"$f":"IF(+$E$17=\"1.有\",1,0)","v":0},null,{"$f":"IF(+$E$17=\"1.有\",1,0)","v":0},null,{"$f":"IF(+$E$17=\"1.有\",1,0)","v":0},null,{"$f":"IF(+$E$17=\"1.有\",1,0)","v":0},null,{"$f":"IF(+$E$17=\"1.有\",1,0)","v":0},null,{"$f":"IF(+$E$17=\"1.有\",1,0)","v":0},null,{"$f":"IF(+$E$17=\"1.有\",1,0)","v":0},null,{"$f":"IF(+$E$17=\"1.有\",1,0)","v":0},null,{"$f":"IF(+$E$17=\"1.有\",1,0)","v":0},null,{"$f":"IF(+$E$17=\"1.有\",1,0)","v":0}]
[null,null,"非常勤保育士加配…④",null,"1.有 2.無",{"$f":"IF(+$E$18=\"1.有\",1,0)","v":0},null,{"$f":"IF(+$E$18=\"1.有\",1,0)","v":0},null,{"$f":"IF(+$E$18=\"1.有\",1,0)","v":0},null,{"$f":"IF(+$E$18=\"1.有\",1,0)","v":0},null,{"$f":"IF(+$E$18=\"1.有\",1,0)","v":0},null,{"$f":"IF(+$E$18=\"1.有\",1,0)","v":0},null,{"$f":"IF(+$E$18=\"1.有\",1,0)","v":0},null,{"$f":"IF(+$E$18=\"1.有\",1,0)","v":0},null,{"$f":"IF(+$E$18=\"1.有\",1,0)","v":0},null,{"$f":"IF(+$E$18=\"1.有\",1,0)","v":0},null,{"$f":"IF(+$E$18=\"1.有\",1,0)","v":0},null,{"$f":"IF(+$E$18=\"1.有\",1,0)","v":0}]
[null,null,"主任保育士専任加算…⑤",null,"1.有 2.無",{"$f":"IF(+$E$19=\"1.有\",1,0)","v":0},null,{"$f":"IF(+$E$19=\"1.有\",1,0)","v":0},null,{"$f":"IF(+$E$19=\"1.有\",1,0)","v":0},null,{"$f":"IF(+$E$19=\"1.有\",1,0)","v":0},null,{"$f":"IF(+$E$19=\"1.有\",1,0)","v":0},null,{"$f":"IF(+$E$19=\"1.有\",1,0)","v":0},null,{"$f":"IF(+$E$19=\"1.有\",1,0)","v":0},null,{"$f":"IF(+$E$19=\"1.有\",1,0)","v":0},null,{"$f":"IF(+$E$19=\"1.有\",1,0)","v":0},null,{"$f":"IF(+$E$19=\"1.有\",1,0)","v":0},null,{"$f":"IF(+$E$19=\"1.有\",1,0)","v":0},null,{"$f":"IF(+$E$19=\"1.有\",1,0)","v":0}]
["最低基準保育士数⑥（＝①+②+③+④+⑤）",null,null,null,null,{"$f":"SUM(F15:G19)","v":0},null,{"$f":"SUM(H15:I19)","v":0},null,{"$f":"SUM(J15:K19)","v":0},null,{"$f":"SUM(L15:M19)","v":0},null,{"$f":"SUM(N15:O19)","v":0},null,{"$f":"SUM(P15:Q19)","v":0},null,{"$f":"SUM(R15:S19)","v":0},null,{"$f":"SUM(T15:U19)","v":0},null,{"$f":"SUM(V15:W19)","v":0},null,{"$f":"SUM(X15:Y19)","v":0},null,{"$f":"SUM(Z15:AA19)","v":0},null,{"$f":"SUM(AB15:AC19)","v":0}]
["補助・委託事業","一時預かり事業",null,null,"1.有 2.無","平均利用\n児童数","必要\n保育士数","平均利用\n児童数","必要\n保育士数","平均利用\n児童数","必要\n保育士数","平均利用\n児童数","必要\n保育士数","平均利用\n児童数","必要\n保育士数","平均利用\n児童数","必要\n保育士数","平均利用\n児童数","必要\n保育士数","平均利用\n児童数","必要\n保育士数","平均利用\n児童数","必要\n保育士数","平均利用\n児童数","必要\n保育士数","平均利用\n児童数","必要\n保育士数","平均利用\n児童数","必要\n保育士数"]
[]
[null,"乳幼児子育て応援事業\n(当該事業に従事する保育士数)",null,null,"1.有"]
[null,"(                       )",null,null,"1.有 2.無"]
[null,"(                       )",null,null,"1.有 2.無"]
["補助事業必要保育士数…⑦",null,null,null,null,{"$f":"+G22+F23+F24+F25","v":0},null,{"$f":"+I22+H23+H24+H25","v":0},null,{"$f":"+K22+J23+J24+J25","v":0},null,{"$f":"+M22+L23+L24+L25","v":0},null,{"$f":"+O22+N23+N24+N25","v":0},null,{"$f":"+Q22+P23+P24+P25","v":0},null,{"$f":"+S22+R23+R24+R25","v":0},null,{"$f":"+U22+T23+T24+T25","v":0},null,{"$f":"+W22+V23+V24+V25","v":0},null,{"$f":"+Y22+X23+X24+X25","v":0},null,{"$f":"+AA22+Z23+Z24+Z25","v":0},null,{"$f":"+AC22+AB23+AB24+AB25","v":0}]
["必要保育士数⑥＋⑦=⑧",null,null,null,null,{"$f":"IF(F26=0,F20,F20+F26)","v":0},null,{"$f":"IF(H26=0,H20,H20+H26)","v":0},null,{"$f":"IF(J26=0,J20,J20+J26)","v":0},null,{"$f":"IF(L26=0,L20,L20+L26)","v":0},null,{"$f":"IF(N26=0,N20,N20+N26)","v":0},null,{"$f":"IF(P26=0,P20,P20+P26)","v":0},null,{"$f":"IF(R26=0,R20,R20+R26)","v":0},null,{"$f":"IF(T26=0,T20,T20+T26)","v":0},null,{"$f":"IF(V26=0,V20,V20+V26)","v":0},null,{"$f":"IF(X26=0,X20,X20+X26)","v":0},null,{"$f":"IF(Z26=0,Z20,Z20+Z26)","v":0},null,{"$f":"IF(AB26=0,AB20,AB20+AB26)","v":0}]
["実際の保育士数等","主任保育士 a"]
[null,"常勤保育士数 b\n(所長設置加算対象の保育士は含まない）"]
[null,"非常勤保育士","常勤的非常勤保育士数"]
[null,null,"非常勤保育士数"]
[null,null,"常勤換算による保育士数 c"]
[null,"常勤換算による保健師・看護師・准看護師　d"]
[null,"常勤換算による幼稚園教諭等（運営基準第９５条) e"]
["保育士等計…⑨（＝a+b+c+d+e）",null,null,null,null,{"$f":"SUM(F28:G29,F32:G34)","v":0},null,{"$f":"SUM(H28:I29,H32:I34)","v":0},null,{"$f":"SUM(J28:K29,J32:K34)","v":0},null,{"$f":"SUM(L28:M29,L32:M34)","v":0},null,{"$f":"SUM(N28:O29,N32:O34)","v":0},null,{"$f":"SUM(P28:Q29,P32:Q34)","v":0},null,{"$f":"SUM(R28:S29,R32:S34)","v":0},null,{"$f":"SUM(T28:U29,T32:U34)","v":0},null,{"$f":"SUM(V28:W29,V32:W34)","v":0},null,{"$f":"SUM(X28:Y29,X32:Y34)","v":0},null,{"$f":"SUM(Z28:AA29,Z32:AA34)","v":0},null,{"$f":"SUM(AB28:AC29,AB32:AC34)","v":0}]
["最低基準に対する保育士数の差⑨-⑥",null,null,null,null,{"$f":"IF(F35=0,\"\",F35-F20)","v":""},null,{"$f":"IF(H35=0,\"\",H35-H20)","v":""},null,{"$f":"IF(J35=0,\"\",J35-J20)","v":""},null,{"$f":"IF(L35=0,\"\",L35-L20)","v":""},null,{"$f":"IF(N35=0,\"\",N35-N20)","v":""},null,{"$f":"IF(P35=0,\"\",P35-P20)","v":""},null,{"$f":"IF(R35=0,\"\",R35-R20)","v":""},null,{"$f":"IF(T35=0,\"\",T35-T20)","v":""},null,{"$f":"IF(V35=0,\"\",V35-V20)","v":""},null,{"$f":"IF(X35=0,\"\",X35-X20)","v":""},null,{"$f":"IF(Z35=0,\"\",Z35-Z20)","v":""},null,{"$f":"IF(AB35=0,\"\",AB35-AB20)","v":""}]
["補助・委託事業を含む不足保育士数⑨-⑧",null,null,null,null,{"$f":"IF(F35=0,\"\",F35-F27)","v":""},null,{"$f":"IF(H35=0,\"\",H35-H27)","v":""},null,{"$f":"IF(J35=0,\"\",J35-J27)","v":""},null,{"$f":"IF(L35=0,\"\",L35-L27)","v":""},null,{"$f":"IF(N35=0,\"\",N35-N27)","v":""},null,{"$f":"IF(P35=0,\"\",P35-P27)","v":""},null,{"$f":"IF(R35=0,\"\",R35-R27)","v":""},null,{"$f":"IF(T35=0,\"\",T35-T27)","v":""},null,{"$f":"IF(V35=0,\"\",V35-V27)","v":""},null,{"$f":"IF(X35=0,\"\",X35-X27)","v":""},null,{"$f":"IF(Z35=0,\"\",Z35-Z27)","v":""},null,{"$f":"IF(AB35=0,\"\",AB35-AB27)","v":""}]
["主任保育士配置のチェック",null,null,null,null,{"$f":"IF(F28=\"\",\"\",IF(F19>F28,\"×\",\"○\"))","v":""},null,{"$f":"IF(H28=\"\",\"\",IF(H19>H28,\"×\",\"○\"))","v":""},null,{"$f":"IF(J28=\"\",\"\",IF(J19>J28,\"×\",\"○\"))","v":""},null,{"$f":"IF(L28=\"\",\"\",IF(L19>L28,\"×\",\"○\"))","v":""},null,{"$f":"IF(N28=\"\",\"\",IF(N19>N28,\"×\",\"○\"))","v":""},null,{"$f":"IF(P28=\"\",\"\",IF(P19>P28,\"×\",\"○\"))","v":""},null,{"$f":"IF(R28=\"\",\"\",IF(R19>R28,\"×\",\"○\"))","v":""},null,{"$f":"IF(T28=\"\",\"\",IF(T19>T28,\"×\",\"○\"))","v":""},null,{"$f":"IF(V28=\"\",\"\",IF(V19>V28,\"×\",\"○\"))","v":""},null,{"$f":"IF(X28=\"\",\"\",IF(X19>X28,\"×\",\"○\"))","v":""},null,{"$f":"IF(Z28=\"\",\"\",IF(Z19>Z28,\"×\",\"○\"))","v":""},null,{"$f":"IF(AB28=\"\",\"\",IF(AB19>AB28,\"×\",\"○\"))","v":""}]

{"sheet":"在所率(保共)","index":22,"n_rows":27,"n_cols":22,"rows_kept":27,"cut":false,"hidden":false,"merged":[[24,2,24,21],[25,2,25,21],[26,2,26,21],[0,14,0,21],[14,7,14,9],[2,0,2,18],[3,0,5,0],[14,0,16,0],[14,1,14,3],[3,10,3,12],[3,13,3,15],[14,10,14,12],[14,19,14,21],[14,13,14,15],[3,16,3,18],[14,16,14,18],[3,1,3,3],[3,4,3,6],[3,7,3,9],[14,4,14,6]]}
["在所率の状況（保育所、保育所型認定こども園共通）",null,null,null,null,null,null,null,null,null,null,null,null,null,{"$f":"\"（施設名：\"&基本事項!B11&\"　　）\"","v":"（施設名：　　）"}]
[]
["※分園を設置している場合は、本園分と分園分を合算して作成すること。"]
["月初日",{"$f":"基本事項!A5","v":"2024-04-01"},null,null,{"$f":"DATE(YEAR(基本事項!A5),5,1)","v":"2024-05-01"},null,null,{"$f":"DATE(YEAR(基本事項!A5),6,1)","v":"2024-06-01"},null,null,{"$f":"DATE(YEAR(基本事項!A5),7,1)","v":"2024-07-01"},null,null,{"$f":"DATE(YEAR(基本事項!A5),8,1)","v":"2024-08-01"},null,null,{"$f":"DATE(YEAR(基本事項!A5),9,1)","v":"2024-09-01"}]
[null,"在所人員","当月定員","在所率","在所人員","当月定員","在所率","在所人員","当月定員","在所率","在所人員","当月定員","在所率","在所人員","当月定員","在所率","在所人員","当月定員","在所率"]
[null,"(a)","(b)","(a/b)","(a)","(b)","(a/b)","(a)","(b)","(a/b)","(a)","(b)","(a/b)","(a)","(b)","(a/b)","(a)","(b)","(a/b)"]
[null,"人","人","％","人","人","％","人","人","％","人","人","％","人","人","％","人","人","％"]
[{"$f":"DATE(YEAR(基本事項!A5)-5,MONTH(基本事項!A5)+1,DAY(基本事項!A5))","v":43586},null,null,{"$f":"IF(ISERROR(ROUNDDOWN(B8/C8,3)),\"\",ROUNDDOWN(B8/C8,3))","v":""},null,null,{"$f":"IF(ISERROR(ROUNDDOWN(E8/F8,3)),\"\",ROUNDDOWN(E8/F8,3))","v":""},null,null,{"$f":"IF(ISERROR(ROUNDDOWN(H8/I8,3)),\"\",ROUNDDOWN(H8/I8,3))","v":""},null,null,{"$f":"IF(ISERROR(ROUNDDOWN(K8/L8,3)),\"\",ROUNDDOWN(K8/L8,3))","v":""},null,null,{"$f":"IF(ISERROR(ROUNDDOWN(N8/O8,3)),\"\",ROUNDDOWN(N8/O8,3))","v":""},null,null,{"$f":"IF(ISERROR(ROUNDDOWN(Q8/R8,3)),\"\",ROUNDDOWN(Q8/R8,3))","v":""}]
[{"$f":"DATE(YEAR(基本事項!A5)-4,MONTH(基本事項!A5)+1,DAY(基本事項!A5))","v":43952},null,null,"",null,null,"",null,null,"",null,null,"",null,null,"",null,null,""]
[{"$f":"DATE(YEAR(基本事項!A5)-3,MONTH(基本事項!A5)+1,DAY(基本事項!A5))","v":44317},null,null,"",null,null,"",null,null,"",null,null,"",null,null,"",null,null,""]
[{"$f":"DATE(YEAR(基本事項!A5)-2,MONTH(基本事項!A5)+1,DAY(基本事項!A5))","v":44682},null,null,"",null,null,"",null,null,"",null,null,"",null,null,"",null,null,""]
[{"$f":"DATE(YEAR(基本事項!A5)-1,MONTH(基本事項!A5)+1,DAY(基本事項!A5))","v":45047},null,null,"",null,null,"",null,null,"",null,null,"",null,null,"",null,null,""]
[{"$f":"基本事項!A5","v":45383},null,null,"",null,null,"",null,null,"",null,null,"",null,null,"",null,null,""]
[]
["月初日",{"$f":"DATE(YEAR(基本事項!A5),10,1)","v":"2024-10-01"},null,null,{"$f":"DATE(YEAR(基本事項!A5),11,1)","v":"2024-11-01"},null,null,{"$f":"DATE(YEAR(基本事項!A5),12,1)","v":"2024-12-01"},null,null,{"$f":"DATE(YEAR(基本事項!A5)+1,1,1)","v":"2025-01-01"},null,null,{"$f":"DATE(YEAR(基本事項!A5)+1,2,1)","v":"2025-02-01"},null,null,{"$f":"DATE(YEAR(基本事項!A5)+1,3,1)","v":"2025-03-01"},null,null,"合計"]
[null,"在所人員","当月定員","在所率","在所人員","当月定員","在所率","在所人員","当月定員","在所率","在所人員","当月定員","在所率","在所人員","当月定員","在所率","在所人員","当月定員","在所率","在所人員\n合計","定員合計","平均\n在所率"]
[null,"(a)","(b)","(a/b)","(a)","(b)","(a/b)","(a)","(b)","(a/b)","(a)","(b)","(a/b)","(a)","(b)","(a/b)","(a)","(b)","(a/b)","(a)","(b)","(a/b)"]
[null,"人","人","％","人","人","％","人","人","％","人","人","％","人","人","％","人","人","％","人","人","％"]
[{"$f":"DATE(YEAR(基本事項!A5)-5,MONTH(基本事項!A5)+1,DAY(基本事項!A5))","v":43586},null,null,{"$f":"IF(ISERROR(ROUNDDOWN(B19/C19,3)),\"\",ROUNDDOWN(B19/C19,3))","v":""},null,null,{"$f":"IF(ISERROR(ROUNDDOWN(E19/F19,3)),\"\",ROUNDDOWN(E19/F19,3))","v":""},null,null,{"$f":"IF(ISERROR(ROUNDDOWN(H19/I19,3)),\"\",ROUNDDOWN(H19/I19,3))","v":""},null,null,{"$f":"IF(ISERROR(ROUNDDOWN(K19/L19,3)),\"\",ROUNDDOWN(K19/L19,3))","v":""},null,null,{"$f":"IF(ISERROR(ROUNDDOWN(N19/O19,3)),\"\",ROUNDDOWN(N19/O19,3))","v":""},null,null,{"$f":"IF(ISERROR(ROUNDDOWN(Q19/R19,3)),\"\",ROUNDDOWN(Q19/R19,3))","v":""},{"$f":"+B8+E8+H8+K8+N8+Q8+B19+E19+H19+K19+N19+Q19","v":0},0,{"$f":"IF(ISERROR(ROUNDDOWN(T19/U19,3)),\"\",ROUNDDOWN(T19/U19,3))","v":""}]
[{"$f":"DATE(YEAR(基本事項!A5)-4,MONTH(基本事項!A5)+1,DAY(基本事項!A5))","v":43952},null,null,"",null,null,"",null,null,"",null,null,"",null,null,"",null,null,"",0,0,""]
[{"$f":"DATE(YEAR(基本事項!A5)-3,MONTH(基本事項!A5)+1,DAY(基本事項!A5))","v":44317},null,null,"",null,null,"",null,null,"",null,null,"",null,null,"",null,null,"",0,0,""]
[{"$f":"DATE(YEAR(基本事項!A5)-2,MONTH(基本事項!A5)+1,DAY(基本事項!A5))","v":44682},null,null,"",null,null,"",null,null,"",null,null,"",null,null,"",null,null,"",0,0,""]
[{"$f":"DATE(YEAR(基本事項!A5)-1,MONTH(基本事項!A5)+1,DAY(基本事項!A5))","v":45047},null,null,"",null,null,"",null,null,"",null,null,"",null,null,"",null,null,"",0,0,""]
[{"$f":"基本事項!A5","v":45383},null,null,"",null,null,"",null,null,"",null,null,"",null,null,"",null,null,"",0,0,""]
[null,"注１","「在所人員」は、広域入所を含む総人員数を記入すること"]
[null,"２",{"$f":"TEXT(基本事項!A5,\"「ggge年度」\")&\"は、作成日前月までの状況を記入すること\"","v":"「令和6年度」は、作成日前月までの状況を記入すること"}]
[null,"  ３","「在所率」は、小数第１位(第２位切り捨て)まで記入すること"]

{"sheet":"在所率(幼保)","index":23,"n_rows":68,"n_cols":37,"rows_kept":68,"cut":false,"hidden":false,"merged":[[0,0,0,24],[0,29,0,36],[2,0,2,15],[4,0,4,15],[5,0,8,0],[5,1,5,12],[5,13,5,24],[5,25,5,36],[6,1,6,4],[6,5,6,8],[6,33,6,36],[6,9,6,12],[6,13,6,16],[6,17,6,20],[6,21,6,24],[6,25,6,28],[18,0,21,0],[18,1,18,12],[18,13,18,24],[18,25,18,36],[19,1,19,4],[19,5,19,8],[19,9,19,12],[19,13,19,16],[19,17,19,20],[6,29,6,32],[19,21,19,24],[19,25,19,28],[19,29,19,32],[19,33,19,36],[45,33,45,36],[31,0,34,0],[31,1,31,12],[31,13,31,24],[31,25,31,36],[32,1,32,4],[32,5,32,8],[32,33,32,36],[32,9,32,12],[32,13,32,16],[32,17,32,20],[32,21,32,24],[32,25,32,28],[32,29,32,32],[57,25,57,36],[58,25,58,28],[58,29,58,32],[58,33,58,36],[44,0,47,0],[44,1,44,12],[44,13,44,24],[44,25,44,36],[45,1,45,4],[45,5,45,8],[45,9,45,12],[45,13,45,16],[45,17,45,20],[45,21,45,24],[45,25,45,28],[45,29,45,32],[67,23,67,24],[57,2,57,19],[58,2,58,19],[59,2,59,19],[60,2,60,19],[61,23,61,24],[62,23,62,24],[63,23,63,24],[64,23,64,24],[65,23,65,24],[66,23,66,24],[57,23,60,24]]}
["在所率の状況",null,null,null,null,null,null,null,null,null,null,null,null,null,null,null,null,null,null,null,null,null,null,null,null,null,null,null,null,{"$f":"\"（施設名：\"&基本事項!B11&\"　　）\"","v":"（施設名：　　）"}]
[]
["※分園を設置している場合は、本園分と分園分を合算して作成すること。"]
[]
[]
["月初日",{"$f":"基本事項!A5","v":"2024-04-01"},null,null,null,null,null,null,null,null,null,null,null,{"$f":"DATE(YEAR(基本事項!A5),5,1)","v":"2024-05-01"},null,null,null,null,null,null,null,null,null,null,null,{"$f":"DATE(YEAR(基本事項!A5),6,1)","v":"2024-06-01"}]
[null,"在所園児",null,null,null,"当月定員",null,null,null,"在所率",null,null,null,"在所園児",null,null,null,"当月定員",null,null,null,"在所率",null,null,null,"在所園児",null,null,null,"当月定員",null,null,null,"在所率"]
[null,"1号","2号","3号","計","1号","2号","3号","計","１号","2号","3号","計","1号","2号","3号","計","1号","2号","3号","計","１号","2号","3号","計","1号","2号","3号","計","1号","2号","3号","計","１号","2号","3号","計"]
[null,"(a)",null,null,null,"(b)",null,null,null,"(a/b)",null,null,null,"(a)",null,null,null,"(b)",null,null,null,"(a/b)",null,null,null,"(a)",null,null,null,"(b)",null,null,null,"(a/b)"]
[null,"人",null,null,null,null,null,null,"人",null,null,null,"％","人",null,null,null,null,null,null,"人",null,null,null,"％","人",null,null,null,null,null,null,"人",null,null,null,"％"]
[{"$f":"DATE(YEAR(基本事項!A5)-5,MONTH(基本事項!A5)+1,DAY(基本事項!A5))","v":43586},null,null,null,{"$f":"D11+B11+C11","v":0},null,null,null,{"$f":"H11+F11+G11","v":0},null,{"$f":"IF(ISERROR(ROUNDDOWN(C11/G11,3)),\"\",ROUNDDOWN(C11/G11,3))","v":""},{"$f":"IF(ISERROR(ROUNDDOWN(D11/H11,3)),\"\",ROUNDDOWN(D11/H11,3))","v":""},"",null,null,null,{"$f":"P11+N11+O11","v":0},null,null,null,{"$f":"T11+R11+S11","v":0},null,{"$f":"IF(ISERROR(ROUNDDOWN(O11/S11,3)),\"\",ROUNDDOWN(O11/S11,3))","v":""},{"$f":"IF(ISERROR(ROUNDDOWN(P11/T11,3)),\"\",ROUNDDOWN(P11/T11,3))","v":""},"",null,null,null,{"$f":"AB11+Z11+AA11","v":0},null,null,null,{"$f":"AF11+AD11+AE11","v":0},null,{"$f":"IF(ISERROR(ROUNDDOWN(AA11/AE11,3)),\"\",ROUNDDOWN(AA11/AE11,3))","v":""},{"$f":"IF(ISERROR(ROUNDDOWN(AB11/AF11,3)),\"\",ROUNDDOWN(AB11/AF11,3))","v":""},""]
[{"$f":"DATE(YEAR(基本事項!A5)-4,MONTH(基本事項!A5)+1,DAY(基本事項!A5))","v":43952},null,null,null,0,null,null,null,0,null,{"$f":"IF(ISERROR(ROUNDDOWN(C12/G12,3)),\"\",ROUNDDOWN(C12/G12,3))","v":""},"","",null,null,null,0,null,null,null,0,null,"","","",null,null,null,0,null,null,null,0,null,"","",""]
[{"$f":"DATE(YEAR(基本事項!A5)-3,MONTH(基本事項!A5)+1,DAY(基本事項!A5))","v":44317},null,null,null,0,null,null,null,0,null,{"$f":"IF(ISERROR(ROUNDDOWN(C13/G13,3)),\"\",ROUNDDOWN(C13/G13,3))","v":""},"","",null,null,null,0,null,null,null,0,null,"","","",null,null,null,0,null,null,null,0,null,"","",""]
[{"$f":"DATE(YEAR(基本事項!A5)-2,MONTH(基本事項!A5)+1,DAY(基本事項!A5))","v":44682},null,null,null,0,null,null,null,0,{"$f":"IF(ISERROR(ROUNDDOWN(B14/F14,3)),\"\",ROUNDDOWN(B14/F14,3))","v":""},"","","",null,null,null,0,null,null,null,0,{"$f":"IF(ISERROR(ROUNDDOWN(N14/R14,3)),\"\",ROUNDDOWN(N14/R14,3))","v":""},"","","",null,null,null,0,null,null,null,0,{"$f":"IF(ISERROR(ROUNDDOWN(Z14/AD14,3)),\"\",ROUNDDOWN(Z14/AD14,3))","v":""},"","",""]
[{"$f":"DATE(YEAR(基本事項!A5)-1,MONTH(基本事項!A5)+1,DAY(基本事項!A5))","v":45047},null,null,null,0,null,null,null,0,"","","","",null,null,null,0,null,null,null,0,{"$f":"IF(ISERROR(ROUNDDOWN(N15/R15,3)),\"\",ROUNDDOWN(N15/R15,3))","v":""},"","","",null,null,null,0,null,null,null,0,{"$f":"IF(ISERROR(ROUNDDOWN(Z15/AD15,3)),\"\",ROUNDDOWN(Z15/AD15,3))","v":""},"","",""]
[{"$f":"基本事項!A5","v":45383},null,null,null,0,null,null,null,0,"","","","",null,null,null,0,null,null,null,0,{"$f":"IF(ISERROR(ROUNDDOWN(N16/R16,3)),\"\",ROUNDDOWN(N16/R16,3))","v":""},"","","",null,null,null,0,null,null,null,0,{"$f":"IF(ISERROR(ROUNDDOWN(Z16/AD16,3)),\"\",ROUNDDOWN(Z16/AD16,3))","v":""},"","",""]
[]
[]
["月初日",{"$f":"DATE(YEAR(基本事項!A5),7,1)","v":"2024-07-01"},null,null,null,null,null,null,null,null,null,null,null,{"$f":"DATE(YEAR(基本事項!A5),8,1)","v":"2024-08-01"},null,null,null,null,null,null,null,null,null,null,null,{"$f":"DATE(YEAR(基本事項!A5),9,1)","v":"2024-09-01"}]
[null,"在所園児",null,null,null,"当月定員",null,null,null,"在所率",null,null,null,"在所園児",null,null,null,"当月定員",null,null,null,"在所率",null,null,null,"在所園児",null,null,null,"当月定員",null,null,null,"在所率"]
[null,"1号","2号","3号","計","1号","2号","3号","計","１号","2号","3号","計","1号","2号","3号","計","1号","2号","3号","計","１号","2号","3号","計","1号","2号","3号","計","1号","2号","3号","計","１号","2号","3号","計"]
[null,"(a)",null,null,null,"(b)",null,null,null,"(a/b)",null,null,null,"(a)",null,null,null,"(b)",null,null,null,"(a/b)",null,null,null,"(a)",null,null,null,"(b)",null,null,null,"(a/b)"]
[null,"人",null,null,null,null,null,null,"人",null,null,null,"％","人",null,null,null,null,null,null,"人",null,null,null,"％","人",null,null,null,null,null,null,"人",null,null,null,"％"]
[{"$f":"DATE(YEAR(基本事項!A5)-5,MONTH(基本事項!A5)+1,DAY(基本事項!A5))","v":43586},null,null,null,{"$f":"D24+B24+C24","v":0},null,null,null,{"$f":"H24+F24+G24","v":0},null,{"$f":"IF(ISERROR(ROUNDDOWN(C24/G24,3)),\"\",ROUNDDOWN(C24/G24,3))","v":""},{"$f":"IF(ISERROR(ROUNDDOWN(D24/H24,3)),\"\",ROUNDDOWN(D24/H24,3))","v":""},"",null,null,null,{"$f":"P24+N24+O24","v":0},null,null,null,{"$f":"T24+R24+S24","v":0},null,{"$f":"IF(ISERROR(ROUNDDOWN(O24/S24,3)),\"\",ROUNDDOWN(O24/S24,3))","v":""},{"$f":"IF(ISERROR(ROUNDDOWN(P24/T24,3)),\"\",ROUNDDOWN(P24/T24,3))","v":""},"",null,null,null,{"$f":"AB24+Z24+AA24","v":0},null,null,null,{"$f":"AF24+AD24+AE24","v":0},null,{"$f":"IF(ISERROR(ROUNDDOWN(AA24/AE24,3)),\"\",ROUNDDOWN(AA24/AE24,3))","v":""},{"$f":"IF(ISERROR(ROUNDDOWN(AB24/AF24,3)),\"\",ROUNDDOWN(AB24/AF24,3))","v":""},""]
[{"$f":"DATE(YEAR(基本事項!A5)-4,MONTH(基本事項!A5)+1,DAY(基本事項!A5))","v":43952},null,null,null,0,null,null,null,0,null,"","","",null,null,null,0,null,null,null,0,null,"","","",null,null,null,0,null,null,null,0,null,"","",""]
[{"$f":"DATE(YEAR(基本事項!A5)-3,MONTH(基本事項!A5)+1,DAY(基本事項!A5))","v":44317},null,null,null,0,null,null,null,0,null,"","","",null,null,null,0,null,null,null,0,null,"","","",null,null,null,0,null,null,null,0,null,"","",""]
[{"$f":"DATE(YEAR(基本事項!A5)-2,MONTH(基本事項!A5)+1,DAY(基本事項!A5))","v":44682},null,null,null,0,null,null,null,0,{"$f":"IF(ISERROR(ROUNDDOWN(B27/F27,3)),\"\",ROUNDDOWN(B27/F27,3))","v":""},"","","",null,null,null,0,null,null,null,0,{"$f":"IF(ISERROR(ROUNDDOWN(N27/R27,3)),\"\",ROUNDDOWN(N27/R27,3))","v":""},"","","",null,null,null,0,null,null,null,0,{"$f":"IF(ISERROR(ROUNDDOWN(Z27/AD27,3)),\"\",ROUNDDOWN(Z27/AD27,3))","v":""},"","",""]
[{"$f":"DATE(YEAR(基本事項!A5)-1,MONTH(基本事項!A5)+1,DAY(基本事項!A5))","v":45047},null,null,null,0,null,null,null,0,{"$f":"IF(ISERROR(ROUNDDOWN(B28/F28,3)),\"\",ROUNDDOWN(B28/F28,3))","v":""},"","","",null,null,null,0,null,null,null,0,{"$f":"IF(ISERROR(ROUNDDOWN(N28/R28,3)),\"\",ROUNDDOWN(N28/R28,3))","v":""},"","","",null,null,null,0,null,null,null,0,{"$f":"IF(ISERROR(ROUNDDOWN(Z28/AD28,3)),\"\",ROUNDDOWN(Z28/AD28,3))","v":""},"","",""]
[{"$f":"基本事項!A5","v":45383},null,null,null,0,null,null,null,0,{"$f":"IF(ISERROR(ROUNDDOWN(B29/F29,3)),\"\",ROUNDDOWN(B29/F29,3))","v":""},"","","",null,null,null,0,null,null,null,0,{"$f":"IF(ISERROR(ROUNDDOWN(N29/R29,3)),\"\",ROUNDDOWN(N29/R29,3))","v":""},"","","",null,null,null,0,null,null,null,0,{"$f":"IF(ISERROR(ROUNDDOWN(Z29/AD29,3)),\"\",ROUNDDOWN(Z29/AD29,3))","v":""},"","",""]
[]
[]
["月初日",{"$f":"DATE(YEAR(基本事項!A5),10,1)","v":"2024-10-01"},null,null,null,null,null,null,null,null,null,null,null,{"$f":"DATE(YEAR(基本事項!A5),11,1)","v":"2024-11-01"},null,null,null,null,null,null,null,null,null,null,null,{"$f":"DATE(YEAR(基本事項!A5),12,1)","v":"2024-12-01"}]
[null,"在所園児",null,null,null,"当月定員",null,null,null,"在所率",null,null,null,"在所園児",null,null,null,"当月定員",null,null,null,"在所率",null,null,null,"在所園児",null,null,null,"当月定員",null,null,null,"在所率"]
[null,"1号","2号","3号","計","1号","2号","3号","計","１号","2号","3号","計","1号","2号","3号","計","1号","2号","3号","計","１号","2号","3号","計","1号","2号","3号","計","1号","2号","3号","計","１号","2号","3号","計"]
[null,"(a)",null,null,null,"(b)",null,null,null,"(a/b)",null,null,null,"(a)",null,null,null,"(b)",null,null,null,"(a/b)",null,null,null,"(a)",null,null,null,"(b)",null,null,null,"(a/b)"]
[null,"人",null,null,null,null,null,null,"人",null,null,null,"％","人",null,null,null,null,null,null,"人",null,null,null,"％","人",null,null,null,null,null,null,"人",null,null,null,"％"]
[{"$f":"DATE(YEAR(基本事項!A5)-5,MONTH(基本事項!A5)+1,DAY(基本事項!A5))","v":43586},null,null,null,{"$f":"D37+B37+C37","v":0},null,null,null,{"$f":"H37+F37+G37","v":0},null,{"$f":"IF(ISERROR(ROUNDDOWN(C37/G37,3)),\"\",ROUNDDOWN(C37/G37,3))","v":""},{"$f":"IF(ISERROR(ROUNDDOWN(D37/H37,3)),\"\",ROUNDDOWN(D37/H37,3))","v":""},"",null,null,null,{"$f":"P37+N37+O37","v":0},null,null,null,{"$f":"T37+R37+S37","v":0},null,{"$f":"IF(ISERROR(ROUNDDOWN(O37/S37,3)),\"\",ROUNDDOWN(O37/S37,3))","v":""},{"$f":"IF(ISERROR(ROUNDDOWN(P37/T37,3)),\"\",ROUNDDOWN(P37/T37,3))","v":""},"",null,null,null,{"$f":"AB37+Z37+AA37","v":0},null,null,null,{"$f":"AF37+AD37+AE37","v":0},null,{"$f":"IF(ISERROR(ROUNDDOWN(AA37/AE37,3)),\"\",ROUNDDOWN(AA37/AE37,3))","v":""},{"$f":"IF(ISERROR(ROUNDDOWN(AB37/AF37,3)),\"\",ROUNDDOWN(AB37/AF37,3))","v":""},""]
[{"$f":"DATE(YEAR(基本事項!A5)-4,MONTH(基本事項!A5)+1,DAY(基本事項!A5))","v":43952},null,null,null,0,null,null,null,0,null,"","","",null,null,null,0,null,null,null,0,null,"","","",null,null,null,0,null,null,null,0,null,"","",""]
[{"$f":"DATE(YEAR(基本事項!A5)-3,MONTH(基本事項!A5)+1,DAY(基本事項!A5))","v":44317},null,null,null,0,null,null,null,0,null,"","","",null,null,null,0,null,null,null,0,null,"","","",null,null,null,0,null,null,null,0,null,"","",""]
[{"$f":"DATE(YEAR(基本事項!A5)-2,MONTH(基本事項!A5)+1,DAY(基本事項!A5))","v":44682},null,null,null,0,null,null,null,0,{"$f":"IF(ISERROR(ROUNDDOWN(B40/F40,3)),\"\",ROUNDDOWN(B40/F40,3))","v":""},"","","",null,null,null,0,null,null,null,0,{"$f":"IF(ISERROR(ROUNDDOWN(N40/R40,3)),\"\",ROUNDDOWN(N40/R40,3))","v":""},"","","",null,null,null,0,null,null,null,0,{"$f":"IF(ISERROR(ROUNDDOWN(Z40/AD40,3)),\"\",ROUNDDOWN(Z40/AD40,3))","v":""},"","",""]
[{"$f":"DATE(YEAR(基本事項!A5)-1,MONTH(基本事項!A5)+1,DAY(基本事項!A5))","v":45047},null,null,null,0,null,null,null,0,{"$f":"IF(ISERROR(ROUNDDOWN(B41/F41,3)),\"\",ROUNDDOWN(B41/F41,3))","v":""},"","","",null,null,null,0,null,null,null,0,{"$f":"IF(ISERROR(ROUNDDOWN(N41/R41,3)),\"\",ROUNDDOWN(N41/R41,3))","v":""},"","","",null,null,null,0,null,null,null,0,{"$f":"IF(ISERROR(ROUNDDOWN(Z41/AD41,3)),\"\",ROUNDDOWN(Z41/AD41,3))","v":""},"","",""]
[{"$f":"基本事項!A5","v":45383},null,null,null,0,null,null,null,0,{"$f":"IF(ISERROR(ROUNDDOWN(B42/F42,3)),\"\",ROUNDDOWN(B42/F42,3))","v":""},"","","",null,null,null,0,null,null,null,0,{"$f":"IF(ISERROR(ROUNDDOWN(N42/R42,3)),\"\",ROUNDDOWN(N42/R42,3))","v":""},"","","",null,null,null,0,null,null,null,0,{"$f":"IF(ISERROR(ROUNDDOWN(Z42/AD42,3)),\"\",ROUNDDOWN(Z42/AD42,3))","v":""},"","",""]
[]
[]
["月初日",{"$f":"DATE(YEAR(基本事項!A5)+1,1,1)","v":"2025-01-01"},null,null,null,null,null,null,null,null,null,null,null,{"$f":"DATE(YEAR(基本事項!A5)+1,2,1)","v":"2025-02-01"},null,null,null,null,null,null,null,null,null,null,null,{"$f":"DATE(YEAR(基本事項!A5)+1,3,1)","v":"2025-03-01"}]
[null,"在所園児",null,null,null,"当月定員",null,null,null,"在所率",null,null,null,"在所園児",null,null,null,"当月定員",null,null,null,"在所率",null,null,null,"在所園児",null,null,null,"当月定員",null,null,null,"在所率"]
[null,"1号","2号","3号","計","1号","2号","3号","計","１号","2号","3号","計","1号","2号","3号","計","1号","2号","3号","計","１号","2号","3号","計","1号","2号","3号","計","1号","2号","3号","計","１号","2号","3号","計"]
[null,"(a)",null,null,null,"(b)",null,null,null,"(a/b)",null,null,null,"(a)",null,null,null,"(b)",null,null,null,"(a/b)",null,null,null,"(a)",null,null,null,"(b)",null,null,null,"(a/b)"]
[null,"人",null,null,null,null,null,null,"人",null,null,null,"％","人",null,null,null,null,null,null,"人",null,null,null,"％","人",null,null,null,null,null,null,"人",null,null,null,"％"]
[{"$f":"DATE(YEAR(基本事項!A5)-5,MONTH(基本事項!A5)+1,DAY(基本事項!A5))","v":43586},null,null,null,{"$f":"D50+B50+C50","v":0},null,null,null,{"$f":"H50+F50+G50","v":0},null,{"$f":"IF(ISERROR(ROUNDDOWN(C50/G50,3)),\"\",ROUNDDOWN(C50/G50,3))","v":""},{"$f":"IF(ISERROR(ROUNDDOWN(D50/H50,3)),\"\",ROUNDDOWN(D50/H50,3))","v":""},"",null,null,null,{"$f":"P50+N50+O50","v":0},null,null,null,{"$f":"T50+R50+S50","v":0},null,{"$f":"IF(ISERROR(ROUNDDOWN(O50/S50,3)),\"\",ROUNDDOWN(O50/S50,3))","v":""},{"$f":"IF(ISERROR(ROUNDDOWN(P50/T50,3)),\"\",ROUNDDOWN(P50/T50,3))","v":""},"",null,null,null,{"$f":"AB50+Z50+AA50","v":0},null,null,null,{"$f":"AF50+AD50+AE50","v":0},null,{"$f":"IF(ISERROR(ROUNDDOWN(AA50/AE50,3)),\"\",ROUNDDOWN(AA50/AE50,3))","v":""},{"$f":"IF(ISERROR(ROUNDDOWN(AB50/AF50,3)),\"\",ROUNDDOWN(AB50/AF50,3))","v":""},""]
[{"$f":"DATE(YEAR(基本事項!A5)-4,MONTH(基本事項!A5)+1,DAY(基本事項!A5))","v":43952},null,null,null,0,null,null,null,0,null,"","","",null,null,null,0,null,null,null,0,null,"","","",null,null,null,0,null,null,null,0,null,"","",""]
[{"$f":"DATE(YEAR(基本事項!A5)-3,MONTH(基本事項!A5)+1,DAY(基本事項!A5))","v":44317},null,null,null,0,null,null,null,0,null,"","","",null,null,null,0,null,null,null,0,null,"","","",null,null,null,0,null,null,null,0,null,"","",""]
[{"$f":"DATE(YEAR(基本事項!A5)-2,MONTH(基本事項!A5)+1,DAY(基本事項!A5))","v":44682},null,null,null,0,null,null,null,0,{"$f":"IF(ISERROR(ROUNDDOWN(B53/F53,3)),\"\",ROUNDDOWN(B53/F53,3))","v":""},"","","",null,null,null,0,null,null,null,0,{"$f":"IF(ISERROR(ROUNDDOWN(N53/R53,3)),\"\",ROUNDDOWN(N53/R53,3))","v":""},"","","",null,null,null,0,null,null,null,0,{"$f":"IF(ISERROR(ROUNDDOWN(Z53/AD53,3)),\"\",ROUNDDOWN(Z53/AD53,3))","v":""},"","",""]
[{"$f":"DATE(YEAR(基本事項!A5)-1,MONTH(基本事項!A5)+1,DAY(基本事項!A5))","v":45047},null,null,null,0,null,null,null,0,{"$f":"IF(ISERROR(ROUNDDOWN(B54/F54,3)),\"\",ROUNDDOWN(B54/F54,3))","v":""},"","","",null,null,null,0,null,null,null,0,{"$f":"IF(ISERROR(ROUNDDOWN(N54/R54,3)),\"\",ROUNDDOWN(N54/R54,3))","v":""},"","","",null,null,null,0,null,null,null,0,{"$f":"IF(ISERROR(ROUNDDOWN(Z54/AD54,3)),\"\",ROUNDDOWN(Z54/AD54,3))","v":""},"","",""]
[{"$f":"基本事項!A5","v":45383},null,null,null,0,null,null,null,0,{"$f":"IF(ISERROR(ROUNDDOWN(B55/F55,3)),\"\",ROUNDDOWN(B55/F55,3))","v":""},"","","",null,null,null,0,null,null,null,0,{"$f":"IF(ISERROR(ROUNDDOWN(N55/R55,3)),\"\",ROUNDDOWN(N55/R55,3))","v":""},"","","",null,null,null,0,null,null,null,0,{"$f":"IF(ISERROR(ROUNDDOWN(Z55/AD55,3)),\"\",ROUNDDOWN(Z55/AD55,3))","v":""},"","",""]
[]
[]
[null,"注１","施設全体（幼稚園機能、保育所機能部分の合計）の在所状況に基づき記載すること。",null,null,null,null,null,null,null,null,null,null,null,null,null,null,null,null,null,null,null,null,"年度",null,"合計"]
[null,"２","「在所人員」は、広域入所を含む総人員数を記入すること",null,null,null,null,null,null,null,null,null,null,null,null,null,null,null,null,null,null,null,null,null,null,"在所園児",null,null,null,"当月定員",null,null,null,"在所率"]
[null,"  ３",{"$f":"TEXT(基本事項!A5,\"「ggge年度」\")&\"は、作成日前月までの状況を記入すること\"","v":"「令和6年度」は、作成日前月までの状況を記入すること"},null,null,null,null,null,null,null,null,null,null,null,null,null,null,null,null,null,null,null,null,null,null,"1号","2号","3号","計","1号","2号","3号","計","１号","2号","3号","計"]
[null,"４","「在所率」は、小数第１位(第２位切り捨て)まで記入すること",null,null,null,null,null,null,null,null,null,null,null,null,null,null,null,null,null,null,null,null,null,null,"(a)",null,null,null,"(b)",null,null,null,"(a/b)"]
[null,null,null,null,null,null,null,null,null,null,null,null,null,null,null,null,null,null,null,null,null,null,null,null,null,"人",null,null,null,null,null,null,"人",null,null,null,"％"]
[null,null,null,null,null,null,null,null,null,null,null,null,null,null,null,null,null,null,null,null,null,null,null,{"$f":"DATE(YEAR(基本事項!A5)-5,MONTH(基本事項!A5)+1,DAY(基本事項!A5))","v":43586},null,null,{"$f":"C11+O11+AA11+C24+O24+AA24+C37+O37+AA37+C50+O50+AA50","v":0},0,0,null,{"$f":"G11+S11+AE11+G24+S24+AE24+G37+S37+AE37+G50+S50+AE50","v":0},0,0,null,{"$f":"IF(ISERROR(ROUNDDOWN(AA63/AE63,3)),\"\",ROUNDDOWN(AA63/AE63,3))","v":""},{"$f":"IF(ISERROR(ROUNDDOWN(AB63/AF63,3)),\"\",ROUNDDOWN(AB63/AF63,3))","v":""},""]
[null,null,null,null,null,null,null,null,null,null,null,null,null,null,null,null,null,null,null,null,null,null,null,{"$f":"DATE(YEAR(基本事項!A5)-4,MONTH(基本事項!A5)+1,DAY(基本事項!A5))","v":43952},null,null,0,0,0,null,0,0,0,null,{"$f":"IF(ISERROR(ROUNDDOWN(AA64/AE64,3)),\"\",ROUNDDOWN(AA64/AE64,3))","v":""},"",""]
[null,null,null,null,null,null,null,null,null,null,null,null,null,null,null,null,null,null,null,null,null,null,null,{"$f":"DATE(YEAR(基本事項!A5)-3,MONTH(基本事項!A5)+1,DAY(基本事項!A5))","v":44317},null,null,0,0,0,null,0,0,0,null,{"$f":"IF(ISERROR(ROUNDDOWN(AA65/AE65,3)),\"\",ROUNDDOWN(AA65/AE65,3))","v":""},"",""]
[null,null,null,null,null,null,null,null,null,null,null,null,null,null,null,null,null,null,null,null,null,null,null,{"$f":"DATE(YEAR(基本事項!A5)-2,MONTH(基本事項!A5)+1,DAY(基本事項!A5))","v":44682},null,{"$f":"B14+N14+Z14+B27+N27+Z27+B40+N40+Z40+B53+N53+Z53","v":0},0,0,0,{"$f":"F14+R14+AD14+F27+R27+AD27+F40+R40+AD40+F53+R53+AD53","v":0},0,0,0,{"$f":"IF(ISERROR(ROUNDDOWN(Z66/AD66,3)),\"\",ROUNDDOWN(Z66/AD66,3))","v":""},"","",""]
[null,null,null,null,null,null,null,null,null,null,null,null,null,null,null,null,null,null,null,null,null,null,null,{"$f":"DATE(YEAR(基本事項!A5)-1,MONTH(基本事項!A5)+1,DAY(基本事項!A5))","v":45047},null,{"$f":"B15+N15+Z15+B28+N28+Z28+B41+N41+Z41+B54+N54+Z54","v":0},0,0,0,{"$f":"F15+R15+AD15+F28+R28+AD28+F41+R41+AD41+F54+R54+AD54","v":0},0,0,0,"","","",""]
[null,null,null,null,null,null,null,null,null,null,null,null,null,null,null,null,null,null,null,null,null,null,null,{"$f":"基本事項!A5","v":45383},null,{"$f":"B16+N16+Z16+B29+N29+Z29+B42+N42+Z42+B55+N55+Z55","v":0},0,0,0,{"$f":"F16+R16+AD16+F29+R29+AD29+F42+R42+AD42+F55+R55+AD55","v":0},0,0,0,"","","",""]

{"sheet":"施設現況(保)","index":24,"n_rows":27,"n_cols":12,"rows_kept":27,"cut":false,"hidden":false,"merged":[[2,7,2,12],[8,9,8,10],[22,6,22,7],[5,3,5,5],[3,8,3,12],[15,11,15,12],[16,11,16,12],[17,11,17,12],[19,11,19,12],[11,8,12,8],[8,6,8,8],[9,6,9,7],[10,6,10,7],[11,11,12,12],[11,10,12,10],[8,11,8,12],[4,0,4,2],[5,0,5,2],[11,3,12,3],[11,4,12,4],[11,5,12,5],[11,0,12,0],[9,0,10,0],[8,0,8,2],[13,0,13,1],[14,0,14,1],[15,0,15,1],[11,9,12,9],[20,11,20,12],[11,2,12,2],[11,6,12,7],[13,6,13,7],[14,6,14,7],[15,6,15,7],[16,6,16,7],[17,6,17,7],[18,6,18,7],[19,6,19,7],[20,6,20,7],[16,0,16,1],[17,0,17,1],[18,0,18,1],[19,0,19,1],[20,0,20,1],[21,0,21,1],[23,11,23,12],[22,0,22,1],[23,0,23,1],[21,6,21,7],[23,6,23,7],[26,0,26,1],[25,11,25,12],[26,11,26,12],[24,11,24,12],[24,6,24,7],[24,0,24,1],[26,6,26,7],[25,0,25,1],[25,6,25,7],[9,11,9,12],[10,11,10,12],[18,11,18,12],[22,11,22,12],[21,11,21,12],[14,11,14,12],[13,11,13,12]]}
["保育所施設の現況"]
[]
[null,null,null,null,null,null,null,{"$f":"\"（施設名：\"&基本事項!B11&\"　　）\"","v":"（施設名：　　）"}]
[]
["認可（変更届出）年月",null,null,null,null,null,"年",null,"月"]
["構　　造　　等",null,null,null,null,null,"造",null,"階建"]
[]
["児童福祉行政指導監査報告番号 2-(3)、4-(1)"]
["区　　分",null,null,"対象\n児童数","必要\n面積","室数","認可\n(変更届出)\n面積",null,null,"現在の\n面積",null,"摘　　要"]
["０・1歳","①乳児室(1.65㎡/人)\n（ほふくしない子の部屋）","必置",null,{"$f":"D10*1.65","v":0},null,null,null,"㎡",null,"㎡"]
[null,"②ほふく室(3.3㎡/人)\n（ほふくする子の部屋）","必置",null,{"$f":"D11*3.3","v":0},null,null,null,"㎡",null,"㎡"]
["2歳児～","③保育室(1.98㎡/人)","必置",null,{"$f":"D12*1.98","v":0},null,null,null,"㎡",null,"㎡"]
[null,"④遊戯室(1.98㎡/人)"]
["　医務室",null,"必置",null,null,null,null,null,"㎡",null,"㎡","H25.3以前から入所が２歳以上児のみの場合、経過措置有"]
["　調理室",null,"必置",null,null,null,null,null,"㎡",null,"㎡"]
["　便所",null,"必置",null,null,null,null,null,"㎡",null,"㎡"]
["　事務室",null,"－",null,null,null,null,null,"㎡",null,"㎡"]
["　調乳室",null,"－",null,null,null,null,null,"㎡",null,"㎡"]
["　もく浴室",null,"－",null,null,null,null,null,"㎡",null,"㎡"]
["　その他",null,"－",null,null,null,null,null,"㎡",null,"㎡"]
[null,null,"－",null,null,null,null,null,"㎡",null,"㎡"]
[null,null,"－",null,null,null,null,null,"㎡",null,"㎡"]
["　計",null,"－",{"$f":"SUM(D10:D13)","v":0},null,{"$f":"SUM(F10:F22)","v":0},{"$f":"SUM(G10:H22)","v":0},null,"㎡",{"$f":"SUM(J10:J22)","v":0},"㎡"]
["　建築面積　　　（A）",null,"－",null,null,null,null,null,"㎡",null,"㎡"]
["　屋外遊戯場　 （B）",null,"－",null,{"$f":"D25*3.3","v":0},null,null,null,"㎡",null,"㎡"]
["　その他の面積 （C）",null,"－",null,null,null,null,null,"㎡",null,"㎡"]
["敷地総面積\n（D）＝（A）＋（B）＋（C）",null,"－",null,null,null,{"$f":"SUM(G24:H26)","v":0},null,"㎡",{"$f":"SUM(J24:J26)","v":0},"㎡"]

{"sheet":"施設現況(幼保共)","index":25,"n_rows":22,"n_cols":11,"rows_kept":22,"cut":false,"hidden":false,"merged":[[14,0,14,2],[22,2,22,15],[15,0,15,2],[20,0,20,10],[12,0,12,1],[13,7,13,8],[15,3,15,10],[13,0,13,2],[13,3,13,4],[1,4,1,10],[3,0,3,2],[10,3,10,10],[4,1,4,10],[5,1,5,10],[7,0,7,1],[9,0,9,2],[10,0,10,2],[8,0,8,2],[8,3,8,4],[8,7,8,8]]}
["施設の現況（幼保連携型認定こども園、保育所型認定こども園共通）"]
[null,null,null,null,{"$f":"\"（施設名：\"&基本事項!B11&\"　　）\"","v":"（施設名：　　）"}]
[]
["直近の認可（変更届出）年月",null,null,null,null,"年",null,"月"]
["※１","　認可以降、構造設備等の変更をしていない場合は、認可年月（みなし認可を受けた施設については、認可申請年月）を記載してください。"]
["※２","　認可以降、構造設備等の変更をしている場合は、変更届出年月を記載してください。"]
[]
["園　舎　番　号"]
["構　　造　　等",null,null,null,null,"造",null,"　階建"]
["建築年月（改築年月）",null,null,null,null,"年",null,"月","（",null,"）"]
["耐　火　構　造"]
[null,null,null,"※改築を実施している場合は（　　）に改築年月を記入"]
["園　舎　番　号"]
["構　　造　　等",null,null,null,null,"造",null,"　階建"]
["建築年月（改築年月）",null,null,null,null,"年",null,"月","（",null,"）"]
["耐　火　構　造"]
[null,null,null,"※改築を実施している場合は（　　）に改築年月を記入"]
[]
["※　園舎が複数棟に分かれる場合は、各棟毎に構造及び耐火構造の欄を追加して記載してください。"]
[]
["園舎及び保育室等の状況"]
[null,"※面積等の総括表（幼保共）及び各室別面積表（幼保共）を作成すること。"]

{"sheet":"面積等の総括表(幼保共)","index":26,"n_rows":53,"n_cols":21,"rows_kept":53,"cut":false,"hidden":false,"merged":[[6,15,6,18],[17,15,17,18],[18,15,18,18],[9,16,9,18],[7,15,8,15],[7,17,8,18],[5,0,12,0],[5,1,6,2],[5,3,6,3],[5,4,5,18],[6,4,6,5],[6,6,6,13],[7,1,12,1],[7,2,12,2],[7,3,12,3],[7,6,7,9],[7,10,7,13],[7,14,8,14],[8,6,8,9],[8,10,8,13],[7,5,8,5],[7,4,8,4],[9,4,12,4],[9,5,12,5],[31,15,44,18],[30,15,30,18],[48,15,48,18],[47,15,47,18],[46,15,46,18],[45,15,45,18],[25,15,25,18],[12,17,12,18],[10,16,11,16],[9,15,12,15],[21,16,21,17],[22,16,22,17],[19,15,19,18],[13,15,16,18],[9,6,12,9],[9,10,12,13],[15,0,16,0],[15,1,16,1],[16,6,16,9],[16,10,16,13],[17,0,18,0],[17,1,18,1],[13,0,14,0],[13,1,14,1],[13,3,18,3],[13,4,13,5],[13,6,13,9],[13,10,13,13],[17,6,24,9],[17,10,24,13],[19,0,20,0],[19,1,20,1],[19,3,20,3],[19,4,19,5],[20,2,24,2],[20,4,24,5],[23,3,24,3],[21,3,22,3],[23,1,24,1],[23,0,24,0],[21,1,22,1],[21,0,22,0],[20,14,24,14],[13,14,16,14],[14,2,16,2],[14,4,18,5],[32,0,32,2],[32,4,32,5],[32,6,44,9],[32,10,32,13],[25,4,25,5],[25,6,25,9],[25,10,25,13],[29,0,30,2],[29,3,30,3],[29,4,29,18],[30,4,30,5],[30,6,30,9],[30,10,30,13],[34,14,36,14],[35,0,35,2],[35,4,35,5],[36,0,36,2],[31,0,31,2],[31,4,31,5],[31,6,31,9],[39,14,44,14],[40,0,40,2],[40,4,40,5],[41,0,41,2],[41,4,41,5],[42,0,42,2],[42,4,42,5],[43,0,43,2],[43,4,43,5],[44,0,44,2],[44,4,44,5],[34,0,34,2],[34,4,34,5],[36,4,36,5],[31,10,31,13],[31,14,32,14],[37,0,37,2],[37,4,37,5],[38,0,38,2],[38,4,38,5],[49,0,49,3],[49,4,49,18],[47,0,47,3],[47,4,47,5],[47,6,47,9],[47,10,47,13],[48,0,48,3],[48,4,48,5],[1,0,1,18],[45,0,45,3],[45,4,45,5],[45,6,45,9],[45,10,45,13],[46,0,46,3],[46,4,46,5],[46,6,46,9],[46,10,46,13],[48,6,48,9],[48,10,48,13],[39,0,39,2],[39,4,39,5],[33,0,33,2],[33,4,33,5],[33,10,44,13]]}
[]
["面　積　等　の　総　括　表"]
[]
["１　園舎及び保育室等の必要面積"]
[null,null,null,null,null,null,null,null,null,null,null,null,null,null,null,null,null,null,"（単位：人、㎡）"]
["児童の\n年齢","4/1現在\n在園児数",null,"学級数","必　　　　　要　　　　　面　　　　　積"]
[null,null,null,null,"園　　　　　舎",null,"乳児室又はほふく室",null,null,null,null,null,null,null,"保育室又は\n遊戯室","園　　　　　庭"]
[null,"年齢別","区分別","年齢別","④0～2\n　歳児","⑥～⑧の合計","乳児室",null,null,null,"ほふく室",null,null,null,"1.98㎡/人","⑨2歳児",null,"3.3㎡/人"]
[null,null,null,null,null,null,"1.65㎡/人",null,null,null,"3.3㎡/人"]
[null,null,null,null,"⑤3～5\n　歳児","1学級の場合：180㎡\n2学級以上の場合：320＋100×(学級数－2)㎡","２歳未満の\nほふくしない\n子ども",null,null,null,"２歳未満の\nほふくする\n子ども",null,null,null,null,"⑩3～5\n　歳児","次の⑪又は⑫の大きい方"]
[null,null,null,null,null,null,null,null,null,null,null,null,null,null,null,null,"⑪","2学級\n以下","330＋30×(学級数－1) ㎡"]
[null,null,null,null,null,null,null,null,null,null,null,null,null,null,null,null,null,"3学級\n以上","400＋80×(学級数－3) ㎡"]
[null,null,null,null,null,null,null,null,null,null,null,null,null,null,null,null,"⑫","3.3㎡/人"]
["０歳",null,"①",null,"④（⑥＋⑦＋⑧）",null,"⑥（人数×1.65㎡）",null,null,null,"⑦（人数×3.3㎡）"]
[null,null,{"$f":"SUM(B14:B17)","v":0},null,{"$f":"SUM(G17:N17,O19)","v":0},null,null,"人数",null,null,null,"人数"]
["満１歳",null,null,null,null,null,null,null,null,null,null,null,null,null,null,null,null,null,null,null,"チェック"]
[null,null,null,null,null,null,{"$f":"I15*1.65","v":0},null,null,null,{"$f":"M15*3.3","v":0},null,null,null,null,null,null,null,null,null,{"$f":"IF(SUM(I15,M15)=C15,\"ＯＫ\",\"不突合\")","v":"ＯＫ"}]
["満２歳",null,"②",null,null,null,null,null,null,null,null,null,null,null,"⑧（②×1.98㎡）","⑨（②×3.3㎡）"]
[null,null,{"$f":"SUM(B18)","v":0},null,null,null,null,null,null,null,null,null,null,null,{"$f":"C19*1.98","v":0},{"$f":"C19*3.3","v":0}]
["満３歳",null,"③",{"$f":"'表紙(幼保)'!AM13","v":0},"⑤学級数に応じた面積",null,null,null,null,null,null,null,null,null,"③×1.98㎡","⑩（⑪又は⑫の大きい方）"]
[null,null,{"$f":"SUM(B20:B24)","v":0},null,{"$f":"IF(D26=0,0,IF(D26=1,180,320+100*(D26-2)))","v":0},null,null,null,null,null,null,null,null,null,{"$f":"C21*1.98","v":0}]
["満４歳",null,null,{"$f":"'表紙(幼保)'!AP13","v":0},null,null,null,null,null,null,null,null,null,null,null,"⑪",{"$f":"IF('面積等の総括表(幼保共)'!D26=0,0,IF('面積等の総括表(幼保共)'!D26<=2,330+30*('面積等の総括表(幼保共)'!D26-1),400+80*('面積等の総括表(幼保共)'!D26-3)))","v":0},null,{"$f":"IF(AND(B26<>0,Q22>=Q23),\"採用\",\"\")","v":""}]
[null,null,null,null,null,null,null,null,null,null,null,null,null,null,null,"⑫",{"$f":"'面積等の総括表(幼保共)'!C21*3.3","v":0},null,{"$f":"IF(AND(B26<>0,Q22<Q23),\"採用\",\"\")","v":""}]
["満５歳",null,null,{"$f":"'表紙(幼保)'!AS13","v":0}]
[]
["計",{"$f":"SUM(B14:B24)","v":0},{"$f":"SUM(C15,C19,C21)","v":0},{"$f":"SUM(D20:D24)","v":0},{"$f":"SUM(E15,E21)","v":0},null,{"$f":"G17","v":0},null,null,null,{"$f":"K17","v":0},null,null,null,{"$f":"SUM(O19,O21)","v":0},{"$f":"SUM(P19,MAX(Q22:R23))","v":0}]
[]
["２　園舎及び保育室等の保有面積"]
[null,null,null,null,null,null,null,null,null,null,null,null,null,null,null,null,null,null,"（単位：㎡）"]
["区　　　分",null,null,"室数","保　　　　　有　　　　　面　　　　　積"]
[null,null,null,null,"園　　　　　舎",null,"乳児室",null,null,null,"ほふく室",null,null,null,"保育室又は\n遊戯室","園　　　　　庭"]
["乳児室",null,null,null,{"$f":"'各室別面積表(幼保共)'!D10","v":0},null,{"$f":"E32","v":0}]
["ほふく室",null,null,null,{"$f":"'各室別面積表(幼保共)'!D13","v":0},null,null,null,null,null,{"$f":"E33","v":0}]
["保育室（２歳児）",null,null,null,{"$f":"'各室別面積表(幼保共)'!D18-'各室別面積表(幼保共)'!L18","v":0},null,null,null,null,null,null,null,null,null,{"$f":"E34","v":0}]
["沐浴室",null,null,null,{"$f":"'各室別面積表(幼保共)'!C19","v":0}]
["調乳室",null,null,null,{"$f":"'各室別面積表(幼保共)'!C20","v":0}]
["上記のほか３歳未満児の保育の用に供する施設及び設備\n（　　　　　　　　　　）",null,null,null,{"$f":"'各室別面積表(幼保共)'!C21","v":0}]
["保育室（３歳以上児）",null,null,null,{"$f":"SUM('各室別面積表(幼保共)'!D27,'各室別面積表(幼保共)'!D33,'各室別面積表(幼保共)'!D39)-'各室別面積表(幼保共)'!L27-'各室別面積表(幼保共)'!L33-'各室別面積表(幼保共)'!L39","v":0},null,null,null,null,null,null,null,null,null,{"$f":"E38","v":0}]
["遊戯室",null,null,null,{"$f":"'各室別面積表(幼保共)'!D40+'各室別面積表(幼保共)'!D52","v":0},null,null,null,null,null,null,null,null,null,{"$f":"IF('各室別面積表(幼保共)'!C51=\"○\",0,IF('各室別面積表(幼保共)'!C52=\"○\",'各室別面積表(幼保共)'!D52,\"\"))","v":""}]
["職員室",null,null,null,{"$f":"'各室別面積表(幼保共)'!C41","v":0}]
["調理室",null,null,null,{"$f":"'各室別面積表(幼保共)'!C42","v":0}]
["保健室（医務室）",null,null,null,{"$f":"'各室別面積表(幼保共)'!C43","v":0}]
["廊下",null,null,null,{"$f":"'各室別面積表(幼保共)'!C44","v":0}]
["便所",null,null,null,{"$f":"'各室別面積表(幼保共)'!C45","v":0}]
["その他",null,null,null,{"$f":"SUM('各室別面積表(幼保共)'!C46,'各室別面積表(幼保共)'!K46)","v":0}]
["　Ａ　保有面積",null,null,null,{"$f":"SUM(E32:F45)","v":0},null,{"$f":"G32","v":0},null,null,null,{"$f":"K33","v":0},null,null,null,{"$f":"SUM(O34,O38:O39)","v":0}]
["　Ｂ　必要面積",null,null,null,{"$f":"E26","v":0},null,{"$f":"G26","v":0},null,null,null,{"$f":"K26","v":0},null,null,null,{"$f":"O26","v":0},{"$f":"P26","v":0}]
["　Ｃ　差　　引（＝Ａ－Ｂ）",null,null,null,{"$f":"E46-E47","v":0},null,{"$f":"G46-G47","v":0},null,null,null,{"$f":"K46-K47","v":0},null,null,null,{"$f":"O46-O47","v":0},{"$f":"P46-P47","v":0}]
["適　　　否",null,null,null,{"$f":"IF(E48>=0,\"適\",\"否\")","v":"適"},null,{"$f":"IF(G48>=0,\"適\",\"否\")","v":"適"},null,null,null,{"$f":"IF(K48>=0,\"適\",\"否\")","v":"適"},null,null,null,{"$f":"IF(O48>=0,\"適\",\"否\")","v":"適"},{"$f":"IF(P48>=0,\"適\",\"否\")","v":"適"}]
["備　　　考\n（移行特例を適用した場合に記入）"]
["　※　既存施設のまま認定こども園に移行する場合、「否」が出た項目については、既存施設特例が適用される場合がある。"]
["　※　黄色で着色したセルのみ入力してください。（白色のセルには計算式が入っている場合がありますので、ご注意願います。）　　　"]
["　"]

{"sheet":"各室別面積表(幼保共)","index":27,"n_rows":56,"n_cols":12,"rows_kept":56,"cut":false,"hidden":false,"merged":[[0,7,0,8],[3,0,6,1],[3,2,4,3],[3,4,4,4],[3,5,6,5],[3,6,6,6],[3,7,6,7],[1,0,1,8],[3,10,6,10],[3,11,6,11],[4,8,6,8],[5,2,6,2],[5,3,6,3],[5,4,6,4],[55,0,55,8],[54,0,54,8],[41,0,41,1],[7,0,9,0],[10,0,12,0],[13,0,17,0],[18,0,18,1],[19,0,19,1],[20,0,20,1],[21,0,26,0],[27,0,32,0],[33,0,38,0],[39,0,39,1],[40,0,40,1],[50,0,50,1],[51,0,51,1],[49,0,49,1],[42,0,42,1],[43,0,43,1],[44,0,44,1],[45,0,45,1],[46,0,46,1]]}
[]
["各室別面積表"]
[]
["名　　称",null,"面　　　　積",null,"遊戯室との兼用","4/1現在在園児数","必要面積","適否",null,null,"壁芯と内法の差","遊戯室との兼用部分"]
[null,null,null,null,null,null,null,null,"移行特例の適用"]
[null,null,"壁芯面積","内法有効面積","（移行特例適用施設のみ）"]
[]
["乳　児　室","(1)",null,null,null,null,{"$f":"IF(F8=\"\",\"\",1.65*F8)","v":""},{"$f":"IF(D8=\"\",\"\",IF(D8>=G8,\"適\",\"否\"))","v":""},null,null,{"$f":"C8-D8","v":0},{"$f":"IF(E8=\"○\",D8,0)","v":0}]
[null,"(2)",null,null,null,null,{"$f":"IF(F9=\"\",\"\",1.65*F9)","v":""},{"$f":"IF(D9=\"\",\"\",IF(D9>=G9,\"適\",\"否\"))","v":""},null,null,{"$f":"C9-D9","v":0},{"$f":"IF(E9=\"○\",D9,0)","v":0}]
[null,"小計",{"$f":"SUM(C8:C9)","v":0},{"$f":"SUM(D8:D9)","v":0},null,{"$f":"SUM(F8:F9)","v":0},null,null,null,null,{"$f":"SUM(K8:K9)","v":0},{"$f":"SUM(L8:L9)","v":0}]
["ほ ふ く 室","(1)",null,null,null,null,{"$f":"IF(F11=\"\",\"\",3.3*F11)","v":""},"",null,null,{"$f":"C11-D11","v":0},{"$f":"IF(E11=\"○\",D11,0)","v":0}]
[null,"(2)",null,null,null,null,{"$f":"IF(F12=\"\",\"\",3.3*F12)","v":""},"",null,null,{"$f":"C12-D12","v":0},{"$f":"IF(E12=\"○\",D12,0)","v":0}]
[null,"小計",{"$f":"SUM(C11:C12)","v":0},{"$f":"SUM(D11:D12)","v":0},null,{"$f":"SUM(F11:F12)","v":0},null,null,null,null,{"$f":"SUM(K11:K12)","v":0},{"$f":"SUM(L11:L12)","v":0}]
["２歳児保育室","(1)",null,null,null,null,{"$f":"IF(F14=\"\",\"\",1.98*F14)","v":""},"",null,null,{"$f":"C14-D14","v":0},{"$f":"IF(E14=\"○\",D14,0)","v":0}]
[null,"(2)",null,null,null,null,{"$f":"IF(F15=\"\",\"\",1.98*F15)","v":""},"",null,null,{"$f":"C15-D15","v":0},{"$f":"IF(E15=\"○\",D15,0)","v":0}]
[null,"(3)",null,null,null,null,null,null,null,null,{"$f":"C16-D16","v":0},{"$f":"IF(E16=\"○\",D16,0)","v":0}]
[null,"(4)",null,null,null,null,null,null,null,null,{"$f":"C17-D17","v":0},{"$f":"IF(E17=\"○\",D17,0)","v":0}]
[null,"小計",{"$f":"SUM(C14:C17)","v":0},{"$f":"SUM(D14:D17)","v":0},null,{"$f":"SUM(F14:F17)","v":0},null,null,null,null,{"$f":"SUM(K14:K17)","v":0},{"$f":"SUM(L14:L17)","v":0}]
["沐　　浴　　室"]
["調　　乳　　室"]
["上記のほか３歳未満児の保育\nの用に供する施設及び設備"]
["３歳児保育室","(1)",null,null,null,null,{"$f":"IF(F22=\"\",\"\",MAX(53,1.98*F22))","v":""},"","　",null,{"$f":"C22-D22","v":0},{"$f":"IF(E22=\"○\",D22,0)","v":0}]
[null,"(2)",null,null,null,null,{"$f":"IF(F23=\"\",\"\",MAX(53,1.98*F23))","v":""},"",null,null,{"$f":"C23-D23","v":0},{"$f":"IF(E23=\"○\",D23,0)","v":0}]
[null,"(3)",null,null,null,null,{"$f":"IF(F24=\"\",\"\",MAX(53,1.98*F24))","v":""},"",null,null,{"$f":"C24-D24","v":0},{"$f":"IF(E24=\"○\",D24,0)","v":0}]
[null,"(4)",null,null,null,null,{"$f":"IF(F25=\"\",\"\",MAX(53,1.98*F25))","v":""},"",null,null,{"$f":"C25-D25","v":0},{"$f":"IF(E25=\"○\",D25,0)","v":0}]
[null,"(5)",null,null,null,null,{"$f":"IF(F26=\"\",\"\",MAX(53,1.98*F26))","v":""},"",null,null,{"$f":"C26-D26","v":0},{"$f":"IF(E26=\"○\",D26,0)","v":0}]
[null,"小計",{"$f":"SUM(C22:C26)","v":0},{"$f":"SUM(D22:D26)","v":0},null,{"$f":"SUM(F22:F26)","v":0},null,null,null,null,{"$f":"SUM(K22:K26)","v":0},{"$f":"SUM(L22:L26)","v":0}]
["４歳児保育室","(1)",null,null,null,null,{"$f":"IF(F28=\"\",\"\",MAX(53,1.98*F28))","v":""},"",null,null,{"$f":"C28-D28","v":0},{"$f":"IF(E28=\"○\",D28,0)","v":0}]
[null,"(2)",null,null,null,null,{"$f":"IF(F29=\"\",\"\",MAX(53,1.98*F29))","v":""},"",null,null,{"$f":"C29-D29","v":0},{"$f":"IF(E29=\"○\",D29,0)","v":0}]
[null,"(3)",null,null,null,null,{"$f":"IF(F30=\"\",\"\",MAX(53,1.98*F30))","v":""},"",null,null,{"$f":"C30-D30","v":0},{"$f":"IF(E30=\"○\",D30,0)","v":0}]
[null,"(4)",null,null,null,null,{"$f":"IF(F31=\"\",\"\",MAX(53,1.98*F31))","v":""},"",null,null,{"$f":"C31-D31","v":0},{"$f":"IF(E31=\"○\",D31,0)","v":0}]
[null,"(5)",null,null,null,null,{"$f":"IF(F32=\"\",\"\",MAX(53,1.98*F32))","v":""},"",null,null,{"$f":"C32-D32","v":0},{"$f":"IF(E32=\"○\",D32,0)","v":0}]
[null,"小計",{"$f":"SUM(C28:C32)","v":0},{"$f":"SUM(D28:D32)","v":0},null,{"$f":"SUM(F28:F32)","v":0},null,null,null,null,{"$f":"SUM(K28:K32)","v":0},{"$f":"SUM(L28:L32)","v":0}]
["５歳児保育室","(1)",null,null,null,null,{"$f":"IF(F34=\"\",\"\",MAX(53,1.98*F34))","v":""},"",null,null,{"$f":"C34-D34","v":0},{"$f":"IF(E34=\"○\",D34,0)","v":0}]
[null,"(2)",null,null,null,null,{"$f":"IF(F35=\"\",\"\",MAX(53,1.98*F35))","v":""},"",null,null,{"$f":"C35-D35","v":0},{"$f":"IF(E35=\"○\",D35,0)","v":0}]
[null,"(3)",null,null,null,null,{"$f":"IF(F36=\"\",\"\",MAX(53,1.98*F36))","v":""},"",null,null,{"$f":"C36-D36","v":0},{"$f":"IF(E36=\"○\",D36,0)","v":0}]
[null,"(4)",null,null,null,null,{"$f":"IF(F37=\"\",\"\",MAX(53,1.98*F37))","v":""},"",null,null,{"$f":"C37-D37","v":0},{"$f":"IF(E37=\"○\",D37,0)","v":0}]
[null,"(5)",null,null,null,null,{"$f":"IF(F38=\"\",\"\",MAX(53,1.98*F38))","v":""},"",null,null,{"$f":"C38-D38","v":0},{"$f":"IF(E38=\"○\",D38,0)","v":0}]
[null,"小計",{"$f":"SUM(C34:C38)","v":0},{"$f":"SUM(D34:D38)","v":0},null,{"$f":"SUM(F34:F38)","v":0},null,null,null,null,{"$f":"SUM(K34:K38)","v":0},{"$f":"SUM(L34:L38)","v":0}]
["遊戯室（専用部分のみ）",null,null,null,null,null,100,{"$f":"IF(D40=\"\",\"\",IF(D40>=G40,\"適\",\"否\"))","v":""},null,null,{"$f":"C40-D40","v":0}]
["職　　員　　室"]
["調　　理　　室"]
["保健室（医務室）"]
["廊　　　　　下"]
["便　　　　　所"]
["そ　　の　　他",null,null,null,null,null,null,null,null,null,{"$f":"SUM(K10,K13,K18,K27,K33,K39:K40)","v":0},{"$f":"SUM(L10,L13,L18,L27,L33,L39:L40)","v":0}]
["合計（延床面積）",null,{"$f":"SUM(C10,C13,C18,C19:C21,C27,C33,C39,C40:C46)","v":0},null,null,null,null,null,null,null,null,{"$f":"L46-L10-L13","v":0}]
[null,null,null,null,null,null,null,null,null,null,null,"↑"]
["※　遊戯室について",null,null,null,null,null,null,null,null,null,null,"乳児室・ほふく室を除く"]
["区　　　　　　分",null,"いずれかに○","保育室と兼用\nする部分の面積"]
["専用"]
["保育室と兼用",null,null,{"$f":"L47","v":0}]
[]
["※　移行特例を適用した場合、その内容を記入"]
[]
["※　黄色で着色したセルのみ入力してください。（白色のセルには計算式が入っている場合がありますので、ご注意願います。）　　　"]

{"sheet":"一時預かり(一般型)","index":28,"n_rows":27,"n_cols":7,"rows_kept":27,"cut":false,"hidden":false,"merged":[[18,9,18,10],[25,4,25,5],[26,4,26,5],[17,4,17,5],[23,4,23,5],[22,4,22,5],[3,2,3,3],[19,4,19,5],[20,4,20,5],[21,4,21,5],[24,4,24,5],[12,4,12,6]]}
[]
["一般型一時預かり事業"]
[null,null,null,"の欄に記入のこと"]
[null,"施設名称"]
[]
[" 従事者数要件"]
[null,"区分","一時預かり\n定員","A　必要従事者数"]
[null,"0歳児",null,{"$f":"C8*0.3334","v":0}]
[null,"1歳児",null,{"$f":"C9*0.1667","v":0}]
[null,"2歳児",null,{"$f":"C10*0.1667","v":0}]
[null,"3歳児",null,{"$f":"C11*0.05","v":0}]
[null,"4歳児",null,{"$f":"C12*0.034","v":0}]
[null,"5歳児",null,{"$f":"C13*0.034","v":0}]
[null,"合計（注）",{"$f":"SUM(C8:C13)","v":0},0]
[]
["　一時預かり事業で配置する従事者の人数",null,null,"人　　うち保育士",null,"人"]
[]
["番号","点検事項","施設確認欄","判定","基準等",null,"確認結果等"]
[1,"＜配置人数＞\n従事者人数が「Ａ必要従事者数合計」＜「Ｂ配置する従事者人数」となっており、かつ、常時２人以上配置されていますか。","　","はいの場合、５へ。\nいいえの場合、以下へ。"]
[2,"Ｂが１人であるときは、保育士が配置されていますか。",null,"いいえの場合、保育士配置が必要。ただし、７を満たす場合は、家庭的保育者でも可","　一般型一時預かり事業の保育従事者の人数は、一定の条件を満たす場合に限り、１人とすることができますが、その場合、１人である保育従事者は原則保育士でなければいけません。【規則第36条の35第1号ハ】"]
[3,"１が「いいえ」の場合、保育従事者が保育士１人であるときに事業を利用している乳幼児の人数は、保育士１人で処遇できる人数ですか。",null,"いいえの場合、配置又は預かり人数の減が必要。","　保育士１人で処遇できる乳幼児の人数とは、保育所の職員配置の基準に準じて乳幼児の年齢別人数に基づき算定した必要な保育従事者の人数が１人となる範囲の乳幼児の人数をいいます。【規則第36条の35第1号ハ】"]
[4,"１が「いいえ」の場合、一時預かり事業が保育所等と一体的に実施され、保育所等の保育従事者による支援を受けられる体制になっていますか。",null,"いいえの場合、配置又は体制整備・預かり人数の減が必要","　一般型一時預かり事業を行うに当たって、保育従事者を保育士１人とすることができるのは、処遇する乳幼児の人数が保育士１人で処遇できる人数であることに加え、一時預かり事業が保育所等と一体的に実施され、保育所等の保育従事者からの支援を受けることができる体制であることが必要です。【規則第36条の35第1号ハ】"]
[5,"＜資格＞\n一時預かり事業の保育従事者に保育士以外の者がいますか。","　","はいの場合、以下へ。\nいいえの場合、適合","一時預かり事業の保育従事者は、保育士又は研修受講者である必要があります。"]
[6,"５が「はい」の場合、一時預かり事業の保育従事者のうち保育士以外の者は、全員、市町村長等が行う研修を修了していますか。",null,"はいの場合、以下へ\nいいえの場合、配置が必要。","　一般型一時預かり事業の基準では、事業を利用する乳幼児の処遇を行う者は、保育士又は市町村長等が行う研修を修了した者でなければいけません。「研修を修了した者」とは、次の者を指します。①子育て支援員に係る所定の研修を修了した者②家庭的保育に係る所定の研修を修了した者【規則第36条の35第1号ロ】"]
[7,"＜預かり人数に応じた特例＞\n\n一時預かり事業を利用している乳幼児の人数は１日当たり平均３人以下ですか。",null,"はいの場合、９へ。\nいいえの場合、８へ。","　一般型一時預かり事業において、事業を利用する乳幼児の人数が１日当たり平均３人以下である場合には、職員の配置基準上、家庭的保育者を保育士として扱うことができます。　１日当たり平均の利用人数は、年間延べ利用乳幼児数を年間開所日数で除して得た数です。【規則第36条の35第1号ロ】"]
[8,"一時預かり事業の保育従事者の半数以上は保育士となっていますか。 ",null,"はいの場合、適合。\nいいえの場合、配置又は預かり人数の減が必要","　一般型一時預かり事業の保育従事者のうち半数以上は保育士でなければいけません。【規則第36条の35第1号ロ】"]
[9,"一時預かり事業の保育従事者の半数以上は保育士又は家庭的保育者となっていますか。",null,"はいの場合、適合。\nいいえの場合、配置が必要。","　一般型一時預かり事業の保育従事者のうち半数以上は保育士でなければいけませんが、事業を利用する乳幼児の人数が１日当たり平均３人以下である場合には、家庭的保育者を保育士として扱うことができるとされています。【規則第36条の35第1号ロ】"]

{"sheet":"一時預かり(幼稚園型)","index":29,"n_rows":25,"n_cols":7,"rows_kept":25,"cut":false,"hidden":false,"merged":[[3,2,3,3],[24,4,24,5],[17,4,17,5],[19,4,19,5],[20,4,20,5],[21,4,21,5],[23,4,23,5],[12,4,12,6]]}
[]
["幼稚園型一時預かり事業（幼保連携型認定こども園用）"]
[null,null,null,"の欄に記入のこと"]
[null,"施設名称"]
[]
["従事者数要件"]
[null,"区分","一時預かり\n定員","必要従事者数"]
[null,"0歳児",null,{"$f":"C8*0.3334","v":0}]
[null,"1歳児",null,{"$f":"C9*0.1667","v":0}]
[null,"2歳児",null,{"$f":"C10*0.1667","v":0}]
[null,"3歳児",null,{"$f":"C11*0.05","v":0}]
[null,"4歳児",null,{"$f":"C12*0.034","v":0}]
[null,"5歳児",null,{"$f":"C13*0.034","v":0}]
[null,"合計（注）",{"$f":"SUM(C8:C13)","v":0},6.0405999999999995]
[]
["一時預かり事業で配置する従事者の人数",null,null,"人　　うち保育士",null,"人"]
[]
["番号","点検事項","施設確認欄","判定","基準等",null,"確認結果等"]
[1,"＜配置人数＞\n従事者人数が「Ａ必要従事者数合計」＜「Ｂ配置する従事者人数」となっており、かつ、常時２人以上配置されていますか。",null,"はいの場合、５へ。\nいいえの場合、以下へ。"]
[2,"Ｂが１人であるときは、保育士又は幼稚園教諭普通免許状所有者が配置されていますか。",null,"いいえの場合、保育士又は幼稚園教諭普通免許状所有者配置が必要","　幼稚園型一時預かり事業の教育・保育従事者の人数は、一定の条件を満たす場合に限り、１人とすることができますが、その場合、１人である教育・保育従事者は保育士又は幼稚園教諭普通免許状所有者でなければいけません。【規則第36条の35第2号ハ】"]
[3,"１が「いいえ」の場合、教育・保育従事者が保育士又は幼稚園教諭普通免許状所有者１人であるときに、事業を利用している乳幼児の人数は、当該教育・保育従事者１人で処遇できる人数ですか。",null,"いいえの場合、配置又は預かり人数の減が必要。","　保育士又は幼稚園教諭普通免許状所有者１人で処遇できる乳幼児の人数とは、保育所の職員配置の基準に準じて乳幼児の年齢別人数に基づき算定した必要な保育従事者の人数が１人となる範囲の乳幼児の人数をいいます。【規則第36条の35第2号ハ】"]
[4,"１が「いいえ」の場合、一時預かり事業が幼稚園等と一体的に実施され、幼稚園等の保育士又は幼稚園教諭普通免許状所有者による支援を受けられる体制になっていますか。",null,"いいえの場合、体制整備又は預かり人数の減が必要","　幼稚園型一時預かり事業を行うに当たって、教育・保育従事者を保育士又は幼稚園教諭普通免許状所有者１人とすることができるのは、処遇する乳幼児の人数が保育士又は幼稚園教諭普通免許状所有者１人で処遇できる人数であることに加え、一時預かり事業が幼稚園等と一体的に実施され、幼稚園等の保育士又は幼稚園教諭普通免許状所有者からの支援を受けることができる体制であることが必要です。【規則第36条の35第2号ハ】"]
[5,"＜資格＞\n一時預かり事業の教育・保育従事者に保育士又は幼稚園教諭普通免許状所有者以外の者がいますか。",null,"はいの場合、以下へ。\nいいえの場合、適合"]
[6,"５が「はい」の場合、一時預かり事業の教育・保育従事者のうち、保育士又は幼稚園教諭普通免許状所有者以外の者は、全員、市町村長等が行う研修を修了した者又は小学校教諭若しくは養護教諭の免許状を有する者教育及び保育に関する知識、経験等を有する者として市町村長が認めるものとなっていますか。",null,"はいの場合、以下へ\nいいえの場合、配置が必要。","　幼稚園型一時預かり事業の基準では、事業を利用する乳幼児の処遇を行う者は、保育士、幼稚園教諭免許状所有者、市町村長等が行う研修を修了した者又は小学校教諭若しくは養護教諭の免許状を有する者その他の教育及び保育に関する知識、経験等を有する者として市町村長が認めるものでなければいけません。「研修を修了した者」とは、次の者を指します。①子育て支援員に係る所定の研修を修了した者②家庭的保育に係る所定の研修を修了した者【規則第36条の35第2号ロ,第56第1項】"]
[7,"５が「はい」の場合、一時預かり事業の保育従事者の３分の１以上は保育士又は幼稚園教諭普通免許状所有者となっていますか。",null,"はいの場合、適合。\nいいえの場合、配置が必要。","　幼稚園型一時預かり事業の保育従事者のうち３分の１以上は保育士又は幼稚園教諭普通免許状所有者でなければいけません。【規則第36条の35第2号ロ,第56第1項】"]

{"sheet":"一時預かり(余裕活用型)","index":30,"n_rows":13,"n_cols":7,"rows_kept":13,"cut":false,"hidden":false,"merged":[[6,3,6,5],[7,3,7,5],[11,0,11,6],[12,0,12,6],[3,2,3,3],[8,3,8,5],[9,3,9,5],[10,3,10,5]]}
[]
["余裕活用型一時預かり事業"]
[null,null,null,"の欄に記入のこと"]
[null,"施設名称"]
[]
[]
["番号","点検事項","施設確認欄","判定",null,null,"確認結果等"]
[1,"余裕活用型一時預かりについては、以下の保育所、認定こども園、家庭的保育事業の基準に準じて行うこと。","　",null,null,null,"－"]
[null,"①職員配置基準を満たしていますか。",null,"はいの場合、適合\nいいえの場合、施設全体としての基準に適合させること。"]
[null,"②運営基準を満たしていますか。",null,"はいの場合、適合\nいいえの場合、施設全体としての基準に適合させること。"]
[null,"③設備基準を満たしていますか。",null,"はいの場合、適合\nいいえの場合、施設全体としての基準に適合させること。"]
["基準"]
["児童福祉法施行規則第三十六条の三十五\n三　保育所、認定こども園又は家庭的保育事業等（居宅訪問型保育事業を除く。以下この号において同じ。）を行う事業所において、当該施設又は事業を利用する児童の数（以下この号において「利用児童数」という。）が当該施設又は事業に係る利用定員の総数に満たない場合であつて、当該利用定員の総数から当該利用児童数を除いた数の乳幼児を対象として一時預かり事業を行うとき　次に掲げる施設又は事業所の区分に応じ、それぞれ次に定めるものに準じ、事業を実施すること。\nイ　保育所　児童福祉施設の設備及び運営に関する基準（保育所に係るものに限る。）\nロ　幼保連携型認定こども園以外の認定こども園　認定こども園法第三条第二項に規定する主務大臣が定める施設の設備及び運営に関する基準\nハ　幼保連携型認定こども園　幼保連携型認定こども園の学級の編制、職員、設備及び運営に関する基準（平成二十六年内閣府・文部科学省・厚生労働省令第一号）\nニ　家庭的保育事業等を行う事業所　家庭的保育事業等の設備及び運営に関する基準（平成二十六年厚生労働省令第六十一号）（居宅訪問型保育事業に係るものを除く。）"]

{"sheet":"病児・病後児①(基本)","index":31,"n_rows":38,"n_cols":30,"rows_kept":38,"cut":false,"hidden":false,"merged":[[6,0,6,3],[6,4,6,5],[7,0,7,3],[7,5,7,7],[7,9,7,11],[1,22,1,26],[13,0,13,2],[13,10,13,14],[11,0,11,2],[11,3,11,4],[11,6,11,7],[11,10,11,14],[11,15,11,19],[13,3,13,4],[13,6,13,7],[13,24,13,29],[13,15,13,19],[11,24,11,29],[12,0,12,2],[12,3,12,4],[12,6,12,7],[12,10,12,14],[12,15,12,19],[12,24,12,29],[7,13,7,16],[9,0,9,7],[9,8,9,14],[9,15,9,28],[10,0,10,2],[10,3,10,7],[10,8,10,9],[10,10,10,14],[10,15,10,19],[10,20,10,21],[10,22,10,23],[10,24,10,29],[17,1,18,3],[17,17,18,19],[18,5,18,7],[20,0,20,10],[20,11,20,15],[20,16,20,20],[15,17,15,19],[15,20,15,29],[16,1,16,3],[16,4,16,15],[16,17,16,19],[16,20,16,28],[15,0,18,0],[15,1,15,3],[15,4,15,15],[15,16,18,16],[20,28,20,29],[20,21,20,22],[20,23,20,27],[21,0,21,1],[21,2,21,4],[21,5,21,7],[21,8,21,10],[21,11,21,12],[21,13,21,15],[21,16,23,19],[21,20,23,29],[22,0,22,1],[22,2,22,3],[22,5,22,6],[22,8,22,9],[22,11,22,12],[22,13,22,14],[23,0,23,1],[23,2,23,3],[23,5,23,6],[23,8,23,10],[23,11,23,12],[23,13,23,14],[32,24,32,25],[32,0,32,1],[32,2,32,3],[32,4,32,5],[32,6,32,7],[32,8,32,9],[24,21,24,22],[25,21,25,26],[26,21,26,26],[27,21,27,26],[28,21,28,26],[24,16,30,19],[29,21,29,26],[32,10,32,11],[32,12,32,13],[32,14,32,15],[34,0,34,1],[34,2,34,3],[34,4,34,5],[34,6,34,7],[34,8,34,9],[32,26,32,28],[33,0,33,1],[33,2,33,3],[33,4,33,5],[33,6,33,7],[33,8,33,9],[33,10,33,11],[33,12,33,13],[33,14,33,15],[33,16,33,17],[33,18,33,19],[33,20,33,21],[33,22,33,23],[33,24,33,25],[33,26,33,28],[32,16,32,17],[32,18,32,19],[32,20,32,21],[32,22,32,23],[34,20,34,21],[34,22,34,23],[34,24,34,25],[34,26,34,28],[34,10,34,11],[34,12,34,13],[34,14,34,15],[34,16,34,17],[34,18,34,19]]}
[]
["病児・病後児保育事業",null,null,null,null,null,null,null,null,null,null,null,null,null,null,null,null,null,null,null,null,null,{"$f":"基本事項!A5","v":"2024-04-01"}]
["＜基本情報＞"]
["・下記を記載ください。欄のスペースが足りない場合は広げてください。"]
["・利用リーフレット、ホームページの写し等（施設の対応可能な症例、開所（訪問）時間等保護者への周知文書）を添付してください。"]
["１　病児保育施設に関する事項"]
["事業開始年月日",null,null,null,"平成",null,null,"年",null,"月",null,"日"]
["事業の種別　",null,null,null,null,"病児対応型",null,null,null,"病後児対応型",null,null,null,"体調不良児対応型"]
["２　運営に関する事項"]
["（１）開設時間",null,null,null,null,null,null,null,"（２）利用定員・対象年齢",null,null,null,null,null,null,"（３）職員数"]
["曜日",null,null,"開設時間（24時間表記）",null,null,null,null,"利用定員",null,"対象年齢（例　6ヶ月～12才）",null,null,null,null,"職種",null,null,null,null,"専属",null,"兼務",null,"兼務先機関名"]
[null,null,null,null,null,"～",null,null,null,"名",null,null,null,null,null,"保育士",null,null,null,null,null,"名",null,"名"]
[null,null,null,null,null,"～",null,null,null,"名",null,null,null,null,null,"看護師等（看護師、准看護師、保健師、助産師）",null,null,null,null,null,"名",null,"名"]
[null,null,null,null,null,"～",null,null,null,"名",null,null,null,null,null,"その他（　　　　　　　）\n例：栄養士・事務員等",null,null,null,null,null,"名",null,"名"]
["（４）協力機関・指導医の状況"]
["協力医療機関","名称",null,null,null,null,null,null,null,null,null,null,null,null,null,null,"指導医","氏名"]
[null,"所在地",null,null,null,null,null,null,null,null,null,null,null,null,null,null,null,"所在地"]
[null,"協力内容\n\n(該当にするものに○)",null,null,null,"児童の診察",null,null,"　","医療処置の指示",null,null,"　","緊急時の対応",null,null,null,"緊急時の対応\n\n(該当にするものに○)",null,null,"　","診察、治療",null,"　","施設に対する処置の指導"]
[null,null,null,null,"　","施設の感染予防措置などの指導",null,null,"　","その他（　　　　　　　　　　　　　　　　）",null,null,null,null,null,null,null,null,null,null,"　","転院",null,"　","その他（　　　　　　　　　　　　　）"]
["３　設備に関する事項",null,null,null,null,null,null,null,null,null,null,null,null,null,null,null,"４　運営内容に関する事項"]
["（１）病児対応型・病後児対応型",null,null,null,null,null,null,null,null,null,null,"（２）体調不良児対応型",null,null,null,null,"送迎対応の有無",null,null,null,null,"　",null,"手洗い設備の有無"]
["種　　類",null,"保育室",null,null,"観察室又は安静室",null,null,"調理室\n（　専用・兼用　）",null,null,"種　　類",null,"医務室又は\n余裕スペース",null,null,"感染症対策（体温管理・隔離・使い捨て資材の使用・手洗い消毒等実施している内容を記載）"]
["面　　積",null,null,null,"㎡",null,null,"㎡",null,null,"㎡","面　　積",null,null,null,"㎡"]
["定員1人当たり面積",null,null,null,"㎡",null,null,"㎡",null,null,null,"定員1人当たり面積",null,null,null,"㎡"]
[null,null,null,null,null,null,null,null,null,null,null,null,null,null,null,null,"病児保育に関する施設内外の従業員研修の状況\n(該当にするものに○)\n（（　）内に頻度を記載のこと）",null,null,null,null,"施設内研修",null,"（年",null,"回）"]
[null,null,null,null,null,null,null,null,null,null,null,null,null,null,null,null,null,null,null,null,null,"全国病児保育協議会ブロック研修会",null,null,null,null,null,"（",null,"）"]
[null,null,null,null,null,null,null,null,null,null,null,null,null,null,null,null,null,null,null,null,null,"日本医療保育学会ブロック研修会",null,null,null,null,null,"（",null,"）"]
[null,null,null,null,null,null,null,null,null,null,null,null,null,null,null,null,null,null,null,null,null,"日本病児保育協会ｵｰﾌﾟﾝｾﾐﾅｰ",null,null,null,null,null,"（",null,"）"]
[null,null,null,null,null,null,null,null,null,null,null,null,null,null,null,null,null,null,null,null,null,"県が実施する病児保育研修会",null,null,null,null,null,"（",null,"）"]
[null,null,null,null,null,null,null,null,null,null,null,null,null,null,null,null,null,null,null,null,null,"市町が実施する病児保育研修会",null,null,null,null,null,"（",null,"）"]
[null,null,null,null,null,null,null,null,null,null,null,null,null,null,null,null,null,null,null,null,null,"その他（　　　　　　　　　　　　　　　　　）",null,null,null,null,null,"（",null,"）"]
["５　利用状況"]
[null,null,"４月",null,"５月",null,"６月",null,"７月",null,"８月",null,"９月",null,"１０月",null,"１１月",null,"１２月",null,"１月",null,"２月",null,"３月",null,"合計"]
["令和５年度",null,null,null,null,null,null,null,null,null,null,null,null,null,null,null,null,null,null,null,null,null,null,null,null,null,{"$f":"SUM(C34:Z34)","v":0}]
["令和６年度",null,null,null,null,null,null,null,null,null,null,null,null,null,null,null,null,null,null,null,null,null,null,null,null,null,{"$f":"SUM(C35:Z35)","v":0}]
[]
[null,null,"注 1","各月の利用延べ利用者数を記載して下さい。"]
[null,null,2,"令和６年度は、資料作成日の前月までの状況を記載して下さい"]

{"sheet":"病児・病後児②(点検表)","index":32,"n_rows":59,"n_cols":7,"rows_kept":59,"cut":false,"hidden":false,"merged":[[56,0,56,1],[55,0,55,1],[58,0,58,1],[57,0,57,1],[50,0,50,1],[49,0,49,1],[52,0,52,1],[51,0,51,1],[54,0,54,1],[53,0,53,1],[44,0,44,1],[43,0,43,1],[46,0,46,1],[45,0,45,1],[48,0,48,1],[47,0,47,1],[36,0,36,6],[39,0,39,1],[38,0,38,1],[42,0,42,1],[40,0,40,6],[41,0,41,1],[29,0,29,1],[28,0,28,1],[31,0,31,1],[30,0,30,1],[34,0,34,1],[32,0,32,6],[33,0,33,1],[22,3,23,3],[25,0,25,1],[24,0,24,1],[27,0,27,1],[26,0,26,1],[13,5,17,5],[13,6,17,6],[13,2,17,2],[20,0,20,6],[18,0,19,1],[13,0,13,1],[15,0,15,1],[14,0,14,1],[4,0,4,1],[12,0,12,1],[6,4,9,4],[6,3,9,3],[10,0,10,1],[11,0,11,1],[5,0,5,1],[5,2,12,2],[5,5,12,5],[5,6,12,6],[0,5,0,6],[0,0,0,3],[37,0,37,1],[35,0,35,1],[23,0,23,1],[22,0,22,1],[21,0,21,1],[17,0,17,1],[16,0,16,1],[2,0,3,1],[2,2,2,3],[2,4,3,4],[2,5,3,5],[2,6,3,6]]}
["＜病児・病後児保育事業指導検査基準・点検表　（児童福祉法34条の18の2）＞",null,null,null,null,{"$f":"基本事項!A5","v":"2024-04-01"}]
[]
["点検項目",null,"点　検　事　項",null,"点検\n結果","確認書類等","備　考"]
[null,null,"着眼点","内　　　容　　　（説　　明）"]
["１ 事業の定義\n（児童福祉法第６条の３⑬）",null,"事業内容は、事業の定義に適合しているか。\n","・病児保育事業とは、保育を必要とする乳児・幼児又は保護者の労働若しくは疾病その他の事由により家庭において保育を受けることが困難となった小学校に就学している児童であって、疾病にかかっているものについて、保育所、認定こども園、病院、診療所その他内閣府令で定める施設（※）において、保育を行う事業をいう。\n\n※(規則第1条の32の3）家庭的保育事業等の用に供する施設、児童の居宅その他保育を適切に行うことができる施設（認可外保育施設も含む）","　","当該施設の受入方針等より確認。"]
["２ 事業類型\n（該当する類型に○を記してください。）↓\n",null,"事業内容は事業類型に適合しているか。\n(該当する類型の点検結果をチェック）\n","（病児対応型）\n・児童が病気の「回復期に至らない場合」であり、かつ、当面の症状の急変が認められない場合において、当該児童を病院・診療所、保育所等に付設された専用スペース又は本事業のための専用施設で一時的に保育する事業。","－","当該施設の受入方針等より確認。"]
["　","　　病児対応型",null,"（病後児対応型）\n・児童が病気の「回復期」であり、かつ、集団保育が困難な期間において、当該児童を病院・診療所、保育所等に付設された専用スペース又は本事業のための専用施設で一時的に保育する事業。","－"]
["　","　　病後児対応型"]
["　","　　体調不良児対応型"]
["　","　　非施設型(訪問型）"]
[null,null,null,"（体調不良児対応型）\n・児童が保育中に微熱を出すなど「体調不良」となった場合において、安心かつ安全な体制を確保することで、保育所等における緊急的な対応を図る事業及び保育所等に通所する児童に対して保健的な対応等を図る事業。","－"]
["・送迎対応の有無↓",null,null," ( 非施設型(訪問型））\n・児童が「回復期に至らない場合」又は、「回復期」であり、かつ、集団保育が困難な期間において、当該児童の自宅において一時的に保育する事業。","－"]
["　",null,null,"（送迎対応）・病児対応型、病後児対応型及び体調不良児対応型において、看護師、准看護師、保健師又は助産師（以下「看護師等」という。）又は保育士を配置し、保育所等において保育中に「体調不良」となった児童を送迎し、病院・診療所、保育所等に付設された専用スペース又は本事業のための専用施設で一時的に保育することを可能とする。","－"]
["３ 対象児童\n ",null,"対象児童は適切か。\n(該当する類型の点検結果をチェック）","  (病児対応型）　当面症状の急変は認められないが、病気の回復期に至っていないことから、集団保育が困難であり、かつ、保護者の勤務等の都合により家庭で保育を行うことが困難な児童であって、市町村が必要と認めた乳児・幼児又は小学校に就学している児童（以下「病児」という。）。","－","当該施設の受入方針等より確認。"]
[null,null,null,"  (病後児対応型）　病気の回復期であり、集団保育が困難で、かつ、保護者の勤務等の都合により家庭で保育を行うことが困難な児童であって、市町村が必要と認めた乳児・幼児又は小学校に就学している児童（以下「病後児」という。）。","－"]
[" ",null,null," (体調不良児対応型）　事業実施保育所等に通所しており、保育中に微熱を出すなど体調不良となった児童であって、保護者が迎えに来るまでの間、緊急的な対応を必要とする児童（以下「体調不良児」という。）。","－"]
[" ",null,null," (非施設型(訪問型））\n　病児及び病後児とする。","－"]
[" ",null,null," (送迎対応）　保育所等に通所しており、保育中に微熱を出すなど体調不良となった児童であって、保護者が迎えに来るまでの間、緊急的な対応を必要とする児童。","－"]
[" ４　届出\n （児童福祉法第34条の18）",null,"設置届を提出してるか。","・第34条の18　国及び都道府県以外の者は、内閣府令で定めるところにより、あらかじめ、内閣府令で定める事項を都道府県知事に届け出て、病児保育事業を行うことができる。","　"]
[null,null,"変更が生じた場合、期間内に変更届を提出しているか。","・第34条の18②　国及び都道府県以外の者は、前項の規定により届け出た事項に変更を生じたときは、変更の日から一月以内に、その旨を都道府県知事に届け出なければならない。","　"]
["５ 病児対応型及び病後児対応型　※該当する類型の場合に記載してください。"]
[" ① 実施場所",null,"実施場所は適合しているか。","・病院・診療所、保育所等に付設された専用スペース又は本事業のための専用施設であって、次のア～ウの基準を満たし、市町村が適当と認めたものとする。","－"]
["　　（保育室）",null,"保育室は病児保育専用に確保されているか。","ア　保育室及び児童の静養又は隔離の機能を持つ観察室又は安静室を有すること。","－"]
["　　（観察室又は安静室）",null,"観察室又は安静室は病児保育専用に確保されているか。",null,"－"]
["　　（調理室）",null,"調理室があるか。","イ　調理室を有すること。なお、病児（病後児）保育専用の調理室を設けることが望ましいが、本体施設等の調理室と兼用しても差し支えないこと。","－"]
["　　（安全衛生対策）",null,"特に扉・柵を設けるなど安全性に配慮されているか。","ウ　事故防止及び衛生面に配慮されているなど、児童の養育に適した場所とすること。 ","－"]
["② 職員の配置",null,"利用児童数に応じて、必要な人員が確保されているか。","・病児（病後児）の看護を担当する看護師等を利用児童おおむね１０人につき１名以上配置するとともに、病児が安心して過ごせる環境を整えるために、保育士を利用児童おおむね３人につき１名以上配置すること。","－","出勤簿･預かりの記録等"]
[null,null,"常駐又は、常駐していない場合は次のア、イに適合しているか。","（注１）保育士及び看護師等の職員配置については、常駐を原則とする。ただし、利用児童が見込まれる場合に近接病院等から保育士及び看護師等が駆けつけられる等の迅速な対応が可能であれば、以下のとおり常駐を要件としない。","－","常駐していない方（兼務者）の所属、職務を確認"]
[null,null,"　　職員が常駐していない場合、利用児童がいる時間帯の体制は適正か。","ア　利用児童がいる時間帯\n（ア）～（エ）の要件を満たし、利用児童の安心・安全を確保できる体制を整えている場合には、看護師等の常駐を要件としない。\n\n（ア）病気からの回復過程を遅らせたり、二次感染を生じたりすることがないよう、利用児童の病状等を定期的に確認・把握した上で、適切な関わりとケアを行うこと。\n（イ）病児保育施設が医療機関内に設置されている場合等であり、病児保育施設と看護師等が病児保育以外の業務に従事している場所とが近接していること。\n（ウ）看護師等が病児保育以外の業務に従事している場合においても、緊急の場合には病児保育施設に速やかに駆けつけることができる職員体制が確保されていること。\n（エ）看護師等が常駐しない場合であっても、保育士等を複数配置することにより、常に複数人による保育体制を確保していること。","－"]
[null,null,"　　職員が常駐していない場合、利用児童がいない時間帯の体制は適正か。","イ　利用児童がいない時間帯\n　利用児童が発生した場合に、連絡を受けた保育士及び看護師等が速やかに出勤し、業務に従事するなど、柔軟な対応が可能となる職員体制が確保されていれば、利用児童がいない場合は保育士及び看護師等の常駐を要件としない。","－"]
[null,null,"2人以上又は、２名以上の体制でない場合は右のア、イに適合しているか。\n\n(離島･中山間地域は例示であるので、市町の判断を優先)","（注２）保育士及び看護師等の２名以上の体制で行うことを原則（必須条件）とするが、以下のア及びイの要件を満たす場合には、職員の配置要件を満たしているものとする。その際、本規定に基づき事業を実施する市町村は、事業実施に係る要綱等で定めるところにより、その提供する病児保育に係る情報を公表しなければならない。\n\nア　 離島・中山間地その他の地域で病児保育の利用児童の見込みが少ないと市町村が認めた上で、医療機関併設型で定員２人以下の場合。\n\nイ　「子育て支援員研修事業の実施について」（令和６年３月30日付けこ成環第 111号・こ支家第189号通知）の別紙「子育て支援員研修事業実施要綱」の５（３）アに定める基本研修及び５（３）イ（イ）に定める「地域型保育」の専門研修を修了している等、病児保育事業に従事する上で必要な知識や技術等を修得していると市町村が認めた看護師等を１名専従で配置した上で、病児保育以外の業務に従事している看護師等１名が、必要な場合に速やかに対応できる職員体制を確保し、利用児童の病状等を定期的に確認・把握した上で、適切な関わりとケアを行うこと。 ","－"]
["③ その他",null,"対象児童の受け入れ、担当職員の業務等は適切か。","ア　集団保育が困難であり、かつ、保護者が家庭で保育を行うことができない期間内で対象児童の受け入れを行うこと。\nイ　本事業を担当する職員は、利用の少ない日等において、感染症流行状況、予防策等の情報提供や巡回支援等を適宜実施すること。","－","･医師･保護者連絡票（病児保育事業実施要綱別紙２様式例) 、当該施設の受入方針等"]
["６ 体調不良児対応型　　※該当する類型の場合に記載してください。"]
["①実施場所",null,"・実施場所は適合しているか\n\n（職員及び他児の往来の制限がされているか）","・保育所又は医務室が設けられている認定こども園、小規模保育事業所、事業所内保育事業所の医務室、余裕スペース等で、衛生面に配慮されており、対象児童の安静が確保されている場所とすること。\n（医務室、余裕スペース等実施場所と保育室・遊戯室等の間に間仕切り等を設けることで、健康な職員及び他児の往来を制限している。）","－"]
["②職員の配置",null,"利用児童数に応じて、必要な人員が確保されているか。","・看護師等を１名以上配置し、預かる体調不良児の人数は、看護師等１名に対して２人程度とすること。 \n","－"]
[null,null,"看護師等の活動が適正に行われているか。","・本事業を担当する看護師等は、実施保育所等における児童全体の健康管理・衛生管理等の保健的な対応を日常的に行うこと。 \n・本事業を担当する看護師等は、地域の子育て家庭や妊産婦等に対する相談支援を地域のニーズに応じて定期的に実施すること。","－"]
["７　非施設型（訪問型）　　※該当する類型の場合に記載してください。"]
["①実施場所",null,"適合しているか(児童の自宅以外で預かっていないか)","・利用児童の居宅とする。","－"]
["②職員の配置\n　",null,"利用児童数に応じて、必要な人員が確保されているか。","次のア～ウを満たすこと。\n\nア　病児（病後児）の看護を担当する一定の研修を修了した看護師等、保育士、研修により市町村長が認めた者（以下「家庭的保育者」という。）のいずれか１名以上配置すること。\n\nイ　アに定める職員を配置する場合は、「職員の資質向上・人材確保等研修事業の実施について」（令和６年３月30日付けこ成事第350号通知）に定める病児・病後児保育（訪問型）研修を修了した者とする。なお、令和７年３月31日までの間に、病児保育事業実施要綱別紙１に掲げる研修（市町村等が実施する他の研修会が内容を満たす場合には、その研修等の修了をもって代えることも差し支えない）を修了した者についても配置できることとする\n\nウ　預かる病児（病後児）の人数は、一定の研修を修了した看護師等、保育士、家庭的保育者いずれか１名に対して、１人程度とする。 ","－","出勤簿･預かりの記録等により確認"]
["③その他",null,"実施方法等は適正か。","集団保育が困難であり、かつ、保護者が家庭で保育を行うことができない期間内で対象児童宅への訪問を行うこと。","－","医師･保護者連絡票、当該施設の受入方針等より確認。"]
["８ 送迎対応がある場合　　※該当する場合は記載してください。"]
["①職員の配置",null,"職員配置は適正か。","・保育所等から体調不良児の送迎を行う際は、送迎用の自動車に同乗する看護師等又は保育士を配置すること。","－"]
["②その他",null,"送迎方法（安全面）は適切か。","ア　保育所等から体調不良児の送迎を行う際には、送迎用の自動車に看護師又は保育士が同乗し、安全面に十分配慮した上で実施すること。","－"]
[null,null,"送迎方法（手段）は適切か。","イ　送迎はタクシーによる送迎を原則とする。ただし、やむを得ない事由によりタクシーによる送迎対応が困難な場合には、その他自動車の借上げ等による実施も可能とする。","－"]
["９ 実施方法",null,"受け入れ（訪問）の決定は適正か。","・病児対応型及び病後児対応型並びに非施設型（訪問型）については、対象児童をかかりつけ医に受診させた後、保護者と協議のうえ、受け入れ、訪問の決定を行うこと。",null,"医師･保護者連絡票等"]
[null,null,"送迎対応及びその後の対応は適正か。","・送迎対応については、保育所等から連絡を受けた保護者が、病児保育実施施設に連絡すること等により実施すること。また、送迎対応を行った上で、病児対応型及び病後児対応型の事業を実施する施設において保育を行うにあたっては、かかりつけ医等に受診すること。","－"]
[null,null,"医療機関でない施設が実施する場合は、連絡票で確認し、決定を行っているか。","・医療機関でない施設が病児対応型及び非施設型（訪問型）を実施する場合は、保護者が児童の症状、処方内容等を記載した連絡票（病児保育事業実施要綱別紙２様式例。児童を診察した医師が入院の必要性はない旨を署名したもの。）により、症状を確認し、受け入れ、訪問の決定を行うこと。",null,"医師･保護者連絡票等"]
["10 留意事項"]
["　① 医療機関との連携",null,"医療機関との協力関係があるか。","・本事業を実施する施設は、緊急時に児童を受け入れてもらうための医療機関（以下「協力医療機関」という。）をあらかじめ選定し、事業運営への理解を求めるとともに、協力関係を構築すること。",null,"基本情報シート"]
[null,null,"指導医を選定しているか。","・医療機関でない施設が病児対応型、非施設型（訪問型）及び送迎対応を実施する場合は、児童の病態の変化に的確に対応し、感染の防止を徹底するため、日常の医療面での指導、助言を行う医師（以下「指導医」という。）をあらかじめ選定すること。 ",null,"基本情報シート"]
[null,null,"緊急時の対応についてあらかじめ文書により取り決めを行っているか。","・病児対応型、非施設型（訪問型）及び送迎対応を実施する場合においては、指導医又は協力医療機関（併設する医療機関の医師を含む。）との関係において、緊急時の対応についてあらかじめ文書により取り決めを行うこと。 ",null,"対応フローの共有及び基本情報シート"]
[null,null,"利用方法等を周知しているか。","・本事業を実施するに当たっては、指導医・嘱託医と相談のうえ、一定の目安（対応可能な症例、開所（訪問）時間等）を作成するとともに、保護者に対して周知し、理解を得ること。",null,"ＨＰ、利用案内等当該施設の受入方針等"]
["　② 感染の防止",null,"感染防止の配慮ができているか。","・体温の管理等その他健康状態を適切に把握するとともに、複数の児童を受け入れる場合は、他児への感染に配慮すること。",null,"基本情報シート"]
[null,null,"衛生面の配慮ができているか。","・手洗い等の設備を設置し、衛生面への十分な配慮を施すことで、他児及び職員への感染を防止すること。"]
[null,null,"職員及び他児の往来の制限がされているか。（再掲）","・体調不良児対応型を実施する場合においては、他の健康な児童等が感染しないよう、事業実施場所と保育室・遊戯室等の間に間仕切り等を設けることで、職員及び他児の往来を制限すること。 （再掲）",null,"基本情報シート"]
[null,null,"利用申込時に予防接種の確認、助言を行っているか。","・児童の受け入れに際しては、予防接種の状況を確認するとともに、必要に応じて予防接種するよう助言すること。"]
["　③ 書類の整備",null,"書類が整備されているか。","病児保育事業実施要綱の要件に適合する保育所等である旨の必要な書類を整備しておくこと。\n・従事する者の資格要件、勤務状況が分かる書類\n・診断医師及び保護者からの連絡票（病児保育事業実施要綱別紙２様式例）\n・児童の預かりの記録\n・対応可能な症例、開所（訪問）時間等保護者への周知文書\n・緊急時の対応に関する対応フロー"]
["　④ 事故の報告",null,"事故が発生した場合の対応は適切か。","・保育中に事故が生じた場合には、「教育・保育施設等における事故の報告等について」（令和６年３月22日付けこ成安第36号・５教参学第39号通知）に従い、速やかに報告すること。"]
["　⑤ 研修",null,"職員の資質向上に努めているか。","・病児保育事業に従事する職員については、病児・病後児保育に関する研修を受講し、資質の向上に努めること。"]